Workbook

Sheet Website
B2: URLs
B4: https://www.eex.com/download/en/96828 | K4: From EEX Site
B5: http://pubdocs.worldbank.org/en/561011486076393416/CMO-Historical-Data-Monthly.xlsx | K5: From World Bank Pink Data
B6: https://research.stlouisfed.org/fred2/data/EXUSEU.txt | K6: From FRED Exchange Rate Data
B8: https://www.eex.com/download/en/96828
B9: https://www.eex.com/download/en/59312
F17: First press Clear All
F18: Then Press Read All
B20: Websites
B22: http://cdn.eex.com
B24: https://www.eex.com/en/market-data/power/spot-market/kwk-index/kwk-index-download/kwk-index---download/59314

Sheet Graph Database
K1: A | L1: B | M1: A | N1: A
K2: German Prices | L2: German Prices | M2: Exchange Rates | N2: Pink Data
B3: Adjust for Common Dates from Different Sources | K3: ="'"&K2&"'!" -> 'German Prices'! | L3: ="'"&L2&"'!" -> 'German Prices'! | M3: ="'"&M2&"'!" -> 'Exchange Rates'! | N3: ="'"&N2&"'!" -> 'Pink Data'! | O3: Graph Area
I4: Pink Dates | K4: =K3&K1&":"&K1 -> 'German Prices'!A:A | L4: =L3&L1&":"&L1 -> 'German Prices'!B:B | M4: =M3&M1&":"&M1 -> 'Exchange Rates'!A:A | N4: =N3&N1&":"&N1 -> 'Pink Data'!A:A | O4: x-axis
M5: B | N5: I
M6: =M3&M5&":"&M5 -> 'Exchange Rates'!B:B | N6: =N3&N5&":"&N5 -> 'Pink Data'!I:I
B7: Date | C7: Month | D7: Quarter | E7: Year | F7: Quarter Yr | G7: Start Criteria | H7: End Criteria | K7: Match of Quarterly Dates | L7: Index | M7: AverageifS | N7: AverageifS | P7: Elec Price (USD) | Q7: Gas Price (USD) | R7: Heat Rate Graph
B8: 1999-12-31 | C8: =MONTH(B8) -> 12 | D8: =ROUNDUP(C8/3,0) -> 4 | E8: =YEAR(B8) -> 1999 | F8: ="Q"&D8&" "&E8 -> Q4 1999 | K8: =MATCH(F8,INDIRECT($K$4),0) ->  | L8: =INDEX(INDIRECT($L$4),'Graph Database'!K8) ->  | O8: =IF(ISNUMBER(L8),B8,NA()) ->  | P8: =IF(O8,L8) ->  | Q8: =IF(O8,N8/M8) -> 
B9: =EOMONTH(B8,3) -> 2000-03-31 | C9: =MONTH(B9) -> 3 | D9: =ROUNDUP(C9/3,0) -> 1 | E9: =YEAR(B9) -> 2000 | F9: ="Q"&D9&" "&E9 -> Q1 2000 | G9: =">"&B8 -> >36525 | H9: ="<="&B9 -> <=36616 | I9: ="<="&$E9&"M"&TEXT($C9,"00") -> <=2000M03 | J9: =">="&$E9&"M"&TEXT($C9-2,"00") -> >=2000M01 | K9: =MATCH(F9,INDIRECT($K$4),0) ->  | L9: =INDEX(INDIRECT($L$4),'Graph Database'!K9) ->  | O9: =IF(ISNUMBER(L9),B9,NA()) ->  | P9: =IF(O9,L9) ->  | Q9: =IF(O9,N9/M9) ->  | U9: EOMONTH
B10: =EOMONTH(B9,3) -> 2000-06-30 | C10: 6 | D10: 2 | E10: 2000 | F10: Q2 2000 | G10: =">"&B9 -> >36616 | H10: ="<="&B10 -> <=36707 | I10: ="<="&$E10&"M"&TEXT($C10,"00") -> <=2000M06 | J10: =">="&$E10&"M"&TEXT($C10-2,"00") -> >=2000M04 | K10: =MATCH(F10,INDIRECT($K$4),0) ->  | L10: =INDEX(INDIRECT($L$4),'Graph Database'!K10) ->  | S10: Implied HR | U10: AVERAGEIFS
B11: 2000-09-30 | C11: 9 | D11: 3 | E11: 2000 | F11: Q3 2000 | G11: >36707 | H11: <=36799 | I11: ="<="&$E11&"M"&TEXT($C11,"00") -> <=2000M09 | J11: =">="&$E11&"M"&TEXT($C11-2,"00") -> >=2000M07 | K11: 80 | L11: =INDEX(INDIRECT($L$4),'Graph Database'!K11)*M11 -> 15.353316 | M11: =AVERAGEIFS(INDIRECT($M$6),INDIRECT($M$4),G11,INDIRECT($M$4),H11) -> 0.9042 | N11: =AVERAGEIFS(INDIRECT($N$6),INDIRECT($N$4),I11,INDIRECT($N$4),J11) -> 4 | O11: 2000-09-30 | P11: 15.353316 | Q11: =IF(O11,N11) -> 4 | R11: =O11 -> 2000-09-30 | S11: =P11/Q11 -> 3.838329 | U11: MATCH
B12: 2000-12-31 | C12: 12 | D12: 4 | E12: 2000 | F12: Q4 2000 | G12: >36799 | H12: <=36891 | I12: ="<="&$E12&"M"&TEXT($C12,"00") -> <=2000M12 | J12: =">="&$E12&"M"&TEXT($C12-2,"00") -> >=2000M10 | K12: 79 | L12: =INDEX(INDIRECT($L$4),'Graph Database'!K12)*M12 -> 18.05089333 | M12: =AVERAGEIFS(INDIRECT($M$6),INDIRECT($M$4),G12,INDIRECT($M$4),H12) -> 0.8686666667 | N12: 4.38 | O12: 2000-12-31 | P12: 18.05089333 | Q12: =IF(O12,N12) -> 4.38 | R12: =O12 -> 2000-12-31 | S12: =P12/Q12 -> 4.121208524 | U12: INDIRECT
B13: 2001-03-31 | C13: 3 | D13: 1 | E13: 2001 | F13: Q1 2001 | G13: >36891 | H13: <=36981 | I13: <=2001M03 | J13: >=2001M01 | K13: 78 | L13: =INDEX(INDIRECT($L$4),'Graph Database'!K13)*M13 -> 20.60968 | M13: 0.9221333333 | N13: 4.603333333 | O13: 2001-03-31 | P13: 20.60968 | Q13: 4.603333333 | R13: 2001-03-31 | S13: 4.477120927
B14: 2001-06-30 | C14: 6 | D14: 2 | E14: 2001 | F14: Q2 2001 | G14: >36981 | H14: <=37072 | I14: <=2001M06 | J14: >=2001M04 | K14: 77 | L14: =INDEX(INDIRECT($L$4),'Graph Database'!K14)*M14 -> 18.86976 | M14: 0.8736 | N14: 4.39 | O14: 2001-06-30 | P14: 18.86976 | Q14: 4.39 | R14: 2001-06-30 | S14: 4.298350797
B15: 2001-09-30 | C15: 9 | D15: 3 | E15: 2001 | F15: Q3 2001 | G15: >37072 | H15: <=37164 | I15: <=2001M09 | J15: >=2001M07 | K15: 76 | L15: =INDEX(INDIRECT($L$4),'Graph Database'!K15)*M15 -> 18.43484133 | M15: 0.8914333333 | N15: 3.776666667 | O15: 2001-09-30 | P15: 18.43484133 | Q15: 3.776666667 | R15: 2001-09-30 | S15: 4.881246602
B16: 2001-12-31 | C16: 12 | D16: 4 | E16: 2001 | F16: Q4 2001 | G16: >37164 | H16: <=37256 | I16: <=2001M12 | J16: >=2001M10 | K16: 75 | L16: =INDEX(INDIRECT($L$4),'Graph Database'!K16)*M16 -> 28.25883667 | M16: 0.8948333333 | N16: 3.46 | O16: 2001-12-31 | P16: 28.25883667 | Q16: 3.46 | R16: 2001-12-31 | S16: 8.167293834
B17: 2002-03-31 | C17: 3 | D17: 1 | E17: 2002 | F17: Q1 2002 | G17: >37256 | H17: <=37346 | I17: <=2002M03 | J17: >=2002M01 | K17: 74 | L17: =INDEX(INDIRECT($L$4),'Graph Database'!K17)*M17 -> 20.42144833 | M17: 0.8768333333 | N17: 3.02 | O17: 2002-03-31 | P17: 20.42144833 | Q17: 3.02 | R17: 2002-03-31 | S17: 6.762068985
B18: 2002-06-30 | C18: 6 | D18: 2 | E18: 2002 | F18: Q2 2002 | G18: >37346 | H18: <=37437 | I18: <=2002M06 | J18: >=2002M04 | K18: 73 | L18: =INDEX(INDIRECT($L$4),'Graph Database'!K18)*M18 -> 19.212533 | M18: 0.9197 | N18: 2.846666667 | O18: 2002-06-30 | P18: 19.212533 | Q18: 2.846666667 | R18: 2002-06-30 | S18: 6.749133372
B19: 2002-09-30 | C19: 9 | D19: 3 | E19: 2002 | F19: Q3 2002 | G19: >37437 | H19: <=37529 | I19: <=2002M09 | J19: >=2002M07 | K19: 72 | L19: =INDEX(INDIRECT($L$4),'Graph Database'!K19)*M19 -> 24.267084 | M19: 0.9840666667 | N19: 3.013333333 | O19: 2002-09-30 | P19: 24.267084 | Q19: 3.013333333 | R19: 2002-09-30 | S19: 8.053235841
B20: 2002-12-31 | C20: 12 | D20: 4 | E20: 2002 | F20: Q4 2002 | G20: >37529 | H20: <=37621 | I20: <=2002M12 | J20: >=2002M10 | K20: 71 | L20: =INDEX(INDIRECT($L$4),'Graph Database'!K20)*M20 -> 21.36352167 | M20: 1.000633333 | N20: 3.326666667 | O20: 2002-12-31 | P20: 21.36352167 | Q20: 3.326666667 | R20: 2002-12-31 | S20: 6.421900301
B21: 2003-03-31 | C21: 3 | D21: 1 | E21: 2003 | F21: Q1 2003 | G21: >37621 | H21: <=37711 | I21: <=2003M03 | J21: >=2003M01 | K21: 70 | L21: =INDEX(INDIRECT($L$4),'Graph Database'!K21)*M21 -> 32.171796 | M21: 1.073466667 | N21: 3.673333333 | O21: 2003-03-31 | P21: 32.171796 | Q21: 3.673333333 | R21: 2003-03-31 | S21: 8.758202178
B22: 2003-06-30 | C22: 6 | D22: 2 | E22: 2003 | F22: Q2 2003 | G22: >37711 | H22: <=37802 | I22: <=2003M06 | J22: >=2003M04 | K22: 69 | L22: =INDEX(INDIRECT($L$4),'Graph Database'!K22)*M22 -> 27.978168 | M22: 1.1364 | N22: 4.04 | O22: 2003-06-30 | P22: 27.978168 | Q22: 4.04 | R22: 2003-06-30 | S22: 6.925289109
B23: 2003-09-30 | C23: 9 | D23: 3 | E23: 2003 | F23: Q3 2003 | G23: >37802 | H23: <=37894 | I23: <=2003M09 | J23: >=2003M07 | K23: 68 | L23: =INDEX(INDIRECT($L$4),'Graph Database'!K23)*M23 -> 36.20840167 | M23: 1.126233333 | N23: 3.996666667 | O23: 2003-09-30 | P23: 36.20840167 | Q23: 3.996666667 | R23: 2003-09-30 | S23: 9.059650125
B24: 2003-12-31 | C24: 12 | D24: 4 | E24: 2003 | F24: Q4 2003 | G24: >37894 | H24: <=37986 | I24: <=2003M12 | J24: >=2003M10 | K24: 67 | L24: =INDEX(INDIRECT($L$4),'Graph Database'!K24)*M24 -> 37.10325067 | M24: 1.190733333 | N24: 3.916666667 | O24: 2003-12-31 | P24: 37.10325067 | Q24: 3.916666667 | R24: 2003-12-31 | S24: 9.473170383
B25: 2004-03-31 | C25: 3 | D25: 1 | E25: 2004 | F25: Q1 2004 | G25: >37986 | H25: <=38077 | I25: <=2004M03 | J25: >=2004M01 | K25: 66 | L25: =INDEX(INDIRECT($L$4),'Graph Database'!K25)*M25 -> 35.687076 | M25: 1.2513 | N25: 3.873333333 | O25: 2004-03-31 | P25: 35.687076 | Q25: 3.873333333 | R25: 2004-03-31 | S25: 9.213530809
B26: 2004-06-30 | C26: 6 | D26: 2 | E26: 2004 | F26: Q2 2004 | G26: >38077 | H26: <=38168 | I26: <=2004M06 | J26: >=2004M04 | K26: 65 | L26: =INDEX(INDIRECT($L$4),'Graph Database'!K26)*M26 -> 31.89516 | M26: 1.2045 | N26: 3.96 | O26: 2004-06-30 | P26: 31.89516 | Q26: 3.96 | R26: 2004-06-30 | S26: 8.054333333
B27: 2004-09-30 | C27: 9 | D27: 3 | E27: 2004 | F27: Q3 2004 | G27: >38168 | H27: <=38260 | I27: <=2004M09 | J27: >=2004M07 | K27: 64 | L27: =INDEX(INDIRECT($L$4),'Graph Database'!K27)*M27 -> 35.922926 | M27: 1.2227 | N27: 4.343333333 | O27: 2004-09-30 | P27: 35.922926 | Q27: 4.343333333 | R27: 2004-09-30 | S27: 8.270819493
B28: 2004-12-31 | C28: 12 | D28: 4 | E28: 2004 | F28: Q4 2004 | G28: >38260 | H28: <=38352 | I28: <=2004M12 | J28: >=2004M10 | K28: 63 | L28: =INDEX(INDIRECT($L$4),'Graph Database'!K28)*M28 -> 38.50793 | M28: 1.297 | N28: 4.933333333 | O28: 2004-12-31 | P28: 38.50793 | Q28: 4.933333333 | R28: 2004-12-31 | S28: 7.805661486
B29: 2005-03-31 | C29: 3 | D29: 1 | E29: 2005 | F29: Q1 2005 | G29: >38352 | H29: <=38442 | I29: <=2005M03 | J29: >=2005M01 | K29: 62 | L29: =INDEX(INDIRECT($L$4),'Graph Database'!K29)*M29 -> 50.448843 | M29: 1.3107 | N29: 5.49 | O29: 2005-03-31 | P29: 50.448843 | Q29: 5.49 | R29: 2005-03-31 | S29: 9.18922459
B30: 2005-06-30 | C30: 6 | D30: 2 | E30: 2005 | F30: Q2 2005 | G30: >38442 | H30: <=38533 | I30: <=2005M06 | J30: >=2005M04 | K30: 61 | L30: =INDEX(INDIRECT($L$4),'Graph Database'!K30)*M30 -> 52.30828 | M30: 1.259833333 | N30: 5.886666667 | O30: 2005-06-30 | P30: 52.30828 | Q30: 5.886666667 | R30: 2005-06-30 | S30: 8.88589128
B31: 2005-09-30 | C31: 9 | D31: 3 | E31: 2005 | F31: Q3 2005 | G31: >38533 | H31: <=38625 | I31: <=2005M09 | J31: >=2005M07 | K31: 60 | L31: =INDEX(INDIRECT($L$4),'Graph Database'!K31)*M31 -> 53.47753 | M31: 1.219 | N31: 6.52 | O31: 2005-09-30 | P31: 53.47753 | Q31: 6.52 | R31: 2005-09-30 | S31: 8.202075153
B32: 2005-12-31 | C32: 12 | D32: 4 | E32: 2005 | F32: Q4 2005 | G32: >38625 | H32: <=38717 | I32: <=2005M12 | J32: >=2005M10 | K32: 59 | L32: =INDEX(INDIRECT($L$4),'Graph Database'!K32)*M32 -> 71.129968 | M32: 1.189066667 | N32: 7.41 | O32: 2005-12-31 | P32: 71.129968 | Q32: 7.41 | R32: 2005-12-31 | S32: 9.599185965
B33: 2006-03-31 | C33: 3 | D33: 1 | E33: 2006 | F33: Q1 2006 | G33: >38717 | H33: <=38807 | I33: <=2006M03 | J33: >=2006M01 | K33: 58 | L33: =INDEX(INDIRECT($L$4),'Graph Database'!K33)*M33 -> 78.32398 | M33: 1.203133333 | N33: 7.966666667 | O33: 2006-03-31 | P33: 78.32398 | Q33: 7.966666667 | R33: 2006-03-31 | S33: 9.831461925
B34: 2006-06-30 | C34: 6 | D34: 2 | E34: 2006 | F34: Q2 2006 | G34: >38807 | H34: <=38898 | I34: <=2006M06 | J34: >=2006M04 | K34: 57 | L34: =INDEX(INDIRECT($L$4),'Graph Database'!K34)*M34 -> 48.948465 | M34: 1.2567 | N34: 8.27 | O34: 2006-06-30 | P34: 48.948465 | Q34: 8.27 | R34: 2006-06-30 | S34: 5.91879867
B35: 2006-09-30 | C35: 9 | D35: 3 | E35: 2006 | F35: Q3 2006 | G35: >38898 | H35: <=38990 | I35: <=2006M09 | J35: >=2006M07 | K35: 56 | L35: =INDEX(INDIRECT($L$4),'Graph Database'!K35)*M35 -> 69.57313533 | M35: 1.273766667 | N35: 8.686666667 | O35: 2006-09-30 | P35: 69.57313533 | Q35: 8.686666667 | R35: 2006-09-30 | S35: 8.009186723
B36: 2006-12-31 | C36: 12 | D36: 4 | E36: 2006 | F36: Q4 2006 | G36: >38990 | H36: <=39082 | I36: <=2006M12 | J36: >=2006M10 | K36: 55 | L36: =INDEX(INDIRECT($L$4),'Graph Database'!K36)*M36 -> 57.63919 | M36: 1.290333333 | N36: 8.96 | O36: 2006-12-31 | P36: 57.63919 | Q36: 8.96 | R36: 2006-12-31 | S36: 6.432945312
B37: 2007-03-31 | C37: 3 | D37: 1 | E37: 2007 | F37: Q1 2007 | G37: >39082 | H37: <=39172 | I37: <=2007M03 | J37: >=2007M01 | K37: 54 | L37: =INDEX(INDIRECT($L$4),'Graph Database'!K37)*M37 -> 38.97823533 | M37: 1.310633333 | N37: 8.506666667 | O37: 2007-03-31 | P37: 38.97823533 | Q37: 8.506666667 | R37: 2007-03-31 | S37: 4.582080956
B38: 2007-06-30 | C38: 6 | D38: 2 | E38: 2007 | F38: Q2 2007 | G38: >39172 | H38: <=39263 | I38: <=2007M06 | J38: >=2007M04 | K38: 53 | L38: =INDEX(INDIRECT($L$4),'Graph Database'!K38)*M38 -> 44.780364 | M38: 1.3484 | N38: 8.003333333 | O38: 2007-06-30 | P38: 44.780364 | Q38: 8.003333333 | R38: 2007-06-30 | S38: 5.595214161
B39: 2007-09-30 | C39: 9 | D39: 3 | E39: 2007 | F39: Q3 2007 | G39: >39263 | H39: <=39355 | I39: <=2007M09 | J39: >=2007M07 | K39: 52 | L39: =INDEX(INDIRECT($L$4),'Graph Database'!K39)*M39 -> 42.651154 | M39: 1.3754 | N39: 8.336666667 | O39: 2007-09-30 | P39: 42.651154 | Q39: 8.336666667 | R39: 2007-09-30 | S39: 5.116092043
B40: 2007-12-31 | C40: 12 | D40: 4 | E40: 2007 | F40: Q4 2007 | G40: >39355 | H40: <=39447 | I40: <=2007M12 | J40: >=2007M10 | K40: 51 | L40: =INDEX(INDIRECT($L$4),'Graph Database'!K40)*M40 -> 83.689375 | M40: 1.449166667 | N40: 9.373333333 | O40: 2007-12-31 | P40: 83.689375 | Q40: 9.373333333 | R40: 2007-12-31 | S40: 8.928453947
B41: 2008-03-31 | C41: 3 | D41: 1 | E41: 2008 | F41: Q1 2008 | G41: >39447 | H41: <=39538 | I41: <=2008M03 | J41: >=2008M01 | K41: 50 | L41: =INDEX(INDIRECT($L$4),'Graph Database'!K41)*M41 -> 84.31311333 | M41: 1.500233333 | N41: 10.86 | O41: 2008-03-31 | P41: 84.31311333 | Q41: 10.86 | R41: 2008-03-31 | S41: 7.763638428
B42: 2008-06-30 | C42: 6 | D42: 2 | E42: 2008 | F42: Q2 2008 | G42: >39538 | H42: <=39629 | I42: <=2008M06 | J42: >=2008M04 | K42: 49 | L42: =INDEX(INDIRECT($L$4),'Graph Database'!K42)*M42 -> 102.3953267 | M42: 1.562333333 | N42: 12.4 | O42: 2008-06-30 | P42: 102.3953267 | Q42: 12.4 | R42: 2008-06-30 | S42: 8.257687634
B43: 2008-09-30 | C43: 9 | D43: 3 | E43: 2008 | F43: Q3 2008 | G43: >39629 | H43: <=39721 | I43: <=2008M09 | J43: >=2008M07 | K43: 48 | L43: =INDEX(INDIRECT($L$4),'Graph Database'!K43)*M43 -> 109.891584 | M43: =AVERAGEIFS(INDIRECT($M$6),INDIRECT($M$4),G43,INDIRECT($M$4),H43) -> 1.501866667 | N43: =AVERAGEIFS(INDIRECT($N$6),INDIRECT($N$4),I43,INDIRECT($N$4),J43) -> 14.62 | O43: 2008-09-30 | P43: 109.891584 | Q43: 14.62 | R43: 2008-09-30 | S43: 7.516524213
B44: 2008-12-31 | C44: 12 | D44: 4 | E44: 2008 | F44: Q4 2008 | G44: >39721 | H44: <=39813 | I44: <=2008M12 | J44: >=2008M10 | K44: 47 | L44: =INDEX(INDIRECT($L$4),'Graph Database'!K44)*M44 -> 89.594107 | M44: 1.317366667 | N44: 15.74666667 | O44: 2008-12-31 | P44: 89.594107 | Q44: 15.74666667 | R44: 2008-12-31 | S44: 5.689718903
B45: 2009-03-31 | C45: 3 | D45: 1 | E45: 2009 | F45: Q1 2009 | G45: >39813 | H45: <=39903 | I45: <=2009M03 | J45: >=2009M01 | K45: 46 | L45: =INDEX(INDIRECT($L$4),'Graph Database'!K45)*M45 -> 61.69862833 | M45: 1.303033333 | N45: 11.94333333 | O45: 2009-03-31 | P45: 61.69862833 | Q45: 11.94333333 | R45: 2009-03-31 | S45: 5.165947111
B46: 2009-06-30 | C46: 6 | D46: 2 | E46: 2009 | F46: Q2 2009 | G46: >39903 | H46: <=39994 | I46: <=2009M06 | J46: >=2009M04 | K46: 45 | L46: =INDEX(INDIRECT($L$4),'Graph Database'!K46)*M46 -> 44.10048067 | M46: 1.361966667 | N46: 8.183333333 | O46: 2009-06-30 | P46: 44.10048067 | Q46: 8.183333333 | R46: 2009-06-30 | S46: 5.389060774
B47: 2009-09-30 | C47: 9 | D47: 3 | E47: 2009 | F47: Q3 2009 | G47: >39994 | H47: <=40086 | I47: <=2009M09 | J47: >=2009M07 | K47: 44 | L47: =INDEX(INDIRECT($L$4),'Graph Database'!K47)*M47 -> 52.993633 | M47: 1.4311 | N47: 6.906666667 | O47: 2009-09-30 | P47: 52.993633 | Q47: 6.906666667 | R47: 2009-09-30 | S47: 7.672823311
B48: 2009-12-31 | C48: 12 | D48: 4 | E48: 2009 | F48: Q4 2009 | G48: >40086 | H48: <=40178 | I48: <=2009M12 | J48: >=2009M10 | K48: 43 | L48: =INDEX(INDIRECT($L$4),'Graph Database'!K48)*M48 -> 57.245936 | M48: 1.476933333 | N48: 7.806666667 | O48: 2009-12-31 | P48: 57.245936 | Q48: 7.806666667 | R48: 2009-12-31 | S48: 7.332955081
B49: 2010-03-31 | C49: 3 | D49: 1 | E49: 2010 | F49: Q1 2010 | G49: >40178 | H49: <=40268 | I49: <=2010M03 | J49: >=2010M01 | K49: 42 | L49: =INDEX(INDIRECT($L$4),'Graph Database'!K49)*M49 -> 56.76621067 | M49: 1.383866667 | N49: 8.843333333 | O49: 2010-03-31 | P49: 56.76621067 | Q49: 8.843333333 | R49: 2010-03-31 | S49: 6.41909657
B50: 2010-06-30 | C50: 6 | D50: 2 | E50: 2010 | F50: Q2 2010 | G50: >40268 | H50: <=40359 | I50: <=2010M06 | J50: >=2010M04 | K50: 41 | L50: =INDEX(INDIRECT($L$4),'Graph Database'!K50)*M50 -> 52.872952 | M50: 1.273433333 | N50: 7.51 | O50: 2010-06-30 | P50: 52.872952 | Q50: 7.51 | R50: 2010-06-30 | S50: 7.040339814
B51: 2010-09-30 | C51: 9 | D51: 3 | E51: 2010 | F51: Q3 2010 | G51: >40359 | H51: <=40451 | I51: <=2010M09 | J51: >=2010M07 | K51: 40 | L51: =INDEX(INDIRECT($L$4),'Graph Database'!K51)*M51 -> 56.685759 | M51: 1.2939 | N51: 8.256666667 | O51: 2010-09-30 | P51: 56.685759 | Q51: 8.256666667 | R51: 2010-09-30 | S51: 6.86545325
B52: 2010-12-31 | C52: 12 | D52: 4 | E52: 2010 | F52: Q4 2010 | G52: >40451 | H52: <=40543 | I52: <=2010M12 | J52: >=2010M10 | K52: 39 | L52: =INDEX(INDIRECT($L$4),'Graph Database'!K52)*M52 -> 69.985208 | M52: 1.3592 | N52: 8.54 | O52: 2010-12-31 | P52: 69.985208 | Q52: 8.54 | R52: 2010-12-31 | S52: 8.194989227
B53: 2011-03-31 | C53: 3 | D53: 1 | E53: 2011 | F53: Q1 2011 | G53: >40543 | H53: <=40633 | I53: <=2011M03 | J53: >=2011M01 | K53: 38 | L53: =INDEX(INDIRECT($L$4),'Graph Database'!K53)*M53 -> 70.94289833 | M53: 1.368233333 | N53: 9.446666667 | O53: 2011-03-31 | P53: 70.94289833 | Q53: 9.446666667 | R53: 2011-03-31 | S53: 7.50983398
B54: 2011-06-30 | C54: 6 | D54: 2 | E54: 2011 | F54: Q2 2011 | G54: >40633 | H54: <=40724 | I54: <=2011M06 | J54: >=2011M04 | K54: 37 | L54: =INDEX(INDIRECT($L$4),'Graph Database'!K54)*M54 -> 77.194826 | M54: 1.439933333 | N54: 10.30666667 | O54: 2011-06-30 | P54: 77.194826 | Q54: 10.30666667 | R54: 2011-06-30 | S54: 7.489795537
B55: 2011-09-30 | C55: 9 | D55: 3 | E55: 2011 | F55: Q3 2011 | G55: >40724 | H55: <=40816 | I55: <=2011M09 | J55: >=2011M07 | K55: 36 | L55: =INDEX(INDIRECT($L$4),'Graph Database'!K55)*M55 -> 69.419845 | M55: 1.411833333 | N55: 10.88333333 | O55: 2011-09-30 | P55: 69.419845 | Q55: 10.88333333 | R55: 2011-09-30 | S55: 6.378546248
B56: 2011-12-31 | C56: 12 | D56: 4 | E56: 2011 | F56: Q4 2011 | G56: >40816 | H56: <=40908 | I56: <=2011M12 | J56: >=2011M10 | K56: 35 | L56: =INDEX(INDIRECT($L$4),'Graph Database'!K56)*M56 -> 67.28699833 | M56: 1.348166667 | N56: 11.42333333 | O56: 2011-12-31 | P56: 67.28699833 | Q56: 11.42333333 | R56: 2011-12-31 | S56: 5.890312081
B57: 2012-03-31 | C57: 3 | D57: 1 | E57: 2012 | F57: Q1 2012 | G57: >40908 | H57: <=40999 | I57: <=2012M03 | J57: >=2012M01 | K57: 34 | L57: =INDEX(INDIRECT($L$4),'Graph Database'!K57)*M57 -> 59.16518667 | M57: 1.311866667 | N57: 11.51333333 | O57: 2012-03-31 | P57: 59.16518667 | Q57: 11.51333333 | R57: 2012-03-31 | S57: 5.138840764
B58: 2012-06-30 | C58: 6 | D58: 2 | E58: 2012 | F58: Q2 2012 | G58: >40999 | H58: <=41090 | I58: <=2012M06 | J58: >=2012M04 | K58: 33 | L58: =INDEX(INDIRECT($L$4),'Graph Database'!K58)*M58 -> 51.84325767 | M58: 1.283566667 | N58: 11.51666667 | O58: 2012-06-30 | P58: 51.84325767 | Q58: 11.51666667 | R58: 2012-06-30 | S58: 4.501585326
B59: 2012-09-30 | C59: 9 | D59: 3 | E59: 2012 | F59: Q3 2012 | G59: >41090 | H59: <=41182 | I59: <=2012M09 | J59: >=2012M07 | K59: 32 | L59: =INDEX(INDIRECT($L$4),'Graph Database'!K59)*M59 -> 54.500096 | M59: 1.2523 | N59: 11.13 | O59: 2012-09-30 | P59: 54.500096 | Q59: 11.13 | R59: 2012-09-30 | S59: 4.896684277
B60: 2012-12-31 | C60: 12 | D60: 4 | E60: 2012 | F60: Q4 2012 | G60: >41182 | H60: <=41274 | I60: <=2012M12 | J60: >=2012M10 | K60: 31 | L60: =INDEX(INDIRECT($L$4),'Graph Database'!K60)*M60 -> 53.68447 | M60: 1.297666667 | N60: 11.73333333 | O60: 2012-12-31 | P60: 53.68447 | Q60: 11.73333333 | R60: 2012-12-31 | S60: 4.575380966
B61: 2013-03-31 | C61: 3 | D61: 1 | E61: 2013 | F61: Q1 2013 | G61: >41274 | H61: <=41364 | I61: <=2013M03 | J61: >=2013M01 | K61: 30 | L61: =INDEX(INDIRECT($L$4),'Graph Database'!K61)*M61 -> 55.802036 | M61: 1.320133333 | N61: 11.83666667 | O61: 2013-03-31 | P61: 55.802036 | Q61: 11.83666667 | R61: 2013-03-31 | S61: 4.714337032
B62: 2013-06-30 | C62: 6 | D62: 2 | E62: 2013 | F62: Q2 2013 | G62: >41364 | H62: <=41455 | I62: <=2013M06 | J62: >=2013M04 | K62: 29 | L62: =INDEX(INDIRECT($L$4),'Graph Database'!K62)*M62 -> 42.60276667 | M62: 1.306833333 | N62: 12.36333333 | O62: 2013-06-30 | P62: 42.60276667 | Q62: 12.36333333 | R62: 2013-06-30 | S62: 3.445896468
B63: 2013-09-30 | C63: 9 | D63: 3 | E63: 2013 | F63: Q3 2013 | G63: >41455 | H63: <=41547 | I63: <=2013M09 | J63: >=2013M07 | K63: 28 | L63: =INDEX(INDIRECT($L$4),'Graph Database'!K63)*M63 -> 51.377672 | M63: 1.325533333 | N63: 11.49666667 | O63: 2013-09-30 | P63: 51.377672 | Q63: 11.49666667 | R63: 2013-09-30 | S63: 4.468918991
B64: 2013-12-31 | C64: 12 | D64: 4 | E64: 2013 | F64: Q4 2013 | G64: >41547 | H64: <=41639 | I64: <=2013M12 | J64: >=2013M10 | K64: 27 | L64: =INDEX(INDIRECT($L$4),'Graph Database'!K64)*M64 -> 51.11071 | M64: 1.3615 | N64: 11.44666667 | O64: 2013-12-31 | P64: 51.11071 | Q64: 11.44666667 | R64: 2013-12-31 | S64: 4.465117356
B65: 2014-03-31 | C65: 3 | D65: 1 | E65: 2014 | F65: Q1 2014 | G65: >41639 | H65: <=41729 | I65: <=2014M03 | J65: >=2014M01 | K65: 26 | L65: =INDEX(INDIRECT($L$4),'Graph Database'!K65)*M65 -> 45.90728333 | M65: 1.370366667 | N65: 11.25666667 | O65: 2014-03-31 | P65: 45.90728333 | Q65: 11.25666667 | R65: 2014-03-31 | S65: 4.078230678
B66: 2014-06-30 | C66: 6 | D66: 2 | E66: 2014 | F66: Q2 2014 | G66: >41729 | H66: <=41820 | I66: <=2014M06 | J66: >=2014M04 | K66: 25 | L66: =INDEX(INDIRECT($L$4),'Graph Database'!K66)*M66 -> 42.84461867 | M66: 1.371466667 | N66: 10.23333333 | O66: 2014-06-30 | P66: 42.84461867 | Q66: 10.23333333 | R66: 2014-06-30 | S66: 4.186770554
B67: 2014-09-30 | C67: 9 | D67: 3 | E67: 2014 | F67: Q3 2014 | G67: >41820 | H67: <=41912 | I67: <=2014M09 | J67: >=2014M07 | K67: 24 | L67: =INDEX(INDIRECT($L$4),'Graph Database'!K67)*M67 -> 41.72385 | M67: 1.324566667 | N67: 9.216666667 | O67: 2014-09-30 | P67: 41.72385 | Q67: 9.216666667 | R67: 2014-09-30 | S67: 4.527
B68: 2014-12-31 | C68: 12 | D68: 4 | E68: 2014 | F68: Q4 2014 | G68: >41912 | H68: <=42004 | I68: <=2014M12 | J68: >=2014M10 | K68: 23 | L68: =INDEX(INDIRECT($L$4),'Graph Database'!K68)*M68 -> 43.500626 | M68: 1.2493 | N68: 9.5 | O68: 2014-12-31 | P68: 43.500626 | Q68: 9.5 | R68: 2014-12-31 | S68: 4.579013263
B69: 2015-03-31 | C69: 3 | D69: 1 | E69: 2015 | F69: Q1 2015 | G69: >42004 | H69: <=42094 | I69: <=2015M03 | J69: >=2015M01 | K69: =MATCH(F69,INDIRECT($K$4),0) -> 22 | L69: =INDEX(INDIRECT($L$4),'Graph Database'!K69)*M69 -> 36.14888 | M69: 1.126133333 | N69: 8.596666667 | O69: =IF(ISNUMBER(L69),B69,NA()) -> 2015-03-31 | P69: 36.14888 | Q69: 8.596666667 | R69: 2015-03-31 | S69: 4.20498798
B70: 2015-06-30 | C70: 6 | D70: 2 | E70: 2015 | F70: Q2 2015 | G70: >42094 | H70: <=42185 | I70: <=2015M06 | J70: >=2015M04 | K70: =MATCH(F70,INDIRECT($K$4),0) -> 21 | L70: =INDEX(INDIRECT($L$4),'Graph Database'!K70)*M70 -> 31.388175 | M70: =AVERAGEIFS(INDIRECT($M$6),INDIRECT($M$4),G70,INDIRECT($M$4),H70) -> 1.107166667 | N70: =AVERAGEIFS(INDIRECT($N$6),INDIRECT($N$4),I70,INDIRECT($N$4),J70) -> 6.708389636 | O70: 2015-06-30 | P70: 31.388175 | Q70: 6.708389636 | R70: 2015-06-30 | S70: 4.678943339
B71: 2015-09-30 | C71: 9 | D71: 3 | E71: 2015 | F71: Q3 2015 | G71: >42185 | H71: <=42277 | I71: <=2015M09 | J71: >=2015M07 | K71: =MATCH(F71,INDIRECT($K$4),0) -> 20 | L71: =INDEX(INDIRECT($L$4),'Graph Database'!K71)*M71 -> 36.52026933 | M71: =AVERAGEIFS(INDIRECT($M$6),INDIRECT($M$4),G71,INDIRECT($M$4),H71) -> 1.112066667 | N71: =AVERAGEIFS(INDIRECT($N$6),INDIRECT($N$4),I71,INDIRECT($N$4),J71) -> 6.439491126 | O71: 2015-09-30 | P71: 36.52026933 | Q71: 6.439491126 | R71: 2015-09-30 | S71: 5.671297408
B72: 2015-12-31 | C72: =MONTH(B72) -> 12 | D72: =ROUNDUP(C72/3,0) -> 4 | E72: =YEAR(B72) -> 2015 | F72: ="Q"&D72&" "&E72 -> Q4 2015 | G72: =">"&B71 -> >42277 | H72: ="<="&B72 -> <=42369 | I72: <=2015M12 | J72: >=2015M10 | K72: =MATCH(F72,INDIRECT($K$4),0) -> 19 | L72: =INDEX(INDIRECT($L$4),'Graph Database'!K72)*M72 -> 36.336412 | M72: =AVERAGEIFS(INDIRECT($M$6),INDIRECT($M$4),G72,INDIRECT($M$4),H72) -> 1.0948 | N72: =AVERAGEIFS(INDIRECT($N$6),INDIRECT($N$4),I72,INDIRECT($N$4),J72) -> 5.540184885 | O72: =IF(ISNUMBER(L72),B72,NA()) -> 2015-12-31 | P72: =IF(O72,L72) -> 36.336412 | Q72: 5.540184885 | R72: 2015-12-31 | S72: 6.558700252
B73: 2016-03-31 | C73: 3 | D73: 1 | E73: 2016 | F73: Q1 2016 | G73: >42369 | H73: <=42460 | I73: <=2016M03 | J73: >=2016M01 | K73: 18 | L73: =INDEX(INDIRECT($L$4),'Graph Database'!K73)*M73 -> 27.754959 | M73: 1.1027 | N73: 4.092248369 | O73: 2016-03-31 | P73: 27.754959 | Q73: 4.092248369 | R73: 2016-03-31 | S73: 6.782325141
B74: =EOMONTH(B73,3) -> 2016-06-30 | C74: 6 | D74: 2 | E74: 2016 | F74: Q2 2016 | G74: >42460 | H74: <=42551 | I74: <=2016M06 | J74: >=2016M04 | K74: 17 | L74: =INDEX(INDIRECT($L$4),'Graph Database'!K74)*M74 -> 28.00443667 | M74: 1.129666667 | N74: 4.351662474 | O74: 2016-06-30 | P74: 28.00443667 | Q74: 4.351662474 | R74: 2016-06-30 | S74: 6.435342087
B75: 2016-09-30 | C75: 9 | D75: 3 | E75: 2016 | F75: Q3 2016 | G75: >42551 | H75: <=42643 | I75: <=2016M09 | J75: >=2016M07 | K75: =MATCH(F75,INDIRECT($K$4),0) -> 16 | L75: =INDEX(INDIRECT($L$4),'Graph Database'!K75)*M75 -> 31.53816 | M75: 1.116 | N75: 4.325280597 | O75: 2016-09-30 | P75: 31.53816 | Q75: 4.325280597 | R75: 2016-09-30 | S75: 7.291587052
B76: 2016-12-31 | C76: 12 | D76: 4 | E76: 2016 | F76: Q4 2016 | G76: >42643 | H76: <=42735 | I76: ="<="&$E76&"M"&TEXT($C76,"00") -> <=2016M12 | J76: =">="&$E76&"M"&TEXT($C76-2,"00") -> >=2016M10 | K76: =MATCH(F76,INDIRECT($K$4),0) -> 15 | L76: =INDEX(INDIRECT($L$4),'Graph Database'!K76)*M76 -> 40.54658667 | M76: 1.078366667 | N76: 5.484499936 | O76: 2016-12-31 | P76: 40.54658667 | Q76: =IF(O76,N76) -> 5.484499936 | R76: =O76 -> 2016-12-31 | S76: =P76/Q76 -> 7.392941406
B77: 2017-03-31 | C77: 3 | D77: 1 | E77: 2017 | F77: Q1 2017 | G77: >42735 | H77: <=42825 | I77: <=2017M03 | J77: >=2017M01 | K77: =MATCH(F77,INDIRECT($K$4),0) -> 14 | L77: =INDEX(INDIRECT($L$4),'Graph Database'!K77)*M77 -> 44.04161067 | M77: 1.065866667 | N77: 5.732292659 | O77: 2017-03-31 | P77: 44.04161067 | Q77: 5.732292659 | R77: 2017-03-31 | S77: 7.683070856
B78: 2017-06-30 | C78: 6 | D78: 2 | E78: 2017 | F78: Q2 2017 | G78: >42825 | H78: <=42916 | I78: <=2017M06 | J78: >=2017M04 | K78: 13 | L78: =INDEX(INDIRECT($L$4),'Graph Database'!K78)*M78 -> 32.755022 | M78: 1.0999 | N78: 4.985372227 | O78: 2017-06-30 | P78: 32.755022 | Q78: 4.985372227 | R78: 2017-06-30 | S78: 6.570225954
B79: 2017-09-30 | C79: 9 | D79: 3 | E79: 2017 | F79: Q3 2017 | G79: >42916 | H79: <=43008 | I79: <=2017M09 | J79: >=2017M07 | K79: 12 | L79: =INDEX(INDIRECT($L$4),'Graph Database'!K79)*M79 -> 38.452544 | M79: 1.1752 | N79: 5.480557329 | O79: 2017-09-30 | P79: 38.452544 | Q79: 5.480557329 | R79: 2017-09-30 | S79: 7.01617403
B80: 2017-12-31 | C80: 12 | D80: 4 | E80: 2017 | F80: Q4 2017 | G80: >43008 | H80: <=43100 | I80: <=2017M12 | J80: >=2017M10 | K80: 11 | L80: =INDEX(INDIRECT($L$4),'Graph Database'!K80)*M80 -> 38.973402 | M80: 1.1778 | N80: 6.669951001 | O80: 2017-12-31 | P80: 38.973402 | Q80: 6.669951001 | R80: 2017-12-31 | S80: 5.84313168
B81: 2018-03-31 | C81: 3 | D81: 1 | E81: 2018 | F81: Q1 2018 | G81: >43100 | H81: <=43190 | I81: <=2018M03 | J81: >=2018M01 | K81: 10 | L81: =INDEX(INDIRECT($L$4),'Graph Database'!K81)*M81 -> 43.62822527 | M81: 1.229033333 | N81: 6.692797473 | O81: 2018-03-31 | P81: 43.62822527 | Q81: 6.692797473 | R81: 2018-03-31 | S81: 6.518683023
B82: 2018-06-30 | C82: 6 | D82: 2 | E82: 2018 | F82: Q2 2018 | G82: >43190 | H82: <=43281 | I82: <=2018M06 | J82: >=2018M04 | K82: 9 | L82: =INDEX(INDIRECT($L$4),'Graph Database'!K82)*M82 -> 42.902552 | M82: 1.1924 | N82: 7.288051701 | O82: 2018-06-30 | P82: 42.902552 | Q82: 7.288051701 | R82: 2018-06-30 | S82: 5.886696988
B83: 2018-09-30 | C83: 9 | D83: 3 | E83: 2018 | F83: Q3 2018 | G83: >43281 | H83: <=43373 | I83: <=2018M09 | J83: >=2018M07 | K83: 8 | L83: =INDEX(INDIRECT($L$4),'Graph Database'!K83)*M83 -> 62.248183 | M83: 1.1633 | N83: 8.4017754 | O83: 2018-09-30 | P83: 62.248183 | Q83: 8.4017754 | R83: 2018-09-30 | S83: 7.408932046
B84: 2018-12-31 | C84: 12 | D84: 4 | E84: 2018 | F84: Q4 2018 | G84: >43373 | H84: <=43465 | I84: <=2018M12 | J84: >=2018M10 | K84: 7 | L84: =INDEX(INDIRECT($L$4),'Graph Database'!K84)*M84 -> 60.02010667 | M84: 1.141066667 | N84: 8.344094041 | O84: 2018-12-31 | P84: 60.02010667 | Q84: 8.344094041 | R84: 2018-12-31 | S84: 7.193124427
B85: 2019-03-31 | C85: 3 | D85: 1 | E85: 2019 | F85: Q1 2019 | G85: >43465 | H85: <=43555 | I85: <=2019M03 | J85: >=2019M01 | K85: 6 | L85: =INDEX(INDIRECT($L$4),'Graph Database'!K85)*M85 -> 46.41651467 | M85: 1.135433333 | N85: 6.148958677 | O85: 2019-03-31 | P85: 46.41651467 | Q85: 6.148958677 | R85: 2019-03-31 | S85: 7.548678908
B86: 2019-06-30 | C86: 6 | D86: 2 | E86: 2019 | F86: Q2 2019 | G86: >43555 | H86: <=43646 | I86: <=2019M06 | J86: >=2019M04 | K86: 5 | L86: =INDEX(INDIRECT($L$4),'Graph Database'!K86)*M86 -> 40.23442667 | M86: 1.123866667 | N86: 4.283747542 | O86: 2019-06-30 | P86: 40.23442667 | Q86: 4.283747542 | R86: 2019-06-30 | S86: 9.3923431
B87: 2019-09-30 | C87: 9 | D87: 3 | E87: 2019 | F87: Q3 2019 | G87: >43646 | H87: <=43738 | I87: <=2019M09 | J87: >=2019M07 | L87: =INDEX(INDIRECT($L$4),'Graph Database'!K87)*M87 ->  | M87: 1.1211 | N87: 3.620371406
B88: 2019-12-31 | C88: 12 | D88: 4 | E88: 2019 | F88: Q4 2019 | G88: >43738 | H88: <=43830 | I88: <=2019M12 | J88: >=2019M10 | L88: =INDEX(INDIRECT($L$4),'Graph Database'!K88)*M88 -> 
B89: 2020-03-31 | C89: 3 | D89: 1 | E89: 2020 | F89: Q1 2020 | G89: >43830 | H89: <=43921 | I89: <=2020M03 | J89: >=2020M01 | L89: =INDEX(INDIRECT($L$4),'Graph Database'!K89)*M89 -> 
B90: 2020-06-30 | C90: 6 | D90: 2 | E90: 2020 | F90: Q2 2020 | G90: >43921 | H90: <=44012 | I90: <=2020M06 | J90: >=2020M04 | L90: =INDEX(INDIRECT($L$4),'Graph Database'!K90)*M90 -> 
L92: =INDEX('German Prices'!B:B,'Graph Database'!K86) -> 35.8

Sheet German Prices
A1: KWK-Preis / KWK Price
A2: Preisbildung ab Q4 2018/ Price formation as of Q4 2018: Schlussabrechnungspreis der Strom-Tagesfutures für das Marktgebiet Deutschland an der EEX je Quartal/ Average Final Settlement Price of the Day Power Futures for the market area Germany at EEX per Quarter Preisbildung bis Q3 2018/ Price formation until Q3 2018: Durchschnittlicher Preis für Baseload-Strom an der EPEX Spot je Quartal/ Average Price for Baseload Power at EPEX Spot per Quarter
A3: Quartal | B3: Durchschnittspreis (EUR/MWh)
A4: Quarter | B4: Average Price (EUR/MWh)
A5: Q2 2019 | B5: 35.8
A6: Q1 2019 | B6: 40.88
A7: Q4 2018 | B7: 52.6
A8: Q3 2018 | B8: 53.51
A9: Q2 2018 | B9: 35.98
A10: Q1 2018 | B10: 35.498
A11: Q4 2017 | B11: 33.09
A12: Q3 2017 | B12: 32.72
A13: Q2 2017 | B13: 29.78
A14: Q1 2017 | B14: 41.32
A15: Q4 2016 | B15: 37.6
A16: Q3 2016 | B16: 28.26
A17: Q2 2016 | B17: 24.79
A18: Q1 2016 | B18: 25.17
A19: Q4 2015 | B19: 33.19
A20: Q3 2015 | B20: 32.84
A21: Q2 2015 | B21: 28.35
A22: Q1 2015 | B22: 32.1
A23: Q4 2014 | B23: 34.82
A24: Q3 2014 | B24: 31.5
A25: Q2 2014 | B25: 31.24
A26: Q1 2014 | B26: 33.5
A27: Q4 2013 | B27: 37.54
A28: Q3 2013 | B28: 38.76
A29: Q2 2013 | B29: 32.6
A30: Q1 2013 | B30: 42.27
A31: Q4 2012 | B31: 41.37
A32: Q3 2012 | B32: 43.52
A33: Q2 2012 | B33: 40.39
A34: Q1 2012 | B34: 45.1
A35: Q4 2011 | B35: 49.91
A36: Q3 2011 | B36: 49.17
A37: Q2 2011 | B37: 53.61
A38: Q1 2011 | B38: 51.85
A39: Q4 2010 | B39: 51.49
A40: Q3 2010 | B40: 43.81
A41: Q2 2010 | B41: 41.52
A42: Q1 2010 | B42: 41.02
A43: Q4 2009 | B43: 38.76
A44: Q3 2009 | B44: 37.03
A45: Q2 2009 | B45: 32.38
A46: Q1 2009 | B46: 47.35
A47: Q4 2008 | B47: 68.01
A48: Q3 2008 | B48: 73.17
A49: Q2 2008 | B49: 65.54
A50: Q1 2008 | B50: 56.2
A51: Q4 2007 | B51: 57.75
A52: Q3 2007 | B52: 31.01
A53: Q2 2007 | B53: 33.21
A54: Q1 2007 | B54: 29.74
A55: Q4 2006 | B55: 44.67
A56: Q3 2006 | B56: 54.62
A57: Q2 2006 | B57: 38.95
A58: Q1 2006 | B58: 65.1
A59: Q4 2005 | B59: 59.82
A60: Q3 2005 | B60: 43.87
A61: Q2 2005 | B61: 41.52
A62: Q1 2005 | B62: 38.49
A63: Q4 2004 | B63: 29.69
A64: Q3 2004 | B64: 29.38
A65: Q2 2004 | B65: 26.48
A66: Q1 2004 | B66: 28.52
A67: Q4 2003 | B67: 31.16
A68: Q3 2003 | B68: 32.15
A69: Q2 2003 | B69: 24.62
A70: Q1 2003 | B70: 29.97
A71: Q4 2002 | B71: 21.35
A72: Q3 2002 | B72: 24.66
A73: Q2 2002 | B73: 20.89
A74: Q1 2002 | B74: 23.29
A75: Q4 2001 | B75: 31.58
A76: Q3 2001 | B76: 20.68
A77: Q2 2001 | B77: 21.6
A78: Q1 2001 | B78: 22.35
A79: Q4 2000 | B79: 20.78
A80: Q3 2000 | B80: 16.98

Sheet Exchange Rates
A1: Title: | B1: U.S. | C1: / | D1: Euro | E1: Foreign | F1: Exchange | G1: Rate
A2: Series | B2: ID: | C2: EXUSEU
A3: Source: | B3: Board | C3: of | D3: Governors | E3: of | F3: the | G3: Federal | H3: Reserve | I3: System | J3: (US)
A4: Release: | B4: G.5 | C4: Foreign | D4: Exchange | E4: Rates
A5: Seasonal | B5: Adjustment: | C5: Not | D5: Seasonally | E5: Adjusted
A6: Frequency: | B6: Monthly
A7: Units: | B7: U.S. | C7: Dollars | D7: to | E7: One | F7: Euro
A8: Date | B8: Range: | C8: 36161 | D8: to | E8: 43647
A9: Last | B9: Updated: | C9: 43691 | D9: 0.06875 | E9: PM | F9: CDT
A10: Notes: | B10: Averages | C10: of | D10: daily | E10: figures. | F10: Noon | G10: buying | H10: rates | I10: in | J10: New | K10: York | L10: City | M10: for
B11: cable | C11: transfers | D11: payable | E11: in | F11: foreign | G11: currencies.
B13: This | C13: data | D13: series | E13: is | F13: updated | G13: from | H13: the | I13: source | J13: files | K13: in | L13: the | M13: Data | N13: Download
B14: Program
B15: (http://www.federalreserve.gov/datadownload/Choose.aspx?rel=h10). | C15: The
B16: files | C16: are | D16: updated | E16: on | F16: a | G16: weekly | H16: basis | I16: every | J16: Monday. | K16: If | L16: Monday | M16: is | N16: a
B17: holiday, | C17: the | D17: data | E17: files | F17: are | G17: updated | H17: the | I17: next | J17: business | K17: day.
B19: Monthly | C19: values | D19: are | E19: averages | F19: of | G19: the | H19: daily | I19: data | J19: available. | K19: Preliminary
B20: value | C20: for | D20: the | E20: current | F20: month | G20: is | H20: provided | I20: by | J20: the | K20: source | L20: even | M20: if | N20: not | O20: all
B21: daily | C21: values | D21: are | E21: available | F21: for | G21: the | H21: entire | I21: month.
B23: Please | C23: note | D23: that | E23: the | F23: values | G23: reported | H23: on | I23: the | J23: press | K23: release | L23: may | M23: not
B24: correspond | C24: to | D24: the | E24: values | F24: in | G24: the | H24: Data | I24: Download | J24: Program | K24: when | L24: the | M24: press
B25: release | C25: is | D25: published | E25: on | F25: a | G25: day | H25: other | I25: than | J25: Monday. | K25: This | L25: inconsistency | M25: is
B26: resolved | C26: on | D26: the | E26: next | F26: available | G26: weekly | H26: release | I26: date.
A28: DATE | B28: VALUE
A29: 36161 | B29: 1.1591
A30: 36192 | B30: 1.1203
A31: 36220 | B31: 1.0886
A32: 36251 | B32: 1.0701
A33: 36281 | B33: 1.063
A34: 36312 | B34: 1.0377
A35: 36342 | B35: 1.037
A36: 36373 | B36: 1.0605
A37: 36404 | B37: 1.0497
A38: 36434 | B38: 1.0706
A39: 36465 | B39: 1.0328
A40: 36495 | B40: 1.011
A41: 36526 | B41: 1.0131
A42: 36557 | B42: 0.9834
A43: 36586 | B43: 0.9643
A44: 36617 | B44: 0.9449
A45: 36647 | B45: 0.9059
A46: 36678 | B46: 0.9505
A47: 36708 | B47: 0.9386
A48: 36739 | B48: 0.9045
A49: 36770 | B49: 0.8695
A50: 36800 | B50: 0.8525
A51: 36831 | B51: 0.8552
A52: 36861 | B52: 0.8983
A53: 36892 | B53: 0.9376
A54: 36923 | B54: 0.9205
A55: 36951 | B55: 0.9083
A56: 36982 | B56: 0.8925
A57: 37012 | B57: 0.8753
A58: 37043 | B58: 0.853
A59: 37073 | B59: 0.8615
A60: 37104 | B60: 0.9014
A61: 37135 | B61: 0.9114
A62: 37165 | B62: 0.905
A63: 37196 | B63: 0.8883
A64: 37226 | B64: 0.8912
A65: 37257 | B65: 0.8832
A66: 37288 | B66: 0.8707
A67: 37316 | B67: 0.8766
A68: 37347 | B68: 0.886
A69: 37377 | B69: 0.917
A70: 37408 | B70: 0.9561
A71: 37438 | B71: 0.9935
A72: 37469 | B72: 0.9781
A73: 37500 | B73: 0.9806
A74: 37530 | B74: 0.9812
A75: 37561 | B75: 1.0013
A76: 37591 | B76: 1.0194
A77: 37622 | B77: 1.0622
A78: 37653 | B78: 1.0785
A79: 37681 | B79: 1.0797
A80: 37712 | B80: 1.0862
A81: 37742 | B81: 1.1556
A82: 37773 | B82: 1.1674
A83: 37803 | B83: 1.1365
A84: 37834 | B84: 1.1155
A85: 37865 | B85: 1.1267
A86: 37895 | B86: 1.1714
A87: 37926 | B87: 1.171
A88: 37956 | B88: 1.2298
A89: 37987 | B89: 1.2638
A90: 38018 | B90: 1.264
A91: 38047 | B91: 1.2261
A92: 38078 | B92: 1.1989
A93: 38108 | B93: 1.2
A94: 38139 | B94: 1.2146
A95: 38169 | B95: 1.2266
A96: 38200 | B96: 1.2191
A97: 38231 | B97: 1.2224
A98: 38261 | B98: 1.2507
A99: 38292 | B99: 1.2997
A100: 38322 | B100: 1.3406
A101: 38353 | B101: 1.3123
A102: 38384 | B102: 1.3013
A103: 38412 | B103: 1.3185
A104: 38443 | B104: 1.2943
A105: 38473 | B105: 1.2697
A106: 38504 | B106: 1.2155
A107: 38534 | B107: 1.2041
A108: 38565 | B108: 1.2295
A109: 38596 | B109: 1.2234
A110: 38626 | B110: 1.2022
A111: 38657 | B111: 1.1789
A112: 38687 | B112: 1.1861
A113: 38718 | B113: 1.2126
A114: 38749 | B114: 1.194
A115: 38777 | B115: 1.2028
A116: 38808 | B116: 1.2273
A117: 38838 | B117: 1.2767
A118: 38869 | B118: 1.2661
A119: 38899 | B119: 1.2681
A120: 38930 | B120: 1.281
A121: 38961 | B121: 1.2722
A122: 38991 | B122: 1.2617
A123: 39022 | B123: 1.2888
A124: 39052 | B124: 1.3205
A125: 39083 | B125: 1.2993
A126: 39114 | B126: 1.308
A127: 39142 | B127: 1.3246
A128: 39173 | B128: 1.3513
A129: 39203 | B129: 1.3518
A130: 39234 | B130: 1.3421
A131: 39264 | B131: 1.3726
A132: 39295 | B132: 1.3626
A133: 39326 | B133: 1.391
A134: 39356 | B134: 1.4233
A135: 39387 | B135: 1.4683
A136: 39417 | B136: 1.4559
A137: 39448 | B137: 1.4728
A138: 39479 | B138: 1.4759
A139: 39508 | B139: 1.552
A140: 39539 | B140: 1.5754
A141: 39569 | B141: 1.5554
A142: 39600 | B142: 1.5562
A143: 39630 | B143: 1.5759
A144: 39661 | B144: 1.4955
A145: 39692 | B145: 1.4342
A146: 39722 | B146: 1.3266
A147: 39753 | B147: 1.2744
A148: 39783 | B148: 1.3511
A149: 39814 | B149: 1.3244
A150: 39845 | B150: 1.2797
A151: 39873 | B151: 1.305
A152: 39904 | B152: 1.3199
A153: 39934 | B153: 1.3646
A154: 39965 | B154: 1.4014
A155: 39995 | B155: 1.4092
A156: 40026 | B156: 1.4266
A157: 40057 | B157: 1.4575
A158: 40087 | B158: 1.4821
A159: 40118 | B159: 1.4908
A160: 40148 | B160: 1.4579
A161: 40179 | B161: 1.4266
A162: 40210 | B162: 1.368
A163: 40238 | B163: 1.357
A164: 40269 | B164: 1.3417
A165: 40299 | B165: 1.2563
A166: 40330 | B166: 1.2223
A167: 40360 | B167: 1.2811
A168: 40391 | B168: 1.2903
A169: 40422 | B169: 1.3103
A170: 40452 | B170: 1.3901
A171: 40483 | B171: 1.3654
A172: 40513 | B172: 1.3221
A173: 40544 | B173: 1.3371
A174: 40575 | B174: 1.3656
A175: 40603 | B175: 1.402
A176: 40634 | B176: 1.446
A177: 40664 | B177: 1.4335
A178: 40695 | B178: 1.4403
A179: 40725 | B179: 1.4275
A180: 40756 | B180: 1.4333
A181: 40787 | B181: 1.3747
A182: 40817 | B182: 1.3732
A183: 40848 | B183: 1.3558
A184: 40878 | B184: 1.3155
A185: 40909 | B185: 1.291
A186: 40940 | B186: 1.3238
A187: 40969 | B187: 1.3208
A188: 41000 | B188: 1.316
A189: 41030 | B189: 1.2806
A190: 41061 | B190: 1.2541
A191: 41091 | B191: 1.2278
A192: 41122 | B192: 1.2406
A193: 41153 | B193: 1.2885
A194: 41183 | B194: 1.2974
A195: 41214 | B195: 1.2837
A196: 41244 | B196: 1.3119
A197: 41275 | B197: 1.3304
A198: 41306 | B198: 1.3347
A199: 41334 | B199: 1.2953
A200: 41365 | B200: 1.3025
A201: 41395 | B201: 1.2983
A202: 41426 | B202: 1.3197
A203: 41456 | B203: 1.3088
A204: 41487 | B204: 1.3314
... 71 more rows

Sheet Pink data
A1: World Bank Commodity Price Data (The Pink Sheet) | BV1: Discontinued series
A2: monthly prices in nominal US dollars, 1960 to present
A3: (monthly series are available only in nominal US dollars)
A4: Updated on August 02, 2019
B5: Crude oil, average | C5: Crude oil, Brent | D5: Crude oil, Dubai | E5: Crude oil, WTI | F5: Coal, Australian | G5: Coal, South African | H5: Natural gas, US | I5: Natural gas, Europe | J5: Liquefied natural gas, Japan | K5: Natural gas index | L5: Cocoa | M5: Coffee, Arabica | N5: Coffee, Robusta | O5: Tea, avg 3 auctions | P5: Tea, Colombo | Q5: Tea, Kolkata | R5: Tea, Mombasa | S5: Coconut oil | T5: Groundnuts | U5: Fish meal | V5: Groundnut oil | W5: Palm oil | X5: Palm kernel oil | Y5: Soybeans | Z5: Soybean oil | AA5: Soybean meal | AB5: Rapeseed oil | AC5: Sunflower oil | AD5: Barley | AE5: Maize | AF5: Sorghum | AG5: Rice, Thai 5% | AH5: Rice, Thai 25% | AI5: Rice, Thai A.1 | AJ5: Rice, Viet Namese 5% | AK5: Wheat, US SRW | AL5: Wheat, US HRW | AM5: Banana, Europe | AN5: Banana, US | AO5: Orange | AP5: Beef | AQ5: Meat, chicken | AR5: Meat, sheep | AS5: Shrimps, Mexican | AT5: Sugar, EU | AU5: Sugar, US | AV5: Sugar, world | AW5: Tobacco, US import u.v. | AX5: Logs, Cameroon | AY5: Logs, Malaysian | AZ5: Sawnwood, Cameroon | BA5: Sawnwood, Malaysian | BB5: Plywood | BC5: Woodpulp | BD5: Cotton, A Index | BE5: Rubber, TSR20 | BF5: Rubber, SGP/MYS | BG5: Phosphate rock | BH5: DAP | BI5: TSP | BJ5: Urea | BK5: Potassium chloride | BL5: Aluminum | BM5: Iron ore, cfr spot | BN5: Copper | BO5: Lead | BP5: Tin | BQ5: Nickel | BR5: Zinc | BS5: Gold | BT5: Platinum | BU5: Silver | BV5: Coal, Colombian | BW5: Copra | BX5: Steel Index | BY5: Steel, cold rolled coilsheet | BZ5: Steel, hot rolled coilsheet | CA5: Steel rebar | CB5: Steel wire rod | CC5: Cotton, Memphis | CD5: Rubber, US | CE5: Wheat, Canadian
B6: ($/bbl) | C6: ($/bbl) | D6: ($/bbl) | E6: ($/bbl) | F6: ($/mt) | G6: ($/mt) | H6: ($/mmbtu) | I6: ($/mmbtu) | J6: ($/mmbtu) | K6: (2010=100) | L6: ($/kg) | M6: ($/kg) | N6: ($/kg) | O6: ($/kg) | P6: ($/kg) | Q6: ($/kg) | R6: ($/kg) | S6: ($/mt) | T6: ($/mt) | U6: ($/mt) | V6: ($/mt) | W6: ($/mt) | X6: ($/mt) | Y6: ($/mt) | Z6: ($/mt) | AA6: ($/mt) | AB6: ($/mt) | AC6: ($/mt) | AD6: ($/mt) | AE6: ($/mt) | AF6: ($/mt) | AG6: ($/mt) | AH6: ($/mt) | AI6: ($/mt) | AJ6: ($/mt) | AK6: ($/mt) | AL6: ($/mt) | AM6: ($/kg) | AN6: ($/kg) | AO6: ($/kg) | AP6: ($/kg) | AQ6: ($/kg) | AR6: ($/kg) | AS6: ($/kg) | AT6: ($/kg) | AU6: ($/kg) | AV6: ($/kg) | AW6: ($/mt) | AX6: ($/cubic meter) | AY6: ($/cubic meter) | AZ6: ($/cubic meter) | BA6: ($/cubic meter) | BB6: (cents/sheet) | BC6: ($/mt) | BD6: ($/kg) | BE6: ($/kg) | BF6: ($/kg) | BG6: ($/mt) | BH6: ($/mt) | BI6: ($/mt) | BJ6: ($/mt) | BK6: ($/mt) | BL6: ($/mt) | BM6: ($/dmtu) | BN6: ($/mt) | BO6: ($/mt) | BP6: ($/mt) | BQ6: ($/mt) | BR6: ($/mt) | BS6: ($/troy oz) | BT6: ($/troy oz) | BU6: ($/troy oz) | BV6: ($/mt) | BW6: ($/mt) | BX6: (2005=100) | BY6: ($/mt) | BZ6: ($/mt) | CA6: ($/mt) | CB6: ($/mt) | CC6: (cents/kg) | CD6: (cents/kg) | CE6: ($/mt)
B7: CRUDE_PETRO | C7: CRUDE_BRENT | D7: CRUDE_DUBAI | E7: CRUDE_WTI | F7: COAL_AUS | G7: COAL_SAFRICA | H7: NGAS_US | I7: NGAS_EUR | J7: NGAS_JP | K7: iNATGAS | L7: COCOA | M7: COFFEE_ARABIC | N7: COFFEE_ROBUS | O7: TEA_AVG | P7: TEA_COLOMBO | Q7: TEA_KOLKATA | R7: TEA_MOMBASA | S7: COCONUT_OIL | T7: GRNUT | U7: FISH_MEAL | V7: GRNUT_OIL | W7: PALM_OIL | X7: PLMKRNL_OIL | Y7: SOYBEANS | Z7: SOYBEAN_OIL | AA7: SOYBEAN_MEAL | AB7: RAPESEED_OIL | AC7: SUNFLOWER_OIL | AD7: BARLEY | AE7: MAIZE | AF7: SORGHUM | AG7: RICE_05 | AH7: RICE_25 | AI7: RICE_A1 | AJ7: RICE_05_VNM | AK7: WHEAT_US_SRW | AL7: WHEAT_US_HRW | AM7: BANANA_EU | AN7: BANANA_US | AO7: ORANGE | AP7: BEEF | AQ7: CHICKEN | AR7: LAMB | AS7: SHRIMP_MEX | AT7: SUGAR_EU | AU7: SUGAR_US | AV7: SUGAR_WLD | AW7: TOBAC_US | AX7: LOGS_CMR | AY7: LOGS_MYS | AZ7: SAWNWD_CMR | BA7: SAWNWD_MYS | BB7: PLYWOOD | BC7: WOODPULP | BD7: COTTON_A_INDX | BE7: RUBBER_TSR20 | BF7: RUBBER1_MYSG | BG7: PHOSROCK | BH7: DAP | BI7: TSP | BJ7: UREA_EE_BULK | BK7: POTASH | BL7: ALUMINUM | BM7: IRON_ORE | BN7: COPPER | BO7: LEAD | BP7: Tin | BQ7: NICKEL | BR7: Zinc | BS7: GOLD | BT7: PLATINUM | BU7: SILVER | BV7: COAL_COL | BW7: COPRA | BX7: iSTL_JP_INDX | BY7: STL_JP_CROLL | BZ7: STL_JP_HROLL | CA7: STL_JP_REBAR | CB7: STL_JP_WIROD | CC7: COTTON_MEMPH | CD7: RUBBER1_US | CE7: WHEAT_CANADI
A8: 1960M01 | B8: 1.630000114 | C8: .. | D8: 1.630000114 | E8: .. | F8: .. | G8: .. | H8: 0.14 | I8: 0.4047739964 | J8: .. | K8: 3.624356619 | L8: 0.634 | M8: 0.9409 | N8: 0.6968643 | O8: 1.0297 | P8: 0.9303009 | Q8: 1.121401 | R8: 1.0374 | S8: 390 | T8: .. | U8: .. | V8: 334 | W8: 233 | X8: .. | Y8: 94 | Z8: 204 | AA8: 91.9 | AB8: .. | AC8: .. | AD8: 20.36480039 | AE8: 45 | AF8: 39 | AG8: 104.45 | AH8: .. | AI8: .. | AJ8: .. | AK8: .. | AL8: 59.89 | AM8: .. | AN8: 0.14308 | AO8: 0.1151 | AP8: 0.7055 | AQ8: 0.2973687919 | AR8: .. | AS8: 1.433003 | AT8: 0.12235641 | AU8: 0.11684486 | AV8: 0.0666 | AW8: 1736.87 | AX8: .. | AY8: 31.94 | AZ8: .. | BA8: 149.1749784 | BB8: .. | BC8: .. | BD8: 0.6486 | BE8: .. | BF8: 0.8223 | BG8: 13 | BH8: 1e-10 | BI8: 53 | BJ8: 42.25 | BK8: 28.5 | BL8: 511.4718323 | BM8: 11.42 | BN8: 715.4 | BO8: 206.1 | BP8: 2180.4 | BQ8: 1631 | BR8: 260.8 | BS8: 35.27 | BT8: 83.5 | BU8: 0.9137 | BV8: .. | BW8: 257 | BX8: .. | BY8: .. | BZ8: .. | CA8: .. | CB8: .. | CC8: .. | CD8: .. | CE8: 64
A9: 1960M02 | B9: 1.630000114 | C9: .. | D9: 1.630000114 | E9: .. | F9: .. | G9: .. | H9: 0.14 | I9: 0.4047739964 | J9: .. | K9: 3.624356619 | L9: 0.608 | M9: 0.9469 | N9: 0.6887074 | O9: 1.0297 | P9: 0.9303009 | Q9: 1.121401 | R9: 1.0374 | S9: 379 | T9: .. | U9: .. | V9: 341 | W9: 229 | X9: .. | Y9: 91 | Z9: 201 | AA9: 86.7 | AB9: .. | AC9: .. | AD9: 20.41046355 | AE9: 44 | AF9: 39 | AG9: 103.54 | AH9: .. | AI9: .. | AJ9: .. | AK9: .. | AL9: 60.99 | AM9: .. | AN9: 0.14308 | AO9: 0.1092 | AP9: 0.7121 | AQ9: 0.2974245468 | AR9: .. | AS9: 1.4991416 | AT9: 0.12235641 | AU9: 0.11904948 | AV9: 0.0679 | AW9: 1736.87 | AX9: .. | AY9: 31.94 | AZ9: .. | BA9: 149.1749784 | BB9: .. | BC9: .. | BD9: 0.6453 | BE9: .. | BF9: 0.8289 | BG9: 13 | BH9: 1e-10 | BI9: 53 | BJ9: 42.25 | BK9: 28.5 | BL9: 511.4718323 | BM9: 11.42 | BN9: 728.19 | BO9: 203.7 | BP9: 2180.4 | BQ9: 1631 | BR9: 244.9 | BS9: 35.27 | BT9: 83.5 | BU9: 0.9137 | BV9: .. | BW9: 248 | BX9: .. | BY9: .. | BZ9: .. | CA9: .. | CB9: .. | CC9: .. | CD9: .. | CE9: 64.09
A10: 1960M03 | B10: 1.630000114 | C10: .. | D10: 1.630000114 | E10: .. | F10: .. | G10: .. | H10: 0.14 | I10: 0.4047739964 | J10: .. | K10: 3.624356619 | L10: 0.5789 | M10: 0.9281 | N10: 0.6887074 | O10: 1.0297 | P10: 0.9303009 | Q10: 1.121401 | R10: 1.0374 | S10: 361 | T10: .. | U10: .. | V10: 338 | W10: 225 | X10: .. | Y10: 92 | Z10: 201 | AA10: 84.1 | AB10: .. | AC10: .. | AD10: 20.71817486 | AE10: 45 | AF10: 35 | AG10: 103.79 | AH10: .. | AI10: .. | AJ10: .. | AK10: .. | AL10: 61.73 | AM10: .. | AN10: 0.14308 | AO10: 0.1319 | AP10: 0.7694 | AQ10: 0.297834044 | AR10: .. | AS10: 1.4991416 | AT10: 0.12235641 | AU10: 0.1212541 | AV10: 0.0683 | AW10: 1736.87 | AX10: .. | AY10: 31.94 | AZ10: .. | BA10: 149.1749784 | BB10: .. | BC10: .. | BD10: 0.6464 | BE10: .. | BF10: 0.8576 | BG10: 13 | BH10: 1e-10 | BI10: 53 | BJ10: 42.25 | BK10: 28.5 | BL10: 511.4718323 | BM10: 11.42 | BN10: 684.94 | BO10: 210.3 | BP10: 2173.8 | BQ10: 1631 | BR10: 248.7 | BS10: 35.27 | BT10: 83.5 | BU10: 0.9137 | BV10: .. | BW10: 236 | BX10: .. | BY10: .. | BZ10: .. | CA10: .. | CB10: .. | CC10: .. | CD10: .. | CE10: 63.76
A11: 1960M04 | B11: 1.630000114 | C11: .. | D11: 1.630000114 | E11: .. | F11: .. | G11: .. | H11: 0.14 | I11: 0.4047739964 | J11: .. | K11: 3.624356619 | L11: 0.5983 | M11: 0.9303 | N11: 0.6845187 | O11: 1.0297 | P11: 0.9303009 | Q11: 1.121401 | R11: 1.0374 | S11: 338 | T11: .. | U11: .. | V11: 333 | W11: 225 | X11: .. | Y11: 93 | Z11: 207 | AA11: 86.7 | AB11: .. | AC11: .. | AD11: 20.63803636 | AE11: 45 | AF11: 35 | AG11: 100.97 | AH11: .. | AI11: .. | AJ11: .. | AK11: .. | AL11: 60.99 | AM11: .. | AN11: 0.14308 | AO11: 0.1363 | AP11: 0.8378 | AQ11: 0.2990214827 | AR11: .. | AS11: 1.6755112 | AT11: 0.12235641 | AU11: 0.12345872 | AV11: 0.0681 | AW11: 1736.87 | AX11: .. | AY11: 31.94 | AZ11: .. | BA11: 149.1749784 | BB11: .. | BC11: .. | BD11: 0.6435 | BE11: .. | BF11: 0.8642 | BG11: 13 | BH11: 1e-10 | BI11: 53 | BJ11: 42.25 | BK11: 28.5 | BL11: 511.4718323 | BM11: 11.42 | BN11: 723.11 | BO11: 213.6 | BP11: 2178.2 | BQ11: 1631 | BR11: 254.6 | BS11: 35.27 | BT11: 83.5 | BU11: 0.9137 | BV11: .. | BW11: 214 | BX11: .. | BY11: .. | BZ11: .. | CA11: .. | CB11: .. | CC11: .. | CD11: .. | CE11: 63.35
A12: 1960M05 | B12: 1.630000114 | C12: .. | D12: 1.630000114 | E12: .. | F12: .. | G12: .. | H12: 0.14 | I12: 0.4047739964 | J12: .. | K12: 3.624356619 | L12: 0.6001 | M12: 0.92 | N12: 0.6906915 | O12: 1.0297 | P12: 0.9303009 | Q12: 1.121401 | R12: 1.0374 | S12: 321 | T12: .. | U12: .. | V12: 335 | W12: 225 | X12: .. | Y12: 93 | Z12: 209 | AA12: 81.5 | AB12: .. | AC12: .. | AD12: 20.60605583 | AE12: 48 | AF12: 35 | AG12: 102.15 | AH12: .. | AI12: .. | AJ12: .. | AK12: .. | AL12: 57.69 | AM12: .. | AN12: 0.149 | AO12: 0.1444 | AP12: 0.7562 | AQ12: 0.2990314775 | AR12: .. | AS12: 1.763696 | AT12: 0.12235641 | AU12: 0.1212541 | AV12: 0.0683 | AW12: 1736.87 | AX12: .. | AY12: 31.94 | AZ12: .. | BA12: 149.1749784 | BB12: .. | BC12: .. | BD12: 0.6468 | BE12: .. | BF12: 0.9281 | BG12: 13 | BH12: 1e-10 | BI12: 53 | BJ12: 42.25 | BK12: 28.5 | BL12: 511.4718323 | BM12: 11.42 | BN12: 684.75 | BO12: 213.4 | BP12: 2162.7 | BQ12: 1631 | BR12: 253.8 | BS12: 35.27 | BT12: 83.5 | BU12: 0.9137 | BV12: .. | BW12: 206 | BX12: .. | BY12: .. | BZ12: .. | CA12: .. | CB12: .. | CC12: .. | CD12: .. | CE12: 63.11
A13: 1960M06 | B13: 1.630000114 | C13: .. | D13: 1.630000114 | E13: .. | F13: .. | G13: .. | H13: 0.14 | I13: 0.4047739964 | J13: .. | K13: 3.624356619 | L13: 0.5944 | M13: 0.9123 | N13: 0.6968643 | O13: 1.0297 | P13: 0.9303009 | Q13: 1.121401 | R13: 1.0374 | S13: 287 | T13: .. | U13: .. | V13: 334 | W13: 219 | X13: .. | Y13: 91 | Z13: 218 | AA13: 80.3 | AB13: .. | AC13: .. | AD13: 20.12653582 | AE13: 47 | AF13: 36 | AG13: 103.13 | AH13: .. | AI13: .. | AJ13: .. | AK13: .. | AL13: 55.48 | AM13: .. | AN13: 0.149 | AO13: 0.1385 | AP13: 0.7077 | AQ13: 0.2996431214 | AR13: .. | AS13: 1.763696 | AT13: 0.12235641 | AU13: 0.12566334 | AV13: 0.0666 | AW13: 1736.87 | AX13: .. | AY13: 31.94 | AZ13: .. | BA13: 149.1749784 | BB13: .. | BC13: .. | BD13: 0.6559 | BE13: .. | BF13: 0.8929 | BG13: 13 | BH13: 1e-10 | BI13: 53 | BJ13: 42.25 | BK13: 28.5 | BL13: 511.4718323 | BM13: 11.42 | BN13: 691.59 | BO13: 202.4 | BP13: 2184.8 | BQ13: 1631 | BR13: 249.8 | BS13: 35.27 | BT13: 83.5 | BU13: 0.9137 | BV13: .. | BW13: 189 | BX13: .. | BY13: .. | BZ13: .. | CA13: .. | CB13: .. | CC13: .. | CD13: .. | CE13: 62.84
A14: 1960M07 | B14: 1.630000114 | C14: .. | D14: 1.630000114 | E14: .. | F14: .. | G14: .. | H14: 0.14 | I14: 0.4047739964 | J14: .. | K14: 3.624356619 | L14: 0.6045 | M14: 0.916 | N14: 0.6906915 | O14: 1.0297 | P14: 0.9303009 | Q14: 1.121401 | R14: 1.0374 | S14: 298 | T14: .. | U14: .. | V14: 336 | W14: 221 | X14: .. | Y14: 92 | Z14: 224 | AA14: 77.7 | AB14: .. | AC14: .. | AD14: 20.03778575 | AE14: 47 | AF14: 39.9 | AG14: 102.05 | AH14: .. | AI14: .. | AJ14: .. | AK14: .. | AL14: 54.75 | AM14: .. | AN14: 0.149 | AO14: 0.1292 | AP14: 0.7474 | AQ14: 0.3000240305 | AR14: .. | AS14: 1.7416498 | AT14: 0.12235641 | AU14: 0.1322772 | AV14: 0.0728 | AW14: 1736.87 | AX14: .. | AY14: 31.94 | AZ14: .. | BA14: 149.1749784 | BB14: .. | BC14: .. | BD14: 0.6572 | BE14: .. | BF14: 0.787 | BG14: 13 | BH14: 1e-10 | BI14: 53 | BJ14: 42.25 | BK14: 28.5 | BL14: 511.4718323 | BM14: 11.42 | BN14: 702.39 | BO14: 196.2 | BP14: 2248.7 | BQ14: 1631 | BR14: 248.7 | BS14: 35.27 | BT14: 83.5 | BU14: 0.9137 | BV14: .. | BW14: 189 | BX14: .. | BY14: .. | BZ14: .. | CA14: .. | CB14: .. | CC14: .. | CD14: .. | CE14: 62.72
A15: 1960M08 | B15: 1.630000114 | C15: .. | D15: 1.630000114 | E15: .. | F15: .. | G15: .. | H15: 0.14 | I15: 0.4047739964 | J15: .. | K15: 3.624356619 | L15: 0.5882 | M15: 0.9292 | N15: 0.6988484 | O15: 1.0297 | P15: 0.9303009 | Q15: 1.121401 | R15: 1.0374 | S15: 292 | T15: .. | U15: .. | V15: 336 | W15: 225 | X15: .. | Y15: 93 | Z15: 237 | AA15: 77.7 | AB15: .. | AC15: .. | AD15: 20.13317893 | AE15: 47 | AF15: 39 | AG15: 109.71 | AH15: .. | AI15: .. | AJ15: .. | AK15: .. | AL15: 55.12 | AM15: .. | AN15: 0.12699 | AO15: 0.1292 | AP15: 0.7826 | AQ15: 0.3008283988 | AR15: .. | AS15: 1.5873264 | AT15: 0.12235641 | AU15: 0.12786796 | AV15: 0.0741 | AW15: 1736.87 | AX15: .. | AY15: 31.94 | AZ15: .. | BA15: 149.1749784 | BB15: .. | BC15: .. | BD15: 0.6534 | BE15: .. | BF15: 0.7209 | BG15: 13 | BH15: 1e-10 | BI15: 53 | BJ15: 42.25 | BK15: 28.5 | BL15: 511.4718323 | BM15: 11.42 | BN15: 675.94 | BO15: 195.3 | BP15: 2204.6 | BQ15: 1631 | BR15: 241 | BS15: 35.27 | BT15: 83.5 | BU15: 0.9137 | BV15: .. | BW15: 188 | BX15: .. | BY15: .. | BZ15: .. | CA15: .. | CB15: .. | CC15: .. | CD15: .. | CE15: 62.52
A16: 1960M09 | B16: 1.630000114 | C16: .. | D16: 1.630000114 | E16: .. | F16: .. | G16: .. | H16: 0.14 | I16: 0.4047739964 | J16: .. | K16: 3.624356619 | L16: 0.5827 | M16: 0.9226 | N16: 0.7028166 | O16: 1.0297 | P16: 0.9303009 | Q16: 1.121401 | R16: 1.0374 | S16: 276 | T16: .. | U16: .. | V16: 323 | W16: 224 | X16: .. | Y16: 92 | Z16: 231 | AA16: 82.8 | AB16: .. | AC16: .. | AD16: 20.26041462 | AE16: 46 | AF16: 35 | AG16: 116.1 | AH16: .. | AI16: .. | AJ16: .. | AK16: .. | AL16: 56.59 | AM16: .. | AN16: 0.138 | AO16: 0.1292 | AP16: 0.8091 | AQ16: 0.3024557646 | AR16: .. | AS16: 1.5211878 | AT16: 0.12235641 | AU16: 0.1322772 | AV16: 0.0725 | AW16: 1736.87 | AX16: .. | AY16: 31.94 | AZ16: .. | BA16: 149.1749784 | BB16: .. | BC16: .. | BD16: 0.6618 | BE16: .. | BF16: 0.7275 | BG16: 13 | BH16: 1e-10 | BI16: 53 | BJ16: 42.25 | BK16: 28.5 | BL16: 511.4718323 | BM16: 11.42 | BN16: 647.06 | BO16: 192.7 | BP16: 2226.7 | BQ16: 1631 | BR16: 240.1 | BS16: 35.27 | BT16: 83.5 | BU16: 0.9137 | BV16: .. | BW16: 173 | BX16: .. | BY16: .. | BZ16: .. | CA16: .. | CB16: .. | CC16: .. | CD16: .. | CE16: 62.34
A17: 1960M10 | B17: 1.630000114 | C17: .. | D17: 1.630000114 | E17: .. | F17: .. | G17: .. | H17: 0.14 | I17: 0.4047739964 | J17: .. | K17: 3.624356619 | L17: 0.5858 | M17: 0.9237 | N17: 0.7067849 | O17: 1.0297 | P17: 0.9303009 | Q17: 1.121401 | R17: 1.0374 | S17: 280 | T17: .. | U17: .. | V17: 310 | W17: 222 | X17: .. | Y17: 88 | Z17: 237 | AA17: 75.1 | AB17: .. | AC17: .. | AD17: 19.72291032 | AE17: 42 | AF17: 35 | AG17: 115.21 | AH17: .. | AI17: .. | AJ17: .. | AK17: .. | AL17: 56.95 | AM17: .. | AN17: 0.1541 | AO17: 0.1292 | AP17: 0.7099 | AQ17: 0.3020039008 | AR17: .. | AS17: 1.6314188 | AT17: 0.12235641 | AU17: 0.13007258 | AV17: 0.0538 | AW17: 1736.87 | AX17: .. | AY17: 31.94 | AZ17: .. | BA17: 149.1749784 | BB17: .. | BC17: .. | BD17: 0.6656 | BE17: .. | BF17: 0.6856 | BG17: 13 | BH17: 1e-10 | BI17: 53 | BJ17: 42.25 | BK17: 28.5 | BL17: 511.4718323 | BM17: 11.42 | BN17: 612.66 | BO17: 185.2 | BP17: 2226.7 | BQ17: 1631 | BR17: 242.3 | BS17: 35.27 | BT17: 83.5 | BU17: 0.9137 | BV17: .. | BW17: 173 | BX17: .. | BY17: .. | BZ17: .. | CA17: .. | CB17: .. | CC17: .. | CD17: .. | CE17: 61.96
A18: 1960M11 | B18: 1.630000114 | C18: .. | D18: 1.630000114 | E18: .. | F18: .. | G18: .. | H18: 0.14 | I18: 0.4047739964 | J18: .. | K18: 3.624356619 | L18: 0.5695 | M18: 0.9116 | N18: 0.7089895 | O18: 1.0297 | P18: 0.9303009 | Q18: 1.121401 | R18: 1.0374 | S18: 274 | T18: .. | U18: .. | V18: 303 | W18: 222 | X18: .. | Y18: 90 | Z18: 259 | AA18: 68.6 | AB18: .. | AC18: .. | AD18: 19.19704755 | AE18: 38 | AF18: 35 | AG18: 114.43 | AH18: .. | AI18: .. | AJ18: .. | AK18: .. | AL18: 57.69 | AM18: .. | AN18: 0.127 | AO18: 0.1488 | AP18: 0.6349 | AQ18: 0.3016439859 | AR18: .. | AS18: 1.6314188 | AT18: 0.12235641 | AU18: 0.13007258 | AV18: 0.052 | AW18: 1736.87 | AX18: .. | AY18: 31.94 | AZ18: .. | BA18: 149.1749784 | BB18: .. | BC18: .. | BD18: 0.6651 | BE18: .. | BF18: 0.6283 | BG18: 13 | BH18: 1e-10 | BI18: 53 | BJ18: 42.25 | BK18: 28.5 | BL18: 511.4718323 | BM18: 11.42 | BN18: 642.13 | BO18: 188.1 | BP18: 2204.6 | BQ18: 1631 | BR18: 241.4 | BS18: 35.27 | BT18: 83.5 | BU18: 0.9137 | BV18: .. | BW18: 179 | BX18: .. | BY18: .. | BZ18: .. | CA18: .. | CB18: .. | CC18: .. | CD18: .. | CE18: 62.07
A19: 1960M12 | B19: 1.630000114 | C19: .. | D19: 1.630000114 | E19: .. | F19: .. | G19: .. | H19: 0.14 | I19: 0.4047739964 | J19: .. | K19: 3.624356619 | L19: 0.5238 | M19: 0.9006 | N19: 0.6968643 | O19: 1.0297 | P19: 0.9303009 | Q19: 1.121401 | R19: 1.0374 | S19: 252 | T19: .. | U19: .. | V19: 301 | W19: 223 | X19: .. | Y19: 93 | Z19: 259 | AA19: 79 | AB19: .. | AC19: .. | AD19: 19.62896468 | AE19: 40 | AF19: 36 | AG19: 112.66 | AH19: .. | AI19: .. | AJ19: .. | AK19: .. | AL19: 58.05 | AM19: .. | AN19: 0.149 | AO19: 0.1188 | AP19: 0.6658 | AQ19: 0.3042832467 | AR19: .. | AS19: 1.5211878 | AT19: 0.12235641 | AU19: 0.13007258 | AV19: 0.0635 | AW19: 1736.87 | AX19: .. | AY19: 31.94 | AZ19: .. | BA19: 149.1749784 | BB19: .. | BC19: .. | BD19: 0.6649 | BE19: .. | BF19: 0.6195 | BG19: 13 | BH19: 1e-10 | BI19: 53 | BJ19: 42.25 | BK19: 28.5 | BL19: 511.4718323 | BM19: 11.42 | BN19: 636.91 | BO19: 179.2 | BP19: 2189.2 | BQ19: 1631 | BR19: 228.2 | BS19: 35.27 | BT19: 83.5 | BU19: 0.9137 | BV19: .. | BW19: 168 | BX19: .. | BY19: .. | BZ19: .. | CA19: .. | CB19: .. | CC19: .. | CD19: .. | CE19: 61.71
A20: 1961M01 | B20: 1.57 | C20: .. | D20: 1.57 | E20: .. | F20: .. | G20: .. | H20: 0.15 | I20: 0.4047739964 | J20: .. | K20: 3.745790349 | L20: 0.485 | M20: 0.9145 | N20: 0.6765823 | O20: 0.9518 | P20: 0.8925009 | Q20: 0.978601 | R20: 0.9841996 | S20: 269 | T20: .. | U20: .. | V20: 331 | W20: 223 | X20: .. | Y20: 102 | Z20: 278 | AA20: 85.4 | AB20: .. | AC20: .. | AD20: 20.27695551 | AE20: 43 | AF20: 38 | AG20: 113.47 | AH20: .. | AI20: .. | AJ20: .. | AK20: .. | AL20: 58.79 | AM20: .. | AN20: 0.127 | AO20: 0.1143 | AP20: 0.6371 | AQ20: 0.3061167055 | AR20: .. | AS20: 1.5211878 | AT20: 0.124340568 | AU20: 0.12786796 | AV20: 0.0646 | AW20: 1563.19 | AX20: .. | AY20: 33.06 | AZ20: .. | BA20: 151.9772808 | BB20: .. | BC20: .. | BD20: 0.6636 | BE20: .. | BF20: 0.5997 | BG20: 13 | BH20: 1e-10 | BI20: 52 | BJ20: 42.25 | BK20: 30 | BL20: 511.4718323 | BM20: 11.02 | BN20: 606.71 | BO20: 175.9 | BP20: 2162.7 | BQ20: 1711 | BR20: 218 | BS20: 35.25 | BT20: 83.5 | BU20: 0.9137 | BV20: .. | BW20: 169 | BX20: .. | BY20: .. | BZ20: .. | CA20: .. | CB20: .. | CC20: .. | CD20: .. | CE20: 62.17
A21: 1961M02 | B21: 1.57 | C21: .. | D21: 1.57 | E21: .. | F21: .. | G21: .. | H21: 0.15 | I21: 0.4047739964 | J21: .. | K21: 3.745790349 | L21: 0.4881 | M21: 0.9167 | N21: 0.6765823 | O21: 0.9518 | P21: 0.8925009 | Q21: 0.978601 | R21: 0.9841996 | S21: 281 | T21: .. | U21: .. | V21: 349 | W21: 228 | X21: .. | Y21: 114 | Z21: 303 | AA21: 94.6 | AB21: .. | AC21: .. | AD21: 20.53174281 | AE21: 44 | AF21: 39 | AG21: 109.52 | AH21: .. | AI21: .. | AJ21: .. | AK21: .. | AL21: 59.16 | AM21: .. | AN21: 0.127 | AO21: 0.1116 | AP21: 0.6393 | AQ21: 0.3082766123 | AR21: .. | AS21: 1.543234 | AT21: 0.124340568 | AU21: 0.12566334 | AV21: 0.0626 | AW21: 1563.19 | AX21: .. | AY21: 33.06 | AZ21: .. | BA21: 151.9772808 | BB21: .. | BC21: .. | BD21: 0.6784 | BE21: .. | BF21: 0.5754 | BG21: 13 | BH21: 1e-10 | BI21: 52 | BJ21: 42.25 | BK21: 30 | BL21: 511.4718323 | BM21: 11.02 | BN21: 616.63 | BO21: 179.9 | BP21: 2187 | BQ21: 1711 | BR21: 228.2 | BS21: 35.25 | BT21: 83.5 | BU21: 0.9137 | BV21: .. | BW21: 174 | BX21: .. | BY21: .. | BZ21: .. | CA21: .. | CB21: .. | CC21: .. | CD21: .. | CE21: 62.01
A22: 1961M03 | B22: 1.57 | C22: .. | D22: 1.57 | E22: .. | F22: .. | G22: .. | H22: 0.15 | I22: 0.4047739964 | J22: .. | K22: 3.745790349 | L22: 0.4581 | M22: 0.9105 | N22: 0.6684254 | O22: 0.9518 | P22: 0.8925009 | Q22: 0.978601 | R22: 0.9841996 | S22: 276 | T22: .. | U22: .. | V22: 373 | W22: 231 | X22: .. | Y22: 121 | Z22: 311 | AA22: 98.5 | AB22: .. | AC22: .. | AD22: 20.38784919 | AE22: 44 | AF22: 39 | AG22: 117.65 | AH22: .. | AI22: .. | AJ22: .. | AK22: .. | AL22: 58.05 | AM22: .. | AN22: 0.14308 | AO22: 0.1238 | AP22: 0.7826 | AQ22: 0.3096311952 | AR22: .. | AS22: 1.5211878 | AT22: 0.124340568 | AU22: 0.12345872 | AV22: 0.0626 | AW22: 1563.19 | AX22: .. | AY22: 33.06 | AZ22: .. | BA22: 151.9772808 | BB22: .. | BC22: .. | BD22: 0.6748 | BE22: .. | BF22: 0.6151 | BG22: 13 | BH22: 1e-10 | BI22: 52 | BJ22: 42.25 | BK22: 30 | BL22: 511.4718323 | BM22: 11.02 | BN22: 621.26 | BO22: 181.7 | BP22: 2248.7 | BQ22: 1711 | BR22: 233.2 | BS22: 35.25 | BT22: 83.5 | BU22: 0.9137 | BV22: .. | BW22: 165 | BX22: .. | BY22: .. | BZ22: .. | CA22: .. | CB22: .. | CC22: .. | CD22: .. | CE22: 62.15
A23: 1961M04 | B23: 1.57 | C23: .. | D23: 1.57 | E23: .. | F23: .. | G23: .. | H23: 0.15 | I23: 0.4047739964 | J23: .. | K23: 3.745790349 | L23: 0.4354 | M23: 0.9017 | N23: 0.6644572 | O23: 0.9518 | P23: 0.8925009 | Q23: 0.978601 | R23: 0.9841996 | S23: 269 | T23: .. | U23: .. | V23: 369 | W23: 233 | X23: .. | Y23: 129 | Z23: 322 | AA23: 110.7 | AB23: .. | AC23: .. | AD23: 20.14268321 | AE23: 43 | AF23: 38 | AG23: 115.17 | AH23: .. | AI23: .. | AJ23: .. | AK23: .. | AL23: 57.32 | AM23: .. | AN23: 0.14308 | AO23: 0.1293 | AP23: 0.7099 | AQ23: 0.3120086493 | AR23: .. | AS23: 1.5211878 | AT23: 0.124340568 | AU23: 0.12345872 | AV23: 0.0668 | AW23: 1563.19 | AX23: .. | AY23: 33.06 | AZ23: .. | BA23: 151.9772808 | BB23: .. | BC23: .. | BD23: 0.6726 | BE23: .. | BF23: 0.6393 | BG23: 13 | BH23: 1e-10 | BI23: 52 | BJ23: 42.25 | BK23: 30 | BL23: 511.4718323 | BM23: 11.02 | BN23: 631.84 | BO23: 185 | BP23: 2308.2 | BQ23: 1711 | BR23: 231.3 | BS23: 35.25 | BT23: 83.5 | BU23: 0.9137 | BV23: .. | BW23: 163 | BX23: .. | BY23: .. | BZ23: .. | CA23: .. | CB23: .. | CC23: .. | CD23: .. | CE23: 62.05
A24: 1961M05 | B24: 1.57 | C24: .. | D24: 1.57 | E24: .. | F24: .. | G24: .. | H24: 0.15 | I24: 0.4047739964 | J24: .. | K24: 3.745790349 | L24: 0.4848 | M24: 0.8929 | N24: 0.6622526 | O24: 0.9518 | P24: 0.8925009 | Q24: 0.978601 | R24: 0.9841996 | S24: 258 | T24: .. | U24: .. | V24: 352 | W24: 234 | X24: .. | Y24: 122 | Z24: 314 | AA24: 109.1 | AB24: .. | AC24: .. | AD24: 20.25290294 | AE24: 45 | AF24: 42 | AG24: 119.42 | AH24: .. | AI24: .. | AJ24: .. | AK24: .. | AL24: 55.85 | AM24: .. | AN24: 0.129 | AO24: 0.1293 | AP24: 0.6371 | AQ24: 0.3126442582 | AR24: .. | AS24: 1.4991416 | AT24: 0.124340568 | AU24: 0.13007258 | AV24: 0.0703 | AW24: 1563.19 | AX24: .. | AY24: 33.06 | AZ24: .. | BA24: 151.9772808 | BB24: .. | BC24: .. | BD24: 0.6781 | BE24: .. | BF24: 0.6437 | BG24: 13 | BH24: 1e-10 | BI24: 52 | BJ24: 42.25 | BK24: 30 | BL24: 511.4718323 | BM24: 11.02 | BN24: 668.44 | BO24: 183.6 | BP24: 2376.6 | BQ24: 1711 | BR24: 227.1 | BS24: 35.25 | BT24: 83.5 | BU24: 0.9137 | BV24: .. | BW24: 167 | BX24: .. | BY24: .. | BZ24: .. | CA24: .. | CB24: .. | CC24: .. | CD24: .. | CE24: 62.14
A25: 1961M06 | B25: 1.57 | C25: .. | D25: 1.57 | E25: .. | F25: .. | G25: .. | H25: 0.15 | I25: 0.4047739964 | J25: .. | K25: 3.745790349 | L25: 0.4907 | M25: 0.8891 | N25: 0.6664412 | O25: 0.9518 | P25: 0.8925009 | Q25: 0.978601 | R25: 0.9841996 | S25: 243 | T25: .. | U25: .. | V25: 330 | W25: 233 | X25: .. | Y25: 114 | Z25: 295 | AA25: 98.5 | AB25: .. | AC25: .. | AD25: 19.88461219 | AE25: 44 | AF25: 45 | AG25: 121.4 | AH25: .. | AI25: .. | AJ25: .. | AK25: .. | AL25: 54.38 | AM25: .. | AN25: 0.121 | AO25: 0.1932 | AP25: 0.6768 | AQ25: 0.3121095449 | AR25: .. | AS25: 1.5211878 | AT25: 0.124340568 | AU25: 0.13007258 | AV25: 0.0655 | AW25: 1563.19 | AX25: .. | AY25: 33.06 | AZ25: .. | BA25: 151.9772808 | BB25: .. | BC25: .. | BD25: 0.6764 | BE25: .. | BF25: 0.6063 | BG25: 13 | BH25: 1e-10 | BI25: 52 | BJ25: 42.25 | BK25: 30 | BL25: 511.4718323 | BM25: 11.02 | BN25: 652.12 | BO25: 178.4 | BP25: 2467 | BQ25: 1711 | BR25: 217.8 | BS25: 35.25 | BT25: 83.5 | BU25: 0.9137 | BV25: .. | BW25: 162 | BX25: .. | BY25: .. | BZ25: .. | CA25: .. | CB25: .. | CC25: .. | CD25: .. | CE25: 62.12
A26: 1961M07 | B26: 1.57 | C26: .. | D26: 1.57 | E26: .. | F26: .. | G26: .. | H26: 0.15 | I26: 0.4047739964 | J26: .. | K26: 3.745790349 | L26: 0.4753 | M26: 0.8929 | N26: 0.6684254 | O26: 0.9518 | P26: 0.8925009 | Q26: 0.978601 | R26: 0.9841996 | S26: 245 | T26: .. | U26: .. | V26: 328 | W26: 229 | X26: .. | Y26: 112 | Z26: 282 | AA26: 99.9 | AB26: .. | AC26: .. | AD26: 20.44330927 | AE26: 45 | AF26: 45 | AG26: 123.41 | AH26: .. | AI26: .. | AJ26: .. | AK26: .. | AL26: 56.59 | AM26: .. | AN26: 0.132 | AO26: 0.133 | AP26: 0.668 | AQ26: 0.3131289183 | AR26: .. | AS26: 1.5652802 | AT26: 0.124340568 | AU26: 0.12786796 | AV26: 0.0609 | AW26: 1563.19 | AX26: .. | AY26: 33.06 | AZ26: .. | BA26: 151.9772808 | BB26: .. | BC26: .. | BD26: 0.6757 | BE26: .. | BF26: 0.6085 | BG26: 13 | BH26: 1e-10 | BI26: 52 | BJ26: 42.25 | BK26: 30 | BL26: 511.4718323 | BM26: 11.02 | BN26: 633.39 | BO26: 178.8 | BP26: 2519.9 | BQ26: 1711 | BR26: 214.7 | BS26: 35.25 | BT26: 83.5 | BU26: 0.9137 | BV26: .. | BW26: 167 | BX26: .. | BY26: .. | BZ26: .. | CA26: .. | CB26: .. | CC26: .. | CD26: .. | CE26: 63.6
A27: 1961M08 | B27: 1.57 | C27: .. | D27: 1.57 | E27: .. | F27: .. | G27: .. | H27: 0.15 | I27: 0.4047739964 | J27: .. | K27: 3.745790349 | L27: 0.4795 | M27: 0.8935 | N27: 0.6684254 | O27: 0.9518 | P27: 0.8925009 | Q27: 0.978601 | R27: 0.9841996 | S27: 248 | T27: .. | U27: .. | V27: 321 | W27: 226 | X27: .. | Y27: 101 | Z27: 276 | AA27: 102.5 | AB27: .. | AC27: .. | AD27: 20.6774791 | AE27: 44 | AF27: 44 | AG27: 119.63 | AH27: .. | AI27: .. | AJ27: .. | AK27: .. | AL27: 58.79 | AM27: .. | AN27: 0.132 | AO27: 0.133 | AP27: 0.6945 | AQ27: 0.3143071711 | AR27: .. | AS27: 1.8077884 | AT27: 0.124340568 | AU27: 0.1212541 | AV27: 0.0536 | AW27: 1563.19 | AX27: .. | AY27: 33.06 | AZ27: .. | BA27: 151.9772808 | BB27: .. | BC27: .. | BD27: 0.6717 | BE27: .. | BF27: 0.6151 | BG27: 13 | BH27: 1e-10 | BI27: 52 | BJ27: 42.25 | BK27: 30 | BL27: 511.4718323 | BM27: 11.02 | BN27: 636.47 | BO27: 178.4 | BP27: 2605.9 | BQ27: 1711 | BR27: 210.8 | BS27: 35.25 | BT27: 83.5 | BU27: 0.9137 | BV27: .. | BW27: 167 | BX27: .. | BY27: .. | BZ27: .. | CA27: .. | CB27: .. | CC27: .. | CD27: .. | CE27: 65.19
A28: 1961M09 | B28: 1.57 | C28: .. | D28: 1.57 | E28: .. | F28: .. | G28: .. | H28: 0.15 | I28: 0.4047739964 | J28: .. | K28: 3.745790349 | L28: 0.465 | M28: 0.8891 | N28: 0.6723936 | O28: 0.9518 | P28: 0.8925009 | Q28: 0.978601 | R28: 0.9841996 | S28: 243 | T28: .. | U28: .. | V28: 301 | W28: 226 | X28: .. | Y28: 98 | Z28: 267 | AA28: 92 | AB28: .. | AC28: .. | AD28: 20.72334963 | AE28: 43 | AF28: 45 | AG28: 118.99 | AH28: .. | AI28: .. | AJ28: .. | AK28: .. | AL28: 59.89 | AM28: .. | AN28: 0.1459 | AO28: 0.133 | AP28: 0.7055 | AQ28: 0.3136909445 | AR28: .. | AS28: 1.8959732 | AT28: 0.124340568 | AU28: 0.1212541 | AV28: 0.0542 | AW28: 1563.19 | AX28: .. | AY28: 33.06 | AZ28: .. | BA28: 151.9772808 | BB28: .. | BC28: .. | BD28: 0.6737 | BE28: .. | BF28: 0.6173 | BG28: 13 | BH28: 1e-10 | BI28: 52 | BJ28: 42.25 | BK28: 30 | BL28: 511.4718323 | BM28: 11.02 | BN28: 632.72 | BO28: 176.4 | BP28: 2630.1 | BQ28: 1711 | BR28: 203.7 | BS28: 35.25 | BT28: 83.5 | BU28: 0.9137 | BV28: .. | BW28: 163 | BX28: .. | BY28: .. | BZ28: .. | CA28: .. | CB28: .. | CC28: .. | CD28: .. | CE28: 65.59
A29: 1961M10 | B29: 1.57 | C29: .. | D29: 1.57 | E29: .. | F29: .. | G29: .. | H29: 0.15 | I29: 0.4047739964 | J29: .. | K29: 3.745790349 | L29: 0.4603 | M29: 0.8852 | N29: 0.6723936 | O29: 0.9518 | P29: 0.8925009 | Q29: 0.978601 | R29: 0.9841996 | S29: 236 | T29: .. | U29: .. | V29: 293 | W29: 226 | X29: .. | Y29: 98 | Z29: 270 | AA29: 86.7 | AB29: .. | AC29: .. | AD29: 21.56732615 | AE29: 47.64 | AF29: 40 | AG29: 120.32 | AH29: .. | AI29: .. | AJ29: .. | AK29: .. | AL29: 60.26 | AM29: .. | AN29: 0.132 | AO29: 0.133 | AP29: 0.6746 | AQ29: 0.3137289051 | AR29: .. | AS29: 1.9400656 | AT29: 0.124340568 | AU29: 0.12345872 | AV29: 0.0527 | AW29: 1563.19 | AX29: .. | AY29: 33.06 | AZ29: .. | BA29: 151.9772808 | BB29: .. | BC29: .. | BD29: 0.6764 | BE29: .. | BF29: 0.593 | BG29: 13 | BH29: 1e-10 | BI29: 52 | BJ29: 42.25 | BK29: 30 | BL29: 511.4718323 | BM29: 11.02 | BN29: 630.3 | BO29: 172.5 | BP29: 2605.9 | BQ29: 1711 | BR29: 198.2 | BS29: 35.25 | BT29: 83.5 | BU29: 0.9137 | BV29: .. | BW29: 161 | BX29: .. | BY29: .. | BZ29: .. | CA29: .. | CB29: .. | CC29: .. | CD29: .. | CE29: 65.62
A30: 1961M11 | B30: 1.57 | C30: .. | D30: 1.57 | E30: .. | F30: .. | G30: .. | H30: 0.15 | I30: 0.4047739964 | J30: .. | K30: 3.745790349 | L30: 0.4808 | M30: 0.883 | N30: 0.6704095 | O30: 0.9518 | P30: 0.8925009 | Q30: 0.978601 | R30: 0.9841996 | S30: 236 | T30: .. | U30: .. | V30: 297 | W30: 226 | X30: .. | Y30: 100 | Z30: 265 | AA30: 92 | AB30: .. | AC30: .. | AD30: 21.96639031 | AE30: 48.42 | AF30: 41 | AG30: 128.32 | AH30: .. | AI30: .. | AJ30: .. | AK30: .. | AL30: 61.73 | AM30: .. | AN30: 0.149 | AO30: 0.1565 | AP30: 0.6371 | AQ30: 0.3153626158 | AR30: .. | AS30: 1.9621118 | AT30: 0.124340568 | AU30: 0.12566334 | AV30: 0.0509 | AW30: 1563.19 | AX30: .. | AY30: 33.06 | AZ30: .. | BA30: 151.9772808 | BB30: .. | BC30: .. | BD30: 0.6643 | BE30: .. | BF30: 0.5423 | BG30: 13 | BH30: 1e-10 | BI30: 52 | BJ30: 42.25 | BK30: 30 | BL30: 511.4718323 | BM30: 11.02 | BN30: 632.28 | BO30: 166.4 | BP30: 2667.6 | BQ30: 1711 | BR30: 191.8 | BS30: 35.25 | BT30: 83.5 | BU30: 0.9231 | BV30: .. | BW30: 158 | BX30: .. | BY30: .. | BZ30: .. | CA30: .. | CB30: .. | CC30: .. | CD30: .. | CE30: 65.63
A31: 1961M12 | B31: 1.57 | C31: .. | D31: 1.57 | E31: .. | F31: .. | G31: .. | H31: 0.15 | I31: 0.4047739964 | J31: .. | K31: 3.745790349 | L31: 0.5397 | M31: 0.8774 | N31: 0.6664412 | O31: 0.9518 | P31: 0.8925009 | Q31: 0.978601 | R31: 0.9841996 | S31: 237 | T31: .. | U31: .. | V31: 319 | W31: 226 | X31: .. | Y31: 101 | Z31: 265 | AA31: 93 | AB31: .. | AC31: .. | AD31: 22.1218769 | AE31: 48.42 | AF31: 41 | AG31: 120.1 | AH31: .. | AI31: .. | AJ31: .. | AK31: .. | AL31: 62.46 | AM31: .. | AN31: 0.138 | AO31: 0.1061 | AP31: 0.7209 | AQ31: 0.3163479541 | AR31: .. | AS31: 2.0282504 | AT31: 0.124340568 | AU31: 0.12786796 | AV31: 0.0487 | AW31: 1563.19 | AX31: .. | AY31: 33.06 | AZ31: .. | BA31: 151.9772808 | BB31: .. | BC31: .. | BD31: 0.6605 | BE31: .. | BF31: 0.56 | BG31: 13 | BH31: 1e-10 | BI31: 52 | BJ31: 42.25 | BK31: 30 | BL31: 511.4718323 | BM31: 11.02 | BN31: 634.85 | BO31: 166.7 | BP31: 2619.1 | BQ31: 1711 | BR31: 196.9 | BS31: 35.25 | BT31: 83.5 | BU31: 1.0332 | BV31: .. | BW31: 159 | BX31: .. | BY31: .. | BZ31: .. | CA31: .. | CB31: .. | CC31: .. | CD31: .. | CE31: 66.25
A32: 1962M01 | B32: 1.52 | C32: .. | D32: 1.52 | E32: .. | F32: .. | G32: .. | H32: 0.16 | I32: 0.4047739964 | J32: .. | K32: 3.867224079 | L32: 0.4588 | M32: 0.8774 | N32: 0.6684254 | O32: 0.973 | P32: 0.8610009 | Q32: 1.104601 | R32: 0.9533996 | S32: 246.9 | T32: .. | U32: .. | V32: 327.94 | W32: 235.89 | X32: .. | Y32: 101.41 | Z32: 265 | AA32: 80.2 | AB32: .. | AC32: .. | AD32: 21.79724665 | AE32: 48.03 | AF32: 44.53 | AG32: 117.79 | AH32: .. | AI32: .. | AJ32: .. | AK32: .. | AL32: 60.63 | AM32: .. | AN32: 0.131 | AO32: 0.101 | AP32: 0.7628 | AQ32: 0.3151882948 | AR32: .. | AS32: 2.0282504 | AT32: 0.126324726 | AU32: 0.12786796 | AV32: 0.0465 | AW32: 1404.9 | AX32: .. | AY32: 36.39 | AZ32: .. | BA32: 160.0609688 | BB32: .. | BC32: .. | BD32: 0.6598 | BE32: .. | BF32: 0.5754 | BG32: 11.5 | BH32: 1e-10 | BI32: 51 | BJ32: 42.25 | BK32: 30 | BL32: 511.4718323 | BM32: 11.01 | BN32: 635.37 | BO32: 162.9 | BP32: 2610.3 | BQ32: 1761 | BR32: 193.6 | BS32: 35.23 | BT32: 83.5 | BU32: 1.0428 | BV32: .. | BW32: 160.39 | BX32: .. | BY32: .. | BZ32: .. | CA32: .. | CB32: .. | CC32: .. | CD32: .. | CE32: 66.81
A33: 1962M02 | B33: 1.52 | C33: .. | D33: 1.52 | E33: .. | F33: .. | G33: .. | H33: 0.16 | I33: 0.4047739964 | J33: .. | K33: 3.867224079 | L33: 0.4945 | M33: 0.877 | N33: 0.6684254 | O33: 0.973 | P33: 0.8610009 | Q33: 1.104601 | R33: 0.9533996 | S33: 248.6 | T33: .. | U33: .. | V33: 299.28 | W33: 237 | X33: .. | Y33: 100.59 | Z33: 259 | AA33: 77.9 | AB33: .. | AC33: .. | AD33: 21.95367182 | AE33: 48.03 | AF33: 44.53 | AG33: 119.18 | AH33: .. | AI33: .. | AJ33: .. | AK33: .. | AL33: 61.36 | AM33: .. | AN33: 0.136 | AO33: 0.1031 | AP33: 0.7584 | AQ33: 0.3153355302 | AR33: .. | AS33: 2.0723428 | AT33: 0.126324726 | AU33: 0.12786796 | AV33: 0.0498 | AW33: 1404.9 | AX33: .. | AY33: 36.39 | AZ33: .. | BA33: 160.0609688 | BB33: .. | BC33: .. | BD33: 0.6631 | BE33: .. | BF33: 0.5952 | BG33: 11.5 | BH33: 1e-10 | BI33: 51 | BJ33: 42.25 | BK33: 30 | BL33: 504.8579712 | BM33: 11.01 | BN33: 647.94 | BO33: 161.9 | BP33: 2623.5 | BQ33: 1761 | BR33: 189.6 | BS33: 35.23 | BT33: 83.5 | BU33: 1.0247 | BV33: .. | BW33: 159.56 | BX33: .. | BY33: .. | BZ33: .. | CA33: .. | CB33: .. | CC33: .. | CD33: .. | CE33: 66.92
A34: 1962M03 | B34: 1.52 | C34: .. | D34: 1.52 | E34: .. | F34: .. | G34: .. | H34: 0.16 | I34: 0.4047739964 | J34: .. | K34: 3.867224079 | L34: 0.4414 | M34: 0.8609 | N34: 0.6704095 | O34: 0.973 | P34: 0.8610009 | Q34: 1.104601 | R34: 0.9533996 | S34: 250.8 | T34: .. | U34: .. | V34: 290.73 | W34: 223.22 | X34: .. | Y34: 102.79 | Z34: 256 | AA34: 82.5 | AB34: .. | AC34: .. | AD34: 22.17561033 | AE34: 48.82 | AF34: 45.64 | AG34: 123.75 | AH34: .. | AI34: .. | AJ34: .. | AK34: .. | AL34: 61.73 | AM34: .. | AN34: 0.149 | AO34: 0.1072 | AP34: 0.7055 | AQ34: 0.3166511479 | AR34: .. | AS34: 2.0723428 | AT34: 0.126324726 | AU34: 0.12786796 | AV34: 0.0558 | AW34: 1404.9 | AX34: .. | AY34: 36.39 | AZ34: .. | BA34: 160.0609688 | BB34: .. | BC34: .. | BD34: 0.6634 | BE34: .. | BF34: 0.5754 | BG34: 11.5 | BH34: 1e-10 | BI34: 51 | BJ34: 42.25 | BK34: 30 | BL34: 496.0394897 | BM34: 11.01 | BN34: 647.5 | BO34: 167.1 | BP34: 2652.2 | BQ34: 1761 | BR34: 191.4 | BS34: 35.23 | BT34: 83.5 | BU34: 1.015 | BV34: .. | BW34: 161.49 | BX34: .. | BY34: .. | BZ34: .. | CA34: .. | CB34: .. | CC34: .. | CD34: .. | CE34: 66.88
A35: 1962M04 | B35: 1.52 | C35: .. | D35: 1.52 | E35: .. | F35: .. | G35: .. | H35: 0.16 | I35: 0.4047739964 | J35: .. | K35: 3.867224079 | L35: 0.4647 | M35: 0.8466 | N35: 0.6743777 | O35: 0.973 | P35: 0.8610009 | Q35: 1.104601 | R35: 0.9533996 | S35: 260.7 | T35: .. | U35: .. | V35: 281.64 | W35: 220.46 | X35: .. | Y35: 104.44 | Z35: 254 | AA35: 83.7 | AB35: .. | AC35: .. | AD35: 22.27341883 | AE35: 48.82 | AF35: 46.52 | AG35: 130.84 | AH35: .. | AI35: .. | AJ35: .. | AK35: .. | AL35: 62.1 | AM35: .. | AN35: 0.1459 | AO35: 0.1024 | AP35: 0.6548 | AQ35: 0.3173892335 | AR35: .. | AS35: 2.094389 | AT35: 0.126324726 | AU35: 0.12786796 | AV35: 0.0571 | AW35: 1404.9 | AX35: .. | AY35: 36.39 | AZ35: .. | BA35: 160.0609688 | BB35: .. | BC35: .. | BD35: 0.6598 | BE35: .. | BF35: 0.5666 | BG35: 11.5 | BH35: 1e-10 | BI35: 51 | BJ35: 42.25 | BK35: 30 | BL35: 496.0394897 | BM35: 11.01 | BN35: 645.95 | BO35: 166.7 | BP35: 2614.7 | BQ35: 1761 | BR35: 191.4 | BS35: 35.23 | BT35: 83.5 | BU35: 1.015 | BV35: .. | BW35: 168.38 | BX35: .. | BY35: .. | BZ35: .. | CA35: .. | CB35: .. | CC35: .. | CD35: .. | CE35: 66.85
A36: 1962M05 | B36: 1.52 | C36: .. | D36: 1.52 | E36: .. | F36: .. | G36: .. | H36: 0.16 | I36: 0.4047739964 | J36: .. | K36: 3.867224079 | L36: 0.4654 | M36: 0.8256 | N36: 0.6723936 | O36: 0.973 | P36: 0.8610009 | Q36: 1.104601 | R36: 0.9533996 | S36: 253.3 | T36: .. | U36: .. | V36: 270.34 | W36: 219.08 | X36: .. | Y36: 103.62 | Z36: 234 | AA36: 85.9 | AB36: .. | AC36: .. | AD36: 22.67514773 | AE36: 49.6 | AF36: 47.18 | AG36: 149.14 | AH36: .. | AI36: .. | AJ36: .. | AK36: .. | AL36: 63.57 | AM36: .. | AN36: 0.1369 | AO36: 0.1017 | AP36: 0.7297 | AQ36: 0.3182855276 | AR36: .. | AS36: 2.1605276 | AT36: 0.126324726 | AU36: 0.12786796 | AV36: 0.0553 | AW36: 1404.9 | AX36: .. | AY36: 36.39 | AZ36: .. | BA36: 160.0609688 | BB36: .. | BC36: .. | BD36: 0.6598 | BE36: .. | BF36: 0.5644 | BG36: 11.5 | BH36: 1e-10 | BI36: 51 | BJ36: 42.25 | BK36: 30 | BL36: 496.0394897 | BM36: 11.01 | BN36: 645.73 | BO36: 164.9 | BP36: 2533.1 | BQ36: 1761 | BR36: 188.5 | BS36: 35.23 | BT36: 83.5 | BU36: 1.015 | BV36: .. | BW36: 163.42 | BX36: .. | BY36: .. | BZ36: .. | CA36: .. | CB36: .. | CC36: .. | CD36: .. | CE36: 66.96
A37: 1962M06 | B37: 1.52 | C37: .. | D37: 1.52 | E37: .. | F37: .. | G37: .. | H37: 0.16 | I37: 0.4047739964 | J37: .. | K37: 3.867224079 | L37: 0.4729 | M37: 0.8047 | N37: 0.6723936 | O37: 0.973 | P37: 0.8610009 | Q37: 1.104601 | R37: 0.9533996 | S37: 239.5 | T37: .. | U37: .. | V37: 264.59 | W37: 216.33 | X37: .. | Y37: 102.24 | Z37: 215 | AA37: 89.4 | AB37: .. | AC37: .. | AD37: 22.83210596 | AE37: 49.6 | AF37: 47.18 | AG37: 144.11 | AH37: .. | AI37: .. | AJ37: .. | AK37: .. | AL37: 64.3 | AM37: .. | AN37: 0.1239 | AO37: 0.1038 | AP37: 0.7893 | AQ37: 0.3193753236 | AR37: .. | AS37: 2.2707586 | AT37: 0.126324726 | AU37: 0.12786796 | AV37: 0.0562 | AW37: 1404.9 | AX37: .. | AY37: 36.39 | AZ37: .. | BA37: 160.0609688 | BB37: .. | BC37: .. | BD37: 0.6572 | BE37: .. | BF37: 0.5401 | BG37: 11.5 | BH37: 1e-10 | BI37: 51 | BJ37: 42.25 | BK37: 30 | BL37: 496.0394897 | BM37: 11.01 | BN37: 645.51 | BO37: 159 | BP37: 2414.1 | BQ37: 1761 | BR37: 184.7 | BS37: 35.23 | BT37: 83.5 | BU37: 1.0227 | BV37: .. | BW37: 156.53 | BX37: .. | BY37: .. | BZ37: .. | CA37: .. | CB37: .. | CC37: .. | CD37: .. | CE37: 67.3
A38: 1962M07 | B38: 1.52 | C38: .. | D38: 1.52 | E38: .. | F38: .. | G38: .. | H38: 0.16 | I38: 0.4047739964 | J38: .. | K38: 3.867224079 | L38: 0.461 | M38: 0.8131 | N38: 0.6765823 | O38: 0.973 | P38: 0.8610009 | Q38: 1.104601 | R38: 0.9533996 | S38: 240.3 | T38: .. | U38: .. | V38: 266.76 | W38: 212.75 | X38: .. | Y38: 100.86 | Z38: 198 | AA38: 91.7 | AB38: .. | AC38: .. | AD38: 22.92273673 | AE38: 48.82 | AF38: 44.34 | AG38: 144.22 | AH38: .. | AI38: .. | AJ38: .. | AK38: .. | AL38: 65.4 | AM38: .. | AN38: 0.11508 | AO38: 0.108 | AP38: 0.7562 | AQ38: 0.32026979 | AR38: .. | AS38: 2.2707586 | AT38: 0.126324726 | AU38: 0.12786796 | AV38: 0.0621 | AW38: 1404.9 | AX38: .. | AY38: 36.39 | AZ38: .. | BA38: 160.0609688 | BB38: .. | BC38: .. | BD38: 0.649 | BE38: .. | BF38: 0.5467 | BG38: 11.5 | BH38: 1e-10 | BI38: 51 | BJ38: 42.25 | BK38: 30 | BL38: 496.0394897 | BM38: 11.01 | BN38: 645.51 | BO38: 148.4 | BP38: 2376.6 | BQ38: 1761 | BR38: 182.1 | BS38: 35.23 | BT38: 83.5 | BU38: 1.0355 | BV38: .. | BW38: 159.56 | BX38: .. | BY38: .. | BZ38: .. | CA38: .. | CB38: .. | CC38: .. | CD38: .. | CE38: 66.62
A39: 1962M08 | B39: 1.52 | C39: .. | D39: 1.52 | E39: .. | F39: .. | G39: .. | H39: 0.16 | I39: 0.4047739964 | J39: .. | K39: 3.867224079 | L39: 0.4588 | M39: 0.819 | N39: 0.6845187 | O39: 0.973 | P39: 0.8610009 | Q39: 1.104601 | R39: 0.9533996 | S39: 244.7 | T39: .. | U39: .. | V39: 265.1 | W39: 209.16 | X39: .. | Y39: 95.35 | Z39: 198 | AA39: 94 | AB39: .. | AC39: .. | AD39: 22.87706754 | AE39: 47.24 | AF39: 42.55 | AG39: 142.92 | AH39: .. | AI39: .. | AJ39: .. | AK39: .. | AL39: 66.51 | AM39: .. | AN39: 0.1151 | AO39: 0.108 | AP39: 0.7452 | AQ39: 0.3211581218 | AR39: .. | AS39: 2.3809896 | AT39: 0.126324726 | AU39: 0.13007258 | AV39: 0.0646 | AW39: 1404.9 | AX39: .. | AY39: 36.39 | AZ39: .. | BA39: 160.0609688 | BB39: .. | BC39: .. | BD39: 0.6387 | BE39: .. | BF39: 0.5313 | BG39: 11.5 | BH39: 1e-10 | BI39: 51 | BJ39: 42.25 | BK39: 30 | BL39: 496.0394897 | BM39: 11.01 | BN39: 645.51 | BO39: 140.7 | BP39: 2350.1 | BQ39: 1761 | BR39: 178.1 | BS39: 35.23 | BT39: 83.5 | BU39: 1.083 | BV39: .. | BW39: 160.39 | BX39: .. | BY39: .. | BZ39: .. | CA39: .. | CB39: .. | CC39: .. | CD39: .. | CE39: 66.96
A40: 1962M09 | B40: 1.52 | C40: .. | D40: 1.52 | E40: .. | F40: .. | G40: .. | H40: 0.16 | I40: 0.4047739964 | J40: .. | K40: 3.867224079 | L40: 0.45 | M40: 0.8256 | N40: 0.6946597 | O40: 0.973 | P40: 0.8610009 | Q40: 1.104601 | R40: 0.9533996 | S40: 246.6 | T40: .. | U40: .. | V40: 268.69 | W40: 205.3 | X40: .. | Y40: 95.35 | Z40: 198 | AA40: 102 | AB40: .. | AC40: .. | AD40: 22.8642603 | AE40: 47.64 | AF40: 42.55 | AG40: 140.64 | AH40: .. | AI40: .. | AJ40: .. | AK40: .. | AL40: 65.77 | AM40: .. | AN40: 0.119 | AO40: 0.108 | AP40: 0.8003 | AQ40: 0.322833288 | AR40: .. | AS40: 2.535313 | AT40: 0.126324726 | AU40: 0.12786796 | AV40: 0.0626 | AW40: 1404.9 | AX40: .. | AY40: 36.39 | AZ40: .. | BA40: 160.0609688 | BB40: .. | BC40: .. | BD40: 0.627 | BE40: .. | BF40: 0.5401 | BG40: 11.5 | BH40: 1e-10 | BI40: 51 | BJ40: 42.25 | BK40: 30 | BL40: 496.0394897 | BM40: 11.01 | BN40: 645.51 | BO40: 143.1 | BP40: 2350.1 | BQ40: 1761 | BR40: 176.6 | BS40: 35.23 | BT40: 83.5 | BU40: 1.1546 | BV40: .. | BW40: 161.49 | BX40: .. | BY40: .. | BZ40: .. | CA40: .. | CB40: .. | CC40: .. | CD40: .. | CE40: 67.64
A41: 1962M10 | B41: 1.52 | C41: .. | D41: 1.52 | E41: .. | F41: .. | G41: .. | H41: 0.16 | I41: 0.4047739964 | J41: .. | K41: 3.867224079 | L41: 0.4365 | M41: 0.8109 | N41: 0.6946597 | O41: 0.973 | P41: 0.8610009 | Q41: 1.104601 | R41: 0.9533996 | S41: 253.5 | T41: .. | U41: .. | V41: 251.6 | W41: 196.76 | X41: .. | Y41: 97 | Z41: 212 | AA41: 92.8 | AB41: .. | AC41: .. | AD41: 22.66588607 | AE41: 47.64 | AF41: 42.77 | AG41: 142.95 | AH41: .. | AI41: .. | AJ41: .. | AK41: .. | AL41: 64.3 | AM41: .. | AN41: 0.1239 | AO41: 0.108 | AP41: 0.6768 | AQ41: 0.3220819889 | AR41: .. | AS41: 2.4912206 | AT41: 0.126324726 | AU41: 0.13007258 | AV41: 0.0666 | AW41: 1404.9 | AX41: .. | AY41: 36.39 | AZ41: .. | BA41: 160.0609688 | BB41: .. | BC41: .. | BD41: 0.6266 | BE41: .. | BF41: 0.5688 | BG41: 11.5 | BH41: 1e-10 | BI41: 51 | BJ41: 42.25 | BK41: 30 | BL41: 496.0394897 | BM41: 11.01 | BN41: 645.95 | BO41: 146.2 | BP41: 2358.9 | BQ41: 1761 | BR41: 181.9 | BS41: 35.23 | BT41: 83.5 | BU41: 1.206 | BV41: .. | BW41: 165.35 | BX41: .. | BY41: .. | BZ41: .. | CA41: .. | CB41: .. | CC41: .. | CD41: .. | CE41: 67.3
A42: 1962M11 | B42: 1.52 | C42: .. | D42: 1.52 | E42: .. | F42: .. | G42: .. | H42: 0.16 | I42: 0.4047739964 | J42: .. | K42: 3.867224079 | L42: 0.4383 | M42: 0.8124 | N42: 0.6926757 | O42: 0.973 | P42: 0.8610009 | Q42: 1.104601 | R42: 0.9533996 | S42: 257.4 | T42: .. | U42: .. | V42: 251.05 | W42: 208.06 | X42: .. | Y42: 100.59 | Z42: 220 | AA42: 94 | AB42: .. | AC42: .. | AD42: 23.5370409 | AE42: 48.42 | AF42: 43.43 | AG42: 142.5 | AH42: .. | AI42: .. | AJ42: .. | AK42: .. | AL42: 68.71 | AM42: .. | AN42: 0.1499 | AO42: 0.1446 | AP42: 0.5886 | AQ42: 0.3228107563 | AR42: .. | AS42: 2.3809896 | AT42: 0.126324726 | AU42: 0.12786796 | AV42: 0.0754 | AW42: 1404.9 | AX42: .. | AY42: 36.39 | AZ42: .. | BA42: 160.0609688 | BB42: .. | BC42: .. | BD42: 0.6345 | BE42: .. | BF42: 0.5776 | BG42: 11.5 | BH42: 1e-10 | BI42: 51 | BJ42: 42.25 | BK42: 30 | BL42: 496.0394897 | BM42: 11.01 | BN42: 645.51 | BO42: 149.7 | BP42: 2407.4 | BQ42: 1761 | BR42: 188.5 | BS42: 35.23 | BT42: 83.5 | BU42: 1.1917 | BV42: .. | BW42: 170.31 | BX42: .. | BY42: .. | BZ42: .. | CA42: .. | CB42: .. | CC42: .. | CD42: .. | CE42: 66.96
A43: 1962M12 | B43: 1.52 | C43: .. | D43: 1.52 | E43: .. | F43: .. | G43: .. | H43: 0.16 | I43: 0.4047739964 | J43: .. | K43: 3.867224079 | L43: 0.4533 | M43: 0.8179 | N43: 0.7169259 | O43: 0.973 | P43: 0.8610009 | Q43: 1.104601 | R43: 0.9533996 | S43: 272.3 | T43: .. | U43: .. | V43: 254.36 | W43: 210.82 | X43: .. | Y43: 102.24 | Z43: 215 | AA43: 94 | AB43: .. | AC43: .. | AD43: 23.85507759 | AE43: 51.18 | AF43: 45.19 | AG43: 121.07 | AH43: .. | AI43: .. | AJ43: .. | AK43: .. | AL43: 67.61 | AM43: .. | AN43: 0.131 | AO43: 0.1003 | AP43: 0.6019 | AQ43: 0.3233635221 | AR43: .. | AS43: 2.2707586 | AT43: 0.126324726 | AU43: 0.13007258 | AV43: 0.0882 | AW43: 1404.9 | AX43: .. | AY43: 36.39 | AZ43: .. | BA43: 160.0609688 | BB43: .. | BC43: .. | BD43: 0.653 | BE43: .. | BF43: 0.582 | BG43: 11.5 | BH43: 1e-10 | BI43: 51 | BJ43: 42.25 | BK43: 30 | BL43: 496.0394897 | BM43: 11.01 | BN43: 645.73 | BO43: 152.8 | BP43: 2365.6 | BQ43: 1761 | BR43: 184.7 | BS43: 35.23 | BT43: 83.5 | BU43: 1.1987 | BV43: .. | BW43: 182.16 | BX43: .. | BY43: .. | BZ43: .. | CA43: .. | CB43: .. | CC43: .. | CD43: .. | CE43: 66.28
A44: 1963M01 | B44: 1.5 | C44: .. | D44: 1.5 | E44: .. | F44: .. | G44: .. | H44: 0.16 | I44: 0.3913511379 | J44: .. | K44: 3.80341218 | L44: 0.4991 | M44: 0.8267 | N44: 0.6521116 | O44: 0.9529 | P44: 0.8148008 | Q44: 1.083601 | R44: 0.9603996 | S44: 278.9 | T44: .. | U44: .. | V44: 261.25 | W44: 217.71 | X44: .. | Y44: 107.47 | Z44: 223 | AA44: 92.3 | AB44: .. | AC44: .. | AD44: 24.08490904 | AE44: 52.75 | AF44: 46.52 | AG44: 121.77 | AH44: .. | AI44: .. | AJ44: .. | AK44: .. | AL44: 67.24 | AM44: .. | AN44: 0.131 | AO44: 0.0801 | AP44: 0.571 | AQ44: 0.3236646198 | AR44: .. | AS44: 2.2928048 | AT44: 0.12676565 | AU44: 0.13448182 | AV44: 0.1157 | AW44: 1343.61 | AX44: .. | AY44: 36.67 | AZ44: .. | BA44: 160.7248476 | BB44: .. | BC44: .. | BD44: 0.6581 | BE44: .. | BF44: 0.5732 | BG44: 11.5 | BH44: 1e-10 | BI44: 52 | BJ44: 42.25 | BK44: 30 | BL44: 496.0394897 | BM44: 11.02 | BN44: 645.51 | BO44: 149.4 | BP44: 2350.1 | BQ44: 1741 | BR44: 186.3 | BS44: 35.09 | BT44: 83.5 | BU44: 1.2438 | BV44: .. | BW44: 184.09 | BX44: .. | BY44: .. | BZ44: .. | CA44: .. | CB44: .. | CC44: .. | CD44: .. | CE44: 66.62
A45: 1963M02 | B45: 1.5 | C45: .. | D45: 1.5 | E45: .. | F45: .. | G45: .. | H45: 0.16 | I45: 0.3913511379 | J45: .. | K45: 3.80341218 | L45: 0.5439 | M45: 0.8031 | N45: 0.6137521 | O45: 0.9529 | P45: 0.8148008 | Q45: 1.083601 | R45: 0.9603996 | S45: 272.5 | T45: .. | U45: .. | V45: 264.83 | W45: 217.71 | X45: .. | Y45: 109.96 | Z45: 231 | AA45: 92.3 | AB45: .. | AC45: .. | AD45: 24.3687747 | AE45: 53.15 | AF45: 47.18 | AG45: 123.35 | AH45: .. | AI45: .. | AJ45: .. | AK45: .. | AL45: 68.34 | AM45: .. | AN45: 0.131 | AO45: 0.0806 | AP45: 0.5556 | AQ45: 0.3244877545 | AR45: .. | AS45: 2.2928048 | AT45: 0.12676565 | AU45: 0.13668644 | AV45: 0.1305 | AW45: 1343.61 | AX45: .. | AY45: 36.67 | AZ45: .. | BA45: 160.7248476 | BB45: .. | BC45: .. | BD45: 0.6546 | BE45: .. | BF45: 0.5644 | BG45: 11.5 | BH45: 1e-10 | BI45: 52 | BJ45: 42.25 | BK45: 30 | BL45: 496.0394897 | BM45: 11.02 | BN45: 645.51 | BO45: 150.6 | BP45: 2350.1 | BQ45: 1742 | BR45: 191.6 | BS45: 35.09 | BT45: 83.5 | BU45: 1.2564 | BV45: .. | BW45: 173.34 | BX45: .. | BY45: .. | BZ45: .. | CA45: .. | CB45: .. | CC45: .. | CD45: .. | CE45: 66.62
A46: 1963M03 | B46: 1.5 | C46: .. | D46: 1.5 | E46: .. | F46: .. | G46: .. | H46: 0.16 | I46: 0.3913511379 | J46: .. | K46: 3.80341218 | L46: 0.5318 | M46: 0.8109 | N46: 0.6157362 | O46: 0.9529 | P46: 0.8148008 | Q46: 1.083601 | R46: 0.9603996 | S46: 272.5 | T46: .. | U46: .. | V46: 264.28 | W46: 217.71 | X46: .. | Y46: 109.13 | Z46: 229 | AA46: 90.1 | AB46: .. | AC46: .. | AD46: 24.4633609 | AE46: 52.36 | AF46: 47.18 | AG46: 123.28 | AH46: .. | AI46: .. | AJ46: .. | AK46: .. | AL46: 69.45 | AM46: .. | AN46: 0.131 | AO46: 0.0847 | AP46: 0.5622 | AQ46: 0.3249776759 | AR46: .. | AS46: 2.2928048 | AT46: 0.12676565 | AU46: 0.14109568 | AV46: 0.1431 | AW46: 1343.61 | AX46: .. | AY46: 36.94 | AZ46: .. | BA46: 161.3628116 | BB46: .. | BC46: .. | BD46: 0.6495 | BE46: .. | BF46: 0.5445 | BG46: 11.5 | BH46: 1e-10 | BI46: 52 | BJ46: 42.25 | BK46: 30 | BL46: 496.0394897 | BM46: 11.02 | BN46: 645.51 | BO46: 153.7 | BP46: 2358.9 | BQ46: 1742 | BR46: 197.5 | BS46: 35.09 | BT46: 83.5 | BU46: 1.2714 | BV46: .. | BW46: 176.09 | BX46: .. | BY46: .. | BZ46: .. | CA46: .. | CB46: .. | CC46: .. | CD46: .. | CE46: 66.62
A47: 1963M04 | B47: 1.5 | C47: .. | D47: 1.5 | E47: .. | F47: .. | G47: .. | H47: 0.16 | I47: 0.3913511379 | J47: .. | K47: 3.80341218 | L47: 0.5631 | M47: 0.808 | N47: 0.6157362 | O47: 0.9529 | P47: 0.8148008 | Q47: 1.083601 | R47: 0.9603996 | S47: 278.3 | T47: .. | U47: .. | V47: 261.52 | W47: 217.71 | X47: .. | Y47: 107.2 | Z47: 229 | AA47: 86.8 | AB47: .. | AC47: .. | AD47: 24.67675011 | AE47: 51.97 | AF47: 46.3 | AG47: 122.38 | AH47: .. | AI47: .. | AJ47: .. | AK47: .. | AL47: 70.92 | AM47: .. | AN47: 0.131 | AO47: 0.0969 | AP47: 0.6504 | AQ47: 0.3252848807 | AR47: .. | AS47: 2.2928048 | AT47: 0.12676565 | AU47: 0.16314188 | AV47: 0.1647 | AW47: 1343.61 | AX47: .. | AY47: 36.94 | AZ47: .. | BA47: 161.3628116 | BB47: .. | BC47: .. | BD47: 0.6422 | BE47: .. | BF47: 0.549 | BG47: 11.5 | BH47: 1e-10 | BI47: 52 | BJ47: 42.25 | BK47: 30 | BL47: 496.0394897 | BM47: 11.02 | BN47: 645.73 | BO47: 159.4 | BP47: 2427.3 | BQ47: 1741 | BR47: 204.4 | BS47: 35.09 | BT47: 78.5 | BU47: 1.2729 | BV47: .. | BW47: 179.12 | BX47: .. | BY47: .. | BZ47: .. | CA47: .. | CB47: .. | CC47: .. | CD47: .. | CE47: 66.62
A48: 1963M05 | B48: 1.5 | C48: .. | D48: 1.5 | E48: .. | F48: .. | G48: .. | H48: 0.16 | I48: 0.3913511379 | J48: .. | K48: 3.80341218 | L48: 0.6076 | M48: 0.797 | N48: 0.6117679 | O48: 0.9529 | P48: 0.8148008 | Q48: 1.083601 | R48: 0.9603996 | S48: 279.7 | T48: .. | U48: .. | V48: 268.69 | W48: 217.71 | X48: .. | Y48: 109.13 | Z48: 231 | AA48: 86.8 | AB48: .. | AC48: .. | AD48: 24.2440757 | AE48: 52.36 | AF48: 46.52 | AG48: 123.17 | AH48: .. | AI48: .. | AJ48: .. | AK48: .. | AL48: 67.61 | AM48: .. | AN48: 0.131 | AO48: 0.1143 | AP48: 0.69 | AQ48: 0.326112136 | AR48: .. | AS48: 2.2266662 | AT48: 0.12676565 | AU48: 0.22487124 | AV48: 0.2191 | AW48: 1343.61 | AX48: .. | AY48: 37.78 | AZ48: .. | BA48: 163.3339955 | BB48: .. | BC48: .. | BD48: 0.6391 | BE48: .. | BF48: 0.5401 | BG48: 11.5 | BH48: 1e-10 | BI48: 52 | BJ48: 42.25 | BK48: 30 | BL48: 496.0394897 | BM48: 11.02 | BN48: 645.51 | BO48: 167.1 | BP48: 2495.6 | BQ48: 1742 | BR48: 209.4 | BS48: 35.09 | BT48: 78.5 | BU48: 1.2787 | BV48: .. | BW48: 181.05 | BX48: .. | BY48: .. | BZ48: .. | CA48: .. | CB48: .. | CC48: .. | CD48: .. | CE48: 66.28
A49: 1963M06 | B49: 1.5 | C49: .. | D49: 1.5 | E49: .. | F49: .. | G49: .. | H49: 0.16 | I49: 0.3913511379 | J49: .. | K49: 3.80341218 | L49: 0.5622 | M49: 0.7992 | N49: 0.6117679 | O49: 0.9529 | P49: 0.8148008 | Q49: 1.083601 | R49: 0.9603996 | S49: 282.5 | T49: .. | U49: .. | V49: 274.47 | W49: 219.91 | X49: .. | Y49: 108.3 | Z49: 231 | AA49: 90.1 | AB49: .. | AC49: .. | AD49: 23.1730495 | AE49: 55.51 | AF49: 48.28 | AG49: 128.13 | AH49: .. | AI49: .. | AJ49: .. | AK49: .. | AL49: 58.42 | AM49: .. | AN49: 0.131 | AO49: 0.1204 | AP49: 0.69 | AQ49: 0.3274634089 | AR49: .. | AS49: 2.20462 | AT49: 0.12676565 | AU49: 0.17857422 | AV49: 0.2154 | AW49: 1343.61 | AX49: .. | AY49: 37.5 | AZ49: .. | BA49: 162.6791954 | BB49: .. | BC49: .. | BD49: 0.6389 | BE49: .. | BF49: 0.5313 | BG49: 11.5 | BH49: 1e-10 | BI49: 52 | BJ49: 42.25 | BK49: 30 | BL49: 496.0394897 | BM49: 11.02 | BN49: 645.73 | BO49: 179 | BP49: 2500 | BQ49: 1742 | BR49: 209.2 | BS49: 35.09 | BT49: 78.5 | BU49: 1.2768 | BV49: .. | BW49: 179.12 | BX49: .. | BY49: .. | BZ49: .. | CA49: .. | CB49: .. | CC49: .. | CD49: .. | CE49: 66.62
A50: 1963M07 | B50: 1.5 | C50: .. | D50: 1.5 | E50: .. | F50: .. | G50: .. | H50: 0.16 | I50: 0.3913511379 | J50: .. | K50: 3.80341218 | L50: 0.5249 | M50: 0.8064 | N50: 0.6157362 | O50: 0.9529 | P50: 0.8148008 | Q50: 1.083601 | R50: 0.9603996 | S50: 286.3 | T50: .. | U50: .. | V50: 274.47 | W50: 221.84 | X50: .. | Y50: 108.58 | Z50: 229 | AA50: 91 | AB50: .. | AC50: .. | AD50: 23.24643674 | AE50: 56.69 | AF50: 48.38 | AG50: 130.63 | AH50: .. | AI50: .. | AJ50: .. | AK50: .. | AL50: 57.69 | AM50: .. | AN50: 0.131 | AO50: 0.094 | AP50: 0.7562 | AQ50: 0.328435723 | AR50: .. | AS50: 2.0282504 | AT50: 0.12676565 | AU50: 0.16314188 | AV50: 0.1975 | AW50: 1343.61 | AX50: .. | AY50: 36.11 | AZ50: .. | BA50: 159.3947361 | BB50: .. | BC50: .. | BD50: 0.6385 | BE50: .. | BF50: 0.5203 | BG50: 11.5 | BH50: 1e-10 | BI50: 52 | BJ50: 42.25 | BK50: 30 | BL50: 496.0394897 | BM50: 11.02 | BN50: 645.51 | BO50: 179.5 | BP50: 2482.4 | BQ50: 1741 | BR50: 204.8 | BS50: 35.09 | BT50: 78.5 | BU50: 1.2899 | BV50: .. | BW50: 178.02 | BX50: .. | BY50: .. | BZ50: .. | CA50: .. | CB50: .. | CC50: .. | CD50: .. | CE50: 66.28
A51: 1963M08 | B51: 1.5 | C51: .. | D51: 1.5 | E51: .. | F51: .. | G51: .. | H51: 0.16 | I51: 0.3913511379 | J51: .. | K51: 3.80341218 | L51: 0.521 | M51: 0.8047 | N51: 0.6117679 | O51: 0.9529 | P51: 0.8148008 | Q51: 1.083601 | R51: 0.9603996 | S51: 291.8 | T51: .. | U51: .. | V51: 264.55 | W51: 224.6 | X51: .. | Y51: 105.82 | Z51: 207 | AA51: 91 | AB51: .. | AC51: .. | AD51: 23.25004988 | AE51: 55.51 | AF51: 47.84 | AG51: 129.86 | AH51: .. | AI51: .. | AJ51: .. | AK51: .. | AL51: 58.42 | AM51: .. | AN51: 0.168 | AO51: 0.094 | AP51: 0.8333 | AQ51: 0.3292709915 | AR51: .. | AS51: 1.7196036 | AT51: 0.12676565 | AU51: 0.1322772 | AV51: 0.1413 | AW51: 1343.61 | AX51: .. | AY51: 34.72 | AZ51: .. | BA51: 156.0515828 | BB51: .. | BC51: .. | BD51: 0.6433 | BE51: .. | BF51: 0.4916 | BG51: 11.5 | BH51: 1e-10 | BI51: 52 | BJ51: 42.25 | BK51: 30 | BL51: 496.0394897 | BM51: 11.02 | BN51: 645.51 | BO51: 184.7 | BP51: 2495.6 | BQ51: 1742 | BR51: 210.3 | BS51: 35.09 | BT51: 78.95 | BU51: 1.2878 | BV51: .. | BW51: 182.98 | BX51: .. | BY51: .. | BZ51: .. | CA51: .. | CB51: .. | CC51: .. | CD51: .. | CE51: 65.6
A52: 1963M09 | B52: 1.5 | C52: .. | D52: 1.5 | E52: .. | F52: .. | G52: .. | H52: 0.16 | I52: 0.3913511379 | J52: .. | K52: 3.80341218 | L52: 0.5509 | M52: 0.802 | N52: 0.6238931 | O52: 0.9529 | P52: 0.8148008 | Q52: 1.083601 | R52: 0.9603996 | S52: 297.6 | T52: .. | U52: .. | V52: 265.66 | W52: 224.6 | X52: .. | Y52: 108.58 | Z52: 204 | AA52: 91 | AB52: .. | AC52: .. | AD52: 23.74628066 | AE52: 55.9 | AF52: 48.94 | AG52: 130.29 | AH52: .. | AI52: .. | AJ52: .. | AK52: .. | AL52: 60.63 | AM52: .. | AN52: 0.1561 | AO52: 0.094 | AP52: 0.6967 | AQ52: 0.3301083841 | AR52: .. | AS52: 1.6755112 | AT52: 0.12676565 | AU52: 0.14991416 | AV52: 0.1607 | AW52: 1343.61 | AX52: .. | AY52: 33.89 | AZ52: .. | BA52: 154.0259082 | BB52: .. | BC52: .. | BD52: 0.6499 | BE52: .. | BF52: 0.4806 | BG52: 11.5 | BH52: 1e-10 | BI52: 52 | BJ52: 42.25 | BK52: 30 | BL52: 496.0394897 | BM52: 11.02 | BN52: 645.51 | BO52: 187 | BP52: 2572.8 | BQ52: 1742 | BR52: 211.2 | BS52: 35.09 | BT52: 80.75 | BU52: 1.2926 | BV52: .. | BW52: 184.91 | BX52: .. | BY52: .. | BZ52: .. | CA52: .. | CB52: .. | CC52: .. | CD52: .. | CE52: 65.6
A53: 1963M10 | B53: 1.5 | C53: .. | D53: 1.5 | E53: .. | F53: .. | G53: .. | H53: 0.16 | I53: 0.3913511379 | J53: .. | K53: 3.80341218 | L53: 0.5807 | M53: 0.8042 | N53: 0.6258772 | O53: 0.9529 | P53: 0.8148008 | Q53: 1.083601 | R53: 0.9603996 | S53: 303.7 | T53: .. | U53: .. | V53: 275.58 | W53: 227.35 | X53: .. | Y53: 116.84 | Z53: 234 | AA53: 91 | AB53: .. | AC53: .. | AD53: 24.13976486 | AE53: 53.15 | AF53: 48.98 | AG53: 128.72 | AH53: .. | AI53: .. | AJ53: .. | AK53: .. | AL53: 65.04 | AM53: .. | AN53: 0.1759 | AO53: 0.094 | AP53: 0.668 | AQ53: 0.3309479064 | AR53: .. | AS53: 1.5873264 | AT53: 0.12676565 | AU53: 0.19400656 | AV53: 0.2304 | AW53: 1343.61 | AX53: .. | AY53: 32.78 | AZ53: .. | BA53: 151.2808527 | BB53: .. | BC53: .. | BD53: 0.6453 | BE53: .. | BF53: 0.496 | BG53: 11.5 | BH53: 1e-10 | BI53: 52 | BJ53: 42.25 | BK53: 30 | BL53: 507.0625916 | BM53: 11.02 | BN53: 645.51 | BO53: 192 | BP53: 2590.4 | BQ53: 1741 | BR53: 220.9 | BS53: 35.09 | BT53: 80.5 | BU53: 1.293 | BV53: .. | BW53: 195.94 | BX53: .. | BY53: .. | BZ53: .. | CA53: .. | CB53: .. | CC53: .. | CD53: .. | CE53: 68.32
A54: 1963M11 | B54: 1.5 | C54: .. | D54: 1.5 | E54: .. | F54: .. | G54: .. | H54: 0.16 | I54: 0.3913511379 | J54: .. | K54: 3.80341218 | L54: 0.5706 | M54: 0.8069 | N54: 0.6318295 | O54: 0.9529 | P54: 0.8148008 | Q54: 1.083601 | R54: 0.9603996 | S54: 303.4 | T54: .. | U54: .. | V54: 274.47 | W54: 230.11 | X54: .. | Y54: 116.02 | Z54: 223 | AA54: 91 | AB54: .. | AC54: .. | AD54: 24.05495381 | AE54: 52.36 | AF54: 48.98 | AG54: 124.84 | AH54: .. | AI54: .. | AJ54: .. | AK54: .. | AL54: 65.04 | AM54: .. | AN54: 0.153 | AO54: 0.094 | AP54: 0.6327 | AQ54: 0.3317895638 | AR54: .. | AS54: 1.653465 | AT54: 0.12676565 | AU54: 0.19180194 | AV54: 0.2542 | AW54: 1343.61 | AX54: .. | AY54: 32.5 | AZ54: .. | BA54: 150.5816828 | BB54: .. | BC54: .. | BD54: 0.6435 | BE54: .. | BF54: 0.496 | BG54: 11.5 | BH54: 1e-10 | BI54: 52 | BJ54: 42.25 | BK54: 30 | BL54: 507.0625916 | BM54: 11.02 | BN54: 645.73 | BO54: 190.5 | BP54: 2687.4 | BQ54: 1742 | BR54: 231.5 | BS54: 35.09 | BT54: 82.97 | BU54: 1.293 | BV54: .. | BW54: 196.76 | BX54: .. | BY54: .. | BZ54: .. | CA54: .. | CB54: .. | CC54: .. | CD54: .. | CE54: 69.34
A55: 1963M12 | B55: 1.5 | C55: .. | D55: 1.5 | E55: .. | F55: .. | G55: .. | H55: 0.16 | I55: 0.3913511379 | J55: .. | K55: 3.80341218 | L55: 0.5723 | M55: 0.7998 | N55: 0.6521116 | O55: 0.9529 | P55: 0.8148008 | Q55: 1.083601 | R55: 0.9603996 | S55: 288.8 | T55: .. | U55: .. | V55: 272.27 | W55: 231.76 | X55: .. | Y55: 114.09 | Z55: 212 | AA55: 98.8 | AB55: .. | AC55: .. | AD55: 24.28128331 | AE55: 53.54 | AF55: 48.98 | AG55: 121.54 | AH55: .. | AI55: .. | AJ55: .. | AK55: .. | AL55: 65.04 | AM55: .. | AN55: 0.159 | AO55: 0.0811 | AP55: 0.69 | AQ55: 0.3338047968 | AR55: .. | AS55: 1.6975574 | AT55: 0.12676565 | AU55: 0.18077884 | AV55: 0.2262 | AW55: 1343.61 | AX55: .. | AY55: 33.33 | AZ55: .. | BA55: 152.6462714 | BB55: .. | BC55: .. | BD55: 0.6442 | BE55: .. | BF55: 0.4696 | BG55: 11.5 | BH55: 1e-10 | BI55: 52 | BJ55: 42.25 | BK55: 30 | BL55: 507.0625916 | BM55: 11.02 | BN55: 650.14 | BO55: 204.8 | BP55: 2782.2 | BQ55: 1742 | BR55: 261 | BS55: 35.09 | BT55: 83.5 | BU55: 1.293 | BV55: .. | BW55: 192.9 | BX55: .. | BY55: .. | BZ55: .. | CA55: .. | CB55: .. | CC55: .. | CD55: .. | CE55: 69.34
A56: 1964M01 | B56: 1.45 | C56: .. | D56: 1.45 | E56: .. | F56: .. | G56: .. | H56: 0.15 | I56: 0.3841498024 | J56: .. | K56: 3.6477435 | L56: 0.5549 | M56: 0.9259 | N56: 0.7008326 | O56: 0.927 | P56: 0.8190008 | Q56: 1.039501 | R56: 0.9225996 | S56: 286.9 | T56: .. | U56: .. | V56: 269.79 | W56: 232.86 | X56: .. | Y56: 116.84 | Z56: 215 | AA56: 98.8 | AB56: .. | AC56: .. | AD56: 24.39335944 | AE56: 55.12 | AF56: 49.6 | AG56: 124.01 | AH56: .. | AI56: .. | AJ56: .. | AK56: .. | AL56: 64.04 | AM56: .. | AN56: 0.1519 | AO56: 0.0766 | AP56: 0.7297 | AQ56: 0.3346537197 | AR56: .. | AS56: 1.763696 | AT56: 0.12676565 | AU56: 0.19180194 | AV56: 0.231 | AW56: 1488.3 | AX56: .. | AY56: 32.78 | AZ56: .. | BA56: 151.2808527 | BB56: .. | BC56: .. | BD56: 0.6559 | BE56: .. | BF56: 0.4519 | BG56: 12.5 | BH56: 1e-10 | BI56: 53 | BJ56: 60.5 | BK56: 32.5 | BL56: 507.0625916 | BM56: 10.24 | BN56: 655.65 | BO56: 217.6 | BP56: 2872.6 | BQ56: 1741 | BR56: 264.1 | BS56: 35.1 | BT56: 88.27 | BU56: 1.293 | BV56: .. | BW56: 192.9 | BX56: .. | BY56: .. | BZ56: .. | CA56: .. | CB56: .. | CC56: .. | CD56: .. | CE56: 70.02
A57: 1964M02 | B57: 1.45 | C57: .. | D57: 1.45 | E57: .. | F57: .. | G57: .. | H57: 0.15 | I57: 0.3841498024 | J57: .. | K57: 3.6477435 | L57: 0.5077 | M57: 0.9414 | N57: 0.7211145 | O57: 0.927 | P57: 0.8190008 | Q57: 1.039501 | R57: 0.9225996 | S57: 271.4 | T57: .. | U57: .. | V57: 258.49 | W57: 232.59 | X57: .. | Y57: 112.71 | Z57: 209 | AA57: 95.5 | AB57: .. | AC57: .. | AD57: 24.42431181 | AE57: 52.75 | AF57: 49.9 | AG57: 119.06 | AH57: .. | AI57: .. | AJ57: .. | AK57: .. | AL57: 66.14 | AM57: .. | AN57: 0.1601 | AO57: 0.0805 | AP57: 0.7915 | AQ57: 0.3349808471 | AR57: .. | AS57: 1.6975574 | AT57: 0.12676565 | AU57: 0.16314188 | AV57: 0.1991 | AW57: 1488.3 | AX57: .. | AY57: 32.78 | AZ57: .. | BA57: 151.2808527 | BB57: .. | BC57: .. | BD57: 0.6556 | BE57: .. | BF57: 0.4718 | BG57: 12.5 | BH57: 1e-10 | BI57: 53 | BJ57: 60.5 | BK57: 32.5 | BL57: 507.0625916 | BM57: 10.24 | BN57: 693.79 | BO57: 223.1 | BP57: 3060 | BQ57: 1742 | BR57: 270.5 | BS57: 35.1 | BT57: 88.5 | BU57: 1.293 | BV57: .. | BW57: 184.91 | BX57: .. | BY57: .. | BZ57: .. | CA57: .. | CB57: .. | CC57: .. | CD57: .. | CE57: 70.7
A58: 1964M03 | B58: 1.45 | C58: .. | D58: 1.45 | E58: .. | F58: .. | G58: .. | H58: 0.15 | I58: 0.3841498024 | J58: .. | K58: 3.6477435 | L58: 0.5084 | M58: 1.0351 | N58: 0.7797561 | O58: 0.927 | P58: 0.8190008 | Q58: 1.039501 | R58: 0.9225996 | S58: 280.5 | T58: .. | U58: .. | V58: 265.1 | W58: 232.86 | X58: .. | Y58: 110.51 | Z58: 209 | AA58: 94.4 | AB58: .. | AC58: .. | AD58: 24.84060998 | AE58: 54.33 | AF58: 48.98 | AG58: 115.11 | AH58: .. | AI58: .. | AJ58: .. | AK58: .. | AL58: 66.87 | AM58: .. | AN58: 0.1649 | AO58: 0.0871 | AP58: 0.8157 | AQ58: 0.335629326 | AR58: .. | AS58: 1.6314188 | AT58: 0.12676565 | AU58: 0.14770954 | AV58: 0.1612 | AW58: 1488.3 | AX58: .. | AY58: 31.94 | AZ58: .. | BA58: 149.1749784 | BB58: .. | BC58: .. | BD58: 0.6548 | BE58: .. | BF58: 0.496 | BG58: 12.5 | BH58: 1e-10 | BI58: 53 | BJ58: 60.5 | BK58: 32.5 | BL58: 524.6994629 | BM58: 10.24 | BN58: 745.16 | BO58: 223.8 | BP58: 2958.6 | BQ58: 1742 | BR58: 277.1 | BS58: 35.1 | BT58: 88.5 | BU58: 1.293 | BV58: .. | BW58: 187.12 | BX58: .. | BY58: .. | BZ58: .. | CA58: .. | CB58: .. | CC58: .. | CD58: .. | CE58: 70.7
A59: 1964M04 | B59: 1.45 | C59: .. | D59: 1.45 | E59: .. | F59: .. | G59: .. | H59: 0.15 | I59: 0.3841498024 | J59: .. | K59: 3.6477435 | L59: 0.4784 | M59: 1.0042 | N59: 0.8161315 | O59: 0.927 | P59: 0.8190008 | Q59: 1.039501 | R59: 0.9225996 | S59: 280.3 | T59: .. | U59: .. | V59: 273.1 | W59: 232.86 | X59: .. | Y59: 106.65 | Z59: 204 | AA59: 90 | AB59: .. | AC59: .. | AD59: 25.19431727 | AE59: 55.51 | AF59: 48.06 | AG59: 116.89 | AH59: .. | AI59: .. | AJ59: .. | AK59: .. | AL59: 67.61 | AM59: .. | AN59: 0.201 | AO59: 0.0858 | AP59: 0.8289 | AQ59: 0.3357598501 | AR59: .. | AS59: 1.6093726 | AT59: 0.12676565 | AU59: 0.14991416 | AV59: 0.1711 | AW59: 1488.3 | AX59: .. | AY59: 30.56 | AZ59: .. | BA59: 145.6592066 | BB59: .. | BC59: .. | BD59: 0.6521 | BE59: .. | BF59: 0.4982 | BG59: 12.5 | BH59: 1e-10 | BI59: 53 | BJ59: 60.5 | BK59: 32.5 | BL59: 529.1088867 | BM59: 10.24 | BN59: 861.56 | BO59: 226.8 | BP59: 2879.2 | BQ59: 1741 | BR59: 298.7 | BS59: 35.1 | BT59: 88.5 | BU59: 1.293 | BV59: .. | BW59: 189.05 | BX59: .. | BY59: .. | BZ59: .. | CA59: .. | CB59: .. | CC59: .. | CD59: .. | CE59: 70.36
A60: 1964M05 | B60: 1.45 | C60: .. | D60: 1.45 | E60: .. | F60: .. | G60: .. | H60: 0.15 | I60: 0.3841498024 | J60: .. | K60: 3.6477435 | L60: 0.4766 | M60: 1.0203 | N60: 0.8284771 | O60: 0.927 | P60: 0.8190008 | Q60: 1.039501 | R60: 0.9225996 | S60: 282.5 | T60: .. | U60: .. | V60: 292.39 | W60: 232.86 | X60: .. | Y60: 104.72 | Z60: 215 | AA60: 84.5 | AB60: .. | AC60: .. | AD60: 25.61094016 | AE60: 55.9 | AF60: 48.06 | AG60: 117.02 | AH60: .. | AI60: .. | AJ60: .. | AK60: .. | AL60: 69.45 | AM60: .. | AN60: 0.205 | AO60: 0.0792 | AP60: 0.8708 | AQ60: 0.335670426 | AR60: .. | AS60: 1.6314188 | AT60: 0.12676565 | AU60: 0.1322772 | AV60: 0.1545 | AW60: 1488.3 | AX60: .. | AY60: 29.44 | AZ60: .. | BA60: 142.7517846 | BB60: .. | BC60: .. | BD60: 0.6559 | BE60: .. | BF60: 0.496 | BG60: 12.5 | BH60: 1e-10 | BI60: 53 | BJ60: 60.5 | BK60: 32.5 | BL60: 529.1088867 | BM60: 10.24 | BN60: 828.28 | BO60: 243.8 | BP60: 2910.1 | BQ60: 1742 | BR60: 343 | BS60: 35.1 | BT60: 88.5 | BU60: 1.293 | BV60: .. | BW60: 190.97 | BX60: .. | BY60: .. | BZ60: .. | CA60: .. | CB60: .. | CC60: .. | CD60: .. | CE60: 70.02
A61: 1964M06 | B61: 1.45 | C61: .. | D61: 1.45 | E61: .. | F61: .. | G61: .. | H61: 0.15 | I61: 0.3841498024 | J61: .. | K61: 3.6477435 | L61: 0.4954 | M61: 1.0053 | N61: 0.8465545 | O61: 0.927 | P61: 0.8190008 | Q61: 1.039501 | R61: 0.9225996 | S61: 294.9 | T61: .. | U61: .. | V61: 317.19 | W61: 233.96 | X61: .. | Y61: 104.44 | Z61: 212 | AA61: 85.6 | AB61: .. | AC61: .. | AD61: 24.95411839 | AE61: 56.3 | AF61: 47.4 | AG61: 119.18 | AH61: .. | AI61: .. | AJ61: .. | AK61: .. | AL61: 65.04 | AM61: .. | AN61: 0.207 | AO61: 0.0871 | AP61: 0.8554 | AQ61: 0.3366729336 | AR61: .. | AS61: 1.8077884 | AT61: 0.12676565 | AU61: 0.12786796 | AV61: 0.1155 | AW61: 1488.3 | AX61: .. | AY61: 29.44 | AZ61: .. | BA61: 142.7517846 | BB61: .. | BC61: .. | BD61: 0.6594 | BE61: .. | BF61: 0.4894 | BG61: 12.5 | BH61: 1e-10 | BI61: 53 | BJ61: 60.5 | BK61: 32.5 | BL61: 529.1088867 | BM61: 10.24 | BN61: 808.43 | BO61: 246.3 | BP61: 3265 | BQ61: 1742 | BR61: 357.1 | BS61: 35.1 | BT61: 88.5 | BU61: 1.293 | BV61: .. | BW61: 200.9 | BX61: .. | BY61: .. | BZ61: .. | CA61: .. | CB61: .. | CC61: .. | CD61: .. | CE61: 70.02
A62: 1964M07 | B62: 1.45 | C62: .. | D62: 1.45 | E62: .. | F62: .. | G62: .. | H62: 0.15 | I62: 0.3841498024 | J62: .. | K62: 3.6477435 | L62: 0.5077 | M62: 1.0214 | N62: 0.8183361 | O62: 0.927 | P62: 0.8190008 | Q62: 1.039501 | R62: 0.9225996 | S62: 303.7 | T62: .. | U62: .. | V62: 335.1 | W62: 235.34 | X62: .. | Y62: 102.24 | Z62: 209 | AA62: 84.5 | AB62: .. | AC62: .. | AD62: 25.57003687 | AE62: 55.9 | AF62: 47.4 | AG62: 122.61 | AH62: .. | AI62: .. | AJ62: .. | AK62: .. | AL62: 68.71 | AM62: .. | AN62: 0.168 | AO62: 0.084 | AP62: 0.9414 | AQ62: 0.3373052423 | AR62: .. | AS62: 1.8298346 | AT62: 0.12676565 | AU62: 0.12345872 | AV62: 0.1034 | AW62: 1488.3 | AX62: .. | AY62: 29.17 | AZ62: .. | BA62: 142.0433162 | BB62: .. | BC62: .. | BD62: 0.6488 | BE62: .. | BF62: 0.4784 | BG62: 12.5 | BH62: 1e-10 | BI62: 53 | BJ62: 60.5 | BK62: 32.5 | BL62: 529.1088867 | BM62: 10.24 | BN62: 854.95 | BO62: 270.9 | BP62: 3452.4 | BQ62: 1741 | BR62: 385.1 | BS62: 35.1 | BT62: 88.5 | BU62: 1.293 | BV62: .. | BW62: 205.58 | BX62: .. | BY62: .. | BZ62: .. | CA62: .. | CB62: .. | CC62: .. | CD62: .. | CE62: 70.02
A63: 1964M08 | B63: 1.45 | C63: .. | D63: 1.45 | E63: .. | F63: .. | G63: .. | H63: 0.15 | I63: 0.3841498024 | J63: .. | K63: 3.6477435 | L63: 0.4985 | M63: 1.049 | N63: 0.8183361 | O63: 0.927 | P63: 0.8190008 | Q63: 1.039501 | R63: 0.9225996 | S63: 303.1 | T63: .. | U63: .. | V63: 323.53 | W63: 235.62 | X63: .. | Y63: 104.44 | Z63: 223 | AA63: 82.5 | AB63: .. | AC63: .. | AD63: 25.42422699 | AE63: 54.72 | AF63: 47.62 | AG63: 122.92 | AH63: .. | AI63: .. | AJ63: .. | AK63: .. | AL63: 68.71 | AM63: .. | AN63: 0.1561 | AO63: 0.084 | AP63: 0.8995 | AQ63: 0.3377795863 | AR63: .. | AS63: 1.763696 | AT63: 0.12676565 | AU63: 0.12345872 | AV63: 0.0933 | AW63: 1488.3 | AX63: .. | AY63: 29.17 | AZ63: .. | BA63: 142.0433162 | BB63: .. | BC63: .. | BD63: 0.6437 | BE63: .. | BF63: 0.4784 | BG63: 12.5 | BH63: 1e-10 | BI63: 53 | BJ63: 60.5 | BK63: 32.5 | BL63: 529.1088867 | BM63: 10.24 | BN63: 999.33 | BO63: 300.9 | BP63: 3512 | BQ63: 1742 | BR63: 345.2 | BS63: 35.1 | BT63: 88.5 | BU63: 1.293 | BV63: .. | BW63: 194.01 | BX63: .. | BY63: .. | BZ63: .. | CA63: .. | CB63: .. | CC63: .. | CD63: .. | CE63: 69.68
A64: 1964M09 | B64: 1.45 | C64: .. | D64: 1.45 | E64: .. | F64: .. | G64: .. | H64: 0.15 | I64: 0.3841498024 | J64: .. | K64: 3.6477435 | L64: 0.5104 | M64: 1.0373 | N64: 0.7898972 | O64: 0.927 | P64: 0.8190008 | Q64: 1.039501 | R64: 0.9225996 | S64: 302.6 | T64: .. | U64: .. | V64: 346.68 | W64: 237.55 | X64: .. | Y64: 109.96 | Z64: 243 | AA64: 92.2 | AB64: .. | AC64: .. | AD64: 25.593646 | AE64: 55.12 | AF64: 48.5 | AG64: 123.44 | AH64: .. | AI64: .. | AJ64: .. | AK64: .. | AL64: 69.08 | AM64: .. | AN64: 0.1759 | AO64: 0.084 | AP64: 0.8179 | AQ64: 0.3402139749 | AR64: .. | AS64: 1.8959732 | AT64: 0.12676565 | AU64: 0.12345872 | AV64: 0.0783 | AW64: 1488.3 | AX64: .. | AY64: 28.89 | AZ64: .. | BA64: 141.3054146 | BB64: .. | BC64: .. | BD64: 0.6482 | BE64: .. | BF64: 0.4982 | BG64: 12.5 | BH64: 1e-10 | BI64: 53 | BJ64: 60.5 | BK64: 32.5 | BL64: 529.1088867 | BM64: 10.24 | BN64: 1162.05 | BO64: 300.9 | BP64: 3933 | BQ64: 1742 | BR64: 355.1 | BS64: 35.1 | BT64: 88.5 | BU64: 1.293 | BV64: .. | BW64: 191.8 | BX64: .. | BY64: .. | BZ64: .. | CA64: .. | CB64: .. | CC64: .. | CD64: .. | CE64: 69.68
A65: 1964M10 | B65: 1.45 | C65: .. | D65: 1.45 | E65: .. | F65: .. | G65: .. | H65: 0.15 | I65: 0.3841498024 | J65: .. | K65: 3.6477435 | L65: 0.509 | M65: 1.0379 | N65: 0.7738038 | O65: 0.927 | P65: 0.8190008 | Q65: 1.039501 | R65: 0.9225996 | S65: 311.4 | T65: .. | U65: .. | V65: 370.65 | W65: 250.77 | X65: .. | Y65: 114.09 | Z65: 270 | AA65: 88.9 | AB65: .. | AC65: .. | AD65: 25.19559289 | AE65: 52.8 | AF65: 47.4 | AG65: 121.48 | AH65: .. | AI65: .. | AJ65: .. | AK65: .. | AL65: 68.71 | AM65: .. | AN65: 0.164 | AO65: 0.084 | AP65: 0.8444 | AQ65: 0.3405104854 | AR65: .. | AS65: 1.9180194 | AT65: 0.12676565 | AU65: 0.12566334 | AV65: 0.0769 | AW65: 1488.3 | AX65: .. | AY65: 28.89 | AZ65: .. | BA65: 141.3054146 | BB65: .. | BC65: .. | BD65: 0.646 | BE65: .. | BF65: 0.5181 | BG65: 12.5 | BH65: 1e-10 | BI65: 53 | BJ65: 60.5 | BK65: 32.5 | BL65: 529.1088867 | BM65: 10.24 | BN65: 1358.27 | BO65: 331.8 | BP65: 4371.8 | BQ65: 1741 | BR65: 334.4 | BS65: 35.1 | BT65: 88.5 | BU65: 1.293 | BV65: .. | BW65: 194.83 | BX65: .. | BY65: .. | BZ65: .. | CA65: .. | CB65: .. | CC65: .. | CD65: .. | CE65: 69.34
A66: 1964M11 | B66: 1.45 | C66: .. | D66: 1.45 | E66: .. | F66: .. | G66: .. | H66: 0.15 | I66: 0.3841498024 | J66: .. | K66: 3.6477435 | L66: 0.5201 | M66: 1.034 | N66: 0.787913 | O66: 0.927 | P66: 0.8190008 | Q66: 1.039501 | R66: 0.9225996 | S66: 314.4 | T66: .. | U66: .. | V66: 359.63 | W66: 254.91 | X66: .. | Y66: 117.67 | Z66: 270 | AA66: 84.5 | AB66: .. | AC66: .. | AD66: 25.11402178 | AE66: 52.8 | AF66: 47.18 | AG66: 120.97 | AH66: .. | AI66: .. | AJ66: .. | AK66: .. | AL66: 67.98 | AM66: .. | AN66: 0.1649 | AO66: 0.084 | AP66: 0.8356 | AQ66: 0.3405987999 | AR66: .. | AS66: 2.094389 | AT66: 0.12676565 | AU66: 0.12345872 | AV66: 0.0725 | AW66: 1488.3 | AX66: .. | AY66: 29.44 | AZ66: .. | BA66: 142.7517846 | BB66: .. | BC66: .. | BD66: 0.6413 | BE66: .. | BF66: 0.5093 | BG66: 12.5 | BH66: 1e-10 | BI66: 53 | BJ66: 60.5 | BK66: 32.5 | BL66: 529.1088867 | BM66: 10.24 | BN66: 1400.37 | BO66: 365.1 | BP66: 4105 | BQ66: 1742 | BR66: 344.6 | BS66: 35.1 | BT66: 88.5 | BU66: 1.293 | BV66: .. | BW66: 197.86 | BX66: .. | BY66: .. | BZ66: .. | CA66: .. | CB66: .. | CC66: .. | CD66: .. | CE66: 69.34
A67: 1964M12 | B67: 1.45 | C67: .. | D67: 1.45 | E67: .. | F67: .. | G67: .. | H67: 0.15 | I67: 0.3841498024 | J67: .. | K67: 3.6477435 | L67: 0.5018 | M67: 1.0053 | N67: 0.7636628 | O67: 0.927 | P67: 0.8190008 | Q67: 1.039501 | R67: 0.9225996 | S67: 326 | T67: .. | U67: .. | V67: 372.86 | W67: 261.25 | X67: .. | Y67: 121.8 | Z67: 317 | AA67: 86.7 | AB67: .. | AC67: .. | AD67: 25.40541829 | AE67: 54.33 | AF67: 48.72 | AG67: 119.08 | AH67: .. | AI67: .. | AJ67: .. | AK67: .. | AL67: 67.98 | AM67: .. | AN67: 0.1261 | AO67: 0.0917 | AP67: 0.8598 | AQ67: 0.3418025424 | AR67: .. | AS67: 2.1164352 | AT67: 0.12456103 | AU67: 0.1322772 | AV67: 0.0591 | AW67: 1488.3 | AX67: .. | AY67: 30.56 | AZ67: .. | BA67: 145.6592066 | BB67: .. | BC67: .. | BD67: 0.6426 | BE67: .. | BF67: 0.5004 | BG67: 12.5 | BH67: 1e-10 | BI67: 53 | BJ67: 60.5 | BK67: 32.5 | BL67: 540.1318359 | BM67: 10.24 | BN67: 1269.2 | BO67: 383.6 | BP67: 3633.2 | BQ67: 1742 | BR67: 343 | BS67: 35.1 | BT67: 88.5 | BU67: 1.293 | BV67: .. | BW67: 202.82 | BX67: .. | BY67: .. | BZ67: .. | CA67: .. | CB67: .. | CC67: .. | CD67: .. | CE67: 69.34
A68: 1965M01 | B68: 1.42 | C68: .. | D68: 1.42 | E68: .. | F68: .. | G68: .. | H68: 0.16 | I68: 0.4107661052 | J68: .. | K68: 3.895710399 | L68: 0.47 | M68: 1.0119 | N68: 0.6283022 | O68: 1.0003 | P68: 0.8463009 | Q68: 1.142401 | R68: 1.0122 | S68: 337.6 | T68: .. | U68: .. | V68: 361.28 | W68: 266.21 | X68: .. | Y68: 123.46 | Z68: 284 | AA68: 92.4 | AB68: .. | AC68: .. | AD68: 25.37793499 | AE68: 55.9 | AF68: 49.82 | AG68: 114.61 | AH68: .. | AI68: .. | AJ68: .. | AK68: .. | AL68: 66.14 | AM68: .. | AN68: 0.127 | AO68: 0.0759 | AP68: 0.8525 | AQ68: 0.3435677569 | AR68: .. | AS68: 2.094389 | AT68: 0.12456103 | AU68: 0.13889106 | AV68: 0.0513 | AW68: 1265.41 | AX68: .. | AY68: 30.56 | AZ68: .. | BA68: 145.6592066 | BB68: .. | BC68: .. | BD68: 0.6424 | BE68: .. | BF68: 0.5137 | BG68: 14 | BH68: 1e-10 | BI68: 54 | BJ68: 65.75 | BK68: 29.5 | BL68: 540.1318359 | BM68: 10.24 | BN68: 1000.68 | BO68: 347.9 | BP68: 3456.8 | BQ68: 1735 | BR68: 322.3 | BS68: 35.12 | BT68: 93 | BU68: 1.293 | BV68: .. | BW68: 212.19 | BX68: .. | BY68: .. | BZ68: .. | CA68: .. | CB68: .. | CC68: .. | CD68: .. | CE68: 68.66
A69: 1965M02 | B69: 1.42 | C69: .. | D69: 1.42 | E69: .. | F69: .. | G69: .. | H69: 0.16 | I69: 0.4107661052 | J69: .. | K69: 3.895710399 | L69: 0.4191 | M69: 1.0384 | N69: 0.6371205 | O69: 1.0003 | P69: 0.8463009 | Q69: 1.142401 | R69: 1.0122 | S69: 356.9 | T69: .. | U69: .. | V69: 373.13 | W69: 283.02 | X69: .. | Y69: 128.42 | Z69: 303 | AA69: 96 | AB69: .. | AC69: .. | AD69: 24.67937518 | AE69: 56.69 | AF69: 49.82 | AG69: 115.94 | AH69: .. | AI69: .. | AJ69: .. | AK69: .. | AL69: 61.36 | AM69: .. | AN69: 0.1581 | AO69: 0.077 | AP69: 0.8519 | AQ69: 0.3452018142 | AR69: .. | AS69: 2.0062042 | AT69: 0.12456103 | AU69: 0.13889106 | AV69: 0.0476 | AW69: 1265.41 | AX69: .. | AY69: 33.33 | AZ69: .. | BA69: 152.6462714 | BB69: .. | BC69: .. | BD69: 0.6737 | BE69: .. | BF69: 0.5181 | BG69: 14 | BH69: 1e-10 | BI69: 54 | BJ69: 65.75 | BK69: 29.5 | BL69: 540.1318359 | BM69: 10.24 | BN69: 1179.91 | BO69: 389.6 | BP69: 3390.7 | BQ69: 1735 | BR69: 320.3 | BS69: 35.12 | BT69: 98.5 | BU69: 1.293 | BV69: .. | BW69: 226.52 | BX69: .. | BY69: .. | BZ69: .. | CA69: .. | CB69: .. | CC69: .. | CD69: .. | CE69: 65.26
A70: 1965M03 | B70: 1.42 | C70: .. | D70: 1.42 | E70: .. | F70: .. | G70: .. | H70: 0.16 | I70: 0.4107661052 | J70: .. | K70: 3.895710399 | L70: 0.353 | M70: 0.9899 | N70: 0.5798017 | O70: 1.0003 | P70: 0.8463009 | Q70: 1.142401 | R70: 1.0122 | S70: 356.9 | T70: .. | U70: .. | V70: 344.2 | W70: 292.11 | X70: .. | Y70: 124.84 | Z70: 300 | AA70: 93.6 | AB70: .. | AC70: .. | AD70: 24.71034044 | AE70: 57.08 | AF70: 48.94 | AG70: 115.56 | AH70: .. | AI70: .. | AJ70: .. | AK70: .. | AL70: 60.99 | AM70: .. | AN70: 0.1519 | AO70: 0.078 | AP70: 0.8514 | AQ70: 0.3459028367 | AR70: .. | AS70: 2.0282504 | AT70: 0.12456103 | AU70: 0.1322772 | AV70: 0.0534 | AW70: 1265.41 | AX70: .. | AY70: 34.17 | AZ70: .. | BA70: 154.7117931 | BB70: .. | BC70: .. | BD70: 0.6464 | BE70: .. | BF70: 0.5203 | BG70: 14 | BH70: 1e-10 | BI70: 54 | BJ70: 65.75 | BK70: 29.5 | BL70: 540.1318359 | BM70: 10.24 | BN70: 1237.23 | BO70: 395.3 | BP70: 3584.7 | BQ70: 1735 | BR70: 315.9 | BS70: 35.12 | BT70: 98.5 | BU70: 1.293 | BV70: .. | BW70: 235.34 | BX70: .. | BY70: .. | BZ70: .. | CA70: .. | CB70: .. | CC70: .. | CD70: .. | CE70: 65.6
A71: 1965M04 | B71: 1.42 | C71: .. | D71: 1.42 | E71: .. | F71: .. | G71: .. | H71: 0.16 | I71: 0.4107661052 | J71: .. | K71: 3.895710399 | L71: 0.3457 | M71: 0.9744 | N71: 0.5469536 | O71: 1.0003 | P71: 0.8463009 | Q71: 1.142401 | R71: 1.0122 | S71: 356.9 | T71: .. | U71: .. | V71: 325.73 | W71: 297.62 | X71: .. | Y71: 123.46 | Z71: 295 | AA71: 94.8 | AB71: .. | AC71: .. | AD71: 24.60484353 | AE71: 57.48 | AF71: 47.84 | AG71: 113.29 | AH71: .. | AI71: .. | AJ71: .. | AK71: .. | AL71: 59.89 | AM71: .. | AN71: 0.162 | AO71: 0.0921 | AP71: 0.8527 | AQ71: 0.3471696177 | AR71: .. | AS71: 2.0723428 | AT71: 0.12456103 | AU71: 0.1322772 | AV71: 0.0512 | AW71: 1265.41 | AX71: .. | AY71: 35.56 | AZ71: .. | BA71: 158.0791083 | BB71: .. | BC71: .. | BD71: 0.6493 | BE71: .. | BF71: 0.5335 | BG71: 14 | BH71: 1e-10 | BI71: 54 | BJ71: 65.75 | BK71: 29.5 | BL71: 540.1318359 | BM71: 10.24 | BN71: 1348.34 | BO71: 353 | BP71: 3944.1 | BQ71: 1735 | BR71: 315.9 | BS71: 35.12 | BT71: 98.5 | BU71: 1.293 | BV71: .. | BW71: 252.43 | BX71: .. | BY71: .. | BZ71: .. | CA71: .. | CB71: .. | CC71: .. | CD71: .. | CE71: 65.6
A72: 1965M05 | B72: 1.42 | C72: .. | D72: 1.42 | E72: .. | F72: .. | G72: .. | H72: 0.16 | I72: 0.4107661052 | J72: .. | K72: 3.895710399 | L72: 0.3276 | M72: 0.9612 | N72: 0.4872098 | O72: 1.0003 | P72: 0.8463009 | Q72: 1.142401 | R72: 1.0122 | S72: 356.9 | T72: .. | U72: .. | V72: 293.76 | W72: 303.13 | X72: .. | Y72: 118.5 | Z72: 256 | AA72: 93.6 | AB72: .. | AC72: .. | AD72: 24.68019174 | AE72: 58.66 | AF72: 47.84 | AG72: 111.77 | AH72: .. | AI72: .. | AJ72: .. | AK72: .. | AL72: 59.16 | AM72: .. | AN72: 0.1499 | AO72: 0.1463 | AP72: 0.8404 | AQ72: 0.348061745 | AR72: .. | AS72: 2.0502966 | AT72: 0.12456103 | AU72: 0.13668644 | AV72: 0.0496 | AW72: 1265.41 | AX72: .. | AY72: 35.56 | AZ72: .. | BA72: 158.0791083 | BB72: .. | BC72: .. | BD72: 0.6504 | BE72: .. | BF72: 0.5313 | BG72: 14 | BH72: 1e-10 | BI72: 54 | BJ72: 65.75 | BK72: 29.5 | BL72: 540.1318359 | BM72: 15.3 | BN72: 1378.55 | BO72: 302 | BP72: 4215.2 | BQ72: 1735 | BR72: 323.4 | BS72: 35.12 | BT72: 98.5 | BU72: 1.293 | BV72: .. | BW72: 257.66 | BX72: .. | BY72: .. | BZ72: .. | CA72: .. | CB72: .. | CC72: .. | CD72: .. | CE72: 65.6
A73: 1965M06 | B73: 1.42 | C73: .. | D73: 1.42 | E73: .. | F73: .. | G73: .. | H73: 0.16 | I73: 0.4107661052 | J73: .. | K73: 3.895710399 | L73: 0.2906 | M73: 0.9811 | N73: 0.6130906 | O73: 1.0003 | P73: 0.8463009 | Q73: 1.142401 | R73: 1.0122 | S73: 420.5 | T73: .. | U73: .. | V73: 296.52 | W73: 294.87 | X73: .. | Y73: 122.08 | Z73: 256 | AA73: 93.6 | AB73: .. | AC73: .. | AD73: 24.44930955 | AE73: 58.26 | AF73: 47.84 | AG73: 110.88 | AH73: .. | AI73: .. | AJ73: .. | AK73: .. | AL73: 58.05 | AM73: .. | AN73: 0.166 | AO73: 0.11 | AP73: 0.8618 | AQ73: 0.3491462469 | AR73: .. | AS73: 1.9621118 | AT73: 0.12456103 | AU73: 0.13668644 | AV73: 0.0412 | AW73: 1265.41 | AX73: .. | AY73: 35.56 | AZ73: .. | BA73: 158.0791083 | BB73: .. | BC73: .. | BD73: 0.629 | BE73: .. | BF73: 0.5225 | BG73: 14 | BH73: 1e-10 | BI73: 54 | BJ73: 65.75 | BK73: 29.5 | BL73: 540.1318359 | BM73: 10.24 | BN73: 1308.88 | BO73: 278.7 | BP73: 4131.5 | BQ73: 1735 | BR73: 314.4 | BS73: 35.12 | BT73: 98.5 | BU73: 1.293 | BV73: .. | BW73: 260.14 | BX73: .. | BY73: .. | BZ73: .. | CA73: .. | CB73: .. | CC73: .. | CD73: .. | CE73: 65.6
A74: 1965M07 | B74: 1.42 | C74: .. | D74: 1.42 | E74: .. | F74: .. | G74: .. | H74: 0.16 | I74: 0.4107661052 | J74: .. | K74: 3.895710399 | L74: 0.259 | M74: 0.9811 | N74: 0.7162645 | O74: 1.0003 | P74: 0.8463009 | Q74: 1.142401 | R74: 1.0122 | S74: 372.6 | T74: .. | U74: .. | V74: 301.76 | W74: 279.99 | X74: .. | Y74: 119.88 | Z74: 248 | AA74: 101.8 | AB74: .. | AC74: .. | AD74: 24.11917795 | AE74: 56.69 | AF74: 47.84 | AG74: 112.04 | AH74: .. | AI74: .. | AJ74: .. | AK74: .. | AL74: 57.32 | AM74: .. | AN74: 0.177 | AO74: 0.096 | AP74: 0.8807 | AQ74: 0.3514937158 | AR74: .. | AS74: 1.9400656 | AT74: 0.12456103 | AU74: 0.13448182 | AV74: 0.0408 | AW74: 1265.41 | AX74: .. | AY74: 35.56 | AZ74: .. | BA74: 158.0791083 | BB74: .. | BC74: .. | BD74: 0.6349 | BE74: .. | BF74: 0.4938 | BG74: 14 | BH74: 1e-10 | BI74: 54 | BJ74: 65.75 | BK74: 29.5 | BL74: 540.1318359 | BM74: 10.24 | BN74: 1134.06 | BO74: 271.6 | BP74: 3966.1 | BQ74: 1735 | BR74: 310.4 | BS74: 35.12 | BT74: 98.5 | BU74: 1.293 | BV74: .. | BW74: 224.32 | BX74: .. | BY74: .. | BZ74: .. | CA74: .. | CB74: .. | CC74: .. | CD74: .. | CE74: 65.94
A75: 1965M08 | B75: 1.42 | C75: .. | D75: 1.42 | E75: .. | F75: .. | G75: .. | H75: 0.16 | I75: 0.4107661052 | J75: .. | K75: 3.895710399 | L75: 0.3258 | M75: 1.0009 | N75: 0.7949677 | O75: 1.0003 | P75: 0.8463009 | Q75: 1.142401 | R75: 1.0122 | S75: 334.8 | T75: .. | U75: .. | V75: 299.28 | W75: 257.66 | X75: .. | Y75: 110.78 | Z75: 234 | AA75: 96 | AB75: .. | AC75: .. | AD75: 23.99647842 | AE75: 55.12 | AF75: 47.4 | AG75: 116.92 | AH75: .. | AI75: .. | AJ75: .. | AK75: .. | AL75: 57.69 | AM75: .. | AN75: 0.17 | AO75: 0.096 | AP75: 0.8942 | AQ75: 0.3517058388 | AR75: .. | AS75: 1.873927 | AT75: 0.12456103 | AU75: 0.13668644 | AV75: 0.0377 | AW75: 1265.41 | AX75: .. | AY75: 35.56 | AZ75: .. | BA75: 158.0791083 | BB75: .. | BC75: .. | BD75: 0.6312 | BE75: .. | BF75: 0.4828 | BG75: 14 | BH75: 1e-10 | BI75: 54 | BJ75: 65.75 | BK75: 29.5 | BL75: 540.1318359 | BM75: 10.24 | BN75: 1209.9 | BO75: 272 | BP75: 4091.8 | BQ75: 1735 | BR75: 303.6 | BS75: 35.12 | BT75: 98.5 | BU75: 1.293 | BV75: .. | BW75: 209.16 | BX75: .. | BY75: .. | BZ75: .. | CA75: .. | CB75: .. | CC75: .. | CD75: .. | CE75: 65.6
A76: 1965M09 | B76: 1.42 | C76: .. | D76: 1.42 | E76: .. | F76: .. | G76: .. | H76: 0.16 | I76: 0.4107661052 | J76: .. | K76: 3.895710399 | L76: 0.3649 | M76: 0.9987 | N76: 0.7775516 | O76: 1.0003 | P76: 0.8463009 | Q76: 1.142401 | R76: 1.0122 | S76: 312 | T76: .. | U76: .. | V76: 308.92 | W76: 246.64 | X76: .. | Y76: 106.1 | Z76: 248 | AA76: 105.3 | AB76: .. | AC76: .. | AD76: 23.99364398 | AE76: 53.93 | AF76: 47.4 | AG76: 126.55 | AH76: .. | AI76: .. | AJ76: .. | AK76: .. | AL76: 58.42 | AM76: .. | AN76: 0.1821 | AO76: 0.096 | AP76: 0.9132 | AQ76: 0.3541989753 | AR76: .. | AS76: 1.8959732 | AT76: 0.12456103 | AU76: 0.13668644 | AV76: 0.039 | AW76: 1265.41 | AX76: .. | AY76: 36.11 | AZ76: .. | BA76: 159.3947361 | BB76: .. | BC76: .. | BD76: 0.631 | BE76: .. | BF76: 0.4762 | BG76: 14 | BH76: 1e-10 | BI76: 54 | BJ76: 65.75 | BK76: 29.5 | BL76: 540.1318359 | BM76: 10.24 | BN76: 1327.84 | BO76: 289.2 | BP76: 4208.6 | BQ76: 1735 | BR76: 299.6 | BS76: 35.12 | BT76: 98.5 | BU76: 1.293 | BV76: .. | BW76: 202 | BX76: .. | BY76: .. | BZ76: .. | CA76: .. | CB76: .. | CC76: .. | CD76: .. | CE76: 65.6
A77: 1965M10 | B77: 1.42 | C77: .. | D77: 1.42 | E77: .. | F77: .. | G77: .. | H77: 0.16 | I77: 0.4107661052 | J77: .. | K77: 3.895710399 | L77: 0.3706 | M77: 1.0097 | N77: 0.8073132 | O77: 1.0003 | P77: 0.8463009 | Q77: 1.142401 | R77: 1.0122 | S77: 331 | T77: .. | U77: .. | V77: 324.08 | W77: 250.22 | X77: .. | Y77: 104.44 | Z77: 284 | AA77: 97.1 | AB77: .. | AC77: .. | AD77: 23.59557737 | AE77: 51.57 | AF77: 46.52 | AG77: 126.65 | AH77: .. | AI77: .. | AJ77: .. | AK77: .. | AL77: 58.05 | AM77: .. | AN77: 0.1889 | AO77: 0.096 | AP77: 0.9292 | AQ77: 0.3540733703 | AR77: .. | AS77: 1.9180194 | AT77: 0.12456103 | AU77: 0.13889106 | AV77: 0.0428 | AW77: 1265.41 | AX77: .. | AY77: 36.11 | AZ77: .. | BA77: 159.3947361 | BB77: .. | BC77: .. | BD77: 0.6245 | BE77: .. | BF77: 0.4718 | BG77: 14 | BH77: 1e-10 | BI77: 54 | BJ77: 65.75 | BK77: 29.5 | BL77: 540.1318359 | BM77: 10.24 | BN77: 1401.92 | BO77: 306.9 | BP77: 4010.2 | BQ77: 1735 | BR77: 307.8 | BS77: 35.12 | BT77: 98.5 | BU77: 1.293 | BV77: .. | BW77: 211.09 | BX77: .. | BY77: .. | BZ77: .. | CA77: .. | CB77: .. | CC77: .. | CD77: .. | CE77: 66.28
A78: 1965M11 | B78: 1.42 | C78: .. | D78: 1.42 | E78: .. | F78: .. | G78: .. | H78: 0.16 | I78: 0.4107661052 | J78: .. | K78: 3.895710399 | L78: 0.3986 | M78: 1.0251 | N78: 0.7568286 | O78: 1.0003 | P78: 0.8463009 | Q78: 1.142401 | R78: 1.0122 | S78: 334.8 | T78: .. | U78: .. | V78: 336.2 | W78: 250.22 | X78: .. | Y78: 107.47 | Z78: 276 | AA78: 103 | AB78: .. | AC78: .. | AD78: 23.63474704 | AE78: 51.57 | AF78: 46.3 | AG78: 129.2 | AH78: .. | AI78: .. | AJ78: .. | AK78: .. | AL78: 58.05 | AM78: .. | AN78: 0.1519 | AO78: 0.096 | AP78: 0.9094 | AQ78: 0.3560733477 | AR78: .. | AS78: 2.0062042 | AT78: 0.12456103 | AU78: 0.13668644 | AV78: 0.0377 | AW78: 1265.41 | AX78: .. | AY78: 36.11 | AZ78: .. | BA78: 159.3947361 | BB78: .. | BC78: .. | BD78: 0.6228 | BE78: .. | BF78: 0.4894 | BG78: 14 | BH78: 1e-10 | BI78: 54 | BJ78: 65.75 | BK78: 29.5 | BL78: 540.1318359 | BM78: 10.24 | BN78: 1469.16 | BO78: 299.2 | BP78: 3820.6 | BQ78: 1735 | BR78: 298.7 | BS78: 35.12 | BT78: 98.5 | BU78: 1.293 | BV78: .. | BW78: 216.05 | BX78: .. | BY78: .. | BZ78: .. | CA78: .. | CB78: .. | CC78: .. | CD78: .. | CE78: 66.28
A79: 1965M12 | B79: 1.42 | C79: .. | D79: 1.42 | E79: .. | F79: .. | G79: .. | H79: 0.16 | I79: 0.4107661052 | J79: .. | K79: 3.895710399 | L79: 0.4588 | M79: 1.0318 | N79: 0.7936449 | O79: 1.0003 | P79: 0.8463009 | Q79: 1.142401 | R79: 1.0122 | S79: 330.7 | T79: .. | U79: .. | V79: 322.15 | W79: 248.57 | X79: .. | Y79: 112.99 | Z79: 256 | AA79: 97.1 | AB79: .. | AC79: .. | AD79: 24.29600581 | AE79: 55.12 | AF79: 47.62 | AG79: 132.06 | AH79: .. | AI79: .. | AJ79: .. | AK79: .. | AL79: 58.42 | AM79: .. | AN79: 0.1281 | AO79: 0.0927 | AP79: 0.942 | AQ79: 0.3562832739 | AR79: .. | AS79: 2.0062042 | AT79: 0.12456103 | AU79: 0.13448182 | AV79: 0.0383 | AW79: 1265.41 | AX79: .. | AY79: 36.11 | AZ79: .. | BA79: 159.3947361 | BB79: .. | BC79: .. | BD79: 0.6195 | BE79: .. | BF79: 0.5049 | BG79: 14 | BH79: 1e-10 | BI79: 54 | BJ79: 65.75 | BK79: 29.5 | BL79: 540.1318359 | BM79: 10.24 | BN79: 1517.66 | BO79: 300.7 | BP79: 3869.1 | BQ79: 1735 | BR79: 302.7 | BS79: 35.12 | BT79: 98.5 | BU79: 1.293 | BV79: .. | BW79: 212.47 | BX79: .. | BY79: .. | BZ79: .. | CA79: .. | CB79: .. | CC79: .. | CD79: .. | CE79: 66.62
A80: 1966M01 | B80: 1.36 | C80: .. | D80: 1.36 | E80: .. | F80: .. | G80: .. | H80: 0.16 | I80: 0.4249286651 | J80: .. | K80: 3.963038817 | L80: 0.4731 | M80: 1.0119 | N80: 0.8015813 | O80: 0.9599 | P80: 0.7602008 | Q80: 1.205401 | R80: 0.9141996 | S80: 355.5 | T80: .. | U80: .. | V80: 307.27 | W80: 246.92 | X80: .. | Y80: 119.6 | Z80: 267 | AA80: 101.93 | AB80: .. | AC80: .. | AD80: 24.63215651 | AE80: 57.08 | AF80: 47.62 | AG80: 125.51 | AH80: .. | AI80: .. | AJ80: .. | AK80: .. | AL80: 58.42 | AM80: .. | AN80: 0.129 | AO80: 0.0914 | AP80: 0.9676 | AQ80: 0.3581358251 | AR80: .. | AS80: 2.314851 | AT80: 0.130954428 | AU80: 0.13889106 | AV80: 0.0531 | AW80: 1581.22 | AX80: .. | AY80: 36.11 | AZ80: .. | BA80: 159.3947361 | BB80: .. | BC80: .. | BD80: 0.6195 | BE80: .. | BF80: 0.5051 | BG80: 13 | BH80: 1e-10 | BI80: 50 | BJ80: 59.25 | BK80: 27.5 | BL80: 540.1318359 | BM80: 9.52 | BN80: 1679.04 | BO80: 301.2 | BP80: 3926.4 | BQ80: 1739 | BR80: 302.7 | BS80: 35.13 | BT80: 98.5 | BU80: 1.293 | BV80: .. | BW80: 217.71 | BX80: .. | BY80: .. | BZ80: .. | CA80: .. | CB80: .. | CC80: .. | CD80: .. | CE80: 67.3
A81: 1966M02 | B81: 1.36 | C81: .. | D81: 1.36 | E81: .. | F81: .. | G81: .. | H81: 0.16 | I81: 0.4249286651 | J81: .. | K81: 3.963038817 | L81: 0.4718 | M81: 0.9722 | N81: 0.7577103 | O81: 0.9599 | P81: 0.7602008 | Q81: 1.205401 | R81: 0.9141996 | S81: 348.6 | T81: .. | U81: .. | V81: 299.69 | W81: 248.02 | X81: .. | Y81: 121.8 | Z81: 273 | AA81: 99.1 | AB81: .. | AC81: .. | AD81: 24.74463219 | AE81: 57.08 | AF81: 48.5 | AG81: 124.79 | AH81: .. | AI81: .. | AJ81: .. | AK81: .. | AL81: 58.79 | AM81: .. | AN81: 0.143 | AO81: 0.0728 | AP81: 0.9641 | AQ81: 0.3585674732 | AR81: .. | AS81: 2.314851 | AT81: 0.130954428 | AU81: 0.13889106 | AV81: 0.0489 | AW81: 1581.22 | AX81: .. | AY81: 36.94 | AZ81: .. | BA81: 161.3628116 | BB81: .. | BC81: .. | BD81: 0.6195 | BE81: .. | BF81: 0.5066 | BG81: 13 | BH81: 1e-10 | BI81: 50 | BJ81: 59.25 | BK81: 27.5 | BL81: 540.1318359 | BM81: 9.52 | BN81: 1874.37 | BO81: 291.5 | BP81: 3877.9 | BQ81: 1739 | BR81: 299.8 | BS81: 35.13 | BT81: 98.5 | BU81: 1.293 | BV81: .. | BW81: 209.44 | BX81: .. | BY81: .. | BZ81: .. | CA81: .. | CB81: .. | CC81: .. | CD81: .. | CE81: 68.32
A82: 1966M03 | B82: 1.36 | C82: .. | D82: 1.36 | E82: .. | F82: .. | G82: .. | H82: 0.16 | I82: 0.4249286651 | J82: .. | K82: 3.963038817 | L82: 0.4896 | M82: 0.9546 | N82: 0.7438216 | O82: 0.9599 | P82: 0.7602008 | Q82: 1.205401 | R82: 0.9141996 | S82: 338.4 | T82: .. | U82: .. | V82: 292.8 | W82: 245.26 | X82: .. | Y82: 119.88 | Z82: 265 | AA82: 92.5 | AB82: .. | AC82: .. | AD82: 24.54782111 | AE82: 55.51 | AF82: 47.4 | AG82: 131.73 | AH82: .. | AI82: .. | AJ82: .. | AK82: .. | AL82: 58.79 | AM82: .. | AN82: 0.1731 | AO82: 0.085 | AP82: 1.0673 | AQ82: 0.358374602 | AR82: .. | AS82: 2.314851 | AT82: 0.130954428 | AU82: 0.13668644 | AV82: 0.0472 | AW82: 1581.22 | AX82: .. | AY82: 36.94 | AZ82: .. | BA82: 161.3628116 | BB82: .. | BC82: .. | BD82: 0.639 | BE82: .. | BF82: 0.5031 | BG82: 13 | BH82: 1e-10 | BI82: 50 | BJ82: 59.25 | BK82: 27.5 | BL82: 540.1318359 | BM82: 9.52 | BN82: 1874.81 | BO82: 292.8 | BP82: 3772.1 | BQ82: 1739 | BR82: 300.7 | BS82: 35.13 | BT82: 99.65 | BU82: 1.293 | BV82: .. | BW82: 192.9 | BX82: .. | BY82: .. | BZ82: .. | CA82: .. | CB82: .. | CC82: .. | CD82: .. | CE82: 68.66
A83: 1966M04 | B83: 1.36 | C83: .. | D83: 1.36 | E83: .. | F83: .. | G83: .. | H83: 0.16 | I83: 0.4249286651 | J83: .. | K83: 3.963038817 | L83: 0.5333 | M83: 0.9546 | N83: 0.7605763 | O83: 0.9599 | P83: 0.7602008 | Q83: 1.205401 | R83: 0.9141996 | S83: 331.2 | T83: .. | U83: .. | V83: 285.77 | W83: 233.69 | X83: .. | Y83: 122.08 | Z83: 267 | AA83: 96.9 | AB83: .. | AC83: .. | AD83: 24.64817034 | AE83: 55.9 | AF83: 46.96 | AG83: 143.04 | AH83: .. | AI83: .. | AJ83: .. | AK83: .. | AL83: 58.79 | AM83: .. | AN83: 0.1892 | AO83: 0.0914 | AP83: 1.0714 | AQ83: 0.3599530256 | AR83: .. | AS83: 2.314851 | AT83: 0.130954428 | AU83: 0.13889106 | AV83: 0.0452 | AW83: 1581.22 | AX83: .. | AY83: 36.39 | AZ83: .. | BA83: 160.0609688 | BB83: .. | BC83: .. | BD83: 0.6184 | BE83: .. | BF83: 0.4848 | BG83: 13 | BH83: 1e-10 | BI83: 50 | BJ83: 59.25 | BK83: 27.5 | BL83: 540.1318359 | BM83: 9.52 | BN83: 1907.44 | BO83: 280.4 | BP83: 3763.3 | BQ83: 1739 | BR83: 278.7 | BS83: 35.13 | BT83: 100 | BU83: 1.293 | BV83: .. | BW83: 189.05 | BX83: .. | BY83: .. | BZ83: .. | CA83: .. | CB83: .. | CC83: .. | CD83: .. | CE83: 69
A84: 1966M05 | B84: 1.36 | C84: .. | D84: 1.36 | E84: .. | F84: .. | G84: .. | H84: 0.16 | I84: 0.4249286651 | J84: .. | K84: 3.963038817 | L84: 0.513 | M84: 0.9458 | N84: 0.7652059 | O84: 0.9599 | P84: 0.7602008 | Q84: 1.205401 | R84: 0.9141996 | S84: 330.7 | T84: .. | U84: .. | V84: 288.31 | W84: 225.7 | X84: .. | Y84: 124.84 | Z84: 256 | AA84: 102.4 | AB84: .. | AC84: .. | AD84: 24.56941688 | AE84: 55.12 | AF84: 46.96 | AG84: 140.86 | AH84: .. | AI84: .. | AJ84: .. | AK84: .. | AL84: 58.79 | AM84: .. | AN84: 0.1841 | AO84: 0.0877 | AP84: 1.043 | AQ84: 0.3616734465 | AR84: .. | AS84: 2.314851 | AT84: 0.130954428 | AU84: 0.13889106 | AV84: 0.045 | AW84: 1581.22 | AX84: .. | AY84: 36.94 | AZ84: .. | BA84: 161.3628116 | BB84: .. | BC84: .. | BD84: 0.6228 | BE84: .. | BF84: 0.4949 | BG84: 13 | BH84: 1e-10 | BI84: 50 | BJ84: 59.25 | BK84: 27.5 | BL84: 540.1318359 | BM84: 9.52 | BN84: 1663.61 | BO84: 261.9 | BP84: 3688.3 | BQ84: 1739 | BR84: 270 | BS84: 35.13 | BT84: 100 | BU84: 1.293 | BV84: .. | BW84: 180.23 | BX84: .. | BY84: .. | BZ84: .. | CA84: .. | CB84: .. | CC84: .. | CD84: .. | CE84: 69.34
A85: 1966M06 | B85: 1.36 | C85: .. | D85: 1.36 | E85: .. | F85: .. | G85: .. | H85: 0.16 | I85: 0.4249286651 | J85: .. | K85: 3.963038817 | L85: 0.5267 | M85: 0.9237 | N85: 0.7409557 | O85: 0.8132 | P85: 0.7602008 | Q85: 0.7653333 | R85: 0.9141996 | S85: 332.1 | T85: .. | U85: .. | V85: 288.31 | W85: 225.42 | X85: .. | Y85: 130.62 | Z85: 256 | AA85: 117.8 | AB85: .. | AC85: .. | AD85: 25.54338202 | AE85: 57.08 | AF85: 46.74 | AG85: 144.45 | AH85: .. | AI85: .. | AJ85: .. | AK85: .. | AL85: 62.1 | AM85: .. | AN85: 0.181 | AO85: 0.084 | AP85: 0.9923 | AQ85: 0.3647232958 | AR85: .. | AS85: 2.314851 | AT85: 0.130954428 | AU85: 0.13889106 | AV85: 0.037 | AW85: 1581.22 | AX85: .. | AY85: 36.94 | AZ85: .. | BA85: 161.3628116 | BB85: .. | BC85: .. | BD85: 0.6182 | BE85: .. | BF85: 0.4733 | BG85: 13 | BH85: 1e-10 | BI85: 50 | BJ85: 59.25 | BK85: 27.5 | BL85: 540.1318359 | BM85: 9.52 | BN85: 1695.79 | BO85: 259.3 | BP85: 3516.4 | BQ85: 1739 | BR85: 272.1 | BS85: 35.13 | BT85: 100 | BU85: 1.293 | BV85: .. | BW85: 183.53 | BX85: .. | BY85: .. | BZ85: .. | CA85: .. | CB85: .. | CC85: .. | CD85: .. | CE85: 70.36
A86: 1966M07 | B86: 1.36 | C86: .. | D86: 1.36 | E86: .. | F86: .. | G86: .. | H86: 0.16 | I86: 0.4249286651 | J86: .. | K86: 3.963038817 | L86: 0.5761 | M86: 0.9171 | N86: 0.729051 | O86: 0.8132 | P86: 0.7602008 | Q86: 0.7653333 | R86: 0.9141996 | S86: 330.4 | T86: .. | U86: .. | V86: 294.59 | W86: 235.34 | X86: .. | Y86: 138.89 | Z86: 267 | AA86: 123.3 | AB86: .. | AC86: .. | AD86: 26.51018437 | AE86: 59.05 | AF86: 47.18 | AG86: 153.3 | AH86: .. | AI86: .. | AJ86: .. | AK86: .. | AL86: 65.4 | AM86: .. | AN86: 0.144 | AO86: 0.084 | AP86: 0.9669 | AQ86: 0.3663165472 | AR86: .. | AS86: 2.314851 | AT86: 0.130954428 | AU86: 0.14109568 | AV86: 0.0379 | AW86: 1581.22 | AX86: .. | AY86: 36.94 | AZ86: .. | BA86: 161.3628116 | BB86: .. | BC86: .. | BD86: 0.6151 | BE86: .. | BF86: 0.4656 | BG86: 13 | BH86: 1e-10 | BI86: 50 | BJ86: 59.25 | BK86: 27.5 | BL86: 540.1318359 | BM86: 9.52 | BN86: 1567.93 | BO86: 263.4 | BP86: 3514.2 | BQ86: 1739 | BR86: 264.6 | BS86: 35.13 | BT86: 100 | BU86: 1.293 | BV86: .. | BW86: 184.64 | BX86: .. | BY86: .. | BZ86: .. | CA86: .. | CB86: .. | CC86: .. | CD86: .. | CE86: 71.38
A87: 1966M08 | B87: 1.36 | C87: .. | D87: 1.36 | E87: .. | F87: .. | G87: .. | H87: 0.16 | I87: 0.4249286651 | J87: .. | K87: 3.963038817 | L87: 0.573 | M87: 0.9171 | N87: 0.7189101 | O87: 0.8132 | P87: 0.7602008 | Q87: 0.7653333 | R87: 0.9141996 | S87: 319.1 | T87: .. | U87: .. | V87: 304.84 | W87: 239.75 | X87: .. | Y87: 140.27 | Z87: 276 | AA87: 124.4 | AB87: .. | AC87: .. | AD87: 27.51208083 | AE87: 62.6 | AF87: 50.49 | AG87: 150.39 | AH87: .. | AI87: .. | AJ87: .. | AK87: .. | AL87: 67.61 | AM87: .. | AN87: 0.157 | AO87: 0.084 | AP87: 1 | AQ87: 0.3673392134 | AR87: .. | AS87: 2.314851 | AT87: 0.130954428 | AU87: 0.1433003 | AV87: 0.0359 | AW87: 1581.22 | AX87: .. | AY87: 36.94 | AZ87: .. | BA87: 161.3628116 | BB87: .. | BC87: .. | BD87: 0.6195 | BE87: .. | BF87: 0.4581 | BG87: 13 | BH87: 1e-10 | BI87: 50 | BJ87: 59.25 | BK87: 27.5 | BL87: 540.1318359 | BM87: 9.52 | BN87: 1195.34 | BO87: 242.5 | BP87: 3428.2 | BQ87: 1739 | BR87: 264.6 | BS87: 35.13 | BT87: 100 | BU87: 1.293 | BV87: .. | BW87: 182.71 | BX87: .. | BY87: .. | BZ87: .. | CA87: .. | CB87: .. | CC87: .. | CD87: .. | CE87: 71.72
A88: 1966M09 | B88: 1.36 | C88: .. | D88: 1.36 | E88: .. | F88: .. | G88: .. | H88: 0.16 | I88: 0.4249286651 | J88: .. | K88: 3.963038817 | L88: 0.5022 | M88: 0.8995 | N88: 0.6995097 | O88: 0.8132 | P88: 0.7602008 | Q88: 0.7653333 | R88: 0.9141996 | S88: 317.2 | T88: .. | U88: .. | V88: 298.73 | W88: 239.75 | X88: .. | Y88: 127.59 | Z88: 267 | AA88: 112.3 | AB88: .. | AC88: .. | AD88: 27.24653073 | AE88: 61.02 | AF88: 51.59 | AG88: 155.39 | AH88: .. | AI88: .. | AJ88: .. | AK88: .. | AL88: 67.24 | AM88: .. | AN88: 0.139 | AO88: 0.084 | AP88: 1.0529 | AQ88: 0.3666176814 | AR88: .. | AS88: 2.314851 | AT88: 0.130954428 | AU88: 0.1433003 | AV88: 0.0329 | AW88: 1581.22 | AX88: .. | AY88: 36.94 | AZ88: .. | BA88: 161.3628116 | BB88: .. | BC88: .. | BD88: 0.6072 | BE88: .. | BF88: 0.4299 | BG88: 13 | BH88: 1e-10 | BI88: 50 | BJ88: 59.25 | BK88: 27.5 | BL88: 540.1318359 | BM88: 9.52 | BN88: 1128.32 | BO88: 254.2 | BP88: 3377.5 | BQ88: 1739 | BR88: 270.5 | BS88: 35.13 | BT88: 100 | BU88: 1.293 | BV88: .. | BW88: 170.31 | BX88: .. | BY88: .. | BZ88: .. | CA88: .. | CB88: .. | CC88: .. | CD88: .. | CE88: 72.06
A89: 1966M10 | B89: 1.36 | C89: .. | D89: 1.36 | E89: .. | F89: .. | G89: .. | H89: 0.16 | I89: 0.4249286651 | J89: .. | K89: 3.963038817 | L89: 0.5084 | M89: 0.8885 | N89: 0.7171464 | O89: 0.8132 | P89: 0.7602008 | Q89: 0.7653333 | R89: 0.9141996 | S89: 303.1 | T89: .. | U89: .. | V89: 291.84 | W89: 230.93 | X89: .. | Y89: 120.15 | Z89: 251 | AA89: 104.6 | AB89: .. | AC89: .. | AD89: 26.71904877 | AE89: 58.66 | AF89: 48.72 | AG89: 164.26 | AH89: .. | AI89: .. | AJ89: .. | AK89: .. | AL89: 66.14 | AM89: .. | AN89: 0.1281 | AO89: 0.084 | AP89: 1.0529 | AQ89: 0.3663874387 | AR89: .. | AS89: 2.314851 | AT89: 0.130954428 | AU89: 0.14550492 | AV89: 0.0337 | AW89: 1581.22 | AX89: .. | AY89: 36.94 | AZ89: .. | BA89: 161.3628116 | BB89: .. | BC89: .. | BD89: 0.6316 | BE89: .. | BF89: 0.4515 | BG89: 13 | BH89: 1e-10 | BI89: 50 | BJ89: 59.25 | BK89: 27.5 | BL89: 540.1318359 | BM89: 9.52 | BN89: 1275.37 | BO89: 233.7 | BP89: 3362 | BQ89: 1739 | BR89: 276 | BS89: 35.13 | BT89: 100 | BU89: 1.293 | BV89: .. | BW89: 167.55 | BX89: .. | BY89: .. | BZ89: .. | CA89: .. | CB89: .. | CC89: .. | CD89: .. | CE89: 71.72
A90: 1966M11 | B90: 1.36 | C90: .. | D90: 1.36 | E90: .. | F90: .. | G90: .. | H90: 0.16 | I90: 0.4249286651 | J90: .. | K90: 3.963038817 | L90: 0.4952 | M90: 0.8869 | N90: 0.7200123 | O90: 0.8132 | P90: 0.7602008 | Q90: 0.7653333 | R90: 0.9141996 | S90: 277.8 | T90: .. | U90: .. | V90: 292.66 | W90: 225.97 | X90: .. | Y90: 121.25 | Z90: 248 | AA90: 101.3 | AB90: .. | AC90: .. | AD90: 26.75583173 | AE90: 59.05 | AF90: 49.38 | AG90: 166.11 | AH90: .. | AI90: .. | AJ90: .. | AK90: .. | AL90: 65.77 | AM90: .. | AN90: 0.138 | AO90: 0.084 | AP90: 1.0311 | AQ90: 0.3667678763 | AR90: .. | AS90: 2.314851 | AT90: 0.130954428 | AU90: 0.1433003 | AV90: 0.0311 | AW90: 1581.22 | AX90: .. | AY90: 36.94 | AZ90: .. | BA90: 161.3628116 | BB90: .. | BC90: .. | BD90: 0.6314 | BE90: .. | BF90: 0.4517 | BG90: 13 | BH90: 1e-10 | BI90: 50 | BJ90: 59.25 | BK90: 27.5 | BL90: 540.1318359 | BM90: 9.52 | BN90: 1301.61 | BO90: 222.7 | BP90: 3320.2 | BQ90: 1739 | BR90: 288.1 | BS90: 35.13 | BT90: 100 | BU90: 1.293 | BV90: .. | BW90: 163.14 | BX90: .. | BY90: .. | BZ90: .. | CA90: .. | CB90: .. | CC90: .. | CD90: .. | CE90: 72.06
A91: 1966M12 | B91: 1.36 | C91: .. | D91: 1.36 | E91: .. | F91: .. | G91: .. | H91: 0.16 | I91: 0.4249286651 | J91: .. | K91: 3.963038817 | L91: 0.5492 | M91: 0.8728 | N91: 0.7151622 | O91: 0.8132 | P91: 0.7602008 | Q91: 0.7653333 | R91: 0.9141996 | S91: 300.4 | T91: .. | U91: .. | V91: 310.85 | W91: 230.93 | X91: .. | Y91: 120.98 | Z91: 245 | AA91: 107.9 | AB91: .. | AC91: .. | AD91: 27.51203013 | AE91: 61.41 | AF91: 51.37 | AG91: 142.6 | AH91: .. | AI91: .. | AJ91: .. | AK91: .. | AL91: 67.61 | AM91: .. | AN91: 0.14 | AO91: 0.076 | AP91: 1.0587 | AQ91: 0.3686455207 | AR91: .. | AS91: 2.314851 | AT91: 0.130954428 | AU91: 0.1433003 | AV91: 0.0298 | AW91: 1581.22 | AX91: .. | AY91: 36.94 | AZ91: .. | BA91: 161.3628116 | BB91: .. | BC91: .. | BD91: 0.6314 | BE91: .. | BF91: 0.4341 | BG91: 13 | BH91: 1e-10 | BI91: 50 | BJ91: 59.25 | BK91: 27.5 | BL91: 540.1318359 | BM91: 9.52 | BN91: 1214.53 | BO91: 224.2 | BP91: 3335.6 | BQ91: 1739 | BR91: 285.5 | BS91: 35.13 | BT91: 100 | BU91: 1.293 | BV91: .. | BW91: 178.85 | BX91: .. | BY91: .. | BZ91: .. | CA91: .. | CB91: .. | CC91: .. | CD91: .. | CE91: 72.39
A92: 1967M01 | B92: 1.33 | C92: .. | D92: 1.33 | E92: .. | F92: .. | G92: .. | H92: 0.16 | I92: 0.4566473763 | J92: .. | K92: 4.113828694 | L92: 0.5739 | M92: 0.8501 | N92: 0.7056826 | O92: 0.8402 | P92: 0.7308007 | Q92: 0.7986667 | R92: 0.9911996 | S92: 310 | T92: .. | U92: .. | V92: 303.41 | W92: 234.24 | X92: .. | Y92: 117.4 | Z92: 231 | AA92: 104.6 | AB92: .. | AC92: .. | AD92: 27.3045923 | AE92: 60.23 | AF92: 52.91 | AG92: 142.27 | AH92: .. | AI92: .. | AJ92: .. | AK92: .. | AL92: 67.24 | AM92: .. | AN92: 0.157 | AO92: 0.1764 | AP92: 1.0783 | AQ92: 0.3690440126 | AR92: .. | AS92: 2.2928048 | AT92: 0.129411194 | AU92: 0.1433003 | AV92: 0.0287 | AW92: 1299.43 | AX92: .. | AY92: 36.94 | AZ92: .. | BA92: 161.3628116 | BB92: .. | BC92: .. | BD92: 0.6449 | BE92: .. | BF92: 0.4264 | BG92: 12 | BH92: 68.5 | BI92: 46.5 | BJ92: 49.25 | BK92: 25.5 | BL92: 540.1318359 | BM92: 8.86 | BN92: 1243.85 | BO92: 220.2 | BP92: 3302.5 | BQ92: 1935.7 | BR92: 279.5 | BS92: 34.95 | BT92: 102.93 | BU92: 1.293 | BV92: .. | BW92: 181.47 | BX92: .. | BY92: .. | BZ92: .. | CA92: .. | CB92: .. | CC92: .. | CD92: .. | CE92: 72.06
A93: 1967M02 | B93: 1.33 | C93: .. | D93: 1.33 | E93: .. | F93: .. | G93: .. | H93: 0.16 | I93: 0.4566473763 | J93: .. | K93: 4.113828694 | L93: 0.6078 | M93: 0.8441 | N93: 0.7286101 | O93: 0.8402 | P93: 0.7308007 | Q93: 0.7986667 | R93: 0.9911996 | S93: 316.9 | T93: .. | U93: .. | V93: 297.07 | W93: 230.66 | X93: .. | Y93: 116.84 | Z93: 225 | AA93: 101.3 | AB93: .. | AC93: .. | AD93: 27.30021162 | AE93: 59.05 | AF93: 52.91 | AG93: 151.45 | AH93: .. | AI93: .. | AJ93: .. | AK93: .. | AL93: 67.98 | AM93: .. | AN93: 0.143 | AO93: 0.1474 | AP93: 1.0642 | AQ93: 0.3692617268 | AR93: .. | AS93: 2.2928048 | AT93: 0.129411194 | AU93: 0.14550492 | AV93: 0.037 | AW93: 1299.43 | AX93: .. | AY93: 37.5 | AZ93: .. | BA93: 162.6791954 | BB93: .. | BC93: .. | BD93: 0.6596 | BE93: .. | BF93: 0.4085 | BG93: 12 | BH93: 68.5 | BI93: 46.5 | BJ93: 49.25 | BK93: 25.5 | BL93: 540.1318359 | BM93: 8.86 | BN93: 1220.48 | BO93: 221.8 | BP93: 3309.1 | BQ93: 1935.7 | BR93: 282.2 | BS93: 34.95 | BT93: 110.5 | BU93: 1.293 | BV93: .. | BW93: 185.52 | BX93: .. | BY93: .. | BZ93: .. | CA93: .. | CB93: .. | CC93: .. | CD93: .. | CE93: 72.06
A94: 1967M03 | B94: 1.33 | C94: .. | D94: 1.33 | E94: .. | F94: .. | G94: .. | H94: 0.16 | I94: 0.4566473763 | J94: .. | K94: 4.113828694 | L94: 0.5952 | M94: 0.8228 | N94: 0.7257441 | O94: 0.8402 | P94: 0.7308007 | Q94: 0.7986667 | R94: 0.9911996 | S94: 314.2 | T94: .. | U94: .. | V94: 300.65 | W94: 223.22 | X94: .. | Y94: 115.74 | Z94: 231 | AA94: 98 | AB94: .. | AC94: .. | AD94: 27.68090395 | AE94: 59.05 | AF94: 54.89 | AG94: 163.53 | AH94: .. | AI94: .. | AJ94: .. | AK94: .. | AL94: 69.81 | AM94: .. | AN94: 0.162 | AO94: 0.1592 | AP94: 1.0448 | AQ94: 0.3694627993 | AR94: .. | AS94: 2.2928048 | AT94: 0.129411194 | AU94: 0.14550492 | AV94: 0.0346 | AW94: 1299.43 | AX94: .. | AY94: 38.33 | AZ94: .. | BA94: 164.6137443 | BB94: .. | BC94: .. | BD94: 0.6636 | BE94: .. | BF94: 0.4083 | BG94: 12 | BH94: 68.5 | BI94: 46.5 | BJ94: 49.25 | BK94: 25.5 | BL94: 540.1318359 | BM94: 8.86 | BN94: 1098.34 | BO94: 228.4 | BP94: 3318 | BQ94: 1935.7 | BR94: 279.3 | BS94: 34.95 | BT94: 110.5 | BU94: 1.293 | BV94: .. | BW94: 183.73 | BX94: .. | BY94: .. | BZ94: .. | CA94: .. | CB94: .. | CC94: .. | CD94: .. | CE94: 72.39
A95: 1967M04 | B95: 1.33 | C95: .. | D95: 1.33 | E95: .. | F95: .. | G95: .. | H95: 0.16 | I95: 0.4566473763 | J95: .. | K95: 4.113828694 | L95: 0.5754 | M95: 0.8508 | N95: 0.7471284 | O95: 0.8402 | P95: 0.7308007 | Q95: 0.7986667 | R95: 0.9911996 | S95: 305.1 | T95: .. | U95: .. | V95: 292.39 | W95: 223.22 | X95: .. | Y95: 116.29 | Z95: 227 | AA95: 95.8 | AB95: .. | AC95: .. | AD95: 27.26641317 | AE95: 57.87 | AF95: 54.23 | AG95: 168.53 | AH95: .. | AI95: .. | AJ95: .. | AK95: .. | AL95: 68.34 | AM95: .. | AN95: 0.164 | AO95: 0.157 | AP95: 1.0569 | AQ95: 0.3698285862 | AR95: .. | AS95: 2.2928048 | AT95: 0.129411194 | AU95: 0.14550492 | AV95: 0.0452 | AW95: 1299.43 | AX95: .. | AY95: 38.33 | AZ95: .. | BA95: 164.6137443 | BB95: .. | BC95: .. | BD95: 0.6614 | BE95: .. | BF95: 0.4114 | BG95: 12 | BH95: 68.5 | BI95: 46.5 | BJ95: 49.25 | BK95: 25.5 | BL95: 540.1318359 | BM95: 8.86 | BN95: 994.72 | BO95: 226.6 | BP95: 3351 | BQ95: 1935.7 | BR95: 272.1 | BS95: 34.95 | BT95: 110.5 | BU95: 1.293 | BV95: .. | BW95: 175.49 | BX95: .. | BY95: .. | BZ95: .. | CA95: .. | CB95: .. | CC95: .. | CD95: .. | CE95: 72.39
A96: 1967M05 | B96: 1.33 | C96: .. | D96: 1.33 | E96: .. | F96: .. | G96: .. | H96: 0.16 | I96: 0.4566473763 | J96: .. | K96: 4.113828694 | L96: 0.5688 | M96: 0.8891 | N96: 0.7702765 | O96: 0.8402 | P96: 0.7308007 | Q96: 0.7986667 | R96: 0.9911996 | S96: 283.8 | T96: .. | U96: .. | V96: 288.8 | W96: 223.77 | X96: .. | Y96: 116.29 | Z96: 224 | AA96: 94.7 | AB96: .. | AC96: .. | AD96: 27.1821742 | AE96: 57.08 | AF96: 54.45 | AG96: 175.8 | AH96: .. | AI96: .. | AJ96: .. | AK96: .. | AL96: 68.34 | AM96: .. | AN96: 0.1499 | AO96: 0.1474 | AP96: 1.0351 | AQ96: 0.3703713238 | AR96: .. | AS96: 2.2928048 | AT96: 0.129411194 | AU96: 0.14770954 | AV96: 0.056 | AW96: 1299.43 | AX96: .. | AY96: 38.89 | AZ96: .. | BA96: 165.9081117 | BB96: .. | BC96: .. | BD96: 0.6614 | BE96: .. | BF96: 0.4039 | BG96: 12 | BH96: 68.5 | BI96: 46.5 | BJ96: 49.25 | BK96: 25.5 | BL96: 540.1318359 | BM96: 8.86 | BN96: 1036.17 | BO96: 226.2 | BP96: 3357.6 | BQ96: 1935.7 | BR96: 275.1 | BS96: 34.95 | BT96: 110.5 | BU96: 1.2959 | BV96: .. | BW96: 181.47 | BX96: .. | BY96: .. | BZ96: .. | CA96: .. | CB96: .. | CC96: .. | CD96: .. | CE96: 72.39
A97: 1967M06 | B97: 1.33 | C97: .. | D97: 1.33 | E97: .. | F97: .. | G97: .. | H97: 0.16 | I97: 0.4566473763 | J97: .. | K97: 4.113828694 | L97: 0.5792 | M97: 0.9092 | N97: 0.7824016 | O97: 0.8402 | P97: 0.7308007 | Q97: 0.7986667 | R97: 0.9911996 | S97: 319.7 | T97: .. | U97: .. | V97: 293.76 | W97: 229.28 | X97: .. | Y97: 117.4 | Z97: 226 | AA97: 98.9 | AB97: .. | AC97: .. | AD97: 26.89027256 | AE97: 57.08 | AF97: 52.91 | AG97: 184.54 | AH97: .. | AI97: .. | AJ97: .. | AK97: .. | AL97: 66.51 | AM97: .. | AN97: 0.1609 | AO97: 0.159 | AP97: 1.0362 | AQ97: 0.3717870654 | AR97: .. | AS97: 2.2928048 | AT97: 0.129411194 | AU97: 0.14770954 | AV97: 0.0547 | AW97: 1299.43 | AX97: .. | AY97: 38.89 | AZ97: .. | BA97: 165.9081117 | BB97: .. | BC97: .. | BD97: 0.6667 | BE97: .. | BF97: 0.4112 | BG97: 12 | BH97: 68.5 | BI97: 46.5 | BJ97: 49.25 | BK97: 25.5 | BL97: 540.1318359 | BM97: 8.86 | BN97: 1015.22 | BO97: 228.2 | BP97: 3366.5 | BQ97: 1935.7 | BR97: 274.3 | BS97: 34.95 | BT97: 110.5 | BU97: 1.301 | BV97: .. | BW97: 196.43 | BX97: .. | BY97: .. | BZ97: .. | CA97: .. | CB97: .. | CC97: .. | CD97: .. | CE97: 71.72
A98: 1967M07 | B98: 1.33 | C98: .. | D98: 1.33 | E98: .. | F98: .. | G98: .. | H98: 0.16 | I98: 0.4566473763 | J98: .. | K98: 4.113828694 | L98: 0.5686 | M98: 0.9026 | N98: 0.7407352 | O98: 0.8402 | P98: 0.7308007 | Q98: 0.7986667 | R98: 0.9911996 | S98: 318.3 | T98: .. | U98: .. | V98: 294.59 | W98: 228.73 | X98: .. | Y98: 115.19 | Z98: 212 | AA98: 98.9 | AB98: .. | AC98: .. | AD98: 26.27104018 | AE98: 55.12 | AF98: 52.03 | AG98: 206.24 | AH98: .. | AI98: .. | AJ98: .. | AK98: .. | AL98: 64.67 | AM98: .. | AN98: 0.159 | AO98: 0.159 | AP98: 1.0353 | AQ98: 0.3725165369 | AR98: .. | AS98: 2.2928048 | AT98: 0.129411194 | AU98: 0.14770954 | AV98: 0.037 | AW98: 1299.43 | AX98: .. | AY98: 38.89 | AZ98: .. | BA98: 165.9081117 | BB98: .. | BC98: .. | BD98: 0.668 | BE98: .. | BF98: 0.3988 | BG98: 12 | BH98: 68.5 | BI98: 43.5 | BJ98: 49.25 | BK98: 25.5 | BL98: 540.1318359 | BM98: 8.86 | BN98: 997.37 | BO98: 231.3 | BP98: 3362 | BQ98: 1935.7 | BR98: 267.2 | BS98: 34.95 | BT98: 110.5 | BU98: 1.5929 | BV98: .. | BW98: 199.79 | BX98: .. | BY98: .. | BZ98: .. | CA98: .. | CB98: .. | CC98: .. | CD98: .. | CE98: 70.36
A99: 1967M08 | B99: 1.33 | C99: .. | D99: 1.33 | E99: .. | F99: .. | G99: .. | H99: 0.16 | I99: 0.4566473763 | J99: .. | K99: 4.113828694 | L99: 0.5855 | M99: 0.8761 | N99: 0.7175872 | O99: 0.8402 | P99: 0.7308007 | Q99: 0.7986667 | R99: 0.9911996 | S99: 310 | T99: .. | U99: .. | V99: 291.56 | W99: 228.73 | X99: .. | Y99: 111.13 | Z99: 210 | AA99: 98.9 | AB99: .. | AC99: .. | AD99: 25.64879656 | AE99: 51.97 | AF99: 50.26 | AG99: 207.22 | AH99: .. | AI99: .. | AJ99: .. | AK99: .. | AL99: 63.93 | AM99: .. | AN99: 0.1499 | AO99: 0.159 | AP99: 1.0285 | AQ99: 0.3732474397 | AR99: .. | AS99: 2.2928048 | AT99: 0.129411194 | AU99: 0.14770954 | AV99: 0.0362 | AW99: 1299.43 | AX99: .. | AY99: 38.89 | AZ99: .. | BA99: 165.9081117 | BB99: .. | BC99: .. | BD99: 0.6775 | BE99: .. | BF99: 0.3748 | BG99: 12 | BH99: 68.5 | BI99: 43.5 | BJ99: 49.25 | BK99: 25.5 | BL99: 540.1318359 | BM99: 8.86 | BN99: 1044.55 | BO99: 232.3 | BP99: 3291.5 | BQ99: 1935.7 | BR99: 268.7 | BS99: 34.95 | BT99: 110.5 | BU99: 1.7498 | BV99: .. | BW99: 192.19 | BX99: .. | BY99: .. | BZ99: .. | CA99: .. | CB99: .. | CC99: .. | CD99: .. | CE99: 69.34
A100: 1967M09 | B100: 1.33 | C100: .. | D100: 1.33 | E100: .. | F100: .. | G100: .. | H100: 0.16 | I100: 0.4566473763 | J100: .. | K100: 4.113828694 | L100: 0.6239 | M100: 0.8607 | N100: 0.7239805 | O100: 0.8402 | P100: 0.7308007 | Q100: 0.7986667 | R100: 0.9911996 | S100: 324.9 | T100: .. | U100: .. | V100: 275.3 | W100: 225.15 | X100: .. | Y100: 111.06 | Z100: 206 | AA100: 98.9 | AB100: .. | AC100: .. | AD100: 25.07862494 | AE100: 49.21 | AF100: 49.6 | AG100: 221.64 | AH100: .. | AI100: .. | AJ100: .. | AK100: .. | AL100: 63.2 | AM100: .. | AN100: 0.1799 | AO100: 0.159 | AP100: 1.0384 | AQ100: 0.3739797765 | AR100: .. | AS100: 2.2928048 | AT100: 0.129411194 | AU100: 0.14770954 | AV100: 0.037 | AW100: 1299.43 | AX100: .. | AY100: 40.28 | AZ100: .. | BA100: 169.084361 | BB100: .. | BC100: .. | BD100: 0.6909 | BE100: .. | BF100: 0.3649 | BG100: 12 | BH100: 68.5 | BI100: 43.5 | BJ100: 49.25 | BK100: 25.5 | BL100: 540.1318359 | BM100: 8.86 | BN100: 1060.2 | BO100: 226.9 | BP100: 3267.2 | BQ100: 1935.7 | BR100: 264.6 | BS100: 34.95 | BT100: 110.5 | BU100: 1.6795 | BV100: .. | BW100: 197.62 | BX100: .. | BY100: .. | BZ100: .. | CA100: .. | CB100: .. | CC100: .. | CD100: .. | CE100: 65.6
A101: 1967M10 | B101: 1.33 | C101: .. | D101: 1.33 | E101: .. | F101: .. | G101: .. | H101: 0.16 | I101: 0.4566473763 | J101: .. | K101: 4.113828694 | L101: 0.6078 | M101: 0.8472 | N101: 0.729492 | O101: 0.8402 | P101: 0.7308007 | Q101: 0.7986667 | R101: 0.9911996 | S101: 350.5 | T101: .. | U101: .. | V101: 259.04 | W101: 221.56 | X101: .. | Y101: 109.96 | Z101: 203 | AA101: 98.9 | AB101: .. | AC101: .. | AD101: 24.97713143 | AE101: 48.03 | AF101: 49.38 | AG101: 224.12 | AH101: .. | AI101: .. | AJ101: .. | AK101: .. | AL101: 63.57 | AM101: .. | AN101: 0.179 | AO101: 0.159 | AP101: 1.0432 | AQ101: 0.3747135502 | AR101: .. | AS101: 2.2928048 | AT101: 0.129411194 | AU101: 0.14991416 | AV101: 0.0428 | AW101: 1299.43 | AX101: .. | AY101: 41.67 | AZ101: .. | BA101: 172.2105768 | BB101: .. | BC101: .. | BD101: 0.7024 | BE101: .. | BF101: 0.3618 | BG101: 12 | BH101: 68.5 | BI101: 43.5 | BJ101: 49.25 | BK101: 25.5 | BL101: 540.1318359 | BM101: 8.86 | BN101: 1138.47 | BO101: 225.7 | BP101: 3280.5 | BQ101: 1935.7 | BR101: 263.9 | BS101: 34.95 | BT101: 110.5 | BU101: 1.7859 | BV101: .. | BW101: 223.22 | BX101: .. | BY101: .. | BZ101: .. | CA101: .. | CB101: .. | CC101: .. | CD101: .. | CE101: 65.94
A102: 1967M11 | B102: 1.33 | C102: .. | D102: 1.33 | E102: .. | F102: .. | G102: .. | H102: 0.16 | I102: 0.4566473763 | J102: .. | K102: 4.113828694 | L102: 0.6442 | M102: 0.8666 | N102: 0.7477898 | O102: 0.8402 | P102: 0.7308007 | Q102: 0.7986667 | R102: 0.9911996 | S102: 376.2 | T102: .. | U102: .. | V102: 248.02 | W102: 217.98 | X102: .. | Y102: 116.02 | Z102: 211 | AA102: 98.9 | AB102: .. | AC102: .. | AD102: 24.81447247 | AE102: 47.64 | AF102: 48.94 | AG102: 213.57 | AH102: .. | AI102: .. | AJ102: .. | AK102: .. | AL102: 62.83 | AM102: .. | AN102: 0.1649 | AO102: 0.159 | AP102: 1.0126 | AQ102: 0.3754487637 | AR102: .. | AS102: 2.2928048 | AT102: 0.129411194 | AU102: 0.14991416 | AV102: 0.0485 | AW102: 1299.43 | AX102: .. | AY102: 41.67 | AZ102: .. | BA102: 172.2105768 | BB102: .. | BC102: .. | BD102: 0.7055 | BE102: .. | BF102: 0.3541 | BG102: 12 | BH102: 68.5 | BI102: 43.5 | BJ102: 49.25 | BK102: 25.5 | BL102: 540.1318359 | BM102: 8.86 | BN102: 1443.81 | BO102: 242.1 | BP102: 3298.1 | BQ102: 1935.7 | BR102: 287 | BS102: 34.95 | BT102: 110.5 | BU102: 1.9532 | BV102: .. | BW102: 262.98 | BX102: .. | BY102: .. | BZ102: .. | CA102: .. | CB102: .. | CC102: .. | CD102: .. | CE102: 65.58
A103: 1967M12 | B103: 1.33 | C103: .. | D103: 1.33 | E103: .. | F103: .. | G103: .. | H103: 0.16 | I103: 0.4566473763 | J103: .. | K103: 4.113828694 | L103: 0.6471 | M103: 0.8512 | N103: 0.7499944 | O103: 0.7915 | P103: 0.5846411 | Q103: 0.7986667 | R103: 0.9911996 | S103: 386.7 | T103: .. | U103: .. | V103: 250.85 | W103: 194.87 | X103: .. | Y103: 113.38 | Z103: 196 | AA103: 98.9 | AB103: .. | AC103: .. | AD103: 24.589256 | AE103: 46.9 | AF103: 50.26 | AG103: 213.57 | AH103: .. | AI103: .. | AJ103: .. | AK103: .. | AL103: 62.1 | AM103: .. | AN103: 0.134 | AO103: 0.1667 | AP103: 1.0201 | AQ103: 0.3761854197 | AR103: .. | AS103: 2.2928048 | AT103: 0.129411194 | AU103: 0.14770954 | AV103: 0.047 | AW103: 1299.43 | AX103: .. | AY103: 41.67 | AZ103: .. | BA103: 172.2105768 | BB103: .. | BC103: .. | BD103: 0.7165 | BE103: .. | BF103: 0.3574 | BG103: 12 | BH103: 68.5 | BI103: 43.5 | BJ103: 49.25 | BK103: 25.5 | BL103: 540.1318359 | BM103: 8.86 | BN103: 1324.09 | BO103: 222.4 | BP103: 3192.3 | BQ103: 1935.7 | BR103: 266.1 | BS103: 34.95 | BT103: 115.05 | BU103: 2.06 | BV103: .. | BW103: 257.16 | BX103: .. | BY103: .. | BZ103: .. | CA103: .. | CB103: .. | CC103: .. | CD103: .. | CE103: 64.92
A104: 1968M01 | B104: 1.32 | C104: .. | D104: 1.32 | E104: .. | F104: .. | G104: .. | H104: 0.16 | I104: 0.4518018774 | J104: .. | K104: 4.090793326 | L104: 0.6543 | M104: 0.866 | N104: 0.7596945 | O104: 0.7487 | P104: 0.6770413 | Q104: 0.7333334 | R104: 0.8357997 | S104: 398 | T104: .. | U104: .. | V104: 251.33 | W104: 191.33 | X104: .. | Y104: 114.09 | Z104: 196 | AA104: 97 | AB104: .. | AC104: .. | AD104: 25.45191586 | AE104: 51.57 | AF104: 55.6 | AG104: 198.78 | AH104: .. | AI104: .. | AJ104: .. | AK104: .. | AL104: 62.1 | AM104: .. | AN104: 0.114 | AO104: 0.1628 | AP104: 1.026 | AQ104: 0.3766110917 | AR104: .. | AS104: 2.5794054 | AT104: 0.112215158 | AU104: 0.14991416 | AV104: 0.0467 | AW104: 1253.81 | AX104: .. | AY104: 41.67 | AZ104: .. | BA104: 172.2105768 | BB104: .. | BC104: .. | BD104: 0.7165 | BE104: .. | BF104: 0.347 | BG104: 11.5 | BH104: 60.5 | BI104: 39 | BJ104: 35.5 | BK104: 24 | BL104: 540.1318359 | BM104: 8.77 | BN104: 1408.75 | BO104: 218 | BP104: 3126.2 | BQ104: 2074.5 | BR104: 262.8 | BS104: 35.5 | BT104: 114 | BU104: 1.9899 | BV104: .. | BW104: 262.29 | BX104: .. | BY104: .. | BZ104: .. | CA104: .. | CB104: .. | CC104: .. | CD104: .. | CE104: 67.3
A105: 1968M02 | B105: 1.32 | C105: .. | D105: 1.32 | E105: .. | F105: .. | G105: .. | H105: 0.16 | I105: 0.4518018774 | J105: .. | K105: 4.090793326 | L105: 0.6321 | M105: 0.8691 | N105: 0.7566082 | O105: 0.7487 | P105: 0.6770413 | Q105: 0.7333334 | R105: 0.8357997 | S105: 412.2 | T105: .. | U105: .. | V105: 255.34 | W105: 191.33 | X105: .. | Y105: 114.56 | Z105: 193 | AA105: 97 | AB105: .. | AC105: .. | AD105: 25.56406273 | AE105: 51.18 | AF105: 58.1 | AG105: 207.03 | AH105: .. | AI105: .. | AJ105: .. | AK105: .. | AL105: 62.83 | AM105: .. | AN105: 0.166 | AO105: 0.1706 | AP105: 1.0226 | AQ105: 0.377938804 | AR105: .. | AS105: 2.5794054 | AT105: 0.112215158 | AU105: 0.14991416 | AV105: 0.0461 | AW105: 1248.52 | AX105: .. | AY105: 41.67 | AZ105: .. | BA105: 172.2105768 | BB105: .. | BC105: .. | BD105: 0.7128 | BE105: .. | BF105: 0.3269 | BG105: 11.5 | BH105: 60.5 | BI105: 39 | BJ105: 35.5 | BK105: 24 | BL105: 540.1318359 | BM105: 8.77 | BN105: 1719.82 | BO105: 227.5 | BP105: 3110.7 | BQ105: 2074.5 | BR105: 259.7 | BS105: 36 | BT105: 111.5 | BU105: 1.8547 | BV105: .. | BW105: 263.51 | BX105: .. | BY105: .. | BZ105: .. | CA105: .. | CB105: .. | CC105: .. | CD105: .. | CE105: 65.26
A106: 1968M03 | B106: 1.32 | C106: .. | D106: 1.32 | E106: .. | F106: .. | G106: .. | H106: 0.16 | I106: 0.4518018774 | J106: .. | K106: 4.090793326 | L106: 0.6235 | M106: 0.8821 | N106: 0.7548445 | O106: 0.7487 | P106: 0.6770413 | Q106: 0.7333334 | R106: 0.8357997 | S106: 423 | T106: .. | U106: .. | V106: 256.52 | W106: 191.33 | X106: .. | Y106: 115.51 | Z106: 191 | AA106: 96 | AB106: .. | AC106: .. | AD106: 25.53764357 | AE106: 50 | AF106: 57 | AG106: 209.78 | AH106: .. | AI106: .. | AJ106: .. | AK106: .. | AL106: 63.57 | AM106: .. | AN106: 0.162 | AO106: 0.1807 | AP106: 1.0251 | AQ106: 0.3791032216 | AR106: .. | AS106: 2.5794054 | AT106: 0.112215158 | AU106: 0.14991416 | AV106: 0.0417 | AW106: 1234.74 | AX106: .. | AY106: 41.67 | AZ106: .. | BA106: 172.2105768 | BB106: .. | BC106: .. | BD106: 0.7099 | BE106: .. | BF106: 0.3563 | BG106: 11.5 | BH106: 60.5 | BI106: 39 | BJ106: 35.5 | BK106: 24 | BL106: 540.1318359 | BM106: 8.77 | BN106: 1701.08 | BO106: 233.9 | BP106: 3112.9 | BQ106: 2074.5 | BR106: 257.5 | BS106: 37 | BT106: 111.5 | BU106: 2.1805 | BV106: .. | BW106: 271.55 | BX106: .. | BY106: .. | BZ106: .. | CA106: .. | CB106: .. | CC106: .. | CD106: .. | CE106: 65.94
A107: 1968M04 | B107: 1.32 | C107: .. | D107: 1.32 | E107: .. | F107: .. | G107: .. | H107: 0.16 | I107: 0.4518018774 | J107: .. | K107: 4.090793326 | L107: 0.6288 | M107: 0.886 | N107: 0.7533013 | O107: 0.7487 | P107: 0.6770413 | Q107: 0.7333334 | R107: 0.8357997 | S107: 435.8 | T107: .. | U107: .. | V107: 259.59 | W107: 188.97 | X107: .. | Y107: 113.14 | Z107: 190 | AA107: 95 | AB107: .. | AC107: .. | AD107: 24.88921296 | AE107: 48.03 | AF107: 57 | AG107: 197.01 | AH107: .. | AI107: .. | AJ107: .. | AK107: .. | AL107: 61.73 | AM107: .. | AN107: 0.1744 | AO107: 0.1818 | AP107: 1.0459 | AQ107: 0.3802694627 | AR107: .. | AS107: 2.5794054 | AT107: 0.112215158 | AU107: 0.14991416 | AV107: 0.0388 | AW107: 1210.46 | AX107: .. | AY107: 41.67 | AZ107: .. | BA107: 172.2105768 | BB107: .. | BC107: .. | BD107: 0.711 | BE107: .. | BF107: 0.3587 | BG107: 11.5 | BH107: 60.5 | BI107: 39 | BJ107: 35.5 | BK107: 24 | BL107: 540.1318359 | BM107: 8.77 | BN107: 1255.09 | BO107: 235 | BP107: 3106.3 | BQ107: 2074.5 | BR107: 258.2 | BS107: 37.86 | BT107: 111.5 | BU107: 2.2028 | BV107: .. | BW107: 271.17 | BX107: .. | BY107: .. | BZ107: .. | CA107: .. | CB107: .. | CC107: .. | CD107: .. | CE107: 65.94
A108: 1968M05 | B108: 1.32 | C108: .. | D108: 1.32 | E108: .. | F108: .. | G108: .. | H108: 0.16 | I108: 0.4518018774 | J108: .. | K108: 4.090793326 | L108: 0.6243 | M108: 0.8816 | N108: 0.7550649 | O108: 0.7487 | P108: 0.6770413 | Q108: 0.7333334 | R108: 0.8357997 | S108: 439.8 | T108: .. | U108: .. | V108: 271.64 | W108: 186.13 | X108: .. | Y108: 114.32 | Z108: 189 | AA108: 96 | AB108: .. | AC108: .. | AD108: 24.72536842 | AE108: 48.42 | AF108: 53.1 | AG108: 187.09 | AH108: .. | AI108: .. | AJ108: .. | AK108: .. | AL108: 60.26 | AM108: .. | AN108: 0.183 | AO108: 0.1918 | AP108: 1.0785 | AQ108: 0.3817809296 | AR108: .. | AS108: 2.5794054 | AT108: 0.112215158 | AU108: 0.15211878 | AV108: 0.0414 | AW108: 1200.88 | AX108: .. | AY108: 41.67 | AZ108: .. | BA108: 172.2105768 | BB108: .. | BC108: .. | BD108: 0.7097 | BE108: .. | BF108: 0.3704 | BG108: 11.5 | BH108: 60.5 | BI108: 39 | BJ108: 35.5 | BK108: 24 | BL108: 540.1318359 | BM108: 8.77 | BN108: 1096.58 | BO108: 237.7 | BP108: 3084.3 | BQ108: 2074.5 | BR108: 261.5 | BS108: 40.7 | BT108: 111.5 | BU108: 2.3768 | BV108: .. | BW108: 281.87 | BX108: .. | BY108: .. | BZ108: .. | CA108: .. | CB108: .. | CC108: .. | CD108: .. | CE108: 65.6
A109: 1968M06 | B109: 1.32 | C109: .. | D109: 1.32 | E109: .. | F109: .. | G109: .. | H109: 0.16 | I109: 0.4518018774 | J109: .. | K109: 4.090793326 | L109: 0.6133 | M109: 0.888 | N109: 0.7566082 | O109: 0.7487 | P109: 0.6770413 | Q109: 0.7333334 | R109: 0.8357997 | S109: 406.8 | T109: .. | U109: .. | V109: 279.2 | W109: 174.79 | X109: .. | Y109: 111.96 | Z109: 178 | AA109: 96 | AB109: .. | AC109: .. | AD109: 24.90161395 | AE109: 47.64 | AF109: 51.3 | AG109: 179.34 | AH109: .. | AI109: .. | AJ109: .. | AK109: .. | AL109: 61.73 | AM109: .. | AN109: 0.1523 | AO109: 0.1587 | AP109: 1.1062 | AQ109: 0.3831268677 | AR109: .. | AS109: 2.5794054 | AT109: 0.112215158 | AU109: 0.1543234 | AV109: 0.0384 | AW109: 1205.41 | AX109: .. | AY109: 38.89 | AZ109: .. | BA109: 165.9081117 | BB109: .. | BC109: .. | BD109: 0.7 | BE109: .. | BF109: 0.3986 | BG109: 11.5 | BH109: 60.5 | BI109: 39 | BJ109: 35.5 | BK109: 24 | BL109: 562.1779785 | BM109: 8.77 | BN109: 1136.7 | BO109: 238.5 | BP109: 3084.3 | BQ109: 2074.5 | BR109: 262.1 | BS109: 41.14 | BT109: 111.5 | BU109: 2.4641 | BV109: .. | BW109: 237.93 | BX109: .. | BY109: .. | BZ109: .. | CA109: .. | CB109: .. | CC109: .. | CD109: .. | CE109: 66.96
A110: 1968M07 | B110: 1.32 | C110: .. | D110: 1.32 | E110: .. | F110: .. | G110: .. | H110: 0.16 | I110: 0.4518018774 | J110: .. | K110: 4.090793326 | L110: 0.6257 | M110: 0.8814 | N110: 0.749774 | O110: 0.7487 | P110: 0.6770413 | Q110: 0.7333334 | R110: 0.8357997 | S110: 377.9 | T110: .. | U110: .. | V110: 261.25 | W110: 172.43 | X110: .. | Y110: 110.78 | Z110: 162 | AA110: 96 | AB110: .. | AC110: .. | AD110: 25.20781033 | AE110: 47.24 | AF110: 49.8 | AG110: 181.69 | AH110: .. | AI110: .. | AJ110: .. | AK110: .. | AL110: 63.57 | AM110: .. | AN110: 0.1585 | AO110: 0.1587 | AP110: 1.0992 | AQ110: 0.3844775509 | AR110: .. | AS110: 2.5794054 | AT110: 0.112215158 | AU110: 0.1543234 | AV110: 0.0359 | AW110: 1173.9 | AX110: .. | AY110: 38.89 | AZ110: .. | BA110: 165.9081117 | BB110: .. | BC110: .. | BD110: 0.6918 | BE110: .. | BF110: 0.3913 | BG110: 11.5 | BH110: 60.5 | BI110: 36 | BJ110: 35.5 | BK110: 24 | BL110: 562.1779785 | BM110: 8.77 | BN110: 1054.25 | BO110: 247.1 | BP110: 3075.4 | BQ110: 2074.5 | BR110: 265.7 | BS110: 39.46 | BT110: 122.5 | BU110: 2.3138 | BV110: .. | BW110: 195.34 | BX110: .. | BY110: .. | BZ110: .. | CA110: .. | CB110: .. | CC110: .. | CD110: .. | CE110: 67.64
A111: 1968M08 | B111: 1.32 | C111: .. | D111: 1.32 | E111: .. | F111: .. | G111: .. | H111: 0.16 | I111: 0.4518018774 | J111: .. | K111: 4.090793326 | L111: 0.6526 | M111: 0.8662 | N111: 0.7475694 | O111: 0.7487 | P111: 0.6770413 | Q111: 0.7333334 | R111: 0.8357997 | S111: 385.5 | T111: .. | U111: .. | V111: 266.68 | W111: 150.23 | X111: .. | Y111: 105.82 | Z111: 157 | AA111: 96 | AB111: .. | AC111: .. | AD111: 24.87051229 | AE111: 44.88 | AF111: 46.9 | AG111: 177.69 | AH111: .. | AI111: .. | AJ111: .. | AK111: .. | AL111: 63.93 | AM111: .. | AN111: 0.1378 | AO111: 0.1587 | AP111: 1.0968 | AQ111: 0.3858329958 | AR111: .. | AS111: 2.5794054 | AT111: 0.112215158 | AU111: 0.1543234 | AV111: 0.0337 | AW111: 1180.58 | AX111: .. | AY111: 38.89 | AZ111: .. | BA111: 165.9081117 | BB111: .. | BC111: .. | BD111: 0.6837 | BE111: .. | BF111: 0.3979 | BG111: 11.5 | BH111: 60.5 | BI111: 36 | BJ111: 35.5 | BK111: 24 | BL111: 562.1779785 | BM111: 8.77 | BN111: 1056.45 | BO111: 250.2 | BP111: 3062.2 | BQ111: 2074.5 | BR111: 269 | BS111: 39.19 | BT111: 122.5 | BU111: 2.1946 | BV111: .. | BW111: 210.7 | BX111: .. | BY111: .. | BZ111: .. | CA111: .. | CB111: .. | CC111: .. | CD111: .. | CE111: 67.98
A112: 1968M09 | B112: 1.32 | C112: .. | D112: 1.32 | E112: .. | F112: .. | G112: .. | H112: 0.16 | I112: 0.4518018774 | J112: .. | K112: 4.090793326 | L112: 0.7747 | M112: 0.8538 | N112: 0.749333 | O112: 0.7487 | P112: 0.6770413 | Q112: 0.7333334 | R112: 0.8357997 | S112: 375.6 | T112: .. | U112: .. | V112: 272.82 | W112: 141.73 | X112: .. | Y112: 105.35 | Z112: 161 | AA112: 99 | AB112: .. | AC112: .. | AD112: 24.69520969 | AE112: 44.09 | AF112: 47.3 | AG112: 175.8 | AH112: .. | AI112: .. | AJ112: .. | AK112: .. | AL112: 63.57 | AM112: .. | AN112: 0.1647 | AO112: 0.1587 | AP112: 1.1587 | AQ112: 0.3877028787 | AR112: .. | AS112: 2.5794054 | AT112: 0.112215158 | AU112: 0.1543234 | AV112: 0.0304 | AW112: 1228.75 | AX112: .. | AY112: 38.89 | AZ112: .. | BA112: 165.9081117 | BB112: .. | BC112: .. | BD112: 0.6634 | BE112: .. | BF112: 0.3942 | BG112: 11.5 | BH112: 60.5 | BI112: 36 | BJ112: 35.5 | BK112: 24 | BL112: 562.1779785 | BM112: 8.77 | BN112: 1110.03 | BO112: 251.5 | BP112: 3071 | BQ112: 2074.5 | BR112: 263 | BS112: 40.18 | BT112: 122.5 | BU112: 2.2085 | BV112: .. | BW112: 199.36 | BX112: .. | BY112: .. | BZ112: .. | CA112: .. | CB112: .. | CC112: .. | CD112: .. | CE112: 68.32
A113: 1968M10 | B113: 1.32 | C113: .. | D113: 1.32 | E113: .. | F113: .. | G113: .. | H113: 0.16 | I113: 0.4518018774 | J113: .. | K113: 4.090793326 | L113: 0.8305 | M113: 0.8545 | N113: 0.7400739 | O113: 0.7487 | P113: 0.6770413 | Q113: 0.7333334 | R113: 0.8357997 | S113: 373.7 | T113: .. | U113: .. | V113: 269.75 | W113: 141.73 | X113: .. | Y113: 104.17 | Z113: 166 | AA113: 98 | AB113: .. | AC113: .. | AD113: 24.88857438 | AE113: 44.88 | AF113: 48.8 | AG113: 163.72 | AH113: .. | AI113: .. | AJ113: .. | AK113: .. | AL113: 63.57 | AM113: .. | AN113: 0.1532 | AO113: 0.1587 | AP113: 1.1704 | AQ113: 0.3889008771 | AR113: .. | AS113: 2.5794054 | AT113: 0.112215158 | AU113: 0.15652802 | AV113: 0.039 | AW113: 1183.73 | AX113: .. | AY113: 38.89 | AZ113: .. | BA113: 165.9081117 | BB113: .. | BC113: .. | BD113: 0.6563 | BE113: .. | BF113: 0.4103 | BG113: 11.5 | BH113: 60.5 | BI113: 36 | BJ113: 35.5 | BK113: 24 | BL113: 562.1779785 | BM113: 8.77 | BN113: 1079.82 | BO113: 247.8 | BP113: 3110.7 | BQ113: 2074.5 | BR113: 262.1 | BS113: 39.21 | BT113: 122.5 | BU113: 1.9728 | BV113: .. | BW113: 191.09 | BX113: .. | BY113: .. | BZ113: .. | CA113: .. | CB113: .. | CC113: .. | CD113: .. | CE113: 66.96
A114: 1968M11 | B114: 1.32 | C114: .. | D114: 1.32 | E114: .. | F114: .. | G114: .. | H114: 0.16 | I114: 0.4518018774 | J114: .. | K114: 4.090793326 | L114: 0.9661 | M114: 0.8486 | N114: 0.7233191 | O114: 0.7487 | P114: 0.6770413 | Q114: 0.7333334 | R114: 0.8357997 | S114: 376 | T114: .. | U114: .. | V114: 284.63 | W114: 143.14 | X114: .. | Y114: 108.89 | Z114: 173 | AA114: 97 | AB114: .. | AC114: .. | AD114: 25.66779827 | AE114: 49.21 | AF114: 52 | AG114: 157.14 | AH114: .. | AI114: .. | AJ114: .. | AK114: .. | AL114: 63.2 | AM114: .. | AN114: 0.1373 | AO114: 0.1587 | AP114: 1.1034 | AQ114: 0.3901008409 | AR114: .. | AS114: 2.5794054 | AT114: 0.112215158 | AU114: 0.1543234 | AV114: 0.0509 | AW114: 1167.22 | AX114: .. | AY114: 38.89 | AZ114: .. | BA114: 165.9081117 | BB114: .. | BC114: .. | BD114: 0.6345 | BE114: .. | BF114: 0.4176 | BG114: 11.5 | BH114: 60.5 | BI114: 36 | BJ114: 35.5 | BK114: 24 | BL114: 562.1779785 | BM114: 8.77 | BN114: 1099.88 | BO114: 248.5 | BP114: 3320.2 | BQ114: 2074.5 | BR114: 264.1 | BS114: 39.78 | BT114: 122.5 | BU114: 2.0178 | BV114: .. | BW114: 195.11 | BX114: .. | BY114: .. | BZ114: .. | CA114: .. | CB114: .. | CC114: .. | CD114: .. | CE114: 66.62
A115: 1968M12 | B115: 1.32 | C115: .. | D115: 1.32 | E115: .. | F115: .. | G115: .. | H115: 0.16 | I115: 0.4518018774 | J115: .. | K115: 4.090793326 | L115: 1.0247 | M115: 0.8267 | N115: 0.7094303 | O115: 0.7487 | P115: 0.6770413 | Q115: 0.7333334 | R115: 0.8357997 | S115: 386.9 | T115: .. | U115: .. | V115: 320.06 | W115: 152.83 | X115: .. | Y115: 111.02 | Z115: 181 | AA115: 94 | AB115: .. | AC115: .. | AD115: 25.56693043 | AE115: 48.42 | AF115: 53.9 | AG115: 159.89 | AH115: .. | AI115: .. | AJ115: .. | AK115: .. | AL115: 63.2 | AM115: .. | AN115: 0.1338 | AO115: 0.1762 | AP115: 1.0897 | AQ115: 0.3909507187 | AR115: .. | AS115: 2.5794054 | AT115: 0.112215158 | AU115: 0.1543234 | AV115: 0.0602 | AW115: 1165.63 | AX115: .. | AY115: 38.89 | AZ115: .. | BA115: 165.9081117 | BB115: .. | BC115: .. | BD115: 0.6246 | BE115: .. | BF115: 0.4162 | BG115: 11.5 | BH115: 60.5 | BI115: 36 | BJ115: 35.5 | BK115: 24 | BL115: 562.1779785 | BM115: 8.77 | BN115: 1184.98 | BO115: 250.2 | BP115: 3258.4 | BQ115: 2074.5 | BR115: 269 | BS115: 41.08 | BT115: 122.5 | BU115: 1.9593 | BV115: .. | BW115: 205.5 | BX115: .. | BY115: .. | BZ115: .. | CA115: .. | CB115: .. | CC115: .. | CD115: .. | CE115: 66.62
A116: 1969M01 | B116: 1.27 | C116: .. | D116: 1.27 | E116: .. | F116: .. | G116: .. | H116: 0.17 | I116: 0.4518199182 | J116: .. | K116: 4.212312822 | L116: 0.9378 | M116: 0.8261 | N116: 0.7065644 | O116: 0.7262 | P116: 0.5964011 | Q116: 0.8626667 | R116: 0.7195997 | S116: 398.7 | T116: .. | U116: .. | V116: 319.59 | W116: 158.26 | X116: .. | Y116: 111.49 | Z116: 181 | AA116: 95 | AB116: .. | AC116: .. | AD116: 25.96496778 | AE116: 50.39 | AF116: 53.2 | AG116: 162.35 | AH116: .. | AI116: .. | AJ116: .. | AK116: .. | AL116: 63.2 | AM116: .. | AN116: 0.1418 | AO116: 0.145 | AP116: 1.0873 | AQ116: 0.3925064999 | AR116: .. | AS116: 2.866006 | AT116: 0.112215158 | AU116: 0.15652802 | AV116: 0.0635 | AW116: 1135.81 | AX116: .. | AY116: 38.89 | AZ116: .. | BA116: 165.9081117 | BB116: .. | BC116: .. | BD116: 0.625 | BE116: .. | BF116: 0.4262 | BG116: 11.25 | BH116: 58 | BI116: 38.5 | BJ116: 26.6 | BK116: 22 | BL116: 573.2011719 | BM116: 9.84 | BN116: 1255.53 | BO116: 254.2 | BP116: 3227.6 | BQ116: 2363.4 | BR116: 269.4 | BS116: 42.3 | BT116: 122.5 | BU116: 1.9789 | BV116: .. | BW116: 205.97 | BX116: .. | BY116: .. | BZ116: .. | CA116: .. | CB116: .. | CC116: .. | CD116: .. | CE116: 66.62
A117: 1969M02 | B117: 1.27 | C117: .. | D117: 1.27 | E117: .. | F117: .. | G117: .. | H117: 0.17 | I117: 0.4518199182 | J117: .. | K117: 4.212312822 | L117: 0.9105 | M117: 0.8419 | N117: 0.7081076 | O117: 0.7262 | P117: 0.5964011 | Q117: 0.8626667 | R117: 0.7195997 | S117: 396.4 | T117: .. | U117: .. | V117: 346.05 | W117: 158.26 | X117: .. | Y117: 109.36 | Z117: 185 | AA117: 95 | AB117: .. | AC117: .. | AD117: 25.93808894 | AE117: 50.39 | AF117: 54.1 | AG117: 160.48 | AH117: .. | AI117: .. | AJ117: .. | AK117: .. | AL117: 62.83 | AM117: .. | AN117: 0.1413 | AO117: 0.1493 | AP117: 1.0911 | AQ117: 0.3939871603 | AR117: .. | AS117: 2.866006 | AT117: 0.112215158 | AU117: 0.15652802 | AV117: 0.0688 | AW117: 1097.91 | AX117: .. | AY117: 38.89 | AZ117: .. | BA117: 165.9081117 | BB117: .. | BC117: .. | BD117: 0.6283 | BE117: .. | BF117: 0.4707 | BG117: 11.25 | BH117: 58 | BI117: 38.5 | BJ117: 26.6 | BK117: 22 | BL117: 584.2243652 | BM117: 9.84 | BN117: 1285.29 | BO117: 258.4 | BP117: 3245.2 | BQ117: 2363.4 | BR117: 267.4 | BS117: 42.6 | BT117: 122.5 | BU117: 1.8397 | BV117: .. | BW117: 192.39 | BX117: .. | BY117: .. | BZ117: .. | CA117: .. | CB117: .. | CC117: .. | CD117: .. | CE117: 66.62
A118: 1969M03 | B118: 1.27 | C118: .. | D118: 1.27 | E118: .. | F118: .. | G118: .. | H118: 0.17 | I118: 0.4518199182 | J118: .. | K118: 4.212312822 | L118: 0.8984 | M118: 0.8294 | N118: 0.6871642 | O118: 0.7262 | P118: 0.5964011 | Q118: 0.8626667 | R118: 0.7195997 | S118: 388.1 | T118: .. | U118: .. | V118: 347.82 | W118: 179.52 | X118: .. | Y118: 110.55 | Z118: 178 | AA118: 94 | AB118: .. | AC118: .. | AD118: 25.84218777 | AE118: 50.39 | AF118: 53.1 | AG118: 166.96 | AH118: .. | AI118: .. | AJ118: .. | AK118: .. | AL118: 62.1 | AM118: .. | AN118: 0.1521 | AO118: 0.1664 | AP118: 1.125 | AQ118: 0.3952945487 | AR118: .. | AS118: 2.866006 | AT118: 0.112215158 | AU118: 0.15873264 | AV118: 0.0774 | AW118: 1098.65 | AX118: .. | AY118: 38.89 | AZ118: .. | BA118: 165.9081117 | BB118: .. | BC118: .. | BD118: 0.6283 | BE118: .. | BF118: 0.509 | BG118: 11.25 | BH118: 58 | BI118: 38.5 | BJ118: 26.6 | BK118: 22 | BL118: 584.2243652 | BM118: 9.84 | BN118: 1278.46 | BO118: 261.2 | BP118: 3243 | BQ118: 2363.4 | BR118: 271.6 | BS118: 43.16 | BT118: 122.5 | BU118: 1.8257 | BV118: .. | BW118: 194.97 | BX118: .. | BY118: .. | BZ118: .. | CA118: .. | CB118: .. | CC118: .. | CD118: .. | CE118: 65.94
A119: 1969M04 | B119: 1.27 | C119: .. | D119: 1.27 | E119: .. | F119: .. | G119: .. | H119: 0.17 | I119: 0.4518199182 | J119: .. | K119: 4.212312822 | L119: 0.8759 | M119: 0.8135 | N119: 0.6589457 | O119: 0.7262 | P119: 0.5964011 | Q119: 0.8626667 | R119: 0.7195997 | S119: 376.3 | T119: .. | U119: .. | V119: 340.14 | W119: 170.07 | X119: .. | Y119: 110.07 | Z119: 167 | AA119: 95 | AB119: .. | AC119: .. | AD119: 26.09310282 | AE119: 51.57 | AF119: 51.9 | AG119: 165.2 | AH119: .. | AI119: .. | AJ119: .. | AK119: .. | AL119: 62.1 | AM119: .. | AN119: 0.1512 | AO119: 0.1845 | AP119: 1.1632 | AQ119: 0.3969652587 | AR119: .. | AS119: 2.866006 | AT119: 0.112215158 | AU119: 0.15873264 | AV119: 0.0805 | AW119: 1110.75 | AX119: .. | AY119: 38.89 | AZ119: .. | BA119: 165.9081117 | BB119: .. | BC119: .. | BD119: 0.6272 | BE119: .. | BF119: 0.5192 | BG119: 11.25 | BH119: 58 | BI119: 38.5 | BJ119: 26.6 | BK119: 22 | BL119: 584.2243652 | BM119: 9.84 | BN119: 1388.03 | BO119: 268.3 | BP119: 3304.7 | BQ119: 2363.4 | BR119: 272.7 | BS119: 43.31 | BT119: 122.5 | BU119: 1.7781 | BV119: .. | BW119: 192.89 | BX119: .. | BY119: .. | BZ119: .. | CA119: .. | CB119: .. | CC119: .. | CD119: .. | CE119: 64.58
A120: 1969M05 | B120: 1.27 | C120: .. | D120: 1.27 | E120: .. | F120: .. | G120: .. | H120: 0.17 | I120: 0.4518199182 | J120: .. | K120: 4.212312822 | L120: 0.8089 | M120: 0.8093 | N120: 0.6496865 | O120: 0.7262 | P120: 0.5964011 | Q120: 0.8626667 | R120: 0.7195997 | S120: 353.1 | T120: .. | U120: .. | V120: 345.17 | W120: 166.29 | X120: .. | Y120: 112.44 | Z120: 170 | AA120: 96 | AB120: .. | AC120: .. | AD120: 26.61187885 | AE120: 54.33 | AF120: 49.9 | AG120: 171.09 | AH120: .. | AI120: .. | AJ120: .. | AK120: .. | AL120: 62.1 | AM120: .. | AN120: 0.1739 | AO120: 0.176 | AP120: 1.241 | AQ120: 0.3986411416 | AR120: .. | AS120: 2.866006 | AT120: 0.112215158 | AU120: 0.15873264 | AV120: 0.0805 | AW120: 1114.63 | AX120: .. | AY120: 38.89 | AZ120: .. | BA120: 165.9081117 | BB120: .. | BC120: .. | BD120: 0.6327 | BE120: .. | BF120: 0.4971 | BG120: 11.25 | BH120: 58 | BI120: 38.5 | BJ120: 26.6 | BK120: 22 | BL120: 584.2243652 | BM120: 9.84 | BN120: 1392.44 | BO120: 278.2 | BP120: 3355.4 | BQ120: 2363.4 | BR120: 278.9 | BS120: 43.46 | BT120: 122.5 | BU120: 1.761 | BV120: .. | BW120: 181.98 | BX120: .. | BY120: .. | BZ120: .. | CA120: .. | CB120: .. | CC120: .. | CD120: .. | CE120: 64.58
A121: 1969M06 | B121: 1.27 | C121: .. | D121: 1.27 | E121: .. | F121: .. | G121: .. | H121: 0.17 | I121: 0.4518199182 | J121: .. | K121: 4.212312822 | L121: 0.8929 | M121: 0.795 | N121: 0.6772437 | O121: 0.7262 | P121: 0.5964011 | Q121: 0.8626667 | R121: 0.7195997 | S121: 339 | T121: .. | U121: .. | V121: 315.1 | W121: 165.35 | X121: .. | Y121: 109.6 | Z121: 173 | AA121: 99 | AB121: .. | AC121: .. | AD121: 26.58305778 | AE121: 54.33 | AF121: 49 | AG121: 178.75 | AH121: .. | AI121: .. | AJ121: .. | AK121: .. | AL121: 61.73 | AM121: .. | AN121: 0.1609 | AO121: 0.176 | AP121: 1.312 | AQ121: 0.4006716515 | AR121: .. | AS121: 2.866006 | AT121: 0.112215158 | AU121: 0.15873264 | AV121: 0.0803 | AW121: 1125.81 | AX121: .. | AY121: 38.89 | AZ121: .. | BA121: 165.9081117 | BB121: .. | BC121: .. | BD121: 0.6248 | BE121: .. | BF121: 0.5126 | BG121: 11.25 | BH121: 58 | BI121: 38.5 | BJ121: 26.6 | BK121: 22 | BL121: 584.2243652 | BM121: 9.84 | BN121: 1483.04 | BO121: 285.5 | BP121: 3379.7 | BQ121: 2363.4 | BR121: 281.3 | BS121: 41.44 | BT121: 122.5 | BU121: 1.6455 | BV121: .. | BW121: 185.35 | BX121: .. | BY121: .. | BZ121: .. | CA121: .. | CB121: .. | CC121: .. | CD121: .. | CE121: 64.92
A122: 1969M07 | B122: 1.27 | C122: .. | D122: 1.27 | E122: .. | F122: .. | G122: .. | H122: 0.17 | I122: 0.4518199182 | J122: .. | K122: 4.212312822 | L122: 0.9312 | M122: 0.7776 | N122: 0.6871642 | O122: 0.7262 | P122: 0.5964011 | Q122: 0.8626667 | R122: 0.7195997 | S122: 326.9 | T122: .. | U122: .. | V122: 323.37 | W122: 161.8 | X122: .. | Y122: 101.57 | Z122: 180 | AA122: 95 | AB122: .. | AC122: .. | AD122: 26.26711376 | AE122: 53.93 | AF122: 51.5 | AG122: 180.51 | AH122: .. | AI122: .. | AJ122: .. | AK122: .. | AL122: 60.26 | AM122: .. | AN122: 0.1539 | AO122: 0.176 | AP122: 1.3014 | AQ122: 0.4014746676 | AR122: .. | AS122: 2.866006 | AT122: 0.112215158 | AU122: 0.14991416 | AV122: 0.0765 | AW122: 1149.61 | AX122: .. | AY122: 38.89 | AZ122: .. | BA122: 165.9081117 | BB122: .. | BC122: .. | BD122: 0.6138 | BE122: .. | BF122: 0.5437 | BG122: 11.25 | BH122: 58 | BI122: 40 | BJ122: 26.6 | BK122: 22 | BL122: 584.2243652 | BM122: 9.84 | BN122: 1453.95 | BO122: 311.1 | BP122: 3439.2 | BQ122: 2363.4 | BR122: 283.7 | BS122: 41.76 | BT122: 122.5 | BU122: 1.6183 | BV122: .. | BW122: 196.83 | BX122: .. | BY122: .. | BZ122: .. | CA122: .. | CB122: .. | CC122: .. | CD122: .. | CE122: 64.58
A123: 1969M08 | B123: 1.27 | C123: .. | D123: 1.27 | E123: .. | F123: .. | G123: .. | H123: 0.17 | I123: 0.4518199182 | J123: .. | K123: 4.212312822 | L123: 0.9143 | M123: 0.8126 | N123: 0.724642 | O123: 0.7262 | P123: 0.5964011 | Q123: 0.8626667 | R123: 0.7195997 | S123: 330.7 | T123: .. | U123: .. | V123: 309.91 | W123: 171.49 | X123: .. | Y123: 99.21 | Z123: 181 | AA123: 96 | AB123: .. | AC123: .. | AD123: 25.42218031 | AE123: 53.54 | AF123: 54.2 | AG123: 171.58 | AH123: .. | AI123: .. | AJ123: .. | AK123: .. | AL123: 56.22 | AM123: .. | AN123: 0.1687 | AO123: 0.176 | AP123: 1.3748 | AQ123: 0.403169588 | AR123: .. | AS123: 2.866006 | AT123: 0.112215158 | AU123: 0.15873264 | AV123: 0.065 | AW123: 1121.04 | AX123: .. | AY123: 38.89 | AZ123: .. | BA123: 165.9081117 | BB123: .. | BC123: .. | BD123: 0.5999 | BE123: .. | BF123: 0.5787 | BG123: 11.25 | BH123: 58 | BI123: 40 | BJ123: 26.6 | BK123: 22 | BL123: 584.2243652 | BM123: 9.84 | BN123: 1606.73 | BO123: 315.9 | BP123: 3470.1 | BQ123: 2363.4 | BR123: 293.9 | BS123: 41.09 | BT123: 122.5 | BU123: 1.6526 | BV123: .. | BW123: 198.01 | BX123: .. | BY123: .. | BZ123: .. | CA123: .. | CB123: .. | CC123: .. | CD123: .. | CE123: 63.22
A124: 1969M09 | B124: 1.27 | C124: .. | D124: 1.27 | E124: .. | F124: .. | G124: .. | H124: 0.17 | I124: 0.4518199182 | J124: .. | K124: 4.212312822 | L124: 0.9008 | M124: 0.9026 | N124: 0.7630014 | O124: 0.7262 | P124: 0.5964011 | Q124: 0.8626667 | R124: 0.7195997 | S124: 332.6 | T124: .. | U124: .. | V124: 318.88 | W124: 180.94 | X124: .. | Y124: 100.86 | Z124: 200 | AA124: 92 | AB124: .. | AC124: .. | AD124: 24.53795139 | AE124: 51.18 | AF124: 56.8 | AG124: 167.55 | AH124: .. | AI124: .. | AJ124: .. | AK124: .. | AL124: 53.65 | AM124: .. | AN124: 0.1792 | AO124: 0.176 | AP124: 1.3203 | AQ124: 0.4039548734 | AR124: .. | AS124: 2.866006 | AT124: 0.112215158 | AU124: 0.15873264 | AV124: 0.0604 | AW124: 1096.94 | AX124: .. | AY124: 38.89 | AZ124: .. | BA124: 165.9081117 | BB124: .. | BC124: .. | BD124: 0.6131 | BE124: .. | BF124: 0.5426 | BG124: 11.25 | BH124: 58 | BI124: 40 | BJ124: 26.6 | BK124: 22 | BL124: 584.2243652 | BM124: 9.84 | BN124: 1578.95 | BO124: 302.5 | BP124: 3470.1 | BQ124: 2363.4 | BR124: 299.4 | BS124: 40.87 | BT124: 122.5 | BU124: 1.7855 | BV124: .. | BW124: 203.26 | BX124: .. | BY124: .. | BZ124: .. | CA124: .. | CB124: .. | CC124: .. | CD124: .. | CE124: 62.54
A125: 1969M10 | B125: 1.27 | C125: .. | D125: 1.27 | E125: .. | F125: .. | G125: .. | H125: 0.17 | I125: 0.4518199182 | J125: .. | K125: 4.212312822 | L125: 0.9186 | M125: 1.0401 | N125: 0.8450114 | O125: 0.7262 | P125: 0.5964011 | Q125: 0.8626667 | R125: 0.7195997 | S125: 336.6 | T125: .. | U125: .. | V125: 331.09 | W125: 203.14 | X125: .. | Y125: 102.99 | Z125: 240 | AA125: 92 | AB125: .. | AC125: .. | AD125: 24.37996013 | AE125: 51.87 | AF125: 57.4 | AG125: 167.36 | AH125: .. | AI125: .. | AJ125: .. | AK125: .. | AL125: 52.18 | AM125: .. | AN125: 0.1704 | AO125: 0.176 | AP125: 1.2324 | AQ125: 0.4054787207 | AR125: .. | AS125: 2.866006 | AT125: 0.112215158 | AU125: 0.16093726 | AV125: 0.065 | AW125: 1139.14 | AX125: .. | AY125: 38.89 | AZ125: .. | BA125: 165.9081117 | BB125: .. | BC125: .. | BD125: 0.6272 | BE125: .. | BF125: 0.5027 | BG125: 11.25 | BH125: 58 | BI125: 40 | BJ125: 26.6 | BK125: 22 | BL125: 601.8613281 | BM125: 9.84 | BN125: 1554.48 | BO125: 293.7 | BP125: 3534 | BQ125: 2363.4 | BR125: 298.9 | BS125: 40.44 | BT125: 122.75 | BU125: 1.8725 | BV125: .. | BW125: 206.19 | BX125: .. | BY125: .. | BZ125: .. | CA125: .. | CB125: .. | CC125: .. | CD125: .. | CE125: 62.2
A126: 1969M11 | B126: 1.27 | C126: .. | D126: 1.27 | E126: .. | F126: .. | G126: .. | H126: 0.17 | I126: 0.4518199182 | J126: .. | K126: 4.212312822 | L126: 0.9321 | M126: 1.0247 | N126: 0.8207611 | O126: 0.7262 | P126: 0.5964011 | Q126: 0.8626667 | R126: 0.7195997 | S126: 357.4 | T126: .. | U126: .. | V126: 346.64 | W126: 203.14 | X126: .. | Y126: 106.53 | Z126: 260 | AA126: 91 | AB126: .. | AC126: .. | AD126: 24.62875313 | AE126: 53.16 | AF126: 57.5 | AG126: 167.55 | AH126: .. | AI126: .. | AJ126: .. | AK126: .. | AL126: 52.18 | AM126: .. | AN126: 0.1642 | AO126: 0.176 | AP126: 1.2114 | AQ126: 0.4068182082 | AR126: .. | AS126: 2.866006 | AT126: 0.112215158 | AU126: 0.15873264 | AV126: 0.067 | AW126: 1096.38 | AX126: .. | AY126: 38.89 | AZ126: .. | BA126: 165.9081117 | BB126: .. | BC126: .. | BD126: 0.6477 | BE126: .. | BF126: 0.4537 | BG126: 11.25 | BH126: 58 | BI126: 40 | BJ126: 26.6 | BK126: 22 | BL126: 606.2705078 | BM126: 9.84 | BN126: 1631.42 | BO126: 315.7 | BP126: 3642 | BQ126: 2363.4 | BR126: 309.5 | BS126: 37.4 | BT126: 132.5 | BU126: 1.9231 | BV126: .. | BW126: 221.82 | BX126: .. | BY126: .. | BZ126: .. | CA126: .. | CB126: .. | CC126: .. | CD126: .. | CE126: 62.2
A127: 1969M12 | B127: 1.27 | C127: .. | D127: 1.27 | E127: .. | F127: .. | G127: .. | H127: 0.17 | I127: 0.4518199182 | J127: .. | K127: 4.212312822 | L127: 0.8512 | M127: 1.0479 | N127: 0.8284771 | O127: 0.7262 | P127: 0.5964011 | Q127: 0.8626667 | R127: 0.7195997 | S127: 399.4 | T127: .. | U127: .. | V127: 334.54 | W127: 255.11 | X127: .. | Y127: 106.29 | Z127: 251 | AA127: 96 | AB127: .. | AC127: .. | AD127: 24.54062762 | AE127: 52.36 | AF127: 56.5 | AG127: 161.07 | AH127: .. | AI127: .. | AJ127: .. | AK127: .. | AL127: 52.18 | AM127: .. | AN127: 0.1565 | AO127: 0.1632 | AP127: 1.2145 | AQ127: 0.4092876381 | AR127: .. | AS127: 2.866006 | AT127: 0.112215158 | AU127: 0.1543234 | AV127: 0.0622 | AW127: 1061.92 | AX127: .. | AY127: 38.89 | AZ127: .. | BA127: 165.9081117 | BB127: .. | BC127: .. | BD127: 0.6559 | BE127: .. | BF127: 0.4702 | BG127: 11.25 | BH127: 58 | BI127: 40 | BJ127: 26.6 | BK127: 22 | BL127: 606.2705078 | BM127: 9.84 | BN127: 1699.76 | BO127: 334 | BP127: 3818.4 | BQ127: 2363.4 | BR127: 310.2 | BS127: 35.17 | BT127: 132.5 | BU127: 1.8071 | BV127: .. | BW127: 243.6 | BX127: .. | BY127: .. | BZ127: .. | CA127: .. | CB127: .. | CC127: .. | CD127: .. | CE127: 61.86
A128: 1970M01 | B128: 1.21 | C128: .. | D128: 1.21 | E128: .. | F128: 7.8 | G128: .. | H128: 0.17 | I128: 0.4472180101 | J128: .. | K128: 4.190435478 | L128: 0.675 | M128: 1.1369 | N128: 0.8619865 | O128: 0.835 | P128: 0.6266412 | Q128: 0.9906667 | R128: 0.8875996 | S128: 405.8 | T128: .. | U128: .. | V128: 349.83 | W128: 255.34 | X128: .. | Y128: 107 | Z128: 252 | AA128: 101 | AB128: .. | AC128: .. | AD128: 25.52705957 | AE128: 58.4 | AF128: 51.8 | AG128: 140.45 | AH128: .. | AI128: .. | AJ128: .. | AK128: .. | AL128: 52.18 | AM128: .. | AN128: 0.1656 | AO128: 0.1696 | AP128: 1.2957 | AQ128: 0.4117242458 | AR128: .. | AS128: 2.7337288 | AT128: 0.112215158 | AU128: 0.1653465 | AV128: 0.0791 | AW128: 1078.11 | AX128: 42.99 | AY128: 38.89 | AZ128: 175 | BA128: 165.9081117 | BB128: .. | BC128: .. | BD128: 0.6448 | BE128: .. | BF128: 0.5042 | BG128: 11 | BH128: 54 | BI128: 44 | BJ128: 18.25 | BK128: 31.5 | BL128: 606.2705078 | BM128: 9.84 | BN128: 1626.3 | BO128: 324.7 | BP128: 3842.7 | BQ128: 2846.2 | BR128: 302.4 | BS128: 34.94 | BT128: 132.5 | BU128: 1.8765 | BV128: .. | BW128: 230.3 | BX128: .. | BY128: .. | BZ128: .. | CA128: .. | CB128: .. | CC128: .. | CD128: .. | CE128: 61.85
A129: 1970M02 | B129: 1.21 | C129: .. | D129: 1.21 | E129: .. | F129: 7.8 | G129: .. | H129: 0.17 | I129: 0.4472180101 | J129: .. | K129: 4.190435478 | L129: 0.675 | M129: 1.1453 | N129: 0.8474364 | O129: 0.835 | P129: 0.6266412 | Q129: 0.9906667 | R129: 0.8875996 | S129: 406.28 | T129: .. | U129: .. | V129: 346.99 | W129: 256.29 | X129: .. | Y129: 110 | Z129: 257 | AA129: 102 | AB129: .. | AC129: .. | AD129: 25.56943559 | AE129: 58.4 | AF129: 51.8 | AG129: 133.38 | AH129: .. | AI129: .. | AJ129: .. | AK129: .. | AL129: 52.18 | AM129: .. | AN129: 0.1744 | AO129: 0.1696 | AP129: 1.3338 | AQ129: 0.413331279 | AR129: .. | AS129: 2.7337288 | AT129: 0.112215158 | AU129: 0.16314188 | AV129: 0.069 | AW129: 1114.27 | AX129: 42.99 | AY129: 40.63 | AZ129: 175 | BA129: 169.8761521 | BB129: .. | BC129: .. | BD129: 0.6516 | BE129: .. | BF129: 0.4797 | BG129: 11 | BH129: 54 | BI129: 44 | BJ129: 18.25 | BK129: 31.5 | BL129: 606.2705078 | BM129: 9.84 | BN129: 1657.2 | BO129: 341 | BP129: 3767.7 | BQ129: 2846.2 | BR129: 298 | BS129: 34.99 | BT129: 132.5 | BU129: 1.8958 | BV129: .. | BW129: 224.89 | BX129: .. | BY129: .. | BZ129: .. | CA129: .. | CB129: .. | CC129: .. | CD129: .. | CE129: 61.85
A130: 1970M03 | B130: 1.21 | C130: .. | D130: 1.21 | E130: .. | F130: 7.8 | G130: .. | H130: 0.17 | I130: 0.4472180101 | J130: .. | K130: 4.190435478 | L130: 0.675 | M130: 1.1711 | N130: 0.8679388 | O130: 0.835 | P130: 0.6266412 | Q130: 0.9906667 | R130: 0.8875996 | S130: 406.28 | T130: .. | U130: .. | V130: 343.45 | W130: 258.88 | X130: .. | Y130: 111 | Z130: 268 | AA130: 97 | AB130: .. | AC130: .. | AD130: 25.61188195 | AE130: 58.4 | AF130: 51.8 | AG130: 126.31 | AH130: .. | AI130: .. | AJ130: .. | AK130: .. | AL130: 52.18 | AM130: .. | AN130: 0.1936 | AO130: 0.159 | AP130: 1.3461 | AQ130: 0.4138796461 | AR130: .. | AS130: 2.7337288 | AT130: 0.112215158 | AU130: 0.16093726 | AV130: 0.0745 | AW130: 1111.53 | AX130: 42.99 | AY130: 41.67 | AZ130: 175 | BA130: 172.2105768 | BB130: .. | BC130: .. | BD130: 0.657 | BE130: .. | BF130: 0.4433 | BG130: 11 | BH130: 54 | BI130: 44 | BJ130: 18.25 | BK130: 31.5 | BL130: 606.2705078 | BM130: 9.84 | BN130: 1754 | BO130: 335.5 | BP130: 3796.4 | BQ130: 2846.2 | BR130: 296 | BS130: 35.09 | BT130: 132.5 | BU130: 1.8885 | BV130: .. | BW130: 240.81 | BX130: .. | BY130: .. | BZ130: .. | CA130: .. | CB130: .. | CC130: .. | CD130: .. | CE130: 61.85
A131: 1970M04 | B131: 1.21 | C131: .. | D131: 1.21 | E131: .. | F131: 7.8 | G131: .. | H131: 0.17 | I131: 0.4472180101 | J131: .. | K131: 4.190435478 | L131: 0.675 | M131: 1.2028 | N131: 0.9129121 | O131: 0.835 | P131: 0.6266412 | Q131: 0.9906667 | R131: 0.8875996 | S131: 406.28 | T131: .. | U131: .. | V131: 358.57 | W131: 267.62 | X131: .. | Y131: 112 | Z131: 298 | AA131: 97 | AB131: .. | AC131: .. | AD131: 25.65439878 | AE131: 58.4 | AF131: 51.8 | AG131: 121.59 | AH131: .. | AI131: .. | AJ131: .. | AK131: .. | AL131: 52.18 | AM131: .. | AN131: 0.1713 | AO131: 0.1616 | AP131: 1.3622 | AQ131: 0.4153201367 | AR131: .. | AS131: 2.7337288 | AT131: 0.112215158 | AU131: 0.16093726 | AV131: 0.0787 | AW131: 1119.96 | AX131: 42.99 | AY131: 41.81 | AZ131: 175 | BA131: 172.5227697 | BB131: .. | BC131: .. | BD131: 0.6618 | BE131: .. | BF131: 0.4202 | BG131: 11 | BH131: 54 | BI131: 44 | BJ131: 18.25 | BK131: 31.5 | BL131: 612.8842773 | BM131: 9.84 | BN131: 1741.6 | BO131: 321.2 | BP131: 3849.3 | BQ131: 2846.2 | BR131: 293.4 | BS131: 35.62 | BT131: 132.5 | BU131: 1.8529 | BV131: .. | BW131: 245.07 | BX131: .. | BY131: .. | BZ131: .. | CA131: .. | CB131: .. | CC131: .. | CD131: .. | CE131: 61.18
A132: 1970M05 | B132: 1.21 | C132: .. | D132: 1.21 | E132: .. | F132: 7.8 | G132: .. | H132: 0.17 | I132: 0.4472180101 | J132: .. | K132: 4.190435478 | L132: 0.675 | M132: 1.217 | N132: 0.9400282 | O132: 0.835 | P132: 0.6266412 | Q132: 0.9906667 | R132: 0.8875996 | S132: 399.19 | T132: .. | U132: .. | V132: 383.84 | W132: 278.73 | X132: .. | Y132: 115 | Z132: 292 | AA132: 98 | AB132: .. | AC132: .. | AD132: 25.69698618 | AE132: 58.4 | AF132: 51.8 | AG132: 121.59 | AH132: .. | AI132: .. | AJ132: .. | AK132: .. | AL132: 52.18 | AM132: .. | AN132: 0.1892 | AO132: 0.159 | AP132: 1.3349 | AQ132: 0.4169484096 | AR132: .. | AS132: 2.7337288 | AT132: 0.112215158 | AU132: 0.16755112 | AV132: 0.0805 | AW132: 1074.77 | AX132: 42.99 | AY132: 43.5 | AZ132: 175 | BA132: 176.2541412 | BB132: .. | BC132: .. | BD132: 0.6645 | BE132: .. | BF132: 0.4149 | BG132: 11 | BH132: 54 | BI132: 44 | BJ132: 18.25 | BK132: 31.5 | BL132: 617.2937012 | BM132: 9.84 | BN132: 1597.9 | BO132: 291.6 | BP132: 3736.8 | BQ132: 2846.2 | BR132: 291.7 | BS132: 35.95 | BT132: 132.5 | BU132: 1.67 | BV132: .. | BW132: 228.65 | BX132: .. | BY132: .. | BZ132: .. | CA132: .. | CB132: .. | CC132: .. | CD132: .. | CE132: 61.18
A133: 1970M06 | B133: 1.21 | C133: .. | D133: 1.21 | E133: .. | F133: 7.8 | G133: .. | H133: 0.17 | I133: 0.4472180101 | J133: .. | K133: 4.190435478 | L133: 0.675 | M133: 1.2061 | N133: 0.9298873 | O133: 0.835 | P133: 0.6266412 | Q133: 0.9906667 | R133: 0.8875996 | S133: 389.74 | T133: .. | U133: .. | V133: 383.37 | W133: 277.07 | X133: .. | Y133: 118 | Z133: 288 | AA133: 102 | AB133: .. | AC133: .. | AD133: 25.73964429 | AE133: 58.4 | AF133: 51.8 | AG133: 123.95 | AH133: .. | AI133: .. | AJ133: .. | AK133: .. | AL133: 52.18 | AM133: .. | AN133: 0.1819 | AO133: 0.1563 | AP133: 1.2979 | AQ133: 0.4191157183 | AR133: .. | AS133: 2.7337288 | AT133: 0.112215158 | AU133: 0.16755112 | AV133: 0.0842 | AW133: 1047.34 | AX133: 42.99 | AY133: 44.44 | AZ133: 175 | BA133: 178.3007288 | BB133: .. | BC133: .. | BD133: 0.666 | BE133: .. | BF133: 0.412 | BG133: 11 | BH133: 54 | BI133: 44 | BJ133: 18.25 | BK133: 31.5 | BL133: 617.2937012 | BM133: 9.84 | BN133: 1458 | BO133: 308.2 | BP133: 3542.8 | BQ133: 2846.2 | BR133: 293.2 | BS133: 35.42 | BT133: 132.5 | BU133: 1.6394 | BV133: .. | BW133: 228.65 | BX133: .. | BY133: .. | BZ133: .. | CA133: .. | CB133: .. | CC133: .. | CD133: .. | CE133: 61.59
A134: 1970M07 | B134: 1.21 | C134: .. | D134: 1.21 | E134: .. | F134: 7.8 | G134: .. | H134: 0.17 | I134: 0.4472180101 | J134: .. | K134: 4.190435478 | L134: 0.675 | M134: 1.2121 | N134: 0.9424534 | O134: 0.835 | P134: 0.6266412 | Q134: 0.9906667 | R134: 0.8875996 | S134: 389.74 | T134: .. | U134: .. | V134: 385.73 | W134: 261.01 | X134: .. | Y134: 122 | Z134: 290 | AA134: 106 | AB134: .. | AC134: .. | AD134: 25.86384657 | AE134: 58.4 | AF134: 51.8 | AG134: 124.93 | AH134: .. | AI134: .. | AJ134: .. | AK134: .. | AL134: 52.54 | AM134: .. | AN134: 0.1479 | AO134: 0.1696 | AP134: 1.2928 | AQ134: 0.421266576 | AR134: .. | AS134: 2.7337288 | AT134: 0.112215158 | AU134: 0.16755112 | AV134: 0.0842 | AW134: 1065.43 | AX134: 42.99 | AY134: 44.44 | AZ134: 175 | BA134: 178.3007288 | BB134: .. | BC134: .. | BD134: 0.6721 | BE134: .. | BF134: 0.3829 | BG134: 11 | BH134: 54 | BI134: 41 | BJ134: 18.25 | BK134: 31.5 | BL134: 617.2937012 | BM134: 9.84 | BN134: 1366.6 | BO134: 300.7 | BP134: 3498.7 | BQ134: 2846.2 | BR134: 298.1 | BS134: 35.32 | BT134: 132.5 | BU134: 1.6866 | BV134: .. | BW134: 217.67 | BX134: .. | BY134: .. | BZ134: .. | CA134: .. | CB134: .. | CC134: .. | CD134: .. | CE134: 61.6
A135: 1970M08 | B135: 1.21 | C135: .. | D135: 1.21 | E135: .. | F135: 7.8 | G135: .. | H135: 0.17 | I135: 0.4472180101 | J135: .. | K135: 4.190435478 | L135: 0.675 | M135: 1.1828 | N135: 0.9446578 | O135: 0.835 | P135: 0.6266412 | Q135: 0.9906667 | R135: 0.8875996 | S135: 377.93 | T135: .. | U135: .. | V135: 392.11 | W135: 240.22 | X135: .. | Y135: 120 | Z135: 270 | AA135: 107 | AB135: .. | AC135: .. | AD135: 26.23691576 | AE135: 58.4 | AF135: 51.8 | AG135: 128.08 | AH135: .. | AI135: .. | AJ135: .. | AK135: .. | AL135: 54.01 | AM135: .. | AN135: 0.1598 | AO135: 0.1696 | AP135: 1.2469 | AQ135: 0.4229024924 | AR135: .. | AS135: 2.7337288 | AT135: 0.112215158 | AU135: 0.16755112 | AV135: 0.0841 | AW135: 1082.6 | AX135: 42.99 | AY135: 44.44 | AZ135: 175 | BA135: 178.3007288 | BB135: .. | BC135: .. | BD135: 0.6826 | BE135: .. | BF135: 0.3713 | BG135: 11 | BH135: 54 | BI135: 41 | BJ135: 18.25 | BK135: 31.5 | BL135: 617.2937012 | BM135: 9.84 | BN135: 1266.5 | BO135: 285.4 | BP135: 3620 | BQ135: 2846.2 | BR135: 298.1 | BS135: 35.38 | BT135: 132.5 | BU135: 1.7977 | BV135: .. | BW135: 200.28 | BX135: .. | BY135: .. | BZ135: .. | CA135: .. | CB135: .. | CC135: .. | CD135: .. | CE135: 62.26
A136: 1970M09 | B136: 1.21 | C136: .. | D136: 1.21 | E136: .. | F136: 7.8 | G136: .. | H136: 0.17 | I136: 0.4472180101 | J136: .. | K136: 4.190435478 | L136: 0.675 | M136: 1.1603 | N136: 0.9387055 | O136: 0.835 | P136: 0.6266412 | Q136: 0.9906667 | R136: 0.8875996 | S136: 381 | T136: .. | U136: .. | V136: 364.47 | W136: 226.29 | X136: .. | Y136: 119 | Z136: 276 | AA136: 106 | AB136: .. | AC136: .. | AD136: 26.76858157 | AE136: 58.4 | AF136: 51.8 | AG136: 125.72 | AH136: .. | AI136: .. | AJ136: .. | AK136: .. | AL136: 56.22 | AM136: .. | AN136: 0.1618 | AO136: 0.1696 | AP136: 1.28 | AQ136: 0.42420408 | AR136: .. | AS136: 2.7337288 | AT136: 0.112215158 | AU136: 0.16755112 | AV136: 0.0853 | AW136: 1071.75 | AX136: 42.99 | AY136: 44.44 | AZ136: 175 | BA136: 178.3007288 | BB136: .. | BC136: .. | BD136: 0.6918 | BE136: .. | BF136: 0.3649 | BG136: 11 | BH136: 54 | BI136: 41 | BJ136: 18.25 | BK136: 31.5 | BL136: 617.2937012 | BM136: 9.84 | BN136: 1246.9 | BO136: 284.8 | BP136: 3646.4 | BQ136: 2846.2 | BR136: 300 | BS136: 36.19 | BT136: 132.5 | BU136: 1.8016 | BV136: .. | BW136: 203.4 | BX136: .. | BY136: .. | BZ136: .. | CA136: .. | CB136: .. | CC136: .. | CD136: .. | CE136: 63.65
A137: 1970M10 | B137: 1.21 | C137: .. | D137: 1.21 | E137: .. | F137: 7.8 | G137: .. | H137: 0.17 | I137: 0.4472180101 | J137: .. | K137: 4.190435478 | L137: 0.675 | M137: 1.1197 | N137: 0.9415715 | O137: 0.835 | P137: 0.6266412 | Q137: 0.9906667 | R137: 0.8875996 | S137: 398.48 | T137: .. | U137: .. | V137: 390.22 | W137: 257.47 | X137: .. | Y137: 123 | Z137: 304 | AA137: 104 | AB137: .. | AC137: .. | AD137: 27.36867983 | AE137: 58.4 | AF137: 51.8 | AG137: 124.44 | AH137: .. | AI137: .. | AJ137: .. | AK137: .. | AL137: 58.79 | AM137: .. | AN137: 0.1693 | AO137: 0.1696 | AP137: 1.284 | AQ137: 0.4253340256 | AR137: .. | AS137: 2.7337288 | AT137: 0.112215158 | AU137: 0.16755112 | AV137: 0.0866 | AW137: 1025.76 | AX137: 42.99 | AY137: 44.44 | AZ137: 175 | BA137: 178.3007288 | BB137: .. | BC137: .. | BD137: 0.6977 | BE137: .. | BF137: 0.3481 | BG137: 11 | BH137: 54 | BI137: 41 | BJ137: 18.25 | BK137: 31.5 | BL137: 617.2937012 | BM137: 9.84 | BN137: 1142.4 | BO137: 285.2 | BP137: 3668.5 | BQ137: 2846.2 | BR137: 296.5 | BS137: 37.52 | BT137: 132.5 | BU137: 1.7458 | BV137: .. | BW137: 219.65 | BX137: .. | BY137: .. | BZ137: .. | CA137: .. | CB137: .. | CC137: .. | CD137: .. | CE137: 64.78
A138: 1970M11 | B138: 1.21 | C138: .. | D138: 1.21 | E138: .. | F138: 7.8 | G138: .. | H138: 0.17 | I138: 0.4472180101 | J138: .. | K138: 4.190435478 | L138: 0.675 | M138: 1.0278 | N138: 0.9159985 | O138: 0.835 | P138: 0.6266412 | Q138: 0.9906667 | R138: 0.8875996 | S138: 401.56 | T138: .. | U138: .. | V138: 406.28 | W138: 269.99 | X138: .. | Y138: 125 | Z138: 330 | AA138: 105 | AB138: .. | AC138: .. | AD138: 27.88019279 | AE138: 58.4 | AF138: 51.8 | AG138: 124.84 | AH138: .. | AI138: .. | AJ138: .. | AK138: .. | AL138: 60.99 | AM138: .. | AN138: 0.1497 | AO138: 0.1696 | AP138: 1.2703 | AQ138: 0.4269890174 | AR138: .. | AS138: 2.7337288 | AT138: 0.112215158 | AU138: 0.16314188 | AV138: 0.0901 | AW138: 1057.02 | AX138: 42.99 | AY138: 44.44 | AZ138: 175 | BA138: 178.3007288 | BB138: .. | BC138: .. | BD138: 0.709 | BE138: .. | BF138: 0.3741 | BG138: 11 | BH138: 54 | BI138: 41 | BJ138: 18.25 | BK138: 31.5 | BL138: 617.2937012 | BM138: 9.84 | BN138: 1085.3 | BO138: 279.9 | BP138: 3615.6 | BQ138: 2846.2 | BR138: 293.2 | BS138: 37.44 | BT138: 132.5 | BU138: 1.7604 | BV138: .. | BW138: 230.3 | BX138: .. | BY138: .. | BZ138: .. | CA138: .. | CB138: .. | CC138: .. | CD138: .. | CE138: 64.84
A139: 1970M12 | B139: 1.21 | C139: .. | D139: 1.21 | E139: .. | F139: 7.8 | G139: .. | H139: 0.17 | I139: 0.4472180101 | J139: .. | K139: 4.190435478 | L139: 0.675 | M139: 0.9775 | N139: 0.9190849 | O139: 0.835 | P139: 0.6266412 | Q139: 0.9906667 | R139: 0.8875996 | S139: 403.92 | T139: .. | U139: .. | V139: 437.69 | W139: 271.64 | X139: .. | Y139: 121 | Z139: 311 | AA139: 106 | AB139: .. | AC139: .. | AD139: 28.38636321 | AE139: 58.4 | AF139: 51.8 | AG139: 120.42 | AH139: .. | AI139: .. | AJ139: .. | AK139: .. | AL139: 63.2 | AM139: .. | AN139: 0.1285 | AO139: 0.1934 | AP139: 1.3069 | AQ139: 0.4286487867 | AR139: .. | AS139: 2.7337288 | AT139: 0.112215158 | AU139: 0.1653465 | AV139: 0.0906 | AW139: 1063.19 | AX139: 42.99 | AY139: 44.44 | AZ139: 175 | BA139: 178.3007288 | BB139: .. | BC139: .. | BD139: 0.7165 | BE139: .. | BF139: 0.3704 | BG139: 11 | BH139: 54 | BI139: 41 | BJ139: 18.25 | BK139: 31.5 | BL139: 617.2937012 | BM139: 9.84 | BN139: 1045.7 | BO139: 276.7 | BP139: 3496.5 | BQ139: 2846.2 | BR139: 289.2 | BS139: 37.44 | BT139: 132.5 | BU139: 1.6348 | BV139: .. | BW139: 228.46 | BX139: .. | BY139: .. | BZ139: .. | CA139: .. | CB139: .. | CC139: .. | CD139: .. | CE139: 65.76
A140: 1971M01 | B140: 1.64 | C140: .. | D140: 1.64 | E140: .. | F140: 8.68 | G140: .. | H140: 0.18 | I140: 0.5022435438 | J140: .. | K140: 4.573459075 | L140: 0.538 | M140: 1.0031 | N140: 0.9298873 | O140: 0.7797 | P140: 0.6383995 | Q140: 0.7991994 | R140: 0.9015996 | S140: 409.82 | T140: .. | U140: .. | V140: 448.32 | W140: 273.29 | X140: .. | Y140: 125 | Z140: 309 | AA140: 105 | AB140: .. | AC140: .. | AD140: 28.50975185 | AE140: 58.4 | AF140: 55.77 | AG140: 121.4 | AH140: .. | AI140: .. | AJ140: .. | AK140: .. | AL140: 63.57 | AM140: .. | AN140: 0.138 | AO140: 0.1319 | AP140: 1.3358 | AQ140: 0.4299664241 | AR140: 0.8026 | AS140: 3.30693 | AT140: 0.112215158 | AU140: 0.16975574 | AV140: 0.104 | AW140: 1045.91 | AX140: 44.43 | AY140: 44.44 | AZ140: .. | BA140: 178.3007288 | BB140: .. | BC140: .. | BD140: 0.7275 | BE140: .. | BF140: 0.3534 | BG140: 11.25 | BH140: 57.5 | BI140: 40 | BJ140: 16 | BK140: 32.5 | BL140: 617.2937012 | BM140: 10.33 | BN140: 1010 | BO140: 262.5 | BP140: 3465.7 | BQ140: 2932.1 | BR140: 284.6 | BS140: 37.88 | BT140: 129 | BU140: 1.6396 | BV140: .. | BW140: 230.11 | BX140: .. | BY140: .. | BZ140: .. | CA140: .. | CB140: .. | CC140: .. | CD140: .. | CE140: 66.08
A141: 1971M02 | B141: 1.64 | C141: .. | D141: 1.64 | E141: .. | F141: 8.68 | G141: .. | H141: 0.18 | I141: 0.5022435438 | J141: .. | K141: 4.573459075 | L141: 0.538 | M141: 0.9833 | N141: 0.9296668 | O141: 0.7781 | P141: 0.6695995 | Q141: 0.7631994 | R141: 0.9015996 | S141: 393.4 | T141: .. | U141: .. | V141: 479.5 | W141: 273.29 | X141: .. | Y141: 125 | Z141: 297 | AA141: 101 | AB141: .. | AC141: .. | AD141: 28.55707926 | AE141: 58.4 | AF141: 55.77 | AG141: 105.1 | AH141: .. | AI141: .. | AJ141: .. | AK141: .. | AL141: 63.57 | AM141: .. | AN141: 0.135 | AO141: 0.1462 | AP141: 1.3717 | AQ141: 0.4311503851 | AR141: 0.7913 | AS141: 3.30693 | AT141: 0.112215158 | AU141: 0.17416498 | AV141: 0.1063 | AW141: 1018.55 | AX141: 44.43 | AY141: 44.44 | AZ141: .. | BA141: 178.3007288 | BB141: .. | BC141: .. | BD141: 0.7403 | BE141: .. | BF141: 0.3333 | BG141: 11.25 | BH141: 57.5 | BI141: 40 | BJ141: 16 | BK141: 32.5 | BL141: 617.2937012 | BM141: 10.33 | BN141: 1020.2 | BO141: 266.1 | BP141: 3463.5 | BQ141: 2932.1 | BR141: 272.1 | BS141: 38.74 | BT141: 122.5 | BU141: 1.6003 | BV141: .. | BW141: 210.7 | BX141: .. | BY141: .. | BZ141: .. | CA141: .. | CB141: .. | CC141: .. | CD141: .. | CE141: 65.98
A142: 1971M03 | B142: 1.64 | C142: .. | D142: 1.64 | E142: .. | F142: 8.68 | G142: .. | H142: 0.18 | I142: 0.5022435438 | J142: .. | K142: 4.573459075 | L142: 0.538 | M142: 1.0143 | N142: 0.9406896 | O142: 0.7565 | P142: 0.7031994 | Q142: 0.6647995 | R142: 0.9015996 | S142: 401.56 | T142: .. | U142: .. | V142: 481.87 | W142: 278.02 | X142: .. | Y142: 124 | Z142: 300 | AA142: 100 | AB142: .. | AC142: .. | AD142: 28.4512035 | AE142: 58.4 | AF142: 55.77 | AG142: 98.91 | AH142: .. | AI142: .. | AJ142: .. | AK142: .. | AL142: 62.83 | AM142: .. | AN142: 0.137 | AO142: 0.1524 | AP142: 1.3812 | AQ142: 0.4328718594 | AR142: 0.7846 | AS142: 3.30693 | AT142: 0.112215158 | AU142: 0.17196036 | AV142: 0.1034 | AW142: 1020.68 | AX142: 44.43 | AY142: 44.44 | AZ142: .. | BA142: 178.3007288 | BB142: .. | BC142: .. | BD142: 0.7275 | BE142: .. | BF142: 0.3353 | BG142: 11.25 | BH142: 57.5 | BI142: 40 | BJ142: 16 | BK142: 32.5 | BL142: 617.2937012 | BM142: 10.33 | BN142: 1144.1 | BO142: 267.4 | BP142: 3527.4 | BQ142: 2932.1 | BR142: 283.7 | BS142: 38.87 | BT142: 122.5 | BU142: 1.669 | BV142: .. | BW142: 207.97 | BX142: .. | BY142: .. | BZ142: .. | CA142: .. | CB142: .. | CC142: .. | CD142: .. | CE142: 66.11
A143: 1971M04 | B143: 1.64 | C143: .. | D143: 1.64 | E143: .. | F143: 8.68 | G143: .. | H143: 0.18 | I143: 0.5022435438 | J143: .. | K143: 4.573459075 | L143: 0.538 | M143: 0.9894 | N143: 0.9400282 | O143: 1.0293 | P143: 0.6455995 | Q143: 1.540799 | R143: 0.9015996 | S143: 388.8 | T143: .. | U143: .. | V143: 462.97 | W143: 269.28 | X143: .. | Y143: 119 | Z143: 292 | AA143: 98 | AB143: .. | AC143: .. | AD143: 28.42129862 | AE143: 58.4 | AF143: 55.77 | AG143: 95.67 | AH143: .. | AI143: .. | AJ143: .. | AK143: .. | AL143: 62.46 | AM143: .. | AN143: 0.138 | AO143: 0.1711 | AP143: 1.4021 | AQ143: 0.4344097772 | AR143: 0.8191 | AS143: 3.30693 | AT143: 0.112215158 | AU143: 0.16975574 | AV143: 0.1005 | AW143: 1012.52 | AX143: 44.43 | AY143: 44.44 | AZ143: .. | BA143: 178.3007288 | BB143: .. | BC143: .. | BD143: 0.7255 | BE143: .. | BF143: 0.356 | BG143: 11.25 | BH143: 57.5 | BI143: 40 | BJ143: 16 | BK143: 32.5 | BL143: 617.2937012 | BM143: 10.33 | BN143: 1251.5 | BO143: 268 | BP143: 3562.7 | BQ143: 2932.1 | BR143: 283.5 | BS143: 39.01 | BT143: 122.5 | BU143: 1.726 | BV143: .. | BW143: 199.97 | BX143: .. | BY143: .. | BZ143: .. | CA143: .. | CB143: .. | CC143: .. | CD143: .. | CE143: 65.98
A144: 1971M05 | B144: 1.64 | C144: .. | D144: 1.64 | E144: .. | F144: 8.68 | G144: .. | H144: 0.18 | I144: 0.5022435438 | J144: .. | K144: 4.573459075 | L144: 0.538 | M144: 1.0183 | N144: 0.9400282 | O144: 0.9141 | P144: 0.6551995 | Q144: 1.185599 | R144: 0.9015996 | S144: 359.04 | T144: .. | U144: .. | V144: 453.52 | W144: 242.82 | X144: .. | Y144: 122 | Z144: 293 | AA144: 101 | AB144: .. | AC144: .. | AD144: 28.62275969 | AE144: 58.4 | AF144: 55.77 | AG144: 105.98 | AH144: .. | AI144: .. | AJ144: .. | AK144: .. | AL144: 63.2 | AM144: .. | AN144: 0.139 | AO144: 0.1542 | AP144: 1.4039 | AQ144: 0.4368926057 | AR144: 0.7898 | AS144: 3.30693 | AT144: 0.112215158 | AU144: 0.17416498 | AV144: 0.0961 | AW144: 1038.8 | AX144: 44.43 | AY144: 44.31 | AZ144: .. | BA144: 178.0188848 | BB144: .. | BC144: .. | BD144: 0.7535 | BE144: .. | BF144: 0.3761 | BG144: 11.25 | BH144: 57.5 | BI144: 40 | BJ144: 16 | BK144: 32.5 | BL144: 617.2937012 | BM144: 10.33 | BN144: 1114.4 | BO144: 264.5 | BP144: 3520.8 | BQ144: 2932.1 | BR144: 287.7 | BS144: 40.52 | BT144: 122.5 | BU144: 1.6667 | BV144: .. | BW144: 191.04 | BX144: .. | BY144: .. | BZ144: .. | CA144: .. | CB144: .. | CC144: .. | CD144: .. | CE144: 63.73
A145: 1971M06 | B145: 1.64 | C145: .. | D145: 1.64 | E145: .. | F145: 8.68 | G145: .. | H145: 0.18 | I145: 0.5022435438 | J145: .. | K145: 4.573459075 | L145: 0.538 | M145: 1.0022 | N145: 0.9340759 | O145: 0.8533 | P145: 0.6359995 | Q145: 1.022399 | R145: 0.9015996 | S145: 354.31 | T145: .. | U145: .. | V145: 441.24 | W145: 240.93 | X145: .. | Y145: 127 | Z145: 310 | AA145: 104 | AB145: .. | AC145: .. | AD145: 28.28417917 | AE145: 58.4 | AF145: 55.77 | AG145: 109.22 | AH145: .. | AI145: .. | AJ145: .. | AK145: .. | AL145: 61.36 | AM145: .. | AN145: 0.137 | AO145: 0.1542 | AP145: 1.3711 | AQ145: 0.4393730459 | AR145: 0.7582 | AS145: 3.30693 | AT145: 0.112215158 | AU145: 0.1763696 | AV145: 0.0915 | AW145: 1035.09 | AX145: 44.43 | AY145: 43.26 | AZ145: .. | BA145: 175.7283573 | BB145: .. | BC145: .. | BD145: 0.7923 | BE145: .. | BF145: 0.3424 | BG145: 11.25 | BH145: 57.5 | BI145: 40 | BJ145: 16 | BK145: 32.5 | BL145: 617.2937012 | BM145: 10.33 | BN145: 1074.2 | BO145: 273.3 | BP145: 3448 | BQ145: 2932.1 | BR145: 308.6 | BS145: 40.1 | BT145: 122.5 | BU145: 1.6081 | BV145: .. | BW145: 194.17 | BX145: .. | BY145: .. | BZ145: .. | CA145: .. | CB145: .. | CC145: .. | CD145: .. | CE145: 64.42
A146: 1971M07 | B146: 1.74 | C146: .. | D146: 1.74 | E146: .. | F146: 8.68 | G146: .. | H146: 0.18 | I146: 0.5022435438 | J146: .. | K146: 4.573459075 | L146: 0.538 | M146: 0.9927 | N146: 0.928344 | O146: 0.9077 | P146: 0.6335995 | Q146: 1.187999 | R146: 0.9015996 | S146: 351.01 | T146: .. | U146: .. | V146: 439.58 | W146: 263.37 | X146: .. | Y146: 134 | Z146: 336 | AA146: 107 | AB146: .. | AC146: .. | AD146: 28.33113213 | AE146: 58.4 | AF146: 55.77 | AG146: 111.48 | AH146: .. | AI146: .. | AJ146: .. | AK146: .. | AL146: 61.36 | AM146: .. | AN146: 0.136 | AO146: 0.1542 | AP146: 1.3479 | AQ146: 0.441851845 | AR146: 0.7524 | AS146: 3.30693 | AT146: 0.112215158 | AU146: 0.1763696 | AV146: 0.092 | AW146: 1011.61 | AX146: 44.43 | AY146: 41.94 | AZ146: .. | BA146: 172.8122327 | BB146: .. | BC146: .. | BD146: 0.7965 | BE146: .. | BF146: 0.3314 | BG146: 11.25 | BH146: 66 | BI146: 46.5 | BJ146: 16 | BK146: 32.5 | BL146: 617.2937012 | BM146: 10.33 | BN146: 1115.3 | BO146: 261.9 | BP146: 3456.8 | BQ146: 2932.1 | BR146: 317.6 | BS146: 40.95 | BT146: 122.5 | BU146: 1.5808 | BV146: .. | BW146: 194.46 | BX146: .. | BY146: .. | BZ146: .. | CA146: .. | CB146: .. | CC146: .. | CD146: .. | CE146: 65.86
A147: 1971M08 | B147: 1.74 | C147: .. | D147: 1.74 | E147: .. | F147: 8.68 | G147: .. | H147: 0.18 | I147: 0.5022435438 | J147: .. | K147: 4.573459075 | L147: 0.538 | M147: 1.0051 | N147: 0.9298873 | O147: 0.8626 | P147: 0.7128694 | Q147: 0.9732005 | R147: 0.9015996 | S147: 355.49 | T147: .. | U147: .. | V147: 439.64 | W147: 282.56 | X147: .. | Y147: 131 | Z147: 335 | AA147: 108 | AB147: .. | AC147: .. | AD147: 28.29951031 | AE147: 58.4 | AF147: 55.77 | AG147: 113.35 | AH147: .. | AI147: .. | AJ147: .. | AK147: .. | AL147: 60.99 | AM147: .. | AN147: 0.145 | AO147: 0.1542 | AP147: 1.3241 | AQ147: 0.4439813006 | AR147: 0.7502 | AS147: 3.30693 | AT147: 0.113758392 | AU147: 0.17857422 | AV147: 0.0937 | AW147: 1001.25 | AX147: 44.43 | AY147: 42.19 | AZ147: .. | BA147: 173.3677348 | BB147: .. | BC147: .. | BD147: 0.8289 | BE147: .. | BF147: 0.3157 | BG147: 11.25 | BH147: 66 | BI147: 46.5 | BJ147: 16 | BK147: 32.5 | BL147: 628.3166504 | BM147: 10.33 | BN147: 1097.9 | BO147: 258.3 | BP147: 3478.9 | BQ147: 2932.1 | BR147: 322.5 | BS147: 42.71 | BT147: 122.5 | BU147: 1.5866 | BV147: .. | BW147: 178.61 | BX147: .. | BY147: .. | BZ147: .. | CA147: .. | CB147: .. | CC147: .. | CD147: .. | CE147: 64.58
A148: 1971M09 | B148: 1.74 | C148: .. | D148: 1.74 | E148: .. | F148: 8.68 | G148: .. | H148: 0.18 | I148: 0.5022435438 | J148: .. | K148: 4.573459075 | L148: 0.538 | M148: 0.9645 | N148: 0.9243758 | O148: 0.8546 | P148: 0.7260927 | Q148: 0.9360174 | R148: 0.9015996 | S148: 356.72 | T148: .. | U148: .. | V148: 429.75 | W148: 272.24 | X148: .. | Y148: 124 | Z148: 296 | AA148: 99 | AB148: .. | AC148: .. | AD148: 28.34648871 | AE148: 58.4 | AF148: 55.77 | AG148: 120.61 | AH148: .. | AI148: .. | AJ148: .. | AK148: .. | AL148: 60.99 | AM148: .. | AN148: 0.147 | AO148: 0.1542 | AP148: 1.2968 | AQ148: 0.4442880161 | AR148: 0.7901 | AS148: 3.30693 | AT148: 0.115522088 | AU148: 0.17416498 | AV148: 0.0879 | AW148: 1042.75 | AX148: 44.43 | AY148: 43.12 | AZ148: .. | BA148: 175.4210303 | BB148: .. | BC148: .. | BD148: 0.8267 | BE148: .. | BF148: 0.3232 | BG148: 11.25 | BH148: 66 | BI148: 46.5 | BJ148: 16 | BK148: 32.5 | BL148: 639.3398438 | BM148: 10.33 | BN148: 1056.4 | BO148: 239.2 | BP148: 3525.2 | BQ148: 2932.1 | BR148: 311.2 | BS148: 42.03 | BT148: 122.5 | BU148: 1.4214 | BV148: .. | BW148: 172.46 | BX148: .. | BY148: .. | BZ148: .. | CA148: .. | CB148: .. | CC148: .. | CD148: .. | CE148: 62.75
A149: 1971M10 | B149: 1.74 | C149: .. | D149: 1.74 | E149: .. | F149: 8.68 | G149: .. | H149: 0.18 | I149: 0.5022435438 | J149: .. | K149: 4.573459075 | L149: 0.538 | M149: 0.9431 | N149: 0.9190849 | O149: 0.8477 | P149: 0.7049534 | Q149: 0.9366164 | R149: 0.9015996 | S149: 357.94 | T149: .. | U149: .. | V149: 404.03 | W149: 253.99 | X149: .. | Y149: 125 | Z149: 305 | AA149: 101 | AB149: .. | AC149: .. | AD149: 28.23708645 | AE149: 58.4 | AF149: 55.77 | AG149: 121.69 | AH149: .. | AI149: .. | AJ149: .. | AK149: .. | AL149: 60.26 | AM149: .. | AN149: 0.143 | AO149: 0.1542 | AP149: 1.3129 | AQ149: 0.4466334247 | AR149: 0.7979 | AS149: 3.30693 | AT149: 0.116403936 | AU149: 0.17416498 | AV149: 0.0928 | AW149: 1081.58 | AX149: 44.43 | AY149: 43.58 | AZ149: .. | BA149: 176.4291059 | BB149: .. | BC149: .. | BD149: 0.8185 | BE149: .. | BF149: 0.3157 | BG149: 11.25 | BH149: 66 | BI149: 46.5 | BJ149: 16 | BK149: 32.5 | BL149: 639.3398438 | BM149: 10.33 | BN149: 1041.2 | BO149: 229.5 | BP149: 3489.9 | BQ149: 2932.1 | BR149: 336.6 | BS149: 42.5 | BT149: 122.5 | BU149: 1.3358 | BV149: .. | BW149: 169.27 | BX149: .. | BY149: .. | BZ149: .. | CA149: .. | CB149: .. | CC149: .. | CD149: .. | CE149: 61.48
A150: 1971M11 | B150: 1.74 | C150: .. | D150: 1.74 | E150: .. | F150: 8.68 | G150: .. | H150: 0.18 | I150: 0.5022435438 | J150: .. | K150: 4.573459075 | L150: 0.538 | M150: 0.9658 | N150: 0.9254781 | O150: 0.8207 | P150: 0.6930543 | Q150: 0.8675643 | R150: 0.9015996 | S150: 358.23 | T150: .. | U150: .. | V150: 396.01 | W150: 247.82 | X150: .. | Y150: 125 | Z150: 301 | AA150: 102 | AB150: .. | AC150: .. | AD150: 28.28396123 | AE150: 58.4 | AF150: 55.77 | AG150: 118.06 | AH150: .. | AI150: .. | AJ150: .. | AK150: .. | AL150: 60.26 | AM150: .. | AN150: 0.143 | AO150: 0.1542 | AP150: 1.2862 | AQ150: 0.4487964745 | AR150: 0.8479 | AS150: 3.30693 | AT150: 0.116624398 | AU150: 0.1763696 | AV150: 0.0935 | AW150: 1102.4 | AX150: 44.43 | AY150: 41.57 | AZ150: .. | BA150: 171.9872864 | BB150: .. | BC150: .. | BD150: 0.8157 | BE150: .. | BF150: 0.3153 | BG150: 11.25 | BH150: 66 | BI150: 46.5 | BJ150: 16 | BK150: 32.5 | BL150: 641.5444336 | BM150: 10.33 | BN150: 1013.9 | BO150: 221.8 | BP150: 3534 | BQ150: 2932.1 | BR150: 344.4 | BS150: 42.86 | BT150: 122.5 | BU150: 1.3199 | BV150: .. | BW150: 160.9 | BX150: .. | BY150: .. | BZ150: .. | CA150: .. | CB150: .. | CC150: .. | CD150: .. | CE150: 61.48
A151: 1971M12 | B151: 1.74 | C151: .. | D151: 1.74 | E151: .. | F151: 8.68 | G151: .. | H151: 0.18 | I151: 0.5022435438 | J151: .. | K151: 4.573459075 | L151: 0.538 | M151: 1.0207 | N151: 0.9373828 | O151: 0.804 | P151: 0.7022277 | Q151: 0.8083196 | R151: 0.9015996 | S151: 300 | T151: .. | U151: .. | V151: 410.95 | W151: 233.69 | X151: .. | Y151: 126 | Z151: 271 | AA151: 101 | AB151: .. | AC151: .. | AD151: 28.25095632 | AE151: 58.4 | AF151: 55.77 | AG151: 116.98 | AH151: .. | AI151: .. | AJ151: .. | AK151: .. | AL151: 59.89 | AM151: .. | AN151: 0.144 | AO151: 0.1551 | AP151: 1.3166 | AQ151: 0.4505902934 | AR151: 0.877 | AS151: 3.30693 | AT151: 0.118167632 | AU151: 0.18298346 | AV151: 0.1275 | AW151: 1100.62 | AX151: 44.43 | AY151: 41.45 | AZ151: .. | BA151: 171.7190116 | BB151: .. | BC151: .. | BD151: 0.8455 | BE151: .. | BF151: 0.2928 | BG151: 11.25 | BH151: 66 | BI151: 46.5 | BJ151: 16 | BK151: 32.5 | BL151: 665.795166 | BM151: 10.33 | BN151: 1037.9 | BO151: 231 | BP151: 3670.7 | BQ151: 2932.1 | BR151: 358.9 | BS151: 43.48 | BT151: 122.5 | BU151: 1.3935 | BV151: .. | BW151: 153.52 | BX151: .. | BY151: .. | BZ151: .. | CA151: .. | CB151: .. | CC151: .. | CD151: .. | CE151: 61.42
A152: 1972M01 | B152: 1.77 | C152: .. | D152: 1.77 | E152: .. | F152: 9.6 | G152: .. | H152: 0.19 | I152: 0.5421659865 | J152: .. | K152: 4.884682996 | L152: 0.644 | M152: 0.9905 | N152: 0.9296668 | O152: 0.7869 | P152: 0.7460141 | Q152: 0.8041081 | R152: 0.8105997 | S152: 300 | T152: .. | U152: .. | V152: 426.69 | W152: 218.34 | X152: .. | Y152: 125 | Z152: 249 | AA152: 105 | AB152: .. | AC152: .. | AD152: 27.06295184 | AE152: 51.33 | AF152: 53.08 | AG152: 113.84 | AH152: .. | AI152: .. | AJ152: .. | AK152: .. | AL152: 59.89 | AM152: .. | AN152: 0.131 | AO152: 0.1885 | AP152: 1.3858 | AQ152: 0.4533339114 | AR152: 0.92 | AS152: 4.1226394 | AT152: 0.1543234 | AU152: 0.19180194 | AV152: 0.1741 | AW152: 1106.83 | AX152: 52.48 | AY152: 40.35 | AZ152: .. | BA152: 169.2429716 | BB152: .. | BC152: .. | BD152: 0.8884 | BE152: .. | BF152: 0.3161 | BG152: 11.5 | BH152: 83 | BI152: 60 | BJ152: 29.25 | BK152: 33.5 | BL152: 670.2045898 | BM152: 10.33 | BN152: 1078 | BO152: 251.9 | BP152: 3626.6 | BQ152: 3079.9 | BR152: 379.8 | BS152: 45.75 | BT152: 122.5 | BU152: 1.4731 | BV152: .. | BW152: 148.48 | BX152: .. | BY152: .. | BZ152: .. | CA152: .. | CB152: .. | CC152: .. | CD152: .. | CE152: 61.36
A153: 1972M02 | B153: 1.77 | C153: .. | D153: 1.77 | E153: .. | F153: 9.6 | G153: .. | H153: 0.19 | I153: 0.5421659865 | J153: .. | K153: 4.884682996 | L153: 0.644 | M153: 0.9996 | N153: 0.930769 | O153: 0.7923 | P153: 0.782494 | Q153: 0.7839261 | R153: 0.8105997 | S153: 250 | T153: .. | U153: .. | V153: 437.61 | W153: 185.17 | X153: .. | Y153: 127 | Z153: 246 | AA153: 107 | AB153: .. | AC153: .. | AD153: 27.1789201 | AE153: 51.72 | AF153: 53.46 | AG153: 112.56 | AH153: .. | AI153: .. | AJ153: .. | AK153: .. | AL153: 59.89 | AM153: .. | AN153: 0.14 | AO153: 0.1912 | AP153: 1.4042 | AQ153: 0.4564198636 | AR153: 0.8885 | AS153: 4.1226394 | AT153: 0.156087096 | AU153: 0.1873927 | AV153: 0.181 | AW153: 1115.16 | AX153: 52.48 | AY153: 42.13 | AZ153: .. | BA153: 173.2345527 | BB153: .. | BC153: .. | BD153: 0.8964 | BE153: .. | BF153: 0.3135 | BG153: 11.5 | BH153: 83 | BI153: 60 | BJ153: 29.25 | BK153: 33.5 | BL153: 670.2045898 | BM153: 10.33 | BN153: 1112.4 | BO153: 294.3 | BP153: 3631 | BQ153: 3079.9 | BR153: 389.7 | BS153: 48.26 | BT153: 122.5 | BU153: 1.5036 | BV153: .. | BW153: 134.7 | BX153: .. | BY153: .. | BZ153: .. | CA153: .. | CB153: .. | CC153: .. | CD153: .. | CE153: 61.36
A154: 1972M03 | B154: 1.77 | C154: .. | D154: 1.77 | E154: .. | F154: 9.6 | G154: .. | H154: 0.19 | I154: 0.5421659865 | J154: .. | K154: 4.884682996 | L154: 0.644 | M154: 1.0192 | N154: 0.949508 | O154: 0.796 | P154: 0.8244459 | Q154: 0.7530807 | R154: 0.8105997 | S154: 210 | T154: .. | U154: .. | V154: 434.41 | W154: 216.68 | X154: .. | Y154: 135 | Z154: 258 | AA154: 114 | AB154: .. | AC154: .. | AD154: 27.36711536 | AE154: 52.51 | AF154: 53.57 | AG154: 113.05 | AH154: .. | AI154: .. | AJ154: .. | AK154: .. | AL154: 59.89 | AM154: .. | AN154: 0.133 | AO154: 0.1648 | AP154: 1.4548 | AQ154: 0.4604018283 | AR154: 0.9176 | AS154: 4.1226394 | AT154: 0.157189406 | AU154: 0.18959732 | AV154: 0.185 | AW154: 1088.67 | AX154: 52.48 | AY154: 43.98 | AZ154: .. | BA154: 177.3017216 | BB154: .. | BC154: .. | BD154: 0.8707 | BE154: .. | BF154: 0.3097 | BG154: 11.5 | BH154: 83 | BI154: 60 | BJ154: 29.25 | BK154: 33.5 | BL154: 670.2045898 | BM154: 10.33 | BN154: 1108.2 | BO154: 320.5 | BP154: 3789.7 | BQ154: 3079.9 | BR154: 397.4 | BS154: 48.33 | BT154: 122.5 | BU154: 1.5364 | BV154: .. | BW154: 139.45 | BX154: .. | BY154: .. | BZ154: .. | CA154: .. | CB154: .. | CC154: .. | CD154: .. | CE154: 62.1
A155: 1972M04 | B155: 1.77 | C155: .. | D155: 1.77 | E155: .. | F155: 9.6 | G155: .. | H155: 0.19 | I155: 0.5421659865 | J155: .. | K155: 4.884682996 | L155: 0.644 | M155: 1.0115 | N155: 0.9627353 | O155: 0.814 | P155: 0.809854 | Q155: 0.8214722 | R155: 0.8105997 | S155: 200 | T155: .. | U155: .. | V155: 439.9 | W155: 227.34 | X155: .. | Y155: 140 | Z155: 272 | AA155: 117 | AB155: .. | AC155: .. | AD155: 27.70040595 | AE155: 53.68 | AF155: 53.68 | AG155: 111.58 | AH155: .. | AI155: .. | AJ155: .. | AK155: .. | AL155: 60.26 | AM155: .. | AN155: 0.135 | AO155: 0.1542 | AP155: 1.4991 | AQ155: 0.4636767418 | AR155: 0.9307 | AS155: 4.1226394 | AT155: 0.15652802 | AU155: 0.18518808 | AV155: 0.156 | AW155: 1066.04 | AX155: 52.48 | AY155: 43.57 | AZ155: .. | BA155: 176.4072434 | BB155: .. | BC155: .. | BD155: 0.8651 | BE155: .. | BF155: 0.3064 | BG155: 11.5 | BH155: 83 | BI155: 60 | BJ155: 29.25 | BK155: 33.5 | BL155: 670.2045898 | BM155: 10.33 | BN155: 1133 | BO155: 315.9 | BP155: 3844.9 | BQ155: 3079.9 | BR155: 395 | BS155: 49.03 | BT155: 122.5 | BU155: 1.572 | BV155: .. | BW155: 150.32 | BX155: .. | BY155: .. | BZ155: .. | CA155: .. | CB155: .. | CC155: .. | CD155: .. | CE155: 63.57
A156: 1972M05 | B156: 1.77 | C156: .. | D156: 1.77 | E156: .. | F156: 9.6 | G156: .. | H156: 0.19 | I156: 0.5421659865 | J156: .. | K156: 4.884682996 | L156: 0.644 | M156: 1.0377 | N156: 0.9647195 | O156: 0.8577 | P156: 0.802558 | Q156: 0.9598383 | R156: 0.8105997 | S156: 220 | T156: .. | U156: .. | V156: 441.52 | W156: 227.51 | X156: .. | Y156: 140 | Z156: 252 | AA156: 117 | AB156: .. | AC156: .. | AD156: 27.88868332 | AE156: 54.48 | AF156: 51.53 | AG156: 114.13 | AH156: .. | AI156: .. | AJ156: .. | AK156: .. | AL156: 60.26 | AM156: .. | AN156: 0.1411 | AO156: 0.1331 | AP156: 1.5055 | AQ156: 0.4664567091 | AR156: 0.9847 | AS156: 4.1226394 | AT156: 0.15652802 | AU156: 0.17857422 | AV156: 0.1462 | AW156: 1060.87 | AX156: 52.48 | AY156: 42.54 | AZ156: .. | BA156: 174.1429004 | BB156: .. | BC156: .. | BD156: 0.8598 | BE156: .. | BF156: 0.3263 | BG156: 11.5 | BH156: 83 | BI156: 60 | BJ156: 29.25 | BK156: 33.5 | BL156: 599.6567383 | BM156: 10.33 | BN156: 1106.4 | BO156: 317.9 | BP156: 3765.5 | BQ156: 3079.9 | BR156: 386.2 | BS156: 54.62 | BT156: 122.5 | BU156: 1.583 | BV156: .. | BW156: 143.19 | BX156: .. | BY156: .. | BZ156: .. | CA156: .. | CB156: .. | CC156: .. | CD156: .. | CE156: 63.93
A157: 1972M06 | B157: 1.77 | C157: .. | D157: 1.77 | E157: .. | F157: 9.6 | G157: .. | H157: 0.19 | I157: 0.5421659865 | J157: .. | K157: 4.884682996 | L157: 0.644 | M157: 1.0697 | N157: 0.9625149 | O157: 0.8665 | P157: 0.7350701 | Q157: 1.053885 | R157: 0.8105997 | S157: 248.46 | T157: .. | U157: .. | V157: 422.12 | W157: 216.13 | X157: .. | Y157: 138 | Z157: 234 | AA157: 119 | AB157: .. | AC157: .. | AD157: 27.57409741 | AE157: 52.9 | AF157: 49.82 | AG157: 118.35 | AH157: .. | AI157: .. | AJ157: .. | AK157: .. | AL157: 59.89 | AM157: .. | AN157: 0.137 | AO157: 0.1331 | AP157: 1.5351 | AQ157: 0.4695934689 | AR157: 1.229 | AS157: 4.1226394 | AT157: 0.154543862 | AU157: 0.18077884 | AV157: 0.1395 | AW157: 1072.21 | AX157: 52.48 | AY157: 40.75 | AZ157: .. | BA157: 170.1469005 | BB157: .. | BC157: .. | BD157: 0.8313 | BE157: .. | BF157: 0.3267 | BG157: 11.5 | BH157: 83 | BI157: 60 | BJ157: 29.25 | BK157: 33.5 | BL157: 566.5874023 | BM157: 10.33 | BN157: 1063.2 | BO157: 311.9 | BP157: 3741.2 | BQ157: 3079.9 | BR157: 371 | BS157: 62.09 | BT157: 122.5 | BU157: 1.569 | BV157: .. | BW157: 137.18 | BX157: .. | BY157: .. | BZ157: .. | CA157: .. | CB157: .. | CC157: .. | CD157: .. | CE157: 64.3
A158: 1972M07 | B158: 1.87 | C158: .. | D158: 1.87 | E158: .. | F158: 9.6 | G158: .. | H158: 0.19 | I158: 0.5421659865 | J158: .. | K158: 4.884682996 | L158: 0.644 | M158: 1.2361 | N158: 1.043863 | O158: 0.7878 | P158: 0.5455723 | Q158: 1.007215 | R158: 0.8105997 | S158: 222.41 | T158: .. | U158: .. | V158: 403.2 | W158: 214.6 | X158: .. | Y158: 141 | Z158: 226 | AA158: 127 | AB158: .. | AC158: .. | AD158: 27.90835788 | AE158: 54.07 | AF158: 51.92 | AG158: 119.33 | AH158: .. | AI158: .. | AJ158: .. | AK158: .. | AL158: 60.26 | AM158: .. | AN158: 0.1311 | AO158: 0.1331 | AP158: 1.5066 | AQ158: 0.4737246678 | AR158: 1.1514 | AS158: 4.1226394 | AT158: 0.146386768 | AU158: 0.1873927 | AV158: 0.1225 | AW158: 1062.48 | AX158: 52.48 | AY158: 39.02 | AZ158: .. | BA158: 166.2073611 | BB158: .. | BC158: .. | BD158: 0.7815 | BE158: .. | BF158: 0.3241 | BG158: 11.5 | BH158: 99 | BI158: 75 | BJ158: 29.25 | BK158: 33.5 | BL158: 537.9272461 | BM158: 10.33 | BN158: 1034.6 | BO158: 303.7 | BP158: 3732.4 | BQ158: 3079.9 | BR158: 363.7 | BS158: 65.66 | BT158: 128 | BU158: 1.7358 | BV158: .. | BW158: 130.39 | BX158: .. | BY158: .. | BZ158: .. | CA158: .. | CB158: .. | CC158: .. | CD158: .. | CE158: 64.3
A159: 1972M08 | B159: 1.87 | C159: .. | D159: 1.87 | E159: .. | F159: 9.6 | G159: .. | H159: 0.19 | I159: 0.5421659865 | J159: .. | K159: 4.884682996 | L159: 0.644 | M159: 1.2009 | N159: 1.040557 | O159: 0.772 | P159: 0.6359375 | Q159: 0.8693136 | R159: 0.8105997 | S159: 217.02 | T159: .. | U159: .. | V159: 413.54 | W159: 220.64 | X159: .. | Y159: 141 | Z159: 223 | AA159: 126 | AB159: .. | AC159: .. | AD159: 28.62866726 | AE159: 55.66 | AF159: 54.94 | AG159: 135.55 | AH159: .. | AI159: .. | AJ159: .. | AK159: .. | AL159: 62.1 | AM159: .. | AN159: 0.142 | AO159: 0.1331 | AP159: 1.4916 | AQ159: 0.4764038586 | AR159: 1.2221 | AS159: 4.1226394 | AT159: 0.146827692 | AU159: 0.19400656 | AV159: 0.1378 | AW159: 1081.81 | AX159: 52.48 | AY159: 39.27 | AZ159: .. | BA159: 166.7815547 | BB159: .. | BC159: .. | BD159: 0.7415 | BE159: .. | BF159: 0.317 | BG159: 11.5 | BH159: 99 | BI159: 75 | BJ159: 29.25 | BK159: 33.5 | BL159: 540.1318359 | BM159: 10.33 | BN159: 1046.7 | BO159: 297.8 | BP159: 3754.5 | BQ159: 3079.9 | BR159: 363.5 | BS159: 67.03 | BT159: 132.5 | BU159: 1.8461 | BV159: .. | BW159: 132.98 | BX159: .. | BY159: .. | BZ159: .. | CA159: .. | CB159: .. | CC159: .. | CD159: .. | CE159: 66.87
A160: 1972M09 | B160: 1.87 | C160: .. | D160: 1.87 | E160: .. | F160: 9.6 | G160: .. | H160: 0.19 | I160: 0.5421659865 | J160: .. | K160: 4.884682996 | L160: 0.644 | M160: 1.1687 | N160: 1.034604 | O160: 0.7563 | P160: 0.69375 | Q160: 0.7644187 | R160: 0.8105997 | S160: 226 | T160: .. | U160: .. | V160: 412.33 | W160: 224.87 | X160: .. | Y160: 135 | Z160: 225 | AA160: 138 | AB160: .. | AC160: .. | AD160: 32.15085874 | AE160: 59.2 | AF160: 58.2 | AG160: 144.8 | AH160: .. | AI160: .. | AJ160: .. | AK160: .. | AL160: 76.06 | AM160: .. | AN160: 0.133 | AO160: 0.1331 | AP160: 1.4577 | AQ160: 0.4811275361 | AR160: 1.2 | AS160: 4.1226394 | AT160: 0.146386768 | AU160: 0.19400656 | AV160: 0.1558 | AW160: 1062.84 | AX160: 52.48 | AY160: 39.38 | AZ160: .. | BA160: 167.033667 | BB160: .. | BC160: .. | BD160: 0.733 | BE160: .. | BF160: 0.308 | BG160: 11.5 | BH160: 99 | BI160: 75 | BJ160: 29.25 | BK160: 33.5 | BL160: 537.9272461 | BM160: 10.33 | BN160: 1060.6 | BO160: 302.4 | BP160: 3803 | BQ160: 3079.9 | BR160: 368.4 | BS160: 65.46 | BT160: 132.5 | BU160: 1.7767 | BV160: .. | BW160: 139.35 | BX160: .. | BY160: .. | BZ160: .. | CA160: .. | CB160: .. | CC160: .. | CD160: .. | CE160: 79
A161: 1972M10 | B161: 1.87 | C161: .. | D161: 1.87 | E161: .. | F161: 9.6 | G161: .. | H161: 0.19 | I161: 0.5421659865 | J161: .. | K161: 4.884682996 | L161: 0.644 | M161: 1.1779 | N161: 1.036809 | O161: 0.7401 | P161: 0.632931 | Q161: 0.7768683 | R161: 0.8105997 | S161: 232 | T161: .. | U161: .. | V161: 401.48 | W161: 224.02 | X161: .. | Y161: 136 | Z161: 228 | AA161: 135 | AB161: .. | AC161: .. | AD161: 33.93238012 | AE161: 57.22 | AF161: 56.88 | AG161: 148.7 | AH161: .. | AI161: .. | AJ161: .. | AK161: .. | AL161: 87.45 | AM161: .. | AN161: 0.135 | AO161: 0.1331 | AP161: 1.4687 | AQ161: 0.4835575873 | AR161: 1.1093 | AS161: 4.1226394 | AT161: 0.143741224 | AU161: 0.19400656 | AV161: 0.1633 | AW161: 1061.76 | AX161: 52.48 | AY161: 39.46 | AZ161: .. | BA161: 167.216818 | BB161: .. | BC161: .. | BD161: 0.7799 | BE161: .. | BF161: 0.3602 | BG161: 11.5 | BH161: 99 | BI161: 75 | BJ161: 29.25 | BK161: 33.5 | BL161: 537.9272461 | BM161: 10.33 | BN161: 917.5 | BO161: 297.2 | BP161: 3758.9 | BQ161: 3079.9 | BR161: 363.7 | BS161: 64.86 | BT161: 132.5 | BU161: 1.8106 | BV161: .. | BW161: 137.04 | BX161: .. | BY161: .. | BZ161: .. | CA161: .. | CB161: .. | CC161: .. | CD161: .. | CE161: 86.35
A162: 1972M11 | B162: 1.87 | C162: .. | D162: 1.87 | E162: .. | F162: 9.6 | G162: .. | H162: 0.19 | I162: 0.5421659865 | J162: .. | K162: 4.884682996 | L162: 0.644 | M162: 1.1859 | N162: 1.044304 | O162: 0.7099 | P162: 0.5837871 | Q162: 0.7353197 | R162: 0.8105997 | S162: 234.96 | T162: .. | U162: .. | V162: 422.59 | W162: 218.54 | X162: .. | Y162: 148 | Z162: 240 | AA162: 155 | AB162: .. | AC162: .. | AD162: 34.65496025 | AE162: 59.2 | AF162: 61.95 | AG162: 156 | AH162: .. | AI162: .. | AJ162: .. | AK162: .. | AL162: 88.92 | AM162: .. | AN162: 0.141 | AO162: 0.1331 | AP162: 1.4846 | AQ162: 0.4893380932 | AR162: 1.1214 | AS162: 4.1226394 | AT162: 0.14109568 | AU162: 0.18518808 | AV162: 0.1604 | AW162: 1048.86 | AX162: 52.48 | AY162: 39.46 | AZ162: .. | BA162: 167.216818 | BB162: .. | BC162: .. | BD162: 0.8143 | BE162: .. | BF162: 0.3721 | BG162: 11.5 | BH162: 99 | BI162: 75 | BJ162: 29.25 | BK162: 33.5 | BL162: 540.1318359 | BM162: 10.33 | BN162: 1007.1 | BO162: 298 | BP162: 3701.6 | BQ162: 3079.9 | BR162: 378.9 | BS162: 62.91 | BT162: 132.5 | BU162: 1.8325 | BV162: .. | BW162: 138.27 | BX162: .. | BY162: .. | BZ162: .. | CA162: .. | CB162: .. | CC162: .. | CD162: .. | CE162: 87.08
A163: 1972M12 | B163: 1.87 | C163: .. | D163: 1.87 | E163: .. | F163: 9.6 | G163: .. | H163: 0.19 | I163: 0.5421659865 | J163: .. | K163: 4.884682996 | L163: 0.644 | M163: 1.2174 | N163: 1.052902 | O163: 0.7074 | P163: 0.6031651 | Q163: 0.7084 | R163: 0.8105997 | S163: 247.87 | T163: .. | U163: .. | V163: 455.82 | W163: 213.26 | X163: .. | Y163: 174 | Z163: 234 | AA163: 198 | AB163: .. | AC163: .. | AD163: 38.74975889 | AE163: 67.06 | AF163: 75.83 | AG163: 165.5 | AH163: .. | AI163: .. | AJ163: .. | AK163: .. | AL163: 102.88 | AM163: .. | AN163: 0.134 | AO163: 0.2294 | AP163: 1.5695 | AQ163: 0.4974513357 | AR163: 1.1425 | AS163: 4.1226394 | AT163: 0.140654756 | AU163: 0.18959732 | AV163: 0.2017 | AW163: 1056.18 | AX163: 52.48 | AY163: 43.48 | AZ163: .. | BA163: 176.210377 | BB163: .. | BC163: .. | BD163: 0.862 | BE163: .. | BF163: 0.4012 | BG163: 11.5 | BH163: 99 | BI163: 75 | BJ163: 29.25 | BK163: 33.5 | BL163: 540.1318359 | BM163: 10.33 | BN163: 1024.4 | BO163: 308.4 | BP163: 3730.2 | BQ163: 3079.9 | BR163: 375 | BS163: 63.91 | BT163: 132.5 | BU163: 1.976 | BV163: .. | BW163: 159.03 | BX163: .. | BY163: .. | BZ163: .. | CA163: .. | CB163: .. | CC163: .. | CD163: .. | CE163: 95.53
A164: 1973M01 | B164: 2.08 | C164: .. | D164: 2.08 | E164: .. | F164: 11.48 | G164: .. | H164: 0.21 | I164: 0.6935067243 | J164: .. | K164: 5.847020144 | L164: 1.131 | M164: 1.278 | N164: 1.054005 | O164: 0.7161 | P164: 0.6023916 | Q164: 0.7253865 | R164: 0.8203997 | S164: 231 | T164: .. | U164: .. | V164: 445.79 | W164: 211.77 | X164: .. | Y164: 214 | Z164: 239 | AA164: 215 | AB164: .. | AC164: .. | AD164: 42.09602313 | AE164: 79.13 | AF164: 81.35 | AG164: 160.88 | AH164: .. | AI164: .. | AJ164: .. | AK164: .. | AL164: 108.39 | AM164: .. | AN164: 0.135 | AO164: 0.1488 | AP164: 1.7009 | AQ164: 0.5021990293 | AR164: 1.1688 | AS164: 5.0044874 | AT164: 0.141316142 | AU164: 0.206793356 | AV164: 0.2072 | AW164: 1041.72 | AX164: 133.47 | AY164: 48.85 | AZ164: .. | BA164: 187.6471609 | BB164: .. | BC164: .. | BD164: 0.8858 | BE164: .. | BF164: 0.4422 | BG164: 13.75 | BH164: 105 | BI164: 84 | BJ164: 64.75 | BK164: 42.5 | BL164: 542.3364258 | BM164: 10.33 | BN164: 1119 | BO164: 318.3 | BP164: 3789.7 | BQ164: 3373.1 | BR164: 387 | BS164: 65.14 | BT164: 132.5 | BU164: 2.0166 | BV164: .. | BW164: 174.45 | BX164: .. | BY164: .. | BZ164: .. | CA164: .. | CB164: .. | CC164: .. | CD164: .. | CE164: 98.4
A165: 1973M02 | B165: 2.08 | C165: .. | D165: 2.08 | E165: .. | F165: 11.48 | G165: .. | H165: 0.21 | I165: 0.6935067243 | J165: .. | K165: 5.847020144 | L165: 1.131 | M165: 1.4542 | N165: 1.091923 | O165: 0.7292 | P165: 0.6574131 | Q165: 0.7098448 | R165: 0.8203997 | S165: 299 | T165: .. | U165: .. | V165: 460.54 | W165: 258.66 | X165: .. | Y165: 259 | Z165: 291 | AA165: 247 | AB165: .. | AC165: .. | AD165: 40.76364564 | AE165: 81.1 | AF165: 78.48 | AG165: 173.53 | AH165: .. | AI165: .. | AJ165: .. | AK165: .. | AL165: 98.84 | AM165: .. | AN165: 0.142 | AO165: 0.1823 | AP165: 1.8744 | AQ165: 0.5088605829 | AR165: 1.1846 | AS165: 5.0044874 | AT165: 0.14550492 | AU165: 0.201502268 | AV165: 0.1979 | AW165: 1039.48 | AX165: 133.47 | AY165: 63.34 | AZ165: .. | BA165: 215.9042956 | BB165: .. | BC165: .. | BD165: 0.9068 | BE165: .. | BF165: 0.4625 | BG165: 13.75 | BH165: 105 | BI165: 84 | BJ165: 64.75 | BK165: 42.5 | BL165: 557.7687988 | BM165: 10.33 | BN165: 1243.6 | BO165: 339.9 | BP165: 4027.8 | BQ165: 3373.1 | BR165: 422 | BS165: 74.2 | BT165: 141.97 | BU165: 2.2362 | BV165: .. | BW165: 212.34 | BX165: .. | BY165: .. | BZ165: .. | CA165: .. | CB165: .. | CC165: .. | CD165: .. | CE165: 98.99
A166: 1973M03 | B166: 2.08 | C166: .. | D166: 2.08 | E166: .. | F166: 11.48 | G166: .. | H166: 0.21 | I166: 0.6935067243 | J166: .. | K166: 5.847020144 | L166: 1.131 | M166: 1.4193 | N166: 1.10978 | O166: 0.734 | P166: 0.6958561 | Q166: 0.6855978 | R166: 0.8203997 | S166: 315 | T166: .. | U166: .. | V166: 462.7 | W166: 280.36 | X166: .. | Y166: 258 | Z166: 311 | AA166: 238 | AB166: .. | AC166: .. | AD166: 40.55504477 | AE166: 79.92 | AF166: 76.28 | AG166: 185.87 | AH166: .. | AI166: .. | AJ166: .. | AK166: .. | AL166: 98.47 | AM166: .. | AN166: 0.142 | AO166: 0.1781 | AP166: 1.9795 | AQ166: 0.5117486735 | AR166: 1.2308 | AS166: 5.0044874 | AT166: 0.148591388 | AU166: 0.208116128 | AV166: 0.1933 | AW166: 1046.86 | AX166: 133.47 | AY166: 74.1 | AZ166: .. | BA166: 234.9941027 | BB166: .. | BC166: .. | BD166: 0.958 | BE166: .. | BF166: 0.5454 | BG166: 13.75 | BH166: 105 | BI166: 84 | BJ166: 64.75 | BK166: 42.5 | BL166: 570.996582 | BM166: 10.33 | BN166: 1509.5 | BO166: 372.1 | BP166: 4288 | BQ166: 3373.1 | BR166: 474 | BS166: 84.37 | BT166: 152.5 | BU166: 2.3092 | BV166: .. | BW166: 223.81 | BX166: .. | BY166: .. | BZ166: .. | CA166: .. | CB166: .. | CC166: .. | CD166: .. | CE166: 98.85
A167: 1973M04 | B167: 2.35 | C167: .. | D167: 2.35 | E167: .. | F167: 11.48 | G167: .. | H167: 0.21 | I167: 0.6935067243 | J167: .. | K167: 5.847020144 | L167: 1.131 | M167: 1.291 | N167: 1.077593 | O167: 0.8041 | P167: 0.6926475 | Q167: 0.8993512 | R167: 0.8203997 | S167: 360 | T167: .. | U167: .. | V167: 473.56 | W167: 290.2 | X167: .. | Y167: 260 | Z167: 333 | AA167: 256 | AB167: .. | AC167: .. | AD167: 40.72155301 | AE167: 77.77 | AF167: 74.51 | AG167: 185.87 | AH167: .. | AI167: .. | AJ167: .. | AK167: .. | AL167: 101.05 | AM167: .. | AN167: 0.147 | AO167: 0.1488 | AP167: 1.8532 | AQ167: 0.5170794378 | AR167: 1.2693 | AS167: 5.0044874 | AT167: 0.14881185 | AU167: 0.21274583 | AV167: 0.1982 | AW167: 1066.55 | AX167: 133.47 | AY167: 70.97 | AZ167: .. | BA167: 229.5807794 | BB167: .. | BC167: .. | BD167: 1.0307 | BE167: .. | BF167: 0.5437 | BG167: 13.75 | BH167: 105 | BI167: 84 | BJ167: 64.75 | BK167: 42.5 | BL167: 570.996582 | BM167: 10.33 | BN167: 1588.4 | BO167: 387.1 | BP167: 4270.3 | BQ167: 3373.1 | BR167: 513 | BS167: 90.5 | BT167: 152.5 | BU167: 2.2072 | BV167: .. | BW167: 267.14 | BX167: .. | BY167: .. | BZ167: .. | CA167: .. | CB167: .. | CC167: .. | CD167: .. | CE167: 98.63
A168: 1973M05 | B168: 2.35 | C168: .. | D168: 2.35 | E168: .. | F168: 11.48 | G168: .. | H168: 0.21 | I168: 0.6935067243 | J168: .. | K168: 5.847020144 | L168: 1.131 | M168: 1.4151 | N168: 1.074507 | O168: 0.8071 | P168: 0.6361446 | Q168: 0.9647718 | R168: 0.8203997 | S168: 416 | T168: .. | U168: .. | V168: 493.84 | W168: 323.83 | X168: .. | Y168: 358 | Z168: 373 | AA168: 364 | AB168: .. | AC168: .. | AD168: 42.94445668 | AE168: 88.97 | AF168: 78.48 | AG168: 185.87 | AH168: .. | AI168: .. | AJ168: .. | AK168: .. | AL168: 102.15 | AM168: .. | AN168: 0.157 | AO168: 0.154 | AP168: 1.8479 | AQ168: 0.5287359011 | AR168: 1.2409 | AS168: 5.0044874 | AT168: 0.151677856 | AU168: 0.221784772 | AV168: 0.2001 | AW168: 1087.36 | AX168: 133.47 | AY168: 61.74 | AZ168: .. | BA168: 212.9418921 | BB168: .. | BC168: .. | BD168: 1.1498 | BE168: .. | BF168: 0.5507 | BG168: 13.75 | BH168: 105 | BI168: 84 | BJ168: 64.75 | BK168: 42.5 | BL168: 582.0197754 | BM168: 10.33 | BN168: 1552.2 | BO168: 396.4 | BP168: 4347.5 | BQ168: 3373.1 | BR168: 549 | BS168: 101.96 | BT168: 152.5 | BU168: 2.4012 | BV168: .. | BW168: 296.22 | BX168: .. | BY168: .. | BZ168: .. | CA168: .. | CB168: .. | CC168: .. | CD168: .. | CE168: 103.2
A169: 1973M06 | B169: 2.35 | C169: .. | D169: 2.35 | E169: .. | F169: 11.48 | G169: .. | H169: 0.21 | I169: 0.6935067243 | J169: .. | K169: 5.847020144 | L169: 1.131 | M169: 1.4147 | N169: 1.077593 | O169: 0.8437 | P169: 0.6047198 | Q169: 1.076973 | R169: 0.8492754 | S169: 457 | T169: .. | U169: .. | V169: 524.81 | W169: 371.41 | X169: .. | Y169: 470 | Z169: 455 | AA169: 497 | AB169: .. | AC169: .. | AD169: 46.21061385 | AE169: 101.17 | AF169: 87.3 | AG169: 185.87 | AH169: .. | AI169: .. | AJ169: .. | AK169: .. | AL169: 108.39 | AM169: .. | AN169: 0.16 | AO169: 0.154 | AP169: 1.7996 | AQ169: 0.5397189826 | AR169: 1.2883 | AS169: 5.0044874 | AT169: 0.154543862 | AU169: 0.22597355 | AV169: 0.2067 | AW169: 1116.3 | AX169: 133.47 | AY169: 55.72 | AZ169: .. | BA169: 201.4657057 | BB169: .. | BC169: .. | BD169: 1.2237 | BE169: .. | BF169: 0.6695 | BG169: 13.75 | BH169: 105 | BI169: 84 | BJ169: 64.75 | BK169: 42.5 | BL169: 601.8613281 | BM169: 10.33 | BN169: 1748.7 | BO169: 425.3 | BP169: 4530.5 | BQ169: 3373.1 | BR169: 656 | BS169: 120.12 | BT169: 152.5 | BU169: 2.6209 | BV169: .. | BW169: 324 | BX169: .. | BY169: .. | BZ169: .. | CA169: .. | CB169: .. | CC169: .. | CD169: .. | CE169: 118.55
A170: 1973M07 | B170: 2.7 | C170: .. | D170: 2.7 | E170: .. | F170: 11.48 | G170: .. | H170: 0.21 | I170: 0.6935067243 | J170: .. | K170: 5.847020144 | L170: 1.131 | M170: 1.3567 | N170: 1.058193 | O170: 0.8718 | P170: 0.6309969 | Q170: 1.13515 | R170: 0.8492754 | S170: 552 | T170: .. | U170: .. | V170: 593.56 | W170: 472.85 | X170: .. | Y170: 330 | Z170: 550 | AA170: 582 | AB170: .. | AC170: .. | AD170: 48.80161577 | AE170: 109.44 | AF170: 99.65 | AG170: 332.53 | AH170: .. | AI170: .. | AJ170: .. | AK170: .. | AL170: 114.64 | AM170: .. | AN170: 0.154 | AO170: 0.154 | AP170: 1.9575 | AQ170: 0.5473256355 | AR170: 1.4375 | AS170: 5.0044874 | AT170: 0.152339242 | AU170: 0.22597355 | AV170: 0.2098 | AW170: 1135.95 | AX170: 133.47 | AY170: 56.35 | AZ170: .. | BA170: 202.6925788 | BB170: .. | BC170: .. | BD170: 1.455 | BE170: .. | BF170: 0.8486 | BG170: 13.75 | BH170: 132.5 | BI170: 115 | BJ170: 64.75 | BK170: 42.5 | BL170: 634.9306641 | BM170: 10.33 | BN170: 2021.2 | BO170: 469.8 | BP170: 4962.6 | BQ170: 3373.1 | BR170: 842 | BS170: 120.17 | BT170: 152.5 | BU170: 2.7056 | BV170: .. | BW170: 402.5 | BX170: .. | BY170: .. | BZ170: .. | CA170: .. | CB170: .. | CC170: .. | CD170: .. | CE170: 132.61
A171: 1973M08 | B171: 2.7 | C171: .. | D171: 2.7 | E171: .. | F171: 11.48 | G171: .. | H171: 0.21 | I171: 0.6935067243 | J171: .. | K171: 5.847020144 | L171: 1.131 | M171: 1.3307 | N171: 1.044966 | O171: 0.8529 | P171: 0.7366071 | Q171: 0.972896 | R171: 0.8492754 | S171: 573 | T171: .. | U171: .. | V171: 597.88 | W171: 536.33 | X171: .. | Y171: 331 | Z171: 548 | AA171: 330 | AB171: .. | AC171: .. | AD171: 64.46619625 | AE171: 122.43 | AF171: 113.32 | AG171: 377.7 | AH171: .. | AI171: .. | AJ171: .. | AK171: .. | AL171: 192.54 | AM171: .. | AN171: 0.146 | AO171: 0.154 | AP171: 2.459 | AQ171: 0.5380954357 | AR171: 1.4748 | AS171: 5.0044874 | AT171: 0.148591388 | AU171: 0.23699665 | AV171: 0.1977 | AW171: 1150.06 | AX171: 133.47 | AY171: 63.55 | AZ171: .. | BA171: 216.2905429 | BB171: .. | BC171: .. | BD171: 1.672 | BE171: .. | BF171: 0.8241 | BG171: 13.75 | BH171: 132.5 | BI171: 115 | BJ171: 64.75 | BK171: 42.5 | BL171: 619.498291 | BM171: 10.33 | BN171: 2123 | BO171: 447.5 | BP171: 5004.5 | BQ171: 3373.1 | BR171: 914 | BS171: 106.76 | BT171: 152.5 | BU171: 2.6365 | BV171: .. | BW171: 407.5 | BX171: .. | BY171: .. | BZ171: .. | CA171: .. | CB171: .. | CC171: .. | CD171: .. | CE171: 193.47
A172: 1973M09 | B172: 2.7 | C172: .. | D172: 2.7 | E172: .. | F172: 11.48 | G172: .. | H172: 0.21 | I172: 0.6935067243 | J172: .. | K172: 5.847020144 | L172: 1.131 | M172: 1.3272 | N172: 1.104489 | O172: 0.81 | P172: 0.7370892 | Q172: 0.8437009 | R172: 0.8492754 | S172: 550 | T172: .. | U172: .. | V172: 533.73 | W172: 424.13 | X172: .. | Y172: 266 | Z172: 508 | AA172: 218 | AB172: .. | AC172: .. | AD172: 61.21646507 | AE172: 107.08 | AF172: 105.82 | AG172: 377.7 | AH172: .. | AI172: .. | AJ172: .. | AK172: .. | AL172: 189.6 | AM172: .. | AN172: 0.142 | AO172: 0.154 | AP172: 2.2624 | AQ172: 0.5324872637 | AR172: 1.5645 | AS172: 5.0044874 | AT172: 0.145284458 | AU172: 0.241846814 | AV172: 0.1977 | AW172: 1179.2 | AX172: 133.47 | AY172: 70.27 | AZ172: .. | BA172: 228.3552002 | BB172: .. | BC172: .. | BD172: 1.9112 | BE172: .. | BF172: 0.7341 | BG172: 13.75 | BH172: 132.5 | BI172: 115 | BJ172: 64.75 | BK172: 42.5 | BL172: 604.065918 | BM172: 10.33 | BN172: 1936.1 | BO172: 444.7 | BP172: 5011.1 | BQ172: 3373.1 | BR172: 976 | BS172: 102.97 | BT172: 155.24 | BU172: 2.6751 | BV172: .. | BW172: 358 | BX172: .. | BY172: .. | BZ172: .. | CA172: .. | CB172: .. | CC172: .. | CD172: .. | CE172: 206.53
A173: 1973M10 | B173: 4.1 | C173: .. | D173: 4.1 | E173: .. | F173: 11.48 | G173: .. | H173: 0.21 | I173: 0.6935067243 | J173: .. | K173: 5.847020144 | L173: 1.131 | M173: 1.3779 | N173: 1.146376 | O173: 0.7905 | P173: 0.6696567 | Q173: 0.8525465 | R173: 0.8492754 | S173: 617 | T173: .. | U173: .. | V173: 560.68 | W173: 434.92 | X173: .. | Y173: 245 | Z173: 531 | AA173: 207 | AB173: .. | AC173: .. | AD173: 60.08117037 | AE173: 106.39 | AF173: 109.24 | AG173: 337.7 | AH173: .. | AI173: .. | AJ173: .. | AK173: .. | AL173: 182.25 | AM173: .. | AN173: 0.148 | AO173: 0.154 | AP173: 2.1839 | AQ173: 0.5351739909 | AR173: 1.5986 | AS173: 5.0044874 | AT173: 0.14550492 | AU173: 0.24581513 | AV173: 0.2096 | AW173: 1202.69 | AX173: 133.47 | AY173: 78 | AZ173: .. | BA173: 241.5940402 | BB173: .. | BC173: .. | BD173: 1.9252 | BE173: .. | BF173: 0.7097 | BG173: 13.75 | BH173: 132.5 | BI173: 115 | BJ173: 64.75 | BK173: 42.5 | BL173: 621.7028809 | BM173: 10.33 | BN173: 2065.3 | BO173: 471.6 | BP173: 5359.4 | BQ173: 3373.1 | BR173: 1163 | BS173: 100.08 | BT173: 160.5 | BU173: 2.8856 | BV173: .. | BW173: 397.5 | BX173: .. | BY173: .. | BZ173: .. | CA173: .. | CB173: .. | CC173: .. | CD173: .. | CE173: 206.28
A174: 1973M11 | B174: 4.1 | C174: .. | D174: 4.1 | E174: .. | F174: 11.48 | G174: .. | H174: 0.21 | I174: 0.6935067243 | J174: .. | K174: 5.847020144 | L174: 1.131 | M174: 1.3931 | N174: 1.168422 | O174: 0.7574 | P174: 0.6302457 | Q174: 0.7925398 | R174: 0.8492754 | S174: 718 | T174: .. | U174: .. | V174: 617.23 | W174: 429.29 | X174: .. | Y174: 239 | Z174: 490 | AA174: 223 | AB174: .. | AC174: .. | AD174: 60.41272029 | AE174: 107.87 | AF174: 106.7 | AG174: 475.9 | AH174: .. | AI174: .. | AJ174: .. | AK174: .. | AL174: 181.88 | AM174: .. | AN174: 0.139 | AO174: 0.154 | AP174: 2.1429 | AQ174: 0.5407845144 | AR174: 1.6149 | AS174: 5.0044874 | AT174: 0.1433003 | AU174: 0.24471282 | AV174: 0.2235 | AW174: 1222.18 | AX174: 133.47 | AY174: 77.03 | AZ174: .. | BA174: 239.9669745 | BB174: .. | BC174: .. | BD174: 1.7528 | BE174: .. | BF174: 0.7981 | BG174: 13.75 | BH174: 132.5 | BI174: 115 | BJ174: 64.75 | BK174: 42.5 | BL174: 650.362793 | BM174: 10.33 | BN174: 2273 | BO174: 490 | BP174: 5573.3 | BQ174: 3373.1 | BR174: 1625 | BS174: 94.92 | BT174: 160.5 | BU174: 2.8599 | BV174: .. | BW174: 474 | BX174: .. | BY174: .. | BZ174: .. | CA174: .. | CB174: .. | CC174: .. | CD174: .. | CE174: 205
A175: 1973M12 | B175: 4.1 | C175: .. | D175: 4.1 | E175: .. | F175: 11.48 | G175: .. | H175: 0.21 | I175: 0.6935067243 | J175: .. | K175: 5.847020144 | L175: 1.131 | M175: 1.4235 | N175: 1.190467 | O175: 0.7423 | P175: 0.6453541 | Q175: 0.7323374 | R175: 0.8492754 | S175: 1068 | T175: .. | U175: .. | V175: 789.7 | W175: 496.71 | X175: .. | Y175: 254 | Z175: 603 | AA175: 243 | AB175: .. | AC175: .. | AD175: 64.08079132 | AE175: 112.59 | AF175: 109.57 | AG175: 495.54 | AH175: .. | AI175: .. | AJ175: .. | AK175: .. | AL175: 199.52 | AM175: .. | AN175: 0.129 | AO175: 0.22 | AP175: 2.0693 | AQ175: 0.5467210804 | AR175: 1.6196 | AS175: 5.0044874 | AT175: 0.139111522 | AU175: 0.250003908 | AV175: 0.2612 | AW175: 1247.9 | AX175: 133.47 | AY175: 96.43 | AZ175: .. | BA175: 270.91291 | BB175: .. | BC175: .. | BD175: 1.8159 | BE175: .. | BF175: 1.0075 | BG175: 13.75 | BH175: 132.5 | BI175: 115 | BJ175: 64.75 | BK175: 42.5 | BL175: 632.7258301 | BM175: 10.33 | BN175: 2244.3 | BO175: 593.5 | BP175: 6461.7 | BQ175: 3373.1 | BR175: 1623 | BS175: 106.72 | BT175: 160.5 | BU175: 3.1367 | BV175: .. | BW175: 700 | BX175: .. | BY175: .. | BZ175: .. | CA175: .. | CB175: .. | CC175: .. | CD175: .. | CE175: 205.37
A176: 1974M01 | B176: 13 | C176: .. | D176: 13 | E176: .. | F176: 16.89 | G176: .. | H176: 0.29 | I176: 1.73 | J176: .. | K176: 11.7459504 | L176: 1.561 | M176: 1.5304 | N176: 1.226622 | O176: 0.8413 | P176: 0.6764275 | Q176: 0.7105354 | R176: 1.1368 | S176: 1191 | T176: .. | U176: .. | V176: 958.77 | W176: 578.77 | X176: .. | Y176: 261 | Z176: 665 | AA176: 221 | AB176: .. | AC176: .. | AD176: 66.14727209 | AE176: 112.28 | AF176: 115.79 | AG176: 512.23 | AH176: .. | AI176: .. | AJ176: .. | AK176: .. | AL176: 213.48 | AM176: .. | AN176: 0.16909 | AO176: 0.1395 | AP176: 2.0371 | AQ176: 0.5484676485 | AR176: 1.6008 | AS176: 4.6517482 | AT176: 0.18188115 | AU176: 0.278443506 | AV176: 0.3342 | AW176: 1280.63 | AX176: 120.43 | AY176: 95.43 | AZ176: .. | BA176: 269.3921833 | BB176: .. | BC176: .. | BD176: 1.9887 | BE176: .. | BF176: 1.0803 | BG176: 42 | BH176: 215 | BI176: 180 | BJ176: 285.75 | BK176: 53 | BL176: 604.065918 | BM176: 13.38 | BN176: 2032.4 | BO176: 565.7 | BP176: 6503.6 | BQ176: 3571.5 | BR176: 1330 | BS176: 129.19 | BT176: 162.68 | BU176: 3.63695 | BV176: .. | BW176: 750 | BX176: .. | BY176: .. | BZ176: .. | CA176: .. | CB176: .. | CC176: .. | CD176: .. | CE176: 212.83
A177: 1974M02 | B177: 13 | C177: .. | D177: 13 | E177: .. | F177: 16.89 | G177: .. | H177: 0.29 | I177: 1.73 | J177: .. | K177: 11.7459504 | L177: 1.561 | M177: 1.6466 | N177: 1.334867 | O177: 0.8747 | P177: 0.6921172 | Q177: 0.7952024 | R177: 1.1368 | S177: 1160 | T177: .. | U177: .. | V177: 1093.4 | W177: 667.24 | X177: .. | Y177: 271 | Z177: 780 | AA177: 203 | AB177: .. | AC177: .. | AD177: 70.94397609 | AE177: 131.1 | AF177: 121.31 | AG177: 539.73 | AH177: .. | AI177: .. | AJ177: .. | AK177: .. | AL177: 220.46 | AM177: .. | AN177: 0.1618 | AO177: 0.1675 | AP177: 1.9826 | AQ177: 0.5491469471 | AR177: 1.4649 | AS177: 4.6517482 | AT177: 0.186069928 | AU177: 0.376769558 | AV177: 0.465 | AW177: 1310.72 | AX177: 120.43 | AY177: 97.86 | AZ177: .. | BA177: 273.0750019 | BB177: .. | BC177: .. | BD177: 1.8437 | BE177: .. | BF177: 0.9789 | BG177: 42 | BH177: 232.5 | BI177: 220 | BJ177: 285.75 | BK177: 55 | BL177: 619.498291 | BM177: 13.38 | BN177: 2291.7 | BO177: 649.2 | BP177: 7418.5 | BQ177: 3571.5 | BR177: 1516 | BS177: 150.13 | BT177: 172.5 | BU177: 5.35895 | BV177: .. | BW177: 745 | BX177: .. | BY177: .. | BZ177: .. | CA177: .. | CB177: .. | CC177: .. | CD177: .. | CE177: 216.63
A178: 1974M03 | B178: 13 | C178: .. | D178: 13 | E178: .. | F178: 16.89 | G178: .. | H178: 0.29 | I178: 1.73 | J178: .. | K178: 11.7459504 | L178: 1.561 | M178: 1.5754 | N178: 1.382706 | O178: 0.9435 | P178: 0.8626103 | Q178: 0.8311096 | R178: 1.1368 | S178: 1266 | T178: .. | U178: .. | V178: 1123.83 | W178: 632.88 | X178: .. | Y178: 265 | Z178: 711 | AA178: 200 | AB178: .. | AC178: .. | AD178: 65.64739356 | AE178: 126.37 | AF178: 113.54 | AG178: 570.17 | AH178: .. | AI178: .. | AJ178: .. | AK178: .. | AL178: 190.7 | AM178: .. | AN178: 0.14352 | AO178: 0.173 | AP178: 1.7428 | AQ178: 0.5514764373 | AR178: 1.4476 | AS178: 4.6517482 | AT178: 0.191140554 | AU178: 0.399256682 | AV178: 0.4652 | AW178: 1341.7 | AX178: 120.43 | AY178: 99.71 | AZ178: .. | BA178: 275.8506667 | BB178: .. | BC178: .. | BD178: 1.6949 | BE178: .. | BF178: 0.9374 | BG178: 42 | BH178: 262.5 | BI178: 242 | BJ178: 285.75 | BK178: 55 | BL178: 687.8415527 | BM178: 13.38 | BN178: 2743.4 | BO178: 708.3 | BP178: 8218.8 | BQ178: 3571.5 | BR178: 1630 | BS178: 168.42 | BT178: 172.5 | BU178: 5.32552 | BV178: .. | BW178: 845 | BX178: .. | BY178: .. | BZ178: .. | CA178: .. | CB178: .. | CC178: .. | CD178: .. | CE178: 220.77
A179: 1974M04 | B179: 10.59999847 | C179: .. | D179: 10.59999847 | E179: .. | F179: 16.89 | G179: .. | H179: 0.29 | I179: 1.73 | J179: .. | K179: 11.7459504 | L179: 1.561 | M179: 1.5498 | N179: 1.411586 | O179: 1.1544 | P179: 0.8622277 | Q179: 1.464217 | R179: 1.1368 | S179: 1150 | T179: .. | U179: .. | V179: 1113.36 | W179: 613.85 | X179: .. | Y179: 235 | Z179: 660 | AA179: 172 | AB179: .. | AC179: .. | AD179: 58.91628206 | AE179: 114.17 | AF179: 103.07 | AG179: 603.56 | AH179: .. | AI179: .. | AJ179: .. | AK179: .. | AL179: 162.04 | AM179: .. | AN179: 0.15961 | AO179: 0.1675 | AP179: 1.6182 | AQ179: 0.550606963 | AR179: 1.4476 | AS179: 4.6517482 | AT179: 0.195329332 | AU179: 0.424168888 | AV179: 0.4762 | AW179: 1401.16 | AX179: 120.43 | AY179: 94.68 | AZ179: .. | BA179: 268.2468222 | BB179: .. | BC179: .. | BD179: 1.6094 | BE179: .. | BF179: 0.8415 | BG179: 42 | BH179: 293.8 | BI179: 281 | BJ179: 285.75 | BK179: 55 | BL179: 751.7753906 | BM179: 13.38 | BN179: 3031.8 | BO179: 702 | BP179: 9206.5 | BQ179: 3571.5 | BR179: 1743 | BS179: 172.24 | BT179: 172.5 | BU179: 5.03595 | BV179: .. | BW179: 676.67 | BX179: .. | BY179: .. | BZ179: .. | CA179: .. | CB179: .. | CC179: .. | CD179: .. | CE179: 219.63
A180: 1974M05 | B180: 10.59999847 | C180: .. | D180: 10.59999847 | E180: .. | F180: 16.89 | G180: .. | H180: 0.29 | I180: 1.73 | J180: .. | K180: 11.7459504 | L180: 1.561 | M180: 1.5657 | N180: 1.422608 | O180: 1.0915 | P180: 0.8406738 | Q180: 1.296882 | R180: 1.1368 | S180: 996 | T180: .. | U180: .. | V180: 1102.24 | W180: 591.5 | X180: .. | Y180: 229 | Z180: 775 | AA180: 157 | AB180: .. | AC180: .. | AD180: 55.36907652 | AE180: 113.7 | AF180: 95.9 | AG180: 598.65 | AH180: .. | AI180: .. | AJ180: .. | AK180: .. | AL180: 141.46 | AM180: .. | AN180: 0.20944 | AO180: 0.1983 | AP180: 1.5448 | AQ180: 0.5511406519 | AR180: 1.4216 | AS180: 4.6517482 | AT180: 0.19731349 | AU180: 0.507944448 | AV180: 0.521 | AW180: 1427.35 | AX180: 120.43 | AY180: 87.12 | AZ180: .. | BA180: 256.4594929 | BB180: .. | BC180: .. | BD180: 1.4682 | BE180: .. | BF180: 0.8567 | BG180: 42 | BH180: 301.3 | BI180: 294 | BJ180: 285.75 | BK180: 55 | BL180: 765.0031738 | BM180: 13.38 | BN180: 2875.7 | BO180: 668.7 | BP180: 9305.7 | BQ180: 3571.5 | BR180: 1782 | BS180: 163.27 | BT180: 174.55 | BU180: 5.43182 | BV180: .. | BW180: 752 | BX180: .. | BY180: .. | BZ180: .. | CA180: .. | CB180: .. | CC180: .. | CD180: .. | CE180: 200.53
A181: 1974M06 | B181: 10.59999847 | C181: .. | D181: 10.59999847 | E181: .. | F181: 16.89 | G181: .. | H181: 0.29 | I181: 1.73 | J181: .. | K181: 11.7459504 | L181: 1.561 | M181: 1.5898 | N181: 1.362424 | O181: 1.1901 | P181: 0.9076923 | Q181: 1.52586 | R181: 1.1368 | S181: 1039 | T181: .. | U181: .. | V181: 1070.19 | W181: 603.31 | X181: .. | Y181: 228 | Z181: 788 | AA181: 142 | AB181: .. | AC181: .. | AD181: 58.48418559 | AE181: 116.63 | AF181: 93.7 | AG181: 570.42 | AH181: .. | AI181: .. | AJ181: .. | AK181: .. | AL181: 155.79 | AM181: .. | AN181: 0.19026 | AO181: 0.1983 | AP181: 1.4451 | AQ181: 0.5514586427 | AR181: 1.3919 | AS181: 4.6517482 | AT181: 0.195549794 | AU181: 0.57871275 | AV181: 0.5183 | AW181: 1502.41 | AX181: 120.43 | AY181: 79.49 | AZ181: .. | BA181: 244.0753268 | BB181: .. | BC181: .. | BD181: 1.3973 | BE181: .. | BF181: 0.739 | BG181: 63 | BH181: 339.5 | BI181: 336 | BJ181: 285.75 | BK181: 57 | BL181: 756.1845703 | BM181: 13.38 | BN181: 2440 | BO181: 570.1 | BP181: 9041.1 | BQ181: 3571.5 | BR181: 1410 | BS181: 154.1 | BT181: 195 | BU181: 4.8961 | BV181: .. | BW181: 750 | BX181: .. | BY181: .. | BZ181: .. | CA181: .. | CB181: .. | CC181: .. | CD181: .. | CE181: 184.48
A182: 1974M07 | B182: 10 | C182: .. | D182: 10 | E182: .. | F182: 16.89 | G182: .. | H182: 0.29 | I182: 1.73 | J182: .. | K182: 11.7459504 | L182: 1.561 | M182: 1.5232 | N182: 1.303562 | O182: 1.3055 | P182: 0.9263513 | Q182: 1.853248 | R182: 1.1368 | S182: 1007 | T182: .. | U182: .. | V182: 1010.85 | W182: 609.64 | X182: .. | Y182: 276 | Z182: 872 | AA182: 163 | AB182: .. | AC182: .. | AD182: 63.5201459 | AE182: 132.28 | AF182: 116.02 | AG182: 494.56 | AH182: .. | AI182: .. | AJ182: .. | AK182: .. | AL182: 169.02 | AM182: .. | AN182: 0.22178 | AO182: 0.1983 | AP182: 1.6409 | AQ182: 0.5574274088 | AR182: 1.3101 | AS182: 4.6517482 | AT182: 0.195329332 | AU182: 0.62500977 | AV182: 0.5518 | AW182: 1530.14 | AX182: 120.43 | AY182: 83.19 | AZ182: .. | BA182: 250.145986 | BB182: .. | BC182: .. | BD182: 1.3228 | BE182: .. | BF182: 0.6693 | BG182: 63 | BH182: 358.1 | BI182: 341 | BJ182: 285.75 | BK182: 58 | BL182: 760.5939941 | BM182: 13.38 | BN182: 1919.1 | BO182: 548.5 | BP182: 8547.3 | BQ182: 4079 | BR182: 1097 | BS182: 142.98 | BT182: 195 | BU182: 4.41545 | BV182: .. | BW182: 686.25 | BX182: .. | BY182: .. | BZ182: .. | CA182: .. | CB182: .. | CC182: .. | CD182: .. | CE182: 193.13
A183: 1974M08 | B183: 10 | C183: .. | D183: 10 | E183: .. | F183: 16.89 | G183: .. | H183: 0.29 | I183: 1.73 | J183: .. | K183: 11.7459504 | L183: 1.561 | M183: 1.379 | N183: 1.234779 | O183: 1.1838 | P183: 0.9663738 | Q183: 1.448293 | R183: 1.1368 | S183: 1053 | T183: .. | U183: .. | V183: 1085.19 | W183: 727.84 | X183: .. | Y183: 320 | Z183: 922 | AA183: 197 | AB183: .. | AC183: .. | AD183: 65.54289364 | AE183: 145.82 | AF183: 127.87 | AG183: 496.52 | AH183: .. | AI183: .. | AJ183: .. | AK183: .. | AL183: 167.55 | AM183: .. | AN183: 0.19185 | AO183: 0.1983 | AP183: 1.6058 | AQ183: 0.5647033497 | AR183: 1.2987 | AS183: 4.6517482 | AT183: 0.19180194 | AU183: 0.718926582 | AV183: 0.6753 | AW183: 1554.54 | AX183: 120.43 | AY183: 80.07 | AZ183: .. | BA183: 245.0354043 | BB183: .. | BC183: .. | BD183: 1.3349 | BE183: .. | BF183: 0.6766 | BG183: 63 | BH183: 365 | BI183: 337 | BJ183: 285.75 | BK183: 62 | BL183: 848.7788086 | BM183: 13.38 | BN183: 1802.9 | BO183: 549.6 | BP183: 8787.6 | BQ183: 4079 | BR183: 1066 | BS183: 154.64 | BT183: 195 | BU183: 4.43136 | BV183: .. | BW183: 650 | BX183: .. | BY183: .. | BZ183: .. | CA183: .. | CB183: .. | CC183: .. | CD183: .. | CE183: 194.59
A184: 1974M09 | B184: 10 | C184: .. | D184: 10 | E184: .. | F184: 16.89 | G184: .. | H184: 0.29 | I184: 1.73 | J184: .. | K184: 11.7459504 | L184: 1.561 | M184: 1.2039 | N184: 1.188704 | O184: 1.1204 | P184: 0.9606205 | Q184: 1.263735 | R184: 1.1368 | S184: 826 | T184: .. | U184: .. | V184: 1057.69 | W184: 706.65 | X184: .. | Y184: 303 | Z184: 933 | AA184: 184 | AB184: .. | AC184: .. | AD184: 65.4820253 | AE184: 141.43 | AF184: 128.7 | AG184: 491.86 | AH184: .. | AI184: .. | AJ184: .. | AK184: .. | AL184: 170.49 | AM184: .. | AN184: 0.22355 | AO184: 0.1983 | AP184: 1.3971 | AQ184: 0.5658062651 | AR184: 1.3516 | AS184: 4.6517482 | AT184: 0.319008514 | AU184: 0.743177402 | AV184: 0.7529 | AW184: 1576.75 | AX184: 120.43 | AY184: 71.42 | AZ184: .. | BA184: 230.365717 | BB184: .. | BC184: .. | BD184: 1.3173 | BE184: .. | BF184: 0.5957 | BG184: 63 | BH184: 405 | BI184: 361 | BJ184: 285.75 | BK184: 66 | BL184: 837.7556152 | BM184: 13.38 | BN184: 1460.5 | BO184: 539.3 | BP184: 9166.8 | BQ184: 4079 | BR184: 911 | BS184: 151.75 | BT184: 195 | BU184: 4.04875 | BV184: .. | BW184: 550 | BX184: .. | BY184: .. | BZ184: .. | CA184: .. | CB184: .. | CC184: .. | CD184: .. | CE184: 194.53
A185: 1974M10 | B185: 10.29999924 | C185: .. | D185: 10.29999924 | E185: .. | F185: 16.89 | G185: .. | H185: 0.29 | I185: 1.73 | J185: .. | K185: 11.7459504 | L185: 1.561 | M185: 1.2518 | N185: 1.21119 | O185: 1.1081 | P185: 0.9605361 | Q185: 1.227041 | R185: 1.1368 | S185: 875 | T185: .. | U185: .. | V185: 1139.17 | W185: 840.17 | X185: .. | Y185: 335 | Z185: 1045 | AA185: 210 | AB185: .. | AC185: .. | AD185: 70.97357056 | AE185: 151.57 | AF185: 149.25 | AG185: 478.36 | AH185: .. | AI185: .. | AJ185: .. | AK185: .. | AL185: 192.17 | AM185: .. | AN185: 0.19268 | AO185: 0.1983 | AP185: 1.3852 | AQ185: 0.5717897269 | AR185: 1.4274 | AS185: 4.6517482 | AT185: 0.321433596 | AU185: 0.855833484 | AV185: 0.8708 | AW185: 1590.67 | AX185: 120.43 | AY185: 65.11 | AZ185: .. | BA185: 219.1416295 | BB185: .. | BC185: .. | BD185: 1.2621 | BE185: .. | BF185: 0.5785 | BG185: 63 | BH185: 405 | BI185: 355 | BJ185: 285.75 | BK185: 70 | BL185: 844.3693848 | BM185: 13.38 | BN185: 1398.8 | BO185: 537.3 | BP185: 7409.7 | BQ185: 4079 | BR185: 825 | BS185: 158.78 | BT185: 195 | BU185: 4.82977 | BV185: .. | BW185: 582.5 | BX185: .. | BY185: .. | BZ185: .. | CA185: .. | CB185: .. | CC185: .. | CD185: .. | CE185: 216.05
A186: 1974M11 | B186: 10.29999924 | C186: .. | D186: 10.29999924 | E186: .. | F186: 16.89 | G186: .. | H186: 0.29 | I186: 1.73 | J186: .. | K186: 11.7459504 | L186: 1.561 | M186: 1.3069 | N186: 1.227063 | O186: 1.1334 | P186: 0.9980577 | Q186: 1.265237 | R186: 1.1368 | S186: 748 | T186: .. | U186: .. | V186: 1085.08 | W186: 767.53 | X186: .. | Y186: 312 | Z186: 943 | AA186: 179 | AB186: .. | AC186: .. | AD186: 69.05530376 | AE186: 144.09 | AF186: 146.17 | AG186: 436.62 | AH186: .. | AI186: .. | AJ186: .. | AK186: .. | AL186: 187.39 | AM186: .. | AN186: 0.16976 | AO186: 0.1983 | AP186: 1.3232 | AQ186: 0.5706710972 | AR186: 1.4415 | AS186: 4.6517482 | AT186: 0.32077221 | AU186: 1.26324726 | AV186: 1.2377 | AW186: 1624.69 | AX186: 120.43 | AY186: 59.98 | AZ186: .. | BA186: 209.6421574 | BB186: .. | BC186: .. | BD186: 1.1743 | BE186: .. | BF186: 0.5027 | BG186: 65 | BH186: 405 | BI186: 355 | BJ186: 285.75 | BK186: 70 | BL186: 842.1647949 | BM186: 13.38 | BN186: 1416.7 | BO186: 534.2 | BP186: 7403.1 | BQ186: 4079 | BR186: 794 | BS186: 181.66 | BT186: 195 | BU186: 4.69389 | BV186: .. | BW186: 512 | BX186: .. | BY186: .. | BZ186: .. | CA186: .. | CB186: .. | CC186: .. | CD186: .. | CE186: 225.97
A187: 1974M12 | B187: 10.29999924 | C187: .. | D187: 10.29999924 | E187: .. | F187: 16.89 | G187: .. | H187: 0.29 | I187: 1.73 | J187: .. | K187: 11.7459504 | L187: 1.561 | M187: 1.2959 | N187: 1.216481 | O187: 1.1786 | P187: 1.024951 | Q187: 1.374181 | R187: 1.1368 | S187: 660 | T187: .. | U187: .. | V187: 1082.88 | W187: 689.26 | X187: .. | Y187: 288 | Z187: 892 | AA187: 184 | AB187: .. | AC187: .. | AD187: 69.11505723 | AE187: 145.27 | AF187: 139.99 | AG187: 413.3 | AH187: .. | AI187: .. | AJ187: .. | AK187: .. | AL187: 185.92 | AM187: .. | AN187: 0.17461 | AO187: 0.1721 | AP187: 1.2639 | AQ187: 0.5741325194 | AR187: 1.4794 | AS187: 4.6517482 | AT187: 0.32077221 | AU187: 1.028234768 | AV187: 0.9894 | AW187: 1644.11 | AX187: 120.43 | AY187: 65.9 | AZ187: .. | BA187: 220.5734596 | BB187: .. | BC187: .. | BD187: 1.0913 | BE187: .. | BF187: 0.5626 | BG187: 64.25 | BH187: 408.75 | BI187: 341 | BJ187: 285.75 | BK187: 70 | BL187: 859.8017578 | BM187: 13.38 | BN187: 1289 | BO187: 534.2 | BP187: 7202.5 | BQ187: 4079 | BR187: 771 | BS187: 183.78 | BT187: 195 | BU187: 4.39125 | BV187: .. | BW187: 443.75 | BX187: .. | BY187: .. | BZ187: .. | CA187: .. | CB187: .. | CC187: .. | CD187: .. | CE187: 226.09
A188: 1975M01 | B188: 10.42000008 | C188: .. | D188: 10.42000008 | E188: .. | F188: 26.84 | G188: .. | H188: 0.43 | I188: 1.682093591 | J188: .. | K188: 13.21827687 | L188: 1.246 | M188: 1.2311 | N188: 1.197522 | O188: 1.1428 | P188: 1.018491 | Q188: 1.285751 | R188: 1.1242 | S188: 548 | T188: .. | U188: .. | V188: 1078 | W188: 589.4 | X188: .. | Y188: 256 | Z188: 775 | AA188: 156 | AB188: .. | AC188: .. | AD188: 63.22525359 | AE188: 131.73 | AF188: 118.83 | AG188: 376.72 | AH188: .. | AI188: .. | AJ188: .. | AK188: .. | AL188: 164.24 | AM188: .. | AN188: 0.221 | AO188: 0.1541 | AP188: 1.1455 | AQ188: 0.5728780765 | AR188: 1.5407 | AS188: 5.8863354 | AT188: 0.604727266 | AU188: 0.88515493 | AV188: 0.8445 | AW188: 1677.78 | AX188: 126.57 | AY188: 68.42 | AZ188: .. | BA188: 225.0888534 | BB188: .. | BC188: .. | BD188: 1.0538 | BE188: .. | BF188: 0.5474 | BG188: 68 | BH188: 396 | BI188: 335 | BJ188: 168 | BK188: 70 | BL188: 895.0756836 | BM188: 17.3 | BN188: 1211.2 | BO188: 538.4 | BP188: 7676.5 | BQ188: 4431 | BR188: 799 | BS188: 176.27 | BT188: 195 | BU188: 4.1925 | BV188: .. | BW188: 371 | BX188: .. | BY188: .. | BZ188: .. | CA188: .. | CB188: .. | CC188: .. | CD188: .. | CE188: 209.08
A189: 1975M02 | B189: 10.42000008 | C189: .. | D189: 10.42000008 | E189: .. | F189: 26.84 | G189: .. | H189: 0.43 | I189: 1.682093591 | J189: .. | K189: 13.21827687 | L189: 1.246 | M189: 1.1788 | N189: 1.154974 | O189: 1.1274 | P189: 1.064124 | Q189: 1.193996 | R189: 1.1242 | S189: 467 | T189: .. | U189: .. | V189: 1078 | W189: 497.67 | X189: .. | Y189: 231 | Z189: 661 | AA189: 141 | AB189: .. | AC189: .. | AD189: 59.4772575 | AE189: 120.47 | AF189: 109.13 | AG189: 381.38 | AH189: .. | AI189: .. | AJ189: .. | AK189: .. | AL189: 153.22 | AM189: .. | AN189: 0.237 | AO189: 0.1686 | AP189: 1.1468 | AQ189: 0.5718334266 | AR189: 1.4563 | AS189: 5.8863354 | AT189: 0.330031614 | AU189: 0.795206434 | AV189: 0.7491 | AW189: 1732.73 | AX189: 126.57 | AY189: 61.61 | AZ189: .. | BA189: 212.6996542 | BB189: .. | BC189: .. | BD189: 1.0582 | BE189: .. | BF189: 0.5783 | BG189: 68 | BH189: 383 | BI189: 320 | BJ189: 168 | BK189: 70 | BL189: 908.3034668 | BM189: 17.3 | BN189: 1266.5 | BO189: 541.2 | BP189: 7557.4 | BQ189: 4431 | BR189: 794 | BS189: 179.6 | BT189: 180.53 | BU189: 4.37 | BV189: .. | BW189: 317 | BX189: .. | BY189: .. | BZ189: .. | CA189: .. | CB189: .. | CC189: .. | CD189: .. | CE189: 189.14
A190: 1975M03 | B190: 10.42000008 | C190: .. | D190: 10.42000008 | E190: .. | F190: 26.84 | G190: .. | H190: 0.43 | I190: 1.682093591 | J190: .. | K190: 13.21827687 | L190: 1.246 | M190: 1.1034 | N190: 1.094348 | O190: 1.096 | P190: 1.032988 | Q190: 1.130917 | R190: 1.1242 | S190: 450 | T190: .. | U190: .. | V190: 965 | W190: 478.26 | X190: .. | Y190: 226 | Z190: 622 | AA190: 144 | AB190: .. | AC190: .. | AD190: 58.46530416 | AE190: 120.17 | AF190: 111.06 | AG190: 374.02 | AH190: .. | AI190: .. | AJ190: .. | AK190: .. | AL190: 147.34 | AM190: .. | AN190: 0.254 | AO190: 0.1858 | AP190: 1.1431 | AQ190: 0.5737789446 | AR190: 1.5662 | AS190: 5.8863354 | AT190: 0.33399993 | AU190: 0.628757624 | AV190: 0.582 | AW190: 1809.61 | AX190: 126.57 | AY190: 68.05 | AZ190: .. | BA190: 224.4307295 | BB190: .. | BC190: .. | BD190: 1.0899 | BE190: .. | BF190: 0.5725 | BG190: 68 | BH190: 363 | BI190: 297 | BJ190: 168 | BK190: 88 | BL190: 917.1218262 | BM190: 17.3 | BN190: 1344.2 | BO190: 542.8 | BP190: 7383.3 | BQ190: 4431 | BR190: 803 | BS190: 178.16 | BT190: 175 | BU190: 4.3315 | BV190: .. | BW190: 298 | BX190: .. | BY190: .. | BZ190: .. | CA190: .. | CB190: .. | CC190: .. | CD190: .. | CE190: 189.16
A191: 1975M04 | B191: 10.42000008 | C191: .. | D191: 10.42000008 | E191: .. | F191: 26.84 | G191: .. | H191: 0.43 | I191: 1.682093591 | J191: .. | K191: 13.21827687 | L191: 1.246 | M191: 1.0503 | N191: 1.0809 | O191: 1.3713 | P191: 0.9577421 | Q191: 2.031931 | R191: 1.1242 | S191: 428 | T191: .. | U191: .. | V191: 882 | W191: 451.1 | X191: .. | Y191: 229 | Z191: 624 | AA191: 153 | AB191: .. | AC191: .. | AD191: 57.18838578 | AE191: 119.66 | AF191: 111.61 | AG191: 377.7 | AH191: .. | AI191: .. | AJ191: .. | AK191: .. | AL191: 140.36 | AM191: .. | AN191: 0.252 | AO191: 0.2697 | AP191: 1.2809 | AQ191: 0.576705807 | AR191: 1.581 | AS191: 5.8863354 | AT191: 0.328929304 | AU191: 0.574744434 | AV191: 0.528 | AW191: 1843.91 | AX191: 126.57 | AY191: 67.1 | AZ191: .. | BA191: 222.733372 | BB191: .. | BC191: .. | BD191: 1.1616 | BE191: .. | BF191: 0.5326 | BG191: 68 | BH191: 307 | BI191: 249 | BJ191: 168 | BK191: 88 | BL191: 897.2802734 | BM191: 17.3 | BN191: 1329.2 | BO191: 479.5 | BP191: 7129.7 | BQ191: 4431 | BR191: 783 | BS191: 169.84 | BT191: 163.06 | BU191: 4.20918 | BV191: .. | BW191: 290 | BX191: .. | BY191: .. | BZ191: .. | CA191: .. | CB191: .. | CC191: .. | CD191: .. | CE191: 187.9
A192: 1975M05 | B192: 10.42000008 | C192: .. | D192: 10.42000008 | E192: .. | F192: 26.84 | G192: .. | H192: 0.43 | I192: 1.682093591 | J192: .. | K192: 13.21827687 | L192: 1.246 | M192: 1.121 | N192: 1.047611 | O192: 1.1746 | P192: 0.9003745 | Q192: 1.499189 | R192: 1.1242 | S192: 355 | T192: .. | U192: .. | V192: 727 | W192: 391.74 | X192: .. | Y192: 208 | Z192: 516 | AA192: 148 | AB192: .. | AC192: .. | AD192: 54.76473523 | AE192: 114.52 | AF192: 110.12 | AG192: 365.43 | AH192: .. | AI192: .. | AJ192: .. | AK192: .. | AL192: 131.54 | AM192: .. | AN192: 0.245 | AO192: 0.2738 | AP192: 1.3695 | AQ192: 0.5773267633 | AR192: 1.5235 | AS192: 5.8863354 | AT192: 0.332456696 | AU192: 0.424830274 | AV192: 0.3909 | AW192: 1859.52 | AX192: 126.57 | AY192: 67.25 | AZ192: .. | BA192: 223.0021073 | BB192: .. | BC192: .. | BD192: 1.2225 | BE192: .. | BF192: 0.5262 | BG192: 68 | BH192: 242 | BI192: 206 | BJ192: 168 | BK192: 89 | BL192: 903.8942871 | BM192: 17.3 | BN192: 1253.8 | BO192: 356.9 | BP192: 6898.3 | BQ192: 4431 | BR192: 747 | BS192: 167.39 | BT192: 160 | BU192: 4.5381 | BV192: .. | BW192: 242 | BX192: .. | BY192: .. | BZ192: .. | CA192: .. | CB192: .. | CC192: .. | CD192: .. | CE192: 164.39
A193: 1975M06 | B193: 10.42000008 | C193: .. | D193: 10.42000008 | E193: .. | F193: 26.84 | G193: .. | H193: 0.43 | I193: 1.682093591 | J193: .. | K193: 13.21827687 | L193: 1.246 | M193: 1.233 | N193: 1.087734 | O193: 1.2236 | P193: 0.8458949 | Q193: 1.700853 | R193: 1.1242 | S193: 333 | T193: .. | U193: .. | V193: 660 | W193: 356 | X193: .. | Y193: 207 | Z193: 525 | AA193: 150 | AB193: .. | AC193: .. | AD193: 54.74118956 | AE193: 119.1 | AF193: 105.82 | AG193: 324.92 | AH193: .. | AI193: .. | AJ193: .. | AK193: .. | AL193: 127.13 | AM193: .. | AN193: 0.236 | AO193: 0.2738 | AP193: 1.3327 | AQ193: 0.5791020464 | AR193: 1.5349 | AS193: 5.8863354 | AT193: 0.332456696 | AU193: 0.351857352 | AV193: 0.3009 | AW193: 1852.98 | AX193: 126.57 | AY193: 66.76 | AZ193: .. | BA193: 222.1232137 | BB193: .. | BC193: .. | BD193: 1.2319 | BE193: .. | BF193: 0.539 | BG193: 68 | BH193: 194 | BI193: 172 | BJ193: 168 | BK193: 88 | BL193: 903.8942871 | BM193: 17.3 | BN193: 1193 | BO193: 353.4 | BP193: 6926.9 | BQ193: 4431 | BR193: 751 | BS193: 164.24 | BT193: 160 | BU193: 4.48914 | BV193: .. | BW193: 225 | BX193: .. | BY193: .. | BZ193: .. | CA193: .. | CB193: .. | CC193: .. | CD193: .. | CE193: 156.81
A194: 1975M07 | B194: 10.43000031 | C194: .. | D194: 10.43000031 | E194: .. | F194: 26.84 | G194: .. | H194: 0.43 | I194: 1.682093591 | J194: .. | K194: 13.21827687 | L194: 1.246 | M194: 1.4478 | N194: 1.293641 | O194: 1.2274 | P194: 0.8252288 | Q194: 1.732839 | R194: 1.1242 | S194: 372 | T194: .. | U194: .. | V194: 813 | W194: 401.98 | X194: .. | Y194: 224 | Z194: 578 | AA194: 157 | AB194: .. | AC194: .. | AD194: 58.39066894 | AE194: 119.82 | AF194: 103.39 | AG194: 307.73 | AH194: .. | AI194: .. | AJ194: .. | AK194: .. | AL194: 145.14 | AM194: .. | AN194: 0.165 | AO194: 0.2738 | AP194: 1.3466 | AQ194: 0.5816826049 | AR194: 1.4391 | AS194: 5.8863354 | AT194: 0.316583432 | AU194: 0.438498918 | AV194: 0.368 | AW194: 1864.54 | AX194: 126.57 | AY194: 66.17 | AZ194: .. | BA194: 221.0610069 | BB194: .. | BC194: .. | BD194: 1.2544 | BE194: .. | BF194: 0.5706 | BG194: 68 | BH194: 181 | BI194: 158 | BJ194: 168 | BK194: 85 | BL194: 864.2109375 | BM194: 17.3 | BN194: 1222.4 | BO194: 359.3 | BP194: 6810.1 | BQ194: 4431 | BR194: 707 | BS194: 165.17 | BT194: 162.73 | BU194: 4.70455 | BV194: .. | BW194: 200 | BX194: .. | BY194: .. | BZ194: .. | CA194: .. | CB194: .. | CC194: .. | CD194: .. | CE194: 167.55
A195: 1975M08 | B195: 10.43000031 | C195: .. | D195: 10.43000031 | E195: .. | F195: 26.84 | G195: .. | H195: 0.43 | I195: 1.682093591 | J195: .. | K195: 13.21827687 | L195: 1.246 | M195: 1.8404 | N195: 1.69862 | O195: 1.1726 | P195: 0.8585998 | Q195: 1.534951 | R195: 1.1242 | S195: 388 | T195: .. | U195: .. | V195: 908 | W195: 472.61 | X195: .. | Y195: 243 | Z195: 599 | AA195: 170 | AB195: .. | AC195: .. | AD195: 63.67183362 | AE195: 131.56 | AF195: 122.36 | AG195: 323.69 | AH195: .. | AI195: .. | AJ195: .. | AK195: .. | AL195: 162.77 | AM195: .. | AN195: 0.196 | AO195: 0.2738 | AP195: 1.2992 | AQ195: 0.5851230359 | AR195: 1.346 | AS195: 5.8863354 | AT195: 0.305119408 | AU195: 0.465395282 | AV195: 0.4102 | AW195: 1885.59 | AX195: 126.57 | AY195: 69.48 | AZ195: .. | BA195: 226.9652812 | BB195: .. | BC195: .. | BD195: 1.3131 | BE195: .. | BF195: 0.5864 | BG195: 68 | BH195: 185 | BI195: 158 | BJ195: 168 | BK195: 85 | BL195: 837.7556152 | BM195: 17.3 | BN195: 1277.1 | BO195: 383.6 | BP195: 6774.8 | BQ195: 4431 | BR195: 737 | BS195: 163 | BT195: 175 | BU195: 4.9251 | BV195: .. | BW195: 239 | BX195: .. | BY195: .. | BZ195: .. | CA195: .. | CB195: .. | CC195: .. | CD195: .. | CE195: 185.23
A196: 1975M09 | B196: 10.43000031 | C196: .. | D196: 10.43000031 | E196: .. | F196: 26.84 | G196: .. | H196: 0.43 | I196: 1.682093591 | J196: .. | K196: 13.21827687 | L196: 1.246 | M196: 1.7831 | N196: 1.677677 | O196: 1.1065 | P196: 0.7955002 | Q196: 1.399848 | R196: 1.1242 | S196: 368 | T196: .. | U196: .. | V196: 871 | W196: 412.35 | X196: .. | Y196: 227 | Z196: 551 | AA196: 169 | AB196: .. | AC196: .. | AD196: 62.70281283 | AE196: 122.31 | AF196: 118.17 | AG196: 336.21 | AH196: .. | AI196: .. | AJ196: .. | AK196: .. | AL196: 165.71 | AM196: .. | AN196: 0.22 | AO196: 0.2738 | AP196: 1.4165 | AQ196: 0.5864376899 | AR196: 1.3876 | AS196: 5.8863354 | AT196: 0.29982832 | AU196: 0.382722032 | AV196: 0.3417 | AW196: 1879.64 | AX196: 126.57 | AY196: 68.24 | AZ196: .. | BA196: 224.7688901 | BB196: .. | BC196: .. | BD196: 1.327 | BE196: .. | BF196: 0.5551 | BG196: 68 | BH196: 192 | BI196: 158 | BJ196: 168 | BK196: 84 | BL196: 826.7324219 | BM196: 17.3 | BN196: 1210.1 | BO196: 370 | BP196: 6558.7 | BQ196: 4852 | BR196: 724 | BS196: 144.17 | BT196: 175 | BU196: 4.51595 | BV196: .. | BW196: 233 | BX196: .. | BY196: .. | BZ196: .. | CA196: .. | CB196: .. | CC196: .. | CD196: .. | CE196: 190.49
A197: 1975M10 | B197: 10.46000004 | C197: .. | D197: 10.46000004 | E197: .. | F197: 26.84 | G197: .. | H197: 0.43 | I197: 1.682093591 | J197: .. | K197: 13.21827687 | L197: 1.246 | M197: 1.7723 | N197: 1.610879 | O197: 1.0792 | P197: 0.7523885 | Q197: 1.399619 | R197: 1.08548 | S197: 347 | T197: .. | U197: .. | V197: 840 | W197: 412.19 | X197: .. | Y197: 211 | Z197: 495 | AA197: 163 | AB197: .. | AC197: .. | AD197: 61.13024394 | AE197: 116.87 | AF197: 114.84 | AG197: 332.53 | AH197: .. | AI197: .. | AJ197: .. | AK197: .. | AL197: 161.67 | AM197: .. | AN197: 0.192 | AO197: 0.2738 | AP197: 1.5331 | AQ197: 0.586995777 | AR197: 1.4112 | AS197: 5.8863354 | AT197: 0.301812478 | AU197: 0.34061379 | AV197: 0.3101 | AW197: 1898.57 | AX197: 126.57 | AY197: 67.13 | AZ197: .. | BA197: 222.7871412 | BB197: .. | BC197: .. | BD197: 1.3162 | BE197: .. | BF197: 0.534 | BG197: 68 | BH197: 162 | BI197: 131 | BJ197: 168 | BK197: 78 | BL197: 815.7094727 | BM197: 17.3 | BN197: 1178.8 | BO197: 344.6 | BP197: 6347.1 | BQ197: 4852 | BR197: 706 | BS197: 142.79 | BT197: 172.17 | BU197: 4.32886 | BV197: .. | BW197: 214 | BX197: .. | BY197: .. | BZ197: .. | CA197: .. | CB197: .. | CC197: .. | CD197: .. | CE197: 190.71
A198: 1975M11 | B198: 10.46000004 | C198: .. | D198: 10.46000004 | E198: .. | F198: 26.84 | G198: .. | H198: 0.43 | I198: 1.682093591 | J198: .. | K198: 13.21827687 | L198: 1.246 | M198: 1.709 | N198: 1.574283 | O198: 1.0014 | P198: 0.7567781 | Q198: 1.266744 | R198: 0.9805777 | S198: 327 | T198: .. | U198: .. | V198: 755 | W198: 378.8 | X198: .. | Y198: 192 | Z198: 423 | AA198: 152 | AB198: .. | AC198: .. | AD198: 57.44273987 | AE198: 110.26 | AF198: 108.85 | AG198: 309.45 | AH198: .. | AI198: .. | AJ198: .. | AK198: .. | AL198: 146.97 | AM198: .. | AN198: 0.203 | AO198: 0.1355 | AP198: 1.4663 | AQ198: 0.5867080385 | AR198: 1.4535 | AS198: 5.8863354 | AT198: 0.301371554 | AU198: 0.331354386 | AV198: 0.2969 | AW198: 1893.61 | AX198: 126.57 | AY198: 69.25 | AZ198: .. | BA198: 226.5592567 | BB198: .. | BC198: .. | BD198: 1.2998 | BE198: .. | BF198: 0.5686 | BG198: 68 | BH198: 150 | BI198: 123 | BJ198: 168 | BK198: 76 | BL198: 813.5048828 | BM198: 17.3 | BN198: 1179.7 | BO198: 337.3 | BP198: 6281 | BQ198: 4852 | BR198: 705 | BS198: 142.42 | BT198: 160 | BU198: 4.33244 | BV198: .. | BW198: 198 | BX198: .. | BY198: .. | BZ198: .. | CA198: .. | CB198: .. | CC198: .. | CD198: .. | CE198: 177.61
A199: 1975M12 | B199: 10.46000004 | C199: .. | D199: 10.46000004 | E199: .. | F199: 26.84 | G199: .. | H199: 0.43 | I199: 1.682093591 | J199: .. | K199: 13.21827687 | L199: 1.246 | M199: 1.8353 | N199: 1.632043 | O199: 0.983 | P199: 0.7688305 | Q199: 1.20636 | R199: 0.9738197 | S199: 339 | T199: .. | U199: .. | V199: 713 | W199: 367.93 | X199: .. | Y199: 185 | Z199: 391 | AA199: 157 | AB199: .. | AC199: .. | AD199: 56.54295643 | AE199: 109.15 | AF199: 108.3 | AG199: 287.36 | AH199: .. | AI199: .. | AJ199: .. | AK199: .. | AL199: 142.57 | AM199: .. | AN199: 0.191 | AO199: 0.1796 | AP199: 1.4449 | AQ199: 0.5889889062 | AR199: 1.4911 | AS199: 5.8863354 | AT199: 0.2976237 | AU199: 0.32628376 | AV199: 0.2908 | AW199: 1905.39 | AX199: 126.57 | AY199: 70.66 | AZ199: .. | BA199: 229.0387121 | BB199: .. | BC199: .. | BD199: 1.3461 | BE199: .. | BF199: 0.6202 | BG199: 58 | BH199: 155 | BI199: 123 | BJ199: 168 | BK199: 75 | BL199: 837.7556152 | BM199: 17.3 | BN199: 1151 | BO199: 333.1 | BP199: 6175.1 | BQ199: 4852 | BR199: 686 | BS199: 139.3 | BT199: 160 | BU199: 4.08486 | BV199: .. | BW199: 209 | BX199: .. | BY199: .. | BZ199: .. | CA199: .. | CB199: .. | CC199: .. | CD199: .. | CE199: 166
A200: 1976M01 | B200: 11.51000023 | C200: .. | D200: 11.51000023 | E200: .. | F200: 27.16 | G200: .. | H200: 0.54 | I200: 1.7351133 | J200: .. | K200: 14.80610213 | L200: 1.4046 | M200: 2.047 | N200: 1.744476 | O200: 1.102 | P200: 0.8582912 | Q200: 1.214003 | R200: 1.233625 | S200: 332 | T200: .. | U200: .. | V200: 720 | W200: 353.88 | X200: .. | Y200: 189 | Z200: 385 | AA200: 160 | AB200: .. | AC200: .. | AD200: 57.03613071 | AE200: 110.26 | AF200: 108.58 | AG200: 259.86 | AH200: .. | AI200: .. | AJ200: .. | AK200: .. | AL200: 143.67 | AM200: .. | AN200: 0.243 | AO200: 0.216 | AP200: 1.4861 | AQ200: 0.5909390983 | AR200: 1.46 | AS200: 8.3114174 | AT200: 0.297403238 | AU200: 0.339952404 | AV200: 0.3091 | AW200: 1977.71 | AX200: 145.74 | AY200: 73.2 | AZ200: .. | BA200: 233.4485146 | BB200: .. | BC200: .. | BD200: 1.4744 | BE200: .. | BF200: 0.6385 | BG200: 40 | BH200: 130 | BI200: 105 | BJ200: 82 | BK200: 70 | BL200: 853.1879883 | BM200: 22.72 | BN200: 1193 | BO200: 337 | BP200: 6241.3 | BQ200: 4850 | BR200: 692 | BS200: 131.05 | BT200: 160 | BU200: 4.06265 | BV200: .. | BW200: 203 | BX200: .. | BY200: .. | BZ200: .. | CA200: .. | CB200: .. | CC200: .. | CD200: .. | CE200: 164.26
... 522 more rows
